Workbook

Sheet シート表示切替 (hidden)
A1: シート数 | B1: =MAX(A:A) -> 75
A2: No | B2: シート名 | C2: 表示フラグ：提供時 | D2: 表示フラグ：作成時 | E2: 必要なところだけ
A3: 0 | B3: シート表示切替 | C3: 1 | D3: 0 | E3: 0
A4: 1 | B4: 入力シート | C4: 0 | D4: 0 | E4: 0
A5: 2 | B5: 選択リスト設定 | C5: 1 | D5: 0 | E5: 1 | G5: 【定義】
A6: 3 | B6: 一次E換算 | C6: 1 | D6: 0 | E6: 1 | G6: 熱需要量 | H6: ：施設で空調、給湯、融雪等に必要な熱量
A7: 4 | B7: CO2換算係数 | C7: 1 | D7: 0 | E7: 1 | G7: 下水熱ポテンシャル | H7: ：下水のもつ熱量
A8: 5 | B8: E単価 | C8: 1 | D8: 0 | E8: 1 | G8: 下水熱利用可能量 | H8: ：下水熱ポテンシャルを利用して施設側で利用可能な熱量
A9: 6 | B9: 気温 | C9: 1 | D9: 0 | E9: 1 | G9: 下水熱利用量 | H9: ：熱需要量と下水熱利用可能量のマッチングの結果、熱需要量のうち下水熱利用システムで賄える熱量
A10: 7 | B10: 下水温度 | C10: 1 | D10: 0 | E10: 1
A11: 8 | B11: 積雪日数 | C11: 1 | D11: 0 | E11: 1
A12: 9 | B12: 係数・物性 | C12: 1 | D12: 0 | E12: 1
A13: 10 | B13: 配管摩擦抵抗線図(不要) | C13: 1 | D13: 0 | E13: 1
A14: 11 | B14: ポンプ選定(参考・不要) | C14: 1 | D14: 0 | E14: 1
A15: 12 | B15: ポンプ効率近似式 | C15: 1 | D15: 0 | E15: 1
A16: 13 | B16: 蓄熱槽容量関数 | C16: 1 | D16: 0 | E16: 1
A17: 14 | B17: HP性能曲線 | C17: 1 | D17: 0 | E17: 1
A18: 15 | B18: 冷却塔消費電力関数 | C18: 1 | D18: 0 | E18: 1
A19: 16 | B19: 価格関数 | C19: 1 | D19: 0 | E19: 1
A20: 17 | B20: 下水温度・流量月別(不要) | C20: 1 | D20: 0 | E20: 1
A21: 18 | B21: 熱需要量算定・原単位 | C21: 1 | D21: 0 | E21: 1
A22: 19 | B22: 熱需要量算定_月別時間別(不要) | C22: 1 | D22: 0 | E22: 1
A23: 20 | B23: 融雪熱需要量算定 | C23: 1 | D23: 0 | E23: 1
A24: 21 | B24: 下水熱ポテンシャル | C24: 1 | D24: 0 | E24: 1
A25: 22 | B25: マッチング | C25: 1 | D25: 0 | E25: 1
A26: 23 | B26: 下水熱_RC | C26: 1 | D26: 0 | E26: 1
A27: 24 | B27: 下水熱_蓄熱槽容量 | C27: 1 | D27: 0 | E27: 1
A28: 25 | B28: 下水熱_空調_熱源容量 | C28: 1 | D28: 0 | E28: 1
A29: 26 | B29: 下水熱_IC | C29: 1 | D29: 0 | E29: 1
A30: 27 | B30: 太陽熱_ポテンシャル・RC・IC | C30: 1 | D30: 0 | E30: 1
A31: 28 | B31: 太陽熱_月平均給水温度 | C31: 1 | D31: 0 | E31: 1
A32: 29 | B32: 太陽熱_月平均水平面日射量 | C32: 1 | D32: 0 | E32: 1
A33: 30 | B33: 太陽熱_日射時平均気温 | C33: 1 | D33: 0 | E33: 1
A34: 31 | B34: 太陽熱_傾斜角による日射量倍率 | C34: 1 | D34: 0 | E34: 1
A35: 32 | B35: 太陽光_全日集熱効率_関数 | C35: 1 | D35: 0 | E35: 1
A36: 33 | B36: 太陽熱_晴天日日数 | C36: 1 | D36: 0 | E36: 1
A37: 34 | B37: 地中熱_RC | C37: 1 | D37: 0 | E37: 1
A38: 35 | B38: 地中熱_蓄熱槽容量 | C38: 1 | D38: 0 | E38: 1
A39: 36 | B39: 地中熱_空調_熱源容量 | C39: 1 | D39: 0 | E39: 1
A40: 37 | B40: 地中熱_IC | C40: 1 | D40: 0 | E40: 1
A41: 38 | B41: 空気熱源_給湯・空調_RC | C41: 1 | D41: 0 | E41: 1
A42: 39 | B42: 空気熱源_給湯・空調_熱源容量 | C42: 1 | D42: 0 | E42: 1
A43: 40 | B43: 空気熱源_給湯・空調_IC | C43: 1 | D43: 0 | E43: 1
A44: 41 | B44: 比較対象_既存_空気熱源_給湯・空調_RC | C44: 1 | D44: 0 | E44: 1
A45: 42 | B45: 比較対象_既存_空気熱源_給湯・空調_熱源容量 | C45: 1 | D45: 0 | E45: 1
A46: 43 | B46: 比較対象_既存_空気熱源_給湯・空調_IC | C46: 1 | D46: 0 | E46: 1
A47: 44 | B47: 残り需要_既存_空気熱源_給湯・空調_RC | C47: 1 | D47: 0 | E47: 1
A48: 45 | B48: 残り需要_既存_空気熱源_給湯・空調_熱源容量 | C48: 1 | D48: 0 | E48: 1
A49: 46 | B49: 残り需要_既存_空気熱源_給湯・空調_IC | C49: 1 | D49: 0 | E49: 1
A50: 47 | B50: 比較対象_既存_燃料_給湯_RC | C50: 1 | D50: 0 | E50: 1
A51: 48 | B51: 比較対象_既存_燃料_給湯_熱源容量 | C51: 1 | D51: 0 | E51: 1
A52: 49 | B52: 比較対象_既存_燃料_給湯_IC | C52: 1 | D52: 0 | E52: 1
A53: 50 | B53: 残り需要_既存_燃料_給湯_RC | C53: 1 | D53: 0 | E53: 1
A54: 51 | B54: 残り需要_既存_燃料_給湯_熱源容量 | C54: 1 | D54: 0 | E54: 1
A55: 52 | B55: 残り需要_既存_燃料_給湯_IC | C55: 1 | D55: 0 | E55: 1
A56: 53 | B56: 比較対象_既存_燃料_空調_RC | C56: 1 | D56: 0 | E56: 1
A57: 54 | B57: 比較対象_既存_燃料_空調_熱源容量 | C57: 1 | D57: 0 | E57: 1
A58: 55 | B58: 比較対象_既存_燃料_空調_IC | C58: 1 | D58: 0 | E58: 1
A59: 56 | B59: 残り需要_既存_燃料_空調_RC | C59: 1 | D59: 0 | E59: 1
A60: 57 | B60: 残り需要_既存_燃料_空調_熱源容量 | C60: 1 | D60: 0 | E60: 1
A61: 58 | B61: 残り需要_既存_燃料_空調_IC | C61: 1 | D61: 0 | E61: 1
A62: 59 | B62: 比較対象_既存_燃料_融雪_RC | C62: 1 | D62: 0 | E62: 1
A63: 60 | B63: 比較対象_既存_燃料_融雪_IC | C63: 1 | D63: 0 | E63: 1
A64: 61 | B64: 残り需要_既存_燃料_融雪_RC | C64: 1 | D64: 0 | E64: 1
A65: 62 | B65: 残り需要_既存_燃料_融雪_IC | C65: 1 | D65: 0 | E65: 1
A66: 63 | B66: 投資回収年数 | C66: 1 | D66: 0 | E66: 0
A67: 64 | B67: 結果 | C67: 1 | D67: 0 | E67: 0
A68: 65 | B68: バイオマス熱ポテンシャル | C68: 1 | D68: 0 | E68: 1
A69: 66 | B69: バイオマス熱_空調_RC | C69: 1 | D69: 0 | E69: 1
A70: 67 | B70: バイオマス熱_空調_熱源容量 | C70: 1 | D70: 0 | E70: 1
A71: 68 | B71: バイオマス熱_空調_IC | C71: 1 | D71: 0 | E71: 1
A72: 69 | B72: バイオマス熱_給湯_RC | C72: 1 | D72: 0 | E72: 1
A73: 70 | B73: バイオマス熱_給湯_熱源容量 | C73: 1 | D73: 0 | E73: 1
A74: 71 | B74: バイオマス熱_給湯_IC | C74: 1 | D74: 0 | E74: 1
A75: 72 | B75: バイオマス熱_融雪_RC | C75: 1 | D75: 0 | E75: 1
A76: 73 | B76: バイオマス熱_融雪_IC | C76: 1 | D76: 0 | E76: 1
A77: 74 | B77: バイオマス燃料情報 | C77: 1 | D77: 0 | E77: 1
A78: 75 | B78: （参考）バイオマスボイラ効率(不要) | C78: 1 | D78: 0 | E78: 1

Sheet 選択リスト設定 (hidden)
A1: 熱利用用途 | C1: 既存設備 | H1: 補助金設定 | J1: 下水熱利用方式
A2: 熱利用用途 | C2: 既存設備選択リスト | D2: [給湯の場合] | E2: [空調の場合] | F2: [融雪の場合] | H2: 補助率 | J2: 下水熱利用方式 | L2: バイオマス燃料 | N2: 下水熱量の設定方法選択
A3: 給湯 | C3: =IF(入力シート!$C$8="給湯",選択リスト設定!D3,IF(入力シート!$C$8="空調",選択リスト設定!E3,IF(入力シート!$C$8="融雪",選択リスト設定!F3,""))) ->  | D3: 燃料方式 | E3: 燃料方式 | F3: 燃料方式 | H3: 3分の1 | J3: 管路外 | L3: =バイオマス燃料情報!B4 -> 木質チップ | N3: 下水流量と下水温度を入力
A4: 空調 | C4: =IF(入力シート!$C$8="給湯",選択リスト設定!D4,IF(入力シート!$C$8="空調",選択リスト設定!E4,IF(入力シート!$C$8="融雪",選択リスト設定!F4,""))) ->  | D4: 電気方式 | E4: 電気方式 | F4: ="" ->  | H4: 2分の1 | J4: 管路内 | L4: =バイオマス燃料情報!B5 -> 木質ペレット | N4: 下水熱ポテンシャルを入力
A5: 融雪 | C5: =IF(入力シート!$C$8="給湯",選択リスト設定!D5,IF(入力シート!$C$8="空調",選択リスト設定!E5,IF(入力シート!$C$8="融雪",選択リスト設定!F5,""))) ->  | H5: 3分の2 | J5: 処理水（再生水） | L5: =バイオマス燃料情報!B6 -> 0
H6: 10分の5.5
D9: 燃料方式（ボイラ、給湯器） | E9: 燃料方式（吸収式+ボイラ、吸収式冷温水機等）
D10: 電気方式（空冷ヒートポンプ等） | E10: 電気方式（空冷ヒートポンプ等）

Sheet 一次E換算 (hidden)
A1: ■一次エネルギー換算係数
A2: 電気及び燃料の種類 | B2: 値 | C2: 単位 | D2: 単位
A3: 電気 | B3: 9.76 | C3: GJ/MWh | D3: MJ/kWh
A4: 都市ガス（13A） | B4: 45 | C4: GJ/km3 | D4: MJ/m3
A5: 灯油 | B5: 37 | C5: GJ/kL | D5: MJ/L
A6: 重油 | B6: 41 | C6: GJ/kL | D6: MJ/L
A7: 液化石油ガス（LPG） | B7: 50 | C7: GJ/t | D7: MJ/kg
A8: 他人から供給された熱 | B8: 1.36 | C8: GJ/GJ | D8: MJ/MJ
A9: 出典：建築物エネルギー消費性能基準等を定める省令における算出方法等に係る事項 （平成 28 年１月 29 日国土交通省告示第 265 号）、別表第一

Sheet CO2換算係数 (hidden)
A1: ■CO2換算係数
A2: 電気及び燃料の種類 | B2: 値 | C2: 単位 | D2: 単位 | E2: 備考
A3: 電気 | B3: =入力シート!C34 -> 0.000488 | C3: tCO2/kWh | D3: tCO2/kWh | E3: 令和2年度用
A4: 都市ガス（13A） | B4: 2.23 | C4: tCO2/km3 | D4: kgCO2/m3
A5: 灯油 | B5: 2.49 | C5: tCO2/kL | D5: kgCO2/L
A6: 重油 | B6: 2.71 | C6: tCO2/kL | D6: kgCO2/L
A7: 液化石油ガス（LPG） | B7: 3 | C7: tCO2/t | D7: kgCO2/kg
A8: 他人から供給された熱 | B8: 0.057 | C8: tCO2/GJ | D8: kgCO2/MJ
A9: 出典：算定・報告・公表制度における算定方法・排出係数一覧、環境省
A10: https://ghg-santeikohyo.env.go.jp/calc

Sheet E単価 (hidden)
B1: ■エネルギー料金単価の設定
B3: □電力 | G3: ■エネルギー単価表 | H3: ↓ここの値を使用して計算
B4: 電灯電力総合単価（一般電気事業者） | C4: 20.8 | D4: 円/kWh | E4: ※ | G4: 項目 | H4: 料金単価 | I4: 単位 | J4: 料金 | K4: 単位 | L4: 使用量 | M4: 単位 | N4: 料金単価(デフォ値）
B5: BDASH単価 | C5: 14 | D5: 円/kWh | E5: ※※ | G5: 電気料金 | H5: =IF(L5="",N5,J5/L5) -> 14 | I5: 円/kWh | J5: =IF(入力シート!C24="有り",入力シート!C26,"") ->  | K5: 円/年 | L5: =IF(入力シート!C24="有り",入力シート!E26,"") ->  | M5: kWh/年 | N5: =C7 -> 14
G6: 都市ガス（13A） | H6: =IF(L6="",N6,J6/L6) -> 114.6428571 | I6: 円/m3 | J6: =IF(AND(入力シート!$C$24="有り",入力シート!$C$16=E単価!G6),入力シート!$C$27,"") ->  | K6: 円/年 | L6: =IF(AND(入力シート!$C$24="有り",入力シート!$C$16=E単価!G6),入力シート!$E$27,"") ->  | M6: m3/年 | N6: =C14 -> 114.6428571
B7: 電気料金単価 | C7: =C5 -> 14 | D7: 円/kWh | G7: 灯油 | H7: 107.8888889 | I7: 円/L | J7: =IF(AND(入力シート!$C$24="有り",入力シート!$C$16=E単価!G7),入力シート!$C$27,"") ->  | K7: 円/年 | L7: =IF(AND(入力シート!$C$24="有り",入力シート!$C$16=E単価!G7),入力シート!$E$27,"") ->  | M7: L/年 | N7: =C18 -> 107.8888889
B8: ※EDMCエネルギー経済統計要覧(2015年)より | G8: 重油 | H8: =IF(L8="",N8,J8/L8) -> 76.1 | I8: 円/L | J8: =IF(AND(入力シート!$C$24="有り",入力シート!$C$16=E単価!G8),入力シート!$C$27,"") ->  | K8: 円/年 | L8: =IF(AND(入力シート!$C$24="有り",入力シート!$C$16=E単価!G8),入力シート!$E$27,"") ->  | M8: L/年 | N8: =C29 -> 76.1
B9: ※※BDASH事業料金単価 | G9: 液化石油ガス（LPG） | H9: =IF(L9="",N9,J9/L9) -> 159.4047619 | I9: 円/kg | J9: =IF(AND(入力シート!$C$24="有り",入力シート!$C$16=E単価!G9),入力シート!$C$27,"") ->  | K9: 円/年 | L9: =IF(AND(入力シート!$C$24="有り",入力シート!$C$16=E単価!G9),入力シート!$E$27,"") ->  | M9: kg/年 | N9: =C36 -> 159.4047619
B10: □都市ガス | G10: 他人から供給された熱 | H10: 6611.904762 | I10: 円/GJ | J10: =IF(AND(入力シート!$C$24="有り",入力シート!$C$16=E単価!G10),入力シート!$C$27,"") ->  | K10: 円/年 | L10: =IF(AND(入力シート!$C$24="有り",入力シート!$C$16=E単価!G10),入力シート!$E$27,"") ->  | M10: GJ/年 | N10: =C43 -> 6611.904762
B11: 都市ガス総合単価（一般ガス事業者） | C11: 10.7 | D11: 円/千kcal | E11: ※ | G11: ※燃料種別を選択してください。 | N11: ↑EDMCエネルギー経済統計要覧(2015年)等より算出
C12: =C11/4.2 -> 2.547619048 | D12: 円/MJ
B13: 都市ガス発熱量 | C13: =一次E換算!B4 -> 45 | D13: MJ/m3
B14: 都市ガス単価 | C14: =C12*C13 -> 114.6428571 | D14: 円/m3
B15: ※EDMCエネルギー経済統計要覧(2015年)より
B16: □灯油
B17: 小口・小売販売単価 | C17: 1942 | D17: 円/18L | E17: ※
B18: 灯油単価 | C18: =C17/18 -> 107.8888889 | D18: 円/L
B19: ※EDMCエネルギー経済統計要覧(2015年)より
B20: □A重油
B21: 卸売価格 | C21: 6.26 | D21: 円/千kcal | E21: ※
C22: =C21/4.2 -> 1.49047619 | D22: 円/MJ | E22: ※
B23: A重油発熱量 | C23: =一次E換算!B6 -> 41 | D23: MJ/L | E23: ※
B24: A重油単価 | C24: =C22*C23 -> 61.10952381 | D24: 円/L | E24: ※
B26: A重油単価（大型ローリー） | C26: 71.8 | D26: 円/L | E26: ●2019年
B27: A重油単価（小型ローリー） | C27: 80.4 | D27: 円/L | E27: ●2019年
B28: A重油単価（大型小型平均） | C28: =AVERAGE(C26:C27) -> 76.1 | D28: 円/L | E28: 平均
B29: A重油単価 | C29: =C28 -> 76.1 | D29: 円/L
B30: ※EDMCエネルギー経済統計要覧(2015年)より
B31: ●新電力ネットHPより（https://pps-net.org/industrial）
B32: □LPG
B33: 卸売価格 | C33: 13.39 | D33: 円/千kcal | E33: ※
C34: =C33/4.2 -> 3.188095238 | D34: 円/MJ
B35: LPG発熱量 | C35: =一次E換算!B7 -> 50 | D35: MJ/kg
B36: 質量単価 | C36: =C34*C35 -> 159.4047619 | D36: 円/kg
B37: LPG密度 | C37: 2.0747 | D37: kg/m3
B38: 体積単価 | C38: =C36*C37 -> 330.7170595 | D38: 円/m3
B39: ※EDMCエネルギー経済統計要覧(2015年)より
B40: □熱供給総合単価
B41: 熱供給総合単価 | C41: 27.77 | D41: 円/千kcal | E41: ※
C42: =C41/4.2 -> 6.611904762 | D42: 円/MJ
C43: =C42*1000 -> 6611.904762 | D43: 円/GJ
B44: ※EDMCエネルギー経済統計要覧(2015年)より

Sheet 気温 (hidden)
B1: ■気温データ（地域選択）
B2: 都道府県 | C2: 1月 | D2: 2月 | E2: 3月 | F2: 4月 | G2: 5月 | H2: 6月 | I2: 7月 | J2: 8月 | K2: 9月 | L2: 10月 | M2: 11月 | N2: 12月 | O2: 年間平均
B3: =入力シート!C7 -> 0 | C3: =VLOOKUP($B$3,$B$6:$N$53,2,FALSE) ->  | D3: =VLOOKUP($B$3,$B$6:$N$53,3,FALSE) ->  | E3: =VLOOKUP($B$3,$B$6:$N$53,4,FALSE) ->  | F3: =VLOOKUP($B$3,$B$6:$N$53,5,FALSE) ->  | G3: =VLOOKUP($B$3,$B$6:$N$53,6,FALSE) ->  | H3: =VLOOKUP($B$3,$B$6:$N$53,7,FALSE) ->  | I3: =VLOOKUP($B$3,$B$6:$N$53,8,FALSE) ->  | J3: =VLOOKUP($B$3,$B$6:$N$53,9,FALSE) ->  | K3: =VLOOKUP($B$3,$B$6:$N$53,10,FALSE) ->  | L3: =VLOOKUP($B$3,$B$6:$N$53,11,FALSE) ->  | M3: =VLOOKUP($B$3,$B$6:$N$53,12,FALSE) ->  | N3: =VLOOKUP($B$3,$B$6:$N$53,13,FALSE) ->  | O3: =AVERAGE(C3:N3) -> 
B4: [1]気象庁ダウンロードデータhttps://www.data.jma.go.jp/gmd/risk/obsdl/index.php（県庁所在地の平年値を使用）
B5: ■気温データ | N5: 単位：℃
B6: 都道府県 | C6: 1月 | D6: 2月 | E6: 3月 | F6: 4月 | G6: 5月 | H6: 6月 | I6: 7月 | J6: 8月 | K6: 9月 | L6: 10月 | M6: 11月 | N6: 12月
B7: 北海道 | C7: -3.6 | D7: -3.1 | E7: 0.6 | F7: 7.1 | G7: 12.4 | H7: 16.7 | I7: 20.5 | J7: 22.3 | K7: 18.1 | L7: 11.8 | M7: 4.9 | N7: -0.9
B8: 青森県 | C8: -1.2 | D8: -0.7 | E8: 2.4 | F8: 8.3 | G8: 13.3 | H8: 17.2 | I8: 21.1 | J8: 23.3 | K8: 19.3 | L8: 13.1 | M8: 6.8 | N8: 1.5
B9: 岩手県 | C9: -1.9 | D9: -1.2 | E9: 2.2 | F9: 8.6 | G9: 14 | H9: 18.3 | I9: 21.8 | J9: 23.4 | K9: 18.7 | L9: 12.1 | M9: 5.9 | N9: 1
B10: 宮城県 | C10: 1.6 | D10: 2 | E10: 4.9 | F10: 10.3 | G10: 15 | H10: 18.5 | I10: 22.2 | J10: 24.2 | K10: 20.7 | L10: 15.2 | M10: 9.4 | N10: 4.5
B11: 秋田県 | C11: 0.1 | D11: 0.5 | E11: 3.6 | F11: 9.6 | G11: 14.6 | H11: 19.2 | I11: 22.9 | J11: 24.9 | K11: 20.4 | L11: 14 | M11: 7.9 | N11: 2.9
B12: 山形県 | C12: -0.4 | D12: 0.1 | E12: 3.5 | F12: 10.1 | G12: 15.7 | H12: 19.8 | I12: 23.3 | J12: 24.9 | K12: 20.1 | L12: 13.6 | M12: 7.4 | N12: 2.6
B13: 福島県 | C13: 1.6 | D13: 2.2 | E13: 5.3 | F13: 11.5 | G13: 16.6 | H13: 20.1 | I13: 23.6 | J13: 25.4 | K13: 21.1 | L13: 15.1 | M13: 9.2 | N13: 4.4
B14: 茨城県 | C14: 3 | D14: 3.6 | E14: 6.7 | F14: 12 | G14: 16.4 | H14: 19.7 | I14: 23.5 | J14: 25.2 | K14: 21.7 | L14: 16 | M14: 10.4 | N14: 5.4
B15: 栃木県 | C15: 2.5 | D15: 3.3 | E15: 6.8 | F15: 12.5 | G15: 17.2 | H15: 20.6 | I15: 24.2 | J15: 25.6 | K15: 21.9 | L15: 16.1 | M15: 10.1 | N15: 4.9
B16: 群馬県 | C16: 3.5 | D16: 4 | E16: 7.3 | F16: 13.2 | G16: 18 | H16: 21.5 | I16: 25.1 | J16: 26.4 | K16: 22.4 | L16: 16.5 | M16: 10.8 | N16: 6
B17: 埼玉県 | C17: 3.6 | D17: 4.4 | E17: 7.8 | F17: 13.4 | G17: 18 | H17: 21.5 | I17: 25.1 | J17: 26.6 | K17: 22.7 | L17: 16.9 | M17: 11 | N17: 5.9
B18: 千葉県 | C18: 5.7 | D18: 6.1 | E18: 8.9 | F18: 14 | G18: 18.3 | H18: 21.3 | I18: 25 | J18: 26.7 | K18: 23.3 | L18: 18 | M18: 12.9 | N18: 8.3
B19: 東京都 | C19: 5.2 | D19: 5.7 | E19: 8.7 | F19: 13.9 | G19: 18.2 | H19: 21.4 | I19: 25 | J19: 26.4 | K19: 22.8 | L19: 17.5 | M19: 12.1 | N19: 7.6
B20: 神奈川県 | C20: 5.9 | D20: 6.2 | E20: 9.1 | F20: 14.2 | G20: 18.3 | H20: 21.3 | I20: 25 | J20: 26.7 | K20: 23.3 | L20: 18 | M20: 13 | N20: 8.5
B21: 新潟県 | C21: 2.4 | D21: 2.7 | E21: 5.7 | F21: 11 | G21: 16.4 | H21: 20.5 | I21: 24.3 | J21: 26.4 | K21: 22.5 | L21: 16.3 | M21: 10.3 | N21: 5.2
B22: 富山県 | C22: 2.7 | D22: 3 | E22: 6.3 | F22: 12.1 | G22: 17 | H22: 20.9 | I22: 24.9 | J22: 26.6 | K22: 22.3 | L22: 16.4 | M22: 10.8 | N22: 5.7
B23: 石川県 | C23: 3.8 | D23: 3.9 | E23: 6.9 | F23: 12.5 | G23: 17.1 | H23: 21.2 | I23: 25.3 | J23: 27 | K23: 22.7 | L23: 17.1 | M23: 11.5 | N23: 6.7
B24: 福井県 | C24: 3 | D24: 3.4 | E24: 6.8 | F24: 12.8 | G24: 17.7 | H24: 21.6 | I24: 25.6 | J24: 27.2 | K24: 22.7 | L24: 16.6 | M24: 11 | N24: 5.9
B25: 山梨県 | C25: 2.8 | D25: 4.3 | E25: 8 | F25: 13.8 | G25: 18.3 | H25: 21.9 | I25: 25.5 | J25: 26.6 | K25: 22.8 | L25: 16.5 | M25: 10.4 | N25: 5
B26: 長野県 | C26: -0.6 | D26: 0.1 | E26: 3.8 | F26: 10.6 | G26: 16 | H26: 20.1 | I26: 23.8 | J26: 25.2 | K26: 20.6 | L26: 13.9 | M26: 7.5 | N26: 2.1
B27: 岐阜県 | C27: 4.4 | D27: 5.1 | E27: 8.6 | F27: 14.4 | G27: 19 | H27: 22.8 | I27: 26.5 | J27: 28 | K27: 24.1 | L27: 18.1 | M27: 12.2 | N27: 6.9
B28: 静岡県 | C28: 6.7 | D28: 7.3 | E28: 10.3 | F28: 14.9 | G28: 18.8 | H28: 22 | I28: 25.7 | J28: 27 | K28: 24.1 | L28: 18.9 | M28: 13.9 | N28: 9
B29: 愛知県 | C29: 4.5 | D29: 5.2 | E29: 8.7 | F29: 14.4 | G29: 18.9 | H29: 22.7 | I29: 26.4 | J29: 27.8 | K29: 24.1 | L29: 18.1 | M29: 12.2 | N29: 7
B30: 三重県 | C30: 5.3 | D30: 5.6 | E30: 8.5 | F30: 14 | G30: 18.6 | H30: 22.4 | I30: 26.3 | J30: 27.5 | K30: 24 | L30: 18.3 | M30: 12.7 | N30: 7.8
B31: 滋賀県 | C31: 3.9 | D31: 4.2 | E31: 7.3 | F31: 13 | G31: 17.9 | H31: 21.9 | I31: 25.8 | J31: 27.1 | K31: 23.2 | L31: 17 | M31: 11.3 | N31: 6.3
B32: 京都府 | C32: 4.6 | D32: 5.1 | E32: 8.4 | F32: 14.2 | G32: 19 | H32: 23 | I32: 26.8 | J32: 28.2 | K32: 24.1 | L32: 17.8 | M32: 12.1 | N32: 7
B33: 大阪府 | C33: 6 | D33: 6.3 | E33: 9.4 | F33: 15.1 | G33: 19.7 | H33: 23.5 | I33: 27.4 | J33: 28.8 | K33: 25 | L33: 19 | M33: 13.6 | N33: 8.6
B34: 兵庫県 | C34: 5.8 | D34: 6.1 | E34: 9.3 | F34: 14.9 | G34: 19.4 | H34: 23.2 | I34: 26.8 | J34: 28.3 | K34: 25.2 | L34: 19.3 | M34: 13.9 | N34: 8.7
B35: 奈良県 | C35: 3.9 | D35: 4.4 | E35: 7.6 | F35: 13.4 | G35: 18 | H35: 21.9 | I35: 25.8 | J35: 26.9 | K35: 22.9 | L35: 16.6 | M35: 11.1 | N35: 6.2
B36: 和歌山県 | C36: 6 | D36: 6.4 | E36: 9.5 | F36: 14.9 | G36: 19.3 | H36: 23 | I36: 27 | J36: 28.1 | K36: 24.7 | L36: 18.8 | M36: 13.5 | N36: 8.5
B37: 鳥取県 | C37: 4 | D37: 4.4 | E37: 7.5 | F37: 13 | G37: 17.7 | H37: 21.7 | I37: 25.7 | J37: 27 | K37: 22.6 | L37: 16.7 | M37: 11.6 | N37: 6.8
B38: 島根県 | C38: 4.3 | D38: 4.7 | E38: 7.6 | F38: 12.9 | G38: 17.5 | H38: 21.3 | I38: 25.3 | J38: 26.8 | K38: 22.6 | L38: 16.8 | M38: 11.6 | N38: 6.9
B39: 岡山県 | C39: 4.9 | D39: 5.5 | E39: 8.8 | F39: 14.5 | G39: 19.3 | H39: 23.3 | I39: 27.2 | J39: 28.3 | K39: 24.4 | L39: 18.1 | M39: 12.3 | N39: 7.3
B40: 広島県 | C40: 5.2 | D40: 6 | E40: 9.1 | F40: 14.7 | G40: 19.3 | H40: 23 | I40: 27.1 | J40: 28.2 | K40: 24.4 | L40: 18.3 | M40: 12.5 | N40: 7.5
B41: 山口県 | C41: 4.1 | D41: 5.4 | E41: 8.5 | F41: 13.8 | G41: 18.4 | H41: 22.4 | I41: 26 | J41: 27 | K41: 23.4 | L41: 17.1 | M41: 11.5 | N41: 6.2
B42: 徳島県 | C42: 6.1 | D42: 6.5 | E42: 9.6 | F42: 14.8 | G42: 19.2 | H42: 22.7 | I42: 26.6 | J42: 27.8 | K42: 24.5 | L42: 18.9 | M42: 13.5 | N42: 8.5
B43: 香川県 | C43: 5.5 | D43: 5.9 | E43: 8.9 | F43: 14.4 | G43: 19.1 | H43: 23 | I43: 27 | J43: 28.1 | K43: 24.3 | L43: 18.4 | M43: 12.8 | N43: 7.9
B44: 愛媛県 | C44: 6 | D44: 6.5 | E44: 9.5 | F44: 14.6 | G44: 19 | H44: 22.7 | I44: 26.9 | J44: 27.8 | K44: 24.3 | L44: 18.7 | M44: 13.3 | N44: 8.4
B45: 高知県 | C45: 6.3 | D45: 7.5 | E45: 10.8 | F45: 15.6 | G45: 19.7 | H45: 22.9 | I45: 26.7 | J45: 27.5 | K45: 24.7 | L45: 19.3 | M45: 13.8 | N45: 8.5
B46: 福岡県 | C46: 6.6 | D46: 7.4 | E46: 10.4 | F46: 15.1 | G46: 19.4 | H46: 23 | I46: 27.2 | J46: 28.1 | K46: 24.4 | L46: 19.2 | M46: 13.8 | N46: 8.9
B47: 佐賀県 | C47: 5.4 | D47: 6.7 | E47: 9.9 | F47: 15 | G47: 19.5 | H47: 23.3 | I47: 26.8 | J47: 27.8 | K47: 24.2 | L47: 18.6 | M47: 12.9 | N47: 7.6
B48: 長崎県 | C48: 7 | D48: 7.9 | E48: 10.9 | F48: 15.4 | G48: 19.4 | H48: 22.8 | I48: 26.8 | J48: 27.9 | K48: 24.8 | L48: 19.7 | M48: 14.3 | N48: 9.4
B49: 熊本県 | C49: 5.7 | D49: 7.1 | E49: 10.6 | F49: 15.7 | G49: 20.2 | H49: 23.6 | I49: 27.3 | J49: 28.2 | K49: 24.9 | L49: 19.1 | M49: 13.1 | N49: 7.8
B50: 大分県 | C50: 6.2 | D50: 6.9 | E50: 9.7 | F50: 14.5 | G50: 18.8 | H50: 22.4 | I50: 26.5 | J50: 27.3 | K50: 23.9 | L50: 18.6 | M50: 13.4 | N50: 8.5
B51: 宮崎県 | C51: 7.5 | D51: 8.6 | E51: 11.9 | F51: 16.1 | G51: 19.9 | H51: 23.1 | I51: 27.3 | J51: 27.2 | K51: 24.4 | L51: 19.4 | M51: 14.3 | N51: 9.6
B52: 鹿児島県 | C52: 8.5 | D52: 9.8 | E52: 12.5 | F52: 16.9 | G52: 20.8 | H52: 24 | I52: 28.1 | J52: 28.5 | K52: 26.1 | L52: 21.2 | M52: 15.9 | N52: 10.6
B53: 沖縄県 | C53: 17 | D53: 17.1 | E53: 18.9 | F53: 21.4 | G53: 24 | H53: 26.8 | I53: 28.9 | J53: 28.7 | K53: 27.6 | L53: 25.2 | M53: 22.1 | N53: 18.7

Sheet 下水温度 (hidden)
B1: ■下水温度データ（地域選択）
B2: 都道府県 | C2: 1月 | D2: 2月 | E2: 3月 | F2: 4月 | G2: 5月 | H2: 6月 | I2: 7月 | J2: 8月 | K2: 9月 | L2: 10月 | M2: 11月 | N2: 12月
B3: =入力シート!C7 -> 0 | C3: =VLOOKUP($B$3,$B$6:$N$53,2,FALSE) ->  | D3: =VLOOKUP($B$3,$B$6:$N$53,3,FALSE) ->  | E3: =VLOOKUP($B$3,$B$6:$N$53,4,FALSE) ->  | F3: =VLOOKUP($B$3,$B$6:$N$53,5,FALSE) ->  | G3: =VLOOKUP($B$3,$B$6:$N$53,6,FALSE) ->  | H3: =VLOOKUP($B$3,$B$6:$N$53,7,FALSE) ->  | I3: =VLOOKUP($B$3,$B$6:$N$53,8,FALSE) ->  | J3: =VLOOKUP($B$3,$B$6:$N$53,9,FALSE) ->  | K3: =VLOOKUP($B$3,$B$6:$N$53,10,FALSE) ->  | L3: =VLOOKUP($B$3,$B$6:$N$53,11,FALSE) ->  | M3: =VLOOKUP($B$3,$B$6:$N$53,12,FALSE) ->  | N3: =VLOOKUP($B$3,$B$6:$N$53,13,FALSE) -> 
B5: ■下水温度データ | N5: 単位：℃
B6: 都道府県 | C6: 1月 | D6: 2月 | E6: 3月 | F6: 4月 | G6: 5月 | H6: 6月 | I6: 7月 | J6: 8月 | K6: 9月 | L6: 10月 | M6: 11月 | N6: 12月 | P6: a | Q6: 0.44
B7: 北海道 | C7: =$Q$6*気温!C7+$Q$7 -> 14.136 | D7: =$Q$6*気温!D7+$Q$7 -> 14.356 | E7: =$Q$6*気温!E7+$Q$7 -> 15.984 | F7: =$Q$6*気温!F7+$Q$7 -> 18.844 | G7: =$Q$6*気温!G7+$Q$7 -> 21.176 | H7: =$Q$6*気温!H7+$Q$7 -> 23.068 | I7: =$Q$6*気温!I7+$Q$7 -> 24.74 | J7: =$Q$6*気温!J7+$Q$7 -> 25.532 | K7: =$Q$6*気温!K7+$Q$7 -> 23.684 | L7: =$Q$6*気温!L7+$Q$7 -> 20.912 | M7: =$Q$6*気温!M7+$Q$7 -> 17.876 | N7: =$Q$6*気温!N7+$Q$7 -> 15.324 | P7: b | Q7: 15.72
B8: 青森県 | C8: =$Q$6*気温!C8+$Q$7 -> 15.192 | D8: =$Q$6*気温!D8+$Q$7 -> 15.412 | E8: =$Q$6*気温!E8+$Q$7 -> 16.776 | F8: =$Q$6*気温!F8+$Q$7 -> 19.372 | G8: =$Q$6*気温!G8+$Q$7 -> 21.572 | H8: =$Q$6*気温!H8+$Q$7 -> 23.288 | I8: =$Q$6*気温!I8+$Q$7 -> 25.004 | J8: =$Q$6*気温!J8+$Q$7 -> 25.972 | K8: =$Q$6*気温!K8+$Q$7 -> 24.212 | L8: =$Q$6*気温!L8+$Q$7 -> 21.484 | M8: =$Q$6*気温!M8+$Q$7 -> 18.712 | N8: =$Q$6*気温!N8+$Q$7 -> 16.38
B9: 岩手県 | C9: =$Q$6*気温!C9+$Q$7 -> 14.884 | D9: =$Q$6*気温!D9+$Q$7 -> 15.192 | E9: =$Q$6*気温!E9+$Q$7 -> 16.688 | F9: =$Q$6*気温!F9+$Q$7 -> 19.504 | G9: =$Q$6*気温!G9+$Q$7 -> 21.88 | H9: =$Q$6*気温!H9+$Q$7 -> 23.772 | I9: =$Q$6*気温!I9+$Q$7 -> 25.312 | J9: =$Q$6*気温!J9+$Q$7 -> 26.016 | K9: =$Q$6*気温!K9+$Q$7 -> 23.948 | L9: =$Q$6*気温!L9+$Q$7 -> 21.044 | M9: =$Q$6*気温!M9+$Q$7 -> 18.316 | N9: =$Q$6*気温!N9+$Q$7 -> 16.16 | P9: 下水熱ポテンシャルマップ作成の手引より
B10: 宮城県 | C10: =$Q$6*気温!C10+$Q$7 -> 16.424 | D10: =$Q$6*気温!D10+$Q$7 -> 16.6 | E10: =$Q$6*気温!E10+$Q$7 -> 17.876 | F10: =$Q$6*気温!F10+$Q$7 -> 20.252 | G10: =$Q$6*気温!G10+$Q$7 -> 22.32 | H10: =$Q$6*気温!H10+$Q$7 -> 23.86 | I10: =$Q$6*気温!I10+$Q$7 -> 25.488 | J10: =$Q$6*気温!J10+$Q$7 -> 26.368 | K10: =$Q$6*気温!K10+$Q$7 -> 24.828 | L10: =$Q$6*気温!L10+$Q$7 -> 22.408 | M10: =$Q$6*気温!M10+$Q$7 -> 19.856 | N10: =$Q$6*気温!N10+$Q$7 -> 17.7
B11: 秋田県 | C11: =$Q$6*気温!C11+$Q$7 -> 15.764 | D11: =$Q$6*気温!D11+$Q$7 -> 15.94 | E11: =$Q$6*気温!E11+$Q$7 -> 17.304 | F11: =$Q$6*気温!F11+$Q$7 -> 19.944 | G11: =$Q$6*気温!G11+$Q$7 -> 22.144 | H11: =$Q$6*気温!H11+$Q$7 -> 24.168 | I11: =$Q$6*気温!I11+$Q$7 -> 25.796 | J11: =$Q$6*気温!J11+$Q$7 -> 26.676 | K11: =$Q$6*気温!K11+$Q$7 -> 24.696 | L11: =$Q$6*気温!L11+$Q$7 -> 21.88 | M11: =$Q$6*気温!M11+$Q$7 -> 19.196 | N11: =$Q$6*気温!N11+$Q$7 -> 16.996
B12: 山形県 | C12: =$Q$6*気温!C12+$Q$7 -> 15.544 | D12: =$Q$6*気温!D12+$Q$7 -> 15.764 | E12: =$Q$6*気温!E12+$Q$7 -> 17.26 | F12: =$Q$6*気温!F12+$Q$7 -> 20.164 | G12: =$Q$6*気温!G12+$Q$7 -> 22.628 | H12: =$Q$6*気温!H12+$Q$7 -> 24.432 | I12: =$Q$6*気温!I12+$Q$7 -> 25.972 | J12: =$Q$6*気温!J12+$Q$7 -> 26.676 | K12: =$Q$6*気温!K12+$Q$7 -> 24.564 | L12: =$Q$6*気温!L12+$Q$7 -> 21.704 | M12: =$Q$6*気温!M12+$Q$7 -> 18.976 | N12: =$Q$6*気温!N12+$Q$7 -> 16.864
B13: 福島県 | C13: =$Q$6*気温!C13+$Q$7 -> 16.424 | D13: =$Q$6*気温!D13+$Q$7 -> 16.688 | E13: =$Q$6*気温!E13+$Q$7 -> 18.052 | F13: =$Q$6*気温!F13+$Q$7 -> 20.78 | G13: =$Q$6*気温!G13+$Q$7 -> 23.024 | H13: =$Q$6*気温!H13+$Q$7 -> 24.564 | I13: =$Q$6*気温!I13+$Q$7 -> 26.104 | J13: =$Q$6*気温!J13+$Q$7 -> 26.896 | K13: =$Q$6*気温!K13+$Q$7 -> 25.004 | L13: =$Q$6*気温!L13+$Q$7 -> 22.364 | M13: =$Q$6*気温!M13+$Q$7 -> 19.768 | N13: =$Q$6*気温!N13+$Q$7 -> 17.656
B14: 茨城県 | C14: =$Q$6*気温!C14+$Q$7 -> 17.04 | D14: =$Q$6*気温!D14+$Q$7 -> 17.304 | E14: =$Q$6*気温!E14+$Q$7 -> 18.668 | F14: =$Q$6*気温!F14+$Q$7 -> 21 | G14: =$Q$6*気温!G14+$Q$7 -> 22.936 | H14: =$Q$6*気温!H14+$Q$7 -> 24.388 | I14: =$Q$6*気温!I14+$Q$7 -> 26.06 | J14: =$Q$6*気温!J14+$Q$7 -> 26.808 | K14: =$Q$6*気温!K14+$Q$7 -> 25.268 | L14: =$Q$6*気温!L14+$Q$7 -> 22.76 | M14: =$Q$6*気温!M14+$Q$7 -> 20.296 | N14: =$Q$6*気温!N14+$Q$7 -> 18.096
B15: 栃木県 | C15: =$Q$6*気温!C15+$Q$7 -> 16.82 | D15: =$Q$6*気温!D15+$Q$7 -> 17.172 | E15: =$Q$6*気温!E15+$Q$7 -> 18.712 | F15: =$Q$6*気温!F15+$Q$7 -> 21.22 | G15: =$Q$6*気温!G15+$Q$7 -> 23.288 | H15: =$Q$6*気温!H15+$Q$7 -> 24.784 | I15: =$Q$6*気温!I15+$Q$7 -> 26.368 | J15: =$Q$6*気温!J15+$Q$7 -> 26.984 | K15: =$Q$6*気温!K15+$Q$7 -> 25.356 | L15: =$Q$6*気温!L15+$Q$7 -> 22.804 | M15: =$Q$6*気温!M15+$Q$7 -> 20.164 | N15: =$Q$6*気温!N15+$Q$7 -> 17.876
B16: 群馬県 | C16: =$Q$6*気温!C16+$Q$7 -> 17.26 | D16: =$Q$6*気温!D16+$Q$7 -> 17.48 | E16: =$Q$6*気温!E16+$Q$7 -> 18.932 | F16: =$Q$6*気温!F16+$Q$7 -> 21.528 | G16: =$Q$6*気温!G16+$Q$7 -> 23.64 | H16: =$Q$6*気温!H16+$Q$7 -> 25.18 | I16: =$Q$6*気温!I16+$Q$7 -> 26.764 | J16: =$Q$6*気温!J16+$Q$7 -> 27.336 | K16: =$Q$6*気温!K16+$Q$7 -> 25.576 | L16: =$Q$6*気温!L16+$Q$7 -> 22.98 | M16: =$Q$6*気温!M16+$Q$7 -> 20.472 | N16: =$Q$6*気温!N16+$Q$7 -> 18.36
B17: 埼玉県 | C17: =$Q$6*気温!C17+$Q$7 -> 17.304 | D17: =$Q$6*気温!D17+$Q$7 -> 17.656 | E17: =$Q$6*気温!E17+$Q$7 -> 19.152 | F17: =$Q$6*気温!F17+$Q$7 -> 21.616 | G17: =$Q$6*気温!G17+$Q$7 -> 23.64 | H17: =$Q$6*気温!H17+$Q$7 -> 25.18 | I17: =$Q$6*気温!I17+$Q$7 -> 26.764 | J17: =$Q$6*気温!J17+$Q$7 -> 27.424 | K17: =$Q$6*気温!K17+$Q$7 -> 25.708 | L17: =$Q$6*気温!L17+$Q$7 -> 23.156 | M17: =$Q$6*気温!M17+$Q$7 -> 20.56 | N17: =$Q$6*気温!N17+$Q$7 -> 18.316
B18: 千葉県 | C18: =$Q$6*気温!C18+$Q$7 -> 18.228 | D18: =$Q$6*気温!D18+$Q$7 -> 18.404 | E18: =$Q$6*気温!E18+$Q$7 -> 19.636 | F18: =$Q$6*気温!F18+$Q$7 -> 21.88 | G18: =$Q$6*気温!G18+$Q$7 -> 23.772 | H18: =$Q$6*気温!H18+$Q$7 -> 25.092 | I18: =$Q$6*気温!I18+$Q$7 -> 26.72 | J18: =$Q$6*気温!J18+$Q$7 -> 27.468 | K18: =$Q$6*気温!K18+$Q$7 -> 25.972 | L18: =$Q$6*気温!L18+$Q$7 -> 23.64 | M18: =$Q$6*気温!M18+$Q$7 -> 21.396 | N18: =$Q$6*気温!N18+$Q$7 -> 19.372
B19: 東京都 | C19: =$Q$6*気温!C19+$Q$7 -> 18.008 | D19: =$Q$6*気温!D19+$Q$7 -> 18.228 | E19: =$Q$6*気温!E19+$Q$7 -> 19.548 | F19: =$Q$6*気温!F19+$Q$7 -> 21.836 | G19: =$Q$6*気温!G19+$Q$7 -> 23.728 | H19: =$Q$6*気温!H19+$Q$7 -> 25.136 | I19: =$Q$6*気温!I19+$Q$7 -> 26.72 | J19: =$Q$6*気温!J19+$Q$7 -> 27.336 | K19: =$Q$6*気温!K19+$Q$7 -> 25.752 | L19: =$Q$6*気温!L19+$Q$7 -> 23.42 | M19: =$Q$6*気温!M19+$Q$7 -> 21.044 | N19: =$Q$6*気温!N19+$Q$7 -> 19.064
B20: 神奈川県 | C20: =$Q$6*気温!C20+$Q$7 -> 18.316 | D20: =$Q$6*気温!D20+$Q$7 -> 18.448 | E20: =$Q$6*気温!E20+$Q$7 -> 19.724 | F20: =$Q$6*気温!F20+$Q$7 -> 21.968 | G20: =$Q$6*気温!G20+$Q$7 -> 23.772 | H20: =$Q$6*気温!H20+$Q$7 -> 25.092 | I20: =$Q$6*気温!I20+$Q$7 -> 26.72 | J20: =$Q$6*気温!J20+$Q$7 -> 27.468 | K20: =$Q$6*気温!K20+$Q$7 -> 25.972 | L20: =$Q$6*気温!L20+$Q$7 -> 23.64 | M20: =$Q$6*気温!M20+$Q$7 -> 21.44 | N20: =$Q$6*気温!N20+$Q$7 -> 19.46
B21: 新潟県 | C21: =$Q$6*気温!C21+$Q$7 -> 16.776 | D21: =$Q$6*気温!D21+$Q$7 -> 16.908 | E21: =$Q$6*気温!E21+$Q$7 -> 18.228 | F21: =$Q$6*気温!F21+$Q$7 -> 20.56 | G21: =$Q$6*気温!G21+$Q$7 -> 22.936 | H21: =$Q$6*気温!H21+$Q$7 -> 24.74 | I21: =$Q$6*気温!I21+$Q$7 -> 26.412 | J21: =$Q$6*気温!J21+$Q$7 -> 27.336 | K21: =$Q$6*気温!K21+$Q$7 -> 25.62 | L21: =$Q$6*気温!L21+$Q$7 -> 22.892 | M21: =$Q$6*気温!M21+$Q$7 -> 20.252 | N21: =$Q$6*気温!N21+$Q$7 -> 18.008
B22: 富山県 | C22: =$Q$6*気温!C22+$Q$7 -> 16.908 | D22: =$Q$6*気温!D22+$Q$7 -> 17.04 | E22: =$Q$6*気温!E22+$Q$7 -> 18.492 | F22: =$Q$6*気温!F22+$Q$7 -> 21.044 | G22: =$Q$6*気温!G22+$Q$7 -> 23.2 | H22: =$Q$6*気温!H22+$Q$7 -> 24.916 | I22: =$Q$6*気温!I22+$Q$7 -> 26.676 | J22: =$Q$6*気温!J22+$Q$7 -> 27.424 | K22: =$Q$6*気温!K22+$Q$7 -> 25.532 | L22: =$Q$6*気温!L22+$Q$7 -> 22.936 | M22: =$Q$6*気温!M22+$Q$7 -> 20.472 | N22: =$Q$6*気温!N22+$Q$7 -> 18.228
B23: 石川県 | C23: =$Q$6*気温!C23+$Q$7 -> 17.392 | D23: =$Q$6*気温!D23+$Q$7 -> 17.436 | E23: =$Q$6*気温!E23+$Q$7 -> 18.756 | F23: =$Q$6*気温!F23+$Q$7 -> 21.22 | G23: =$Q$6*気温!G23+$Q$7 -> 23.244 | H23: =$Q$6*気温!H23+$Q$7 -> 25.048 | I23: =$Q$6*気温!I23+$Q$7 -> 26.852 | J23: =$Q$6*気温!J23+$Q$7 -> 27.6 | K23: =$Q$6*気温!K23+$Q$7 -> 25.708 | L23: =$Q$6*気温!L23+$Q$7 -> 23.244 | M23: =$Q$6*気温!M23+$Q$7 -> 20.78 | N23: =$Q$6*気温!N23+$Q$7 -> 18.668
B24: 福井県 | C24: =$Q$6*気温!C24+$Q$7 -> 17.04 | D24: =$Q$6*気温!D24+$Q$7 -> 17.216 | E24: =$Q$6*気温!E24+$Q$7 -> 18.712 | F24: =$Q$6*気温!F24+$Q$7 -> 21.352 | G24: =$Q$6*気温!G24+$Q$7 -> 23.508 | H24: =$Q$6*気温!H24+$Q$7 -> 25.224 | I24: =$Q$6*気温!I24+$Q$7 -> 26.984 | J24: =$Q$6*気温!J24+$Q$7 -> 27.688 | K24: =$Q$6*気温!K24+$Q$7 -> 25.708 | L24: =$Q$6*気温!L24+$Q$7 -> 23.024 | M24: =$Q$6*気温!M24+$Q$7 -> 20.56 | N24: =$Q$6*気温!N24+$Q$7 -> 18.316
B25: 山梨県 | C25: =$Q$6*気温!C25+$Q$7 -> 16.952 | D25: =$Q$6*気温!D25+$Q$7 -> 17.612 | E25: =$Q$6*気温!E25+$Q$7 -> 19.24 | F25: =$Q$6*気温!F25+$Q$7 -> 21.792 | G25: =$Q$6*気温!G25+$Q$7 -> 23.772 | H25: =$Q$6*気温!H25+$Q$7 -> 25.356 | I25: =$Q$6*気温!I25+$Q$7 -> 26.94 | J25: =$Q$6*気温!J25+$Q$7 -> 27.424 | K25: =$Q$6*気温!K25+$Q$7 -> 25.752 | L25: =$Q$6*気温!L25+$Q$7 -> 22.98 | M25: =$Q$6*気温!M25+$Q$7 -> 20.296 | N25: =$Q$6*気温!N25+$Q$7 -> 17.92
B26: 長野県 | C26: =$Q$6*気温!C26+$Q$7 -> 15.456 | D26: =$Q$6*気温!D26+$Q$7 -> 15.764 | E26: =$Q$6*気温!E26+$Q$7 -> 17.392 | F26: =$Q$6*気温!F26+$Q$7 -> 20.384 | G26: =$Q$6*気温!G26+$Q$7 -> 22.76 | H26: =$Q$6*気温!H26+$Q$7 -> 24.564 | I26: =$Q$6*気温!I26+$Q$7 -> 26.192 | J26: =$Q$6*気温!J26+$Q$7 -> 26.808 | K26: =$Q$6*気温!K26+$Q$7 -> 24.784 | L26: =$Q$6*気温!L26+$Q$7 -> 21.836 | M26: =$Q$6*気温!M26+$Q$7 -> 19.02 | N26: =$Q$6*気温!N26+$Q$7 -> 16.644
B27: 岐阜県 | C27: =$Q$6*気温!C27+$Q$7 -> 17.656 | D27: =$Q$6*気温!D27+$Q$7 -> 17.964 | E27: =$Q$6*気温!E27+$Q$7 -> 19.504 | F27: =$Q$6*気温!F27+$Q$7 -> 22.056 | G27: =$Q$6*気温!G27+$Q$7 -> 24.08 | H27: =$Q$6*気温!H27+$Q$7 -> 25.752 | I27: =$Q$6*気温!I27+$Q$7 -> 27.38 | J27: =$Q$6*気温!J27+$Q$7 -> 28.04 | K27: =$Q$6*気温!K27+$Q$7 -> 26.324 | L27: =$Q$6*気温!L27+$Q$7 -> 23.684 | M27: =$Q$6*気温!M27+$Q$7 -> 21.088 | N27: =$Q$6*気温!N27+$Q$7 -> 18.756
B28: 静岡県 | C28: =$Q$6*気温!C28+$Q$7 -> 18.668 | D28: =$Q$6*気温!D28+$Q$7 -> 18.932 | E28: =$Q$6*気温!E28+$Q$7 -> 20.252 | F28: =$Q$6*気温!F28+$Q$7 -> 22.276 | G28: =$Q$6*気温!G28+$Q$7 -> 23.992 | H28: =$Q$6*気温!H28+$Q$7 -> 25.4 | I28: =$Q$6*気温!I28+$Q$7 -> 27.028 | J28: =$Q$6*気温!J28+$Q$7 -> 27.6 | K28: =$Q$6*気温!K28+$Q$7 -> 26.324 | L28: =$Q$6*気温!L28+$Q$7 -> 24.036 | M28: =$Q$6*気温!M28+$Q$7 -> 21.836 | N28: =$Q$6*気温!N28+$Q$7 -> 19.68
B29: 愛知県 | C29: =$Q$6*気温!C29+$Q$7 -> 17.7 | D29: =$Q$6*気温!D29+$Q$7 -> 18.008 | E29: =$Q$6*気温!E29+$Q$7 -> 19.548 | F29: =$Q$6*気温!F29+$Q$7 -> 22.056 | G29: =$Q$6*気温!G29+$Q$7 -> 24.036 | H29: =$Q$6*気温!H29+$Q$7 -> 25.708 | I29: =$Q$6*気温!I29+$Q$7 -> 27.336 | J29: =$Q$6*気温!J29+$Q$7 -> 27.952 | K29: =$Q$6*気温!K29+$Q$7 -> 26.324 | L29: =$Q$6*気温!L29+$Q$7 -> 23.684 | M29: =$Q$6*気温!M29+$Q$7 -> 21.088 | N29: =$Q$6*気温!N29+$Q$7 -> 18.8
B30: 三重県 | C30: =$Q$6*気温!C30+$Q$7 -> 18.052 | D30: =$Q$6*気温!D30+$Q$7 -> 18.184 | E30: =$Q$6*気温!E30+$Q$7 -> 19.46 | F30: =$Q$6*気温!F30+$Q$7 -> 21.88 | G30: =$Q$6*気温!G30+$Q$7 -> 23.904 | H30: =$Q$6*気温!H30+$Q$7 -> 25.576 | I30: =$Q$6*気温!I30+$Q$7 -> 27.292 | J30: =$Q$6*気温!J30+$Q$7 -> 27.82 | K30: =$Q$6*気温!K30+$Q$7 -> 26.28 | L30: =$Q$6*気温!L30+$Q$7 -> 23.772 | M30: =$Q$6*気温!M30+$Q$7 -> 21.308 | N30: =$Q$6*気温!N30+$Q$7 -> 19.152
B31: 滋賀県 | C31: =$Q$6*気温!C31+$Q$7 -> 17.436 | D31: =$Q$6*気温!D31+$Q$7 -> 17.568 | E31: =$Q$6*気温!E31+$Q$7 -> 18.932 | F31: =$Q$6*気温!F31+$Q$7 -> 21.44 | G31: =$Q$6*気温!G31+$Q$7 -> 23.596 | H31: =$Q$6*気温!H31+$Q$7 -> 25.356 | I31: =$Q$6*気温!I31+$Q$7 -> 27.072 | J31: =$Q$6*気温!J31+$Q$7 -> 27.644 | K31: =$Q$6*気温!K31+$Q$7 -> 25.928 | L31: =$Q$6*気温!L31+$Q$7 -> 23.2 | M31: =$Q$6*気温!M31+$Q$7 -> 20.692 | N31: =$Q$6*気温!N31+$Q$7 -> 18.492
B32: 京都府 | C32: =$Q$6*気温!C32+$Q$7 -> 17.744 | D32: =$Q$6*気温!D32+$Q$7 -> 17.964 | E32: =$Q$6*気温!E32+$Q$7 -> 19.416 | F32: =$Q$6*気温!F32+$Q$7 -> 21.968 | G32: =$Q$6*気温!G32+$Q$7 -> 24.08 | H32: =$Q$6*気温!H32+$Q$7 -> 25.84 | I32: =$Q$6*気温!I32+$Q$7 -> 27.512 | J32: =$Q$6*気温!J32+$Q$7 -> 28.128 | K32: =$Q$6*気温!K32+$Q$7 -> 26.324 | L32: =$Q$6*気温!L32+$Q$7 -> 23.552 | M32: =$Q$6*気温!M32+$Q$7 -> 21.044 | N32: =$Q$6*気温!N32+$Q$7 -> 18.8
B33: 大阪府 | C33: =$Q$6*気温!C33+$Q$7 -> 18.36 | D33: =$Q$6*気温!D33+$Q$7 -> 18.492 | E33: =$Q$6*気温!E33+$Q$7 -> 19.856 | F33: =$Q$6*気温!F33+$Q$7 -> 22.364 | G33: =$Q$6*気温!G33+$Q$7 -> 24.388 | H33: =$Q$6*気温!H33+$Q$7 -> 26.06 | I33: =$Q$6*気温!I33+$Q$7 -> 27.776 | J33: =$Q$6*気温!J33+$Q$7 -> 28.392 | K33: =$Q$6*気温!K33+$Q$7 -> 26.72 | L33: =$Q$6*気温!L33+$Q$7 -> 24.08 | M33: =$Q$6*気温!M33+$Q$7 -> 21.704 | N33: =$Q$6*気温!N33+$Q$7 -> 19.504
B34: 兵庫県 | C34: =$Q$6*気温!C34+$Q$7 -> 18.272 | D34: =$Q$6*気温!D34+$Q$7 -> 18.404 | E34: =$Q$6*気温!E34+$Q$7 -> 19.812 | F34: =$Q$6*気温!F34+$Q$7 -> 22.276 | G34: =$Q$6*気温!G34+$Q$7 -> 24.256 | H34: =$Q$6*気温!H34+$Q$7 -> 25.928 | I34: =$Q$6*気温!I34+$Q$7 -> 27.512 | J34: =$Q$6*気温!J34+$Q$7 -> 28.172 | K34: =$Q$6*気温!K34+$Q$7 -> 26.808 | L34: =$Q$6*気温!L34+$Q$7 -> 24.212 | M34: =$Q$6*気温!M34+$Q$7 -> 21.836 | N34: =$Q$6*気温!N34+$Q$7 -> 19.548
B35: 奈良県 | C35: =$Q$6*気温!C35+$Q$7 -> 17.436 | D35: =$Q$6*気温!D35+$Q$7 -> 17.656 | E35: =$Q$6*気温!E35+$Q$7 -> 19.064 | F35: =$Q$6*気温!F35+$Q$7 -> 21.616 | G35: =$Q$6*気温!G35+$Q$7 -> 23.64 | H35: =$Q$6*気温!H35+$Q$7 -> 25.356 | I35: =$Q$6*気温!I35+$Q$7 -> 27.072 | J35: =$Q$6*気温!J35+$Q$7 -> 27.556 | K35: =$Q$6*気温!K35+$Q$7 -> 25.796 | L35: =$Q$6*気温!L35+$Q$7 -> 23.024 | M35: =$Q$6*気温!M35+$Q$7 -> 20.604 | N35: =$Q$6*気温!N35+$Q$7 -> 18.448
B36: 和歌山県 | C36: =$Q$6*気温!C36+$Q$7 -> 18.36 | D36: =$Q$6*気温!D36+$Q$7 -> 18.536 | E36: =$Q$6*気温!E36+$Q$7 -> 19.9 | F36: =$Q$6*気温!F36+$Q$7 -> 22.276 | G36: =$Q$6*気温!G36+$Q$7 -> 24.212 | H36: =$Q$6*気温!H36+$Q$7 -> 25.84 | I36: =$Q$6*気温!I36+$Q$7 -> 27.6 | J36: =$Q$6*気温!J36+$Q$7 -> 28.084 | K36: =$Q$6*気温!K36+$Q$7 -> 26.588 | L36: =$Q$6*気温!L36+$Q$7 -> 23.992 | M36: =$Q$6*気温!M36+$Q$7 -> 21.66 | N36: =$Q$6*気温!N36+$Q$7 -> 19.46
B37: 鳥取県 | C37: =$Q$6*気温!C37+$Q$7 -> 17.48 | D37: =$Q$6*気温!D37+$Q$7 -> 17.656 | E37: =$Q$6*気温!E37+$Q$7 -> 19.02 | F37: =$Q$6*気温!F37+$Q$7 -> 21.44 | G37: =$Q$6*気温!G37+$Q$7 -> 23.508 | H37: =$Q$6*気温!H37+$Q$7 -> 25.268 | I37: =$Q$6*気温!I37+$Q$7 -> 27.028 | J37: =$Q$6*気温!J37+$Q$7 -> 27.6 | K37: =$Q$6*気温!K37+$Q$7 -> 25.664 | L37: =$Q$6*気温!L37+$Q$7 -> 23.068 | M37: =$Q$6*気温!M37+$Q$7 -> 20.824 | N37: =$Q$6*気温!N37+$Q$7 -> 18.712
B38: 島根県 | C38: =$Q$6*気温!C38+$Q$7 -> 17.612 | D38: =$Q$6*気温!D38+$Q$7 -> 17.788 | E38: =$Q$6*気温!E38+$Q$7 -> 19.064 | F38: =$Q$6*気温!F38+$Q$7 -> 21.396 | G38: =$Q$6*気温!G38+$Q$7 -> 23.42 | H38: =$Q$6*気温!H38+$Q$7 -> 25.092 | I38: =$Q$6*気温!I38+$Q$7 -> 26.852 | J38: =$Q$6*気温!J38+$Q$7 -> 27.512 | K38: =$Q$6*気温!K38+$Q$7 -> 25.664 | L38: =$Q$6*気温!L38+$Q$7 -> 23.112 | M38: =$Q$6*気温!M38+$Q$7 -> 20.824 | N38: =$Q$6*気温!N38+$Q$7 -> 18.756
B39: 岡山県 | C39: =$Q$6*気温!C39+$Q$7 -> 17.876 | D39: =$Q$6*気温!D39+$Q$7 -> 18.14 | E39: =$Q$6*気温!E39+$Q$7 -> 19.592 | F39: =$Q$6*気温!F39+$Q$7 -> 22.1 | G39: =$Q$6*気温!G39+$Q$7 -> 24.212 | H39: =$Q$6*気温!H39+$Q$7 -> 25.972 | I39: =$Q$6*気温!I39+$Q$7 -> 27.688 | J39: =$Q$6*気温!J39+$Q$7 -> 28.172 | K39: =$Q$6*気温!K39+$Q$7 -> 26.456 | L39: =$Q$6*気温!L39+$Q$7 -> 23.684 | M39: =$Q$6*気温!M39+$Q$7 -> 21.132 | N39: =$Q$6*気温!N39+$Q$7 -> 18.932
B40: 広島県 | C40: =$Q$6*気温!C40+$Q$7 -> 18.008 | D40: =$Q$6*気温!D40+$Q$7 -> 18.36 | E40: =$Q$6*気温!E40+$Q$7 -> 19.724 | F40: =$Q$6*気温!F40+$Q$7 -> 22.188 | G40: =$Q$6*気温!G40+$Q$7 -> 24.212 | H40: =$Q$6*気温!H40+$Q$7 -> 25.84 | I40: =$Q$6*気温!I40+$Q$7 -> 27.644 | J40: =$Q$6*気温!J40+$Q$7 -> 28.128 | K40: =$Q$6*気温!K40+$Q$7 -> 26.456 | L40: =$Q$6*気温!L40+$Q$7 -> 23.772 | M40: =$Q$6*気温!M40+$Q$7 -> 21.22 | N40: =$Q$6*気温!N40+$Q$7 -> 19.02
B41: 山口県 | C41: =$Q$6*気温!C41+$Q$7 -> 17.524 | D41: =$Q$6*気温!D41+$Q$7 -> 18.096 | E41: =$Q$6*気温!E41+$Q$7 -> 19.46 | F41: =$Q$6*気温!F41+$Q$7 -> 21.792 | G41: =$Q$6*気温!G41+$Q$7 -> 23.816 | H41: =$Q$6*気温!H41+$Q$7 -> 25.576 | I41: =$Q$6*気温!I41+$Q$7 -> 27.16 | J41: =$Q$6*気温!J41+$Q$7 -> 27.6 | K41: =$Q$6*気温!K41+$Q$7 -> 26.016 | L41: =$Q$6*気温!L41+$Q$7 -> 23.244 | M41: =$Q$6*気温!M41+$Q$7 -> 20.78 | N41: =$Q$6*気温!N41+$Q$7 -> 18.448
B42: 徳島県 | C42: =$Q$6*気温!C42+$Q$7 -> 18.404 | D42: =$Q$6*気温!D42+$Q$7 -> 18.58 | E42: =$Q$6*気温!E42+$Q$7 -> 19.944 | F42: =$Q$6*気温!F42+$Q$7 -> 22.232 | G42: =$Q$6*気温!G42+$Q$7 -> 24.168 | H42: =$Q$6*気温!H42+$Q$7 -> 25.708 | I42: =$Q$6*気温!I42+$Q$7 -> 27.424 | J42: =$Q$6*気温!J42+$Q$7 -> 27.952 | K42: =$Q$6*気温!K42+$Q$7 -> 26.5 | L42: =$Q$6*気温!L42+$Q$7 -> 24.036 | M42: =$Q$6*気温!M42+$Q$7 -> 21.66 | N42: =$Q$6*気温!N42+$Q$7 -> 19.46
B43: 香川県 | C43: =$Q$6*気温!C43+$Q$7 -> 18.14 | D43: =$Q$6*気温!D43+$Q$7 -> 18.316 | E43: =$Q$6*気温!E43+$Q$7 -> 19.636 | F43: =$Q$6*気温!F43+$Q$7 -> 22.056 | G43: =$Q$6*気温!G43+$Q$7 -> 24.124 | H43: =$Q$6*気温!H43+$Q$7 -> 25.84 | I43: =$Q$6*気温!I43+$Q$7 -> 27.6 | J43: =$Q$6*気温!J43+$Q$7 -> 28.084 | K43: =$Q$6*気温!K43+$Q$7 -> 26.412 | L43: =$Q$6*気温!L43+$Q$7 -> 23.816 | M43: =$Q$6*気温!M43+$Q$7 -> 21.352 | N43: =$Q$6*気温!N43+$Q$7 -> 19.196
B44: 愛媛県 | C44: =$Q$6*気温!C44+$Q$7 -> 18.36 | D44: =$Q$6*気温!D44+$Q$7 -> 18.58 | E44: =$Q$6*気温!E44+$Q$7 -> 19.9 | F44: =$Q$6*気温!F44+$Q$7 -> 22.144 | G44: =$Q$6*気温!G44+$Q$7 -> 24.08 | H44: =$Q$6*気温!H44+$Q$7 -> 25.708 | I44: =$Q$6*気温!I44+$Q$7 -> 27.556 | J44: =$Q$6*気温!J44+$Q$7 -> 27.952 | K44: =$Q$6*気温!K44+$Q$7 -> 26.412 | L44: =$Q$6*気温!L44+$Q$7 -> 23.948 | M44: =$Q$6*気温!M44+$Q$7 -> 21.572 | N44: =$Q$6*気温!N44+$Q$7 -> 19.416
B45: 高知県 | C45: =$Q$6*気温!C45+$Q$7 -> 18.492 | D45: =$Q$6*気温!D45+$Q$7 -> 19.02 | E45: =$Q$6*気温!E45+$Q$7 -> 20.472 | F45: =$Q$6*気温!F45+$Q$7 -> 22.584 | G45: =$Q$6*気温!G45+$Q$7 -> 24.388 | H45: =$Q$6*気温!H45+$Q$7 -> 25.796 | I45: =$Q$6*気温!I45+$Q$7 -> 27.468 | J45: =$Q$6*気温!J45+$Q$7 -> 27.82 | K45: =$Q$6*気温!K45+$Q$7 -> 26.588 | L45: =$Q$6*気温!L45+$Q$7 -> 24.212 | M45: =$Q$6*気温!M45+$Q$7 -> 21.792 | N45: =$Q$6*気温!N45+$Q$7 -> 19.46
B46: 福岡県 | C46: =$Q$6*気温!C46+$Q$7 -> 18.624 | D46: =$Q$6*気温!D46+$Q$7 -> 18.976 | E46: =$Q$6*気温!E46+$Q$7 -> 20.296 | F46: =$Q$6*気温!F46+$Q$7 -> 22.364 | G46: =$Q$6*気温!G46+$Q$7 -> 24.256 | H46: =$Q$6*気温!H46+$Q$7 -> 25.84 | I46: =$Q$6*気温!I46+$Q$7 -> 27.688 | J46: =$Q$6*気温!J46+$Q$7 -> 28.084 | K46: =$Q$6*気温!K46+$Q$7 -> 26.456 | L46: =$Q$6*気温!L46+$Q$7 -> 24.168 | M46: =$Q$6*気温!M46+$Q$7 -> 21.792 | N46: =$Q$6*気温!N46+$Q$7 -> 19.636
B47: 佐賀県 | C47: =$Q$6*気温!C47+$Q$7 -> 18.096 | D47: =$Q$6*気温!D47+$Q$7 -> 18.668 | E47: =$Q$6*気温!E47+$Q$7 -> 20.076 | F47: =$Q$6*気温!F47+$Q$7 -> 22.32 | G47: =$Q$6*気温!G47+$Q$7 -> 24.3 | H47: =$Q$6*気温!H47+$Q$7 -> 25.972 | I47: =$Q$6*気温!I47+$Q$7 -> 27.512 | J47: =$Q$6*気温!J47+$Q$7 -> 27.952 | K47: =$Q$6*気温!K47+$Q$7 -> 26.368 | L47: =$Q$6*気温!L47+$Q$7 -> 23.904 | M47: =$Q$6*気温!M47+$Q$7 -> 21.396 | N47: =$Q$6*気温!N47+$Q$7 -> 19.064
B48: 長崎県 | C48: =$Q$6*気温!C48+$Q$7 -> 18.8 | D48: =$Q$6*気温!D48+$Q$7 -> 19.196 | E48: =$Q$6*気温!E48+$Q$7 -> 20.516 | F48: =$Q$6*気温!F48+$Q$7 -> 22.496 | G48: =$Q$6*気温!G48+$Q$7 -> 24.256 | H48: =$Q$6*気温!H48+$Q$7 -> 25.752 | I48: =$Q$6*気温!I48+$Q$7 -> 27.512 | J48: =$Q$6*気温!J48+$Q$7 -> 27.996 | K48: =$Q$6*気温!K48+$Q$7 -> 26.632 | L48: =$Q$6*気温!L48+$Q$7 -> 24.388 | M48: =$Q$6*気温!M48+$Q$7 -> 22.012 | N48: =$Q$6*気温!N48+$Q$7 -> 19.856
B49: 熊本県 | C49: =$Q$6*気温!C49+$Q$7 -> 18.228 | D49: =$Q$6*気温!D49+$Q$7 -> 18.844 | E49: =$Q$6*気温!E49+$Q$7 -> 20.384 | F49: =$Q$6*気温!F49+$Q$7 -> 22.628 | G49: =$Q$6*気温!G49+$Q$7 -> 24.608 | H49: =$Q$6*気温!H49+$Q$7 -> 26.104 | I49: =$Q$6*気温!I49+$Q$7 -> 27.732 | J49: =$Q$6*気温!J49+$Q$7 -> 28.128 | K49: =$Q$6*気温!K49+$Q$7 -> 26.676 | L49: =$Q$6*気温!L49+$Q$7 -> 24.124 | M49: =$Q$6*気温!M49+$Q$7 -> 21.484 | N49: =$Q$6*気温!N49+$Q$7 -> 19.152
B50: 大分県 | C50: =$Q$6*気温!C50+$Q$7 -> 18.448 | D50: =$Q$6*気温!D50+$Q$7 -> 18.756 | E50: =$Q$6*気温!E50+$Q$7 -> 19.988 | F50: =$Q$6*気温!F50+$Q$7 -> 22.1 | G50: =$Q$6*気温!G50+$Q$7 -> 23.992 | H50: =$Q$6*気温!H50+$Q$7 -> 25.576 | I50: =$Q$6*気温!I50+$Q$7 -> 27.38 | J50: =$Q$6*気温!J50+$Q$7 -> 27.732 | K50: =$Q$6*気温!K50+$Q$7 -> 26.236 | L50: =$Q$6*気温!L50+$Q$7 -> 23.904 | M50: =$Q$6*気温!M50+$Q$7 -> 21.616 | N50: =$Q$6*気温!N50+$Q$7 -> 19.46
B51: 宮崎県 | C51: =$Q$6*気温!C51+$Q$7 -> 19.02 | D51: =$Q$6*気温!D51+$Q$7 -> 19.504 | E51: =$Q$6*気温!E51+$Q$7 -> 20.956 | F51: =$Q$6*気温!F51+$Q$7 -> 22.804 | G51: =$Q$6*気温!G51+$Q$7 -> 24.476 | H51: =$Q$6*気温!H51+$Q$7 -> 25.884 | I51: =$Q$6*気温!I51+$Q$7 -> 27.732 | J51: =$Q$6*気温!J51+$Q$7 -> 27.688 | K51: =$Q$6*気温!K51+$Q$7 -> 26.456 | L51: =$Q$6*気温!L51+$Q$7 -> 24.256 | M51: =$Q$6*気温!M51+$Q$7 -> 22.012 | N51: =$Q$6*気温!N51+$Q$7 -> 19.944
B52: 鹿児島県 | C52: =$Q$6*気温!C52+$Q$7 -> 19.46 | D52: =$Q$6*気温!D52+$Q$7 -> 20.032 | E52: =$Q$6*気温!E52+$Q$7 -> 21.22 | F52: =$Q$6*気温!F52+$Q$7 -> 23.156 | G52: =$Q$6*気温!G52+$Q$7 -> 24.872 | H52: =$Q$6*気温!H52+$Q$7 -> 26.28 | I52: =$Q$6*気温!I52+$Q$7 -> 28.084 | J52: =$Q$6*気温!J52+$Q$7 -> 28.26 | K52: =$Q$6*気温!K52+$Q$7 -> 27.204 | L52: =$Q$6*気温!L52+$Q$7 -> 25.048 | M52: =$Q$6*気温!M52+$Q$7 -> 22.716 | N52: =$Q$6*気温!N52+$Q$7 -> 20.384
B53: 沖縄県 | C53: =$Q$6*気温!C53+$Q$7 -> 23.2 | D53: =$Q$6*気温!D53+$Q$7 -> 23.244 | E53: =$Q$6*気温!E53+$Q$7 -> 24.036 | F53: =$Q$6*気温!F53+$Q$7 -> 25.136 | G53: =$Q$6*気温!G53+$Q$7 -> 26.28 | H53: =$Q$6*気温!H53+$Q$7 -> 27.512 | I53: =$Q$6*気温!I53+$Q$7 -> 28.436 | J53: =$Q$6*気温!J53+$Q$7 -> 28.348 | K53: =$Q$6*気温!K53+$Q$7 -> 27.864 | L53: =$Q$6*気温!L53+$Q$7 -> 26.808 | M53: =$Q$6*気温!M53+$Q$7 -> 25.444 | N53: =$Q$6*気温!N53+$Q$7 -> 23.948

Sheet 積雪日数 (hidden)
A1: ダウンロードした時刻：2020/09/25 13:37:00 | ID1: ■日最深積雪0cm以上日数 | IV1: 気象庁ダウンロードデータ
ID2: 都道府県 | IE2: 地域 | IF2: 年月 | IG2: 項目1 | IH2: 項目2 | II2: 2019-01-01 | IJ2: 2019-02-01 | IK2: 2019-03-01 | IL2: 2019-04-01 | IM2: 2019-05-01 | IN2: 2019-06-01 | IO2: 2019-07-01 | IP2: 2019-08-01 | IQ2: 2019-09-01 | IR2: 2019-10-01 | IS2: 2019-11-01 | IT2: 2019-12-01 | IU2: 年間合計 | IV2: https://www.data.jma.go.jp/gmd/risk/obsdl/index.php#
B3: 那覇 | C3: 那覇 | D3: 那覇 | E3: 那覇 | F3: 那覇 | G3: 鹿児島 | H3: 鹿児島 | I3: 鹿児島 | J3: 鹿児島 | K3: 鹿児島 | L3: 宮崎 | M3: 宮崎 | N3: 宮崎 | O3: 宮崎 | P3: 宮崎 | Q3: 大分 | R3: 大分 | S3: 大分 | T3: 大分 | U3: 大分 | V3: 熊本 | W3: 熊本 | X3: 熊本 | Y3: 熊本 | Z3: 熊本 | AA3: 福岡 | AB3: 福岡 | AC3: 福岡 | AD3: 福岡 | AE3: 福岡 | AF3: 佐賀 | AG3: 佐賀 | AH3: 佐賀 | AI3: 佐賀 | AJ3: 佐賀 | AK3: 長崎 | AL3: 長崎 | AM3: 長崎 | AN3: 長崎 | AO3: 長崎 | AP3: 山口 | AQ3: 山口 | AR3: 山口 | AS3: 山口 | AT3: 山口 | AU3: 松江 | AV3: 松江 | AW3: 松江 | AX3: 松江 | AY3: 松江 | AZ3: 鳥取 | BA3: 鳥取 | BB3: 鳥取 | BC3: 鳥取 | BD3: 鳥取 | BE3: 広島 | BF3: 広島 | BG3: 広島 | BH3: 広島 | BI3: 広島 | BJ3: 岡山 | BK3: 岡山 | BL3: 岡山 | BM3: 岡山 | BN3: 岡山 | BO3: 松山 | BP3: 松山 | BQ3: 松山 | BR3: 松山 | BS3: 松山 | BT3: 高松 | BU3: 高松 | BV3: 高松 | BW3: 高松 | BX3: 高松 | BY3: 高知 | BZ3: 高知 | CA3: 高知 | CB3: 高知 | CC3: 高知 | CD3: 徳島 | CE3: 徳島 | CF3: 徳島 | CG3: 徳島 | CH3: 徳島 | CI3: 神戸 | CJ3: 神戸 | CK3: 神戸 | CL3: 神戸 | CM3: 神戸 | CN3: 京都 | CO3: 京都 | CP3: 京都 | CQ3: 京都 | CR3: 京都 | CS3: 大阪 | CT3: 大阪 | CU3: 大阪 | CV3: 大阪 | CW3: 大阪 | CX3: 和歌山 | CY3: 和歌山 | CZ3: 和歌山 | DA3: 和歌山 | DB3: 和歌山 | DC3: 奈良 | DD3: 奈良 | DE3: 奈良 | DF3: 奈良 | DG3: 奈良 | DH3: 彦根 | DI3: 彦根 | DJ3: 彦根 | DK3: 彦根 | DL3: 彦根 | DM3: 福井 | DN3: 福井 | DO3: 福井 | DP3: 福井 | DQ3: 福井 | DR3: 金沢 | DS3: 金沢 | DT3: 金沢 | DU3: 金沢 | DV3: 金沢 | DW3: 富山 | DX3: 富山 | DY3: 富山 | DZ3: 富山 | EA3: 富山 | EB3: 津 | EC3: 津 | ED3: 津 | EE3: 津 | EF3: 津 | EG3: 名古屋 | EH3: 名古屋 | EI3: 名古屋 | EJ3: 名古屋 | EK3: 名古屋 | EL3: 岐阜 | EM3: 岐阜 | EN3: 岐阜 | EO3: 岐阜 | EP3: 岐阜 | EQ3: 新潟 | ER3: 新潟 | ES3: 新潟 | ET3: 新潟 | EU3: 新潟 | EV3: 長野 | EW3: 長野 | EX3: 長野 | EY3: 長野 | EZ3: 長野 | FA3: 静岡 | FB3: 静岡 | FC3: 静岡 | FD3: 静岡 | FE3: 静岡 | FF3: 前橋 | FG3: 前橋 | FH3: 前橋 | FI3: 前橋 | FJ3: 前橋 | FK3: 甲府 | FL3: 甲府 | FM3: 甲府 | FN3: 甲府 | FO3: 甲府 | FP3: 横浜 | FQ3: 横浜 | FR3: 横浜 | FS3: 横浜 | FT3: 横浜 | FU3: 東京 | FV3: 東京 | FW3: 東京 | FX3: 東京 | FY3: 東京 | FZ3: 千葉 | GA3: 千葉 | GB3: 千葉 | GC3: 千葉 | GD3: 千葉 | GE3: 熊谷 | GF3: 熊谷 | GG3: 熊谷 | GH3: 熊谷 | GI3: 熊谷 | GJ3: 宇都宮 | GK3: 宇都宮 | GL3: 宇都宮 | GM3: 宇都宮 | GN3: 宇都宮 | GO3: 水戸 | GP3: 水戸 | GQ3: 水戸 | GR3: 水戸 | GS3: 水戸 | GT3: 福島 | GU3: 福島 | GV3: 福島 | GW3: 福島 | GX3: 福島 | GY3: 山形 | GZ3: 山形 | HA3: 山形 | HB3: 山形 | HC3: 山形 | HD3: 仙台 | HE3: 仙台 | HF3: 仙台 | HG3: 仙台 | HH3: 仙台 | HI3: 秋田 | HJ3: 秋田 | HK3: 秋田 | HL3: 秋田 | HM3: 秋田 | HN3: 盛岡 | HO3: 盛岡 | HP3: 盛岡 | HQ3: 盛岡 | HR3: 盛岡 | HS3: 青森 | HT3: 青森 | HU3: 青森 | HV3: 青森 | HW3: 青森 | HX3: 札幌 | HY3: 札幌 | HZ3: 札幌 | IA3: 札幌 | IB3: 札幌 | ID3: 北海道 | IE3: 札幌 | IF3: 日最深積雪0cm以上日数(日) | IG3: 平年値(日) | II3: 31 | IJ3: 28.2 | IK3: 29.6 | IL3: 6.4 | IM3: 0 | IN3: 0 | IO3: 0 | IP3: 0 | IQ3: 0 | IR3: 0.6 | IS3: 8.7 | IT3: 27.9 | IU3: =SUM(II3:IT3) -> 132.4 | IV3: 平年値
A4: 年月 | B4: 日最深積雪0cm以上日数(日) | C4: 日最深積雪0cm以上日数(日) | D4: 日最深積雪0cm以上日数(日) | E4: 日最深積雪0cm以上日数(日) | F4: 日最深積雪0cm以上日数(日) | G4: 日最深積雪0cm以上日数(日) | H4: 日最深積雪0cm以上日数(日) | I4: 日最深積雪0cm以上日数(日) | J4: 日最深積雪0cm以上日数(日) | K4: 日最深積雪0cm以上日数(日) | L4: 日最深積雪0cm以上日数(日) | M4: 日最深積雪0cm以上日数(日) | N4: 日最深積雪0cm以上日数(日) | O4: 日最深積雪0cm以上日数(日) | P4: 日最深積雪0cm以上日数(日) | Q4: 日最深積雪0cm以上日数(日) | R4: 日最深積雪0cm以上日数(日) | S4: 日最深積雪0cm以上日数(日) | T4: 日最深積雪0cm以上日数(日) | U4: 日最深積雪0cm以上日数(日) | V4: 日最深積雪0cm以上日数(日) | W4: 日最深積雪0cm以上日数(日) | X4: 日最深積雪0cm以上日数(日) | Y4: 日最深積雪0cm以上日数(日) | Z4: 日最深積雪0cm以上日数(日) | AA4: 日最深積雪0cm以上日数(日) | AB4: 日最深積雪0cm以上日数(日) | AC4: 日最深積雪0cm以上日数(日) | AD4: 日最深積雪0cm以上日数(日) | AE4: 日最深積雪0cm以上日数(日) | AF4: 日最深積雪0cm以上日数(日) | AG4: 日最深積雪0cm以上日数(日) | AH4: 日最深積雪0cm以上日数(日) | AI4: 日最深積雪0cm以上日数(日) | AJ4: 日最深積雪0cm以上日数(日) | AK4: 日最深積雪0cm以上日数(日) | AL4: 日最深積雪0cm以上日数(日) | AM4: 日最深積雪0cm以上日数(日) | AN4: 日最深積雪0cm以上日数(日) | AO4: 日最深積雪0cm以上日数(日) | AP4: 日最深積雪0cm以上日数(日) | AQ4: 日最深積雪0cm以上日数(日) | AR4: 日最深積雪0cm以上日数(日) | AS4: 日最深積雪0cm以上日数(日) | AT4: 日最深積雪0cm以上日数(日) | AU4: 日最深積雪0cm以上日数(日) | AV4: 日最深積雪0cm以上日数(日) | AW4: 日最深積雪0cm以上日数(日) | AX4: 日最深積雪0cm以上日数(日) | AY4: 日最深積雪0cm以上日数(日) | AZ4: 日最深積雪0cm以上日数(日) | BA4: 日最深積雪0cm以上日数(日) | BB4: 日最深積雪0cm以上日数(日) | BC4: 日最深積雪0cm以上日数(日) | BD4: 日最深積雪0cm以上日数(日) | BE4: 日最深積雪0cm以上日数(日) | BF4: 日最深積雪0cm以上日数(日) | BG4: 日最深積雪0cm以上日数(日) | BH4: 日最深積雪0cm以上日数(日) | BI4: 日最深積雪0cm以上日数(日) | BJ4: 日最深積雪0cm以上日数(日) | BK4: 日最深積雪0cm以上日数(日) | BL4: 日最深積雪0cm以上日数(日) | BM4: 日最深積雪0cm以上日数(日) | BN4: 日最深積雪0cm以上日数(日) | BO4: 日最深積雪0cm以上日数(日) | BP4: 日最深積雪0cm以上日数(日) | BQ4: 日最深積雪0cm以上日数(日) | BR4: 日最深積雪0cm以上日数(日) | BS4: 日最深積雪0cm以上日数(日) | BT4: 日最深積雪0cm以上日数(日) | BU4: 日最深積雪0cm以上日数(日) | BV4: 日最深積雪0cm以上日数(日) | BW4: 日最深積雪0cm以上日数(日) | BX4: 日最深積雪0cm以上日数(日) | BY4: 日最深積雪0cm以上日数(日) | BZ4: 日最深積雪0cm以上日数(日) | CA4: 日最深積雪0cm以上日数(日) | CB4: 日最深積雪0cm以上日数(日) | CC4: 日最深積雪0cm以上日数(日) | CD4: 日最深積雪0cm以上日数(日) | CE4: 日最深積雪0cm以上日数(日) | CF4: 日最深積雪0cm以上日数(日) | CG4: 日最深積雪0cm以上日数(日) | CH4: 日最深積雪0cm以上日数(日) | CI4: 日最深積雪0cm以上日数(日) | CJ4: 日最深積雪0cm以上日数(日) | CK4: 日最深積雪0cm以上日数(日) | CL4: 日最深積雪0cm以上日数(日) | CM4: 日最深積雪0cm以上日数(日) | CN4: 日最深積雪0cm以上日数(日) | CO4: 日最深積雪0cm以上日数(日) | CP4: 日最深積雪0cm以上日数(日) | CQ4: 日最深積雪0cm以上日数(日) | CR4: 日最深積雪0cm以上日数(日) | CS4: 日最深積雪0cm以上日数(日) | CT4: 日最深積雪0cm以上日数(日) | CU4: 日最深積雪0cm以上日数(日) | CV4: 日最深積雪0cm以上日数(日) | CW4: 日最深積雪0cm以上日数(日) | CX4: 日最深積雪0cm以上日数(日) | CY4: 日最深積雪0cm以上日数(日) | CZ4: 日最深積雪0cm以上日数(日) | DA4: 日最深積雪0cm以上日数(日) | DB4: 日最深積雪0cm以上日数(日) | DC4: 日最深積雪0cm以上日数(日) | DD4: 日最深積雪0cm以上日数(日) | DE4: 日最深積雪0cm以上日数(日) | DF4: 日最深積雪0cm以上日数(日) | DG4: 日最深積雪0cm以上日数(日) | DH4: 日最深積雪0cm以上日数(日) | DI4: 日最深積雪0cm以上日数(日) | DJ4: 日最深積雪0cm以上日数(日) | DK4: 日最深積雪0cm以上日数(日) | DL4: 日最深積雪0cm以上日数(日) | DM4: 日最深積雪0cm以上日数(日) | DN4: 日最深積雪0cm以上日数(日) | DO4: 日最深積雪0cm以上日数(日) | DP4: 日最深積雪0cm以上日数(日) | DQ4: 日最深積雪0cm以上日数(日) | DR4: 日最深積雪0cm以上日数(日) | DS4: 日最深積雪0cm以上日数(日) | DT4: 日最深積雪0cm以上日数(日) | DU4: 日最深積雪0cm以上日数(日) | DV4: 日最深積雪0cm以上日数(日) | DW4: 日最深積雪0cm以上日数(日) | DX4: 日最深積雪0cm以上日数(日) | DY4: 日最深積雪0cm以上日数(日) | DZ4: 日最深積雪0cm以上日数(日) | EA4: 日最深積雪0cm以上日数(日) | EB4: 日最深積雪0cm以上日数(日) | EC4: 日最深積雪0cm以上日数(日) | ED4: 日最深積雪0cm以上日数(日) | EE4: 日最深積雪0cm以上日数(日) | EF4: 日最深積雪0cm以上日数(日) | EG4: 日最深積雪0cm以上日数(日) | EH4: 日最深積雪0cm以上日数(日) | EI4: 日最深積雪0cm以上日数(日) | EJ4: 日最深積雪0cm以上日数(日) | EK4: 日最深積雪0cm以上日数(日) | EL4: 日最深積雪0cm以上日数(日) | EM4: 日最深積雪0cm以上日数(日) | EN4: 日最深積雪0cm以上日数(日) | EO4: 日最深積雪0cm以上日数(日) | EP4: 日最深積雪0cm以上日数(日) | EQ4: 日最深積雪0cm以上日数(日) | ER4: 日最深積雪0cm以上日数(日) | ES4: 日最深積雪0cm以上日数(日) | ET4: 日最深積雪0cm以上日数(日) | EU4: 日最深積雪0cm以上日数(日) | EV4: 日最深積雪0cm以上日数(日) | EW4: 日最深積雪0cm以上日数(日) | EX4: 日最深積雪0cm以上日数(日) | EY4: 日最深積雪0cm以上日数(日) | EZ4: 日最深積雪0cm以上日数(日) | FA4: 日最深積雪0cm以上日数(日) | FB4: 日最深積雪0cm以上日数(日) | FC4: 日最深積雪0cm以上日数(日) | FD4: 日最深積雪0cm以上日数(日) | FE4: 日最深積雪0cm以上日数(日) | FF4: 日最深積雪0cm以上日数(日) | FG4: 日最深積雪0cm以上日数(日) | FH4: 日最深積雪0cm以上日数(日) | FI4: 日最深積雪0cm以上日数(日) | FJ4: 日最深積雪0cm以上日数(日) | FK4: 日最深積雪0cm以上日数(日) | FL4: 日最深積雪0cm以上日数(日) | FM4: 日最深積雪0cm以上日数(日) | FN4: 日最深積雪0cm以上日数(日) | FO4: 日最深積雪0cm以上日数(日) | FP4: 日最深積雪0cm以上日数(日) | FQ4: 日最深積雪0cm以上日数(日) | FR4: 日最深積雪0cm以上日数(日) | FS4: 日最深積雪0cm以上日数(日) | FT4: 日最深積雪0cm以上日数(日) | FU4: 日最深積雪0cm以上日数(日) | FV4: 日最深積雪0cm以上日数(日) | FW4: 日最深積雪0cm以上日数(日) | FX4: 日最深積雪0cm以上日数(日) | FY4: 日最深積雪0cm以上日数(日) | FZ4: 日最深積雪0cm以上日数(日) | GA4: 日最深積雪0cm以上日数(日) | GB4: 日最深積雪0cm以上日数(日) | GC4: 日最深積雪0cm以上日数(日) | GD4: 日最深積雪0cm以上日数(日) | GE4: 日最深積雪0cm以上日数(日) | GF4: 日最深積雪0cm以上日数(日) | GG4: 日最深積雪0cm以上日数(日) | GH4: 日最深積雪0cm以上日数(日) | GI4: 日最深積雪0cm以上日数(日) | GJ4: 日最深積雪0cm以上日数(日) | GK4: 日最深積雪0cm以上日数(日) | GL4: 日最深積雪0cm以上日数(日) | GM4: 日最深積雪0cm以上日数(日) | GN4: 日最深積雪0cm以上日数(日) | GO4: 日最深積雪0cm以上日数(日) | GP4: 日最深積雪0cm以上日数(日) | GQ4: 日最深積雪0cm以上日数(日) | GR4: 日最深積雪0cm以上日数(日) | GS4: 日最深積雪0cm以上日数(日) | GT4: 日最深積雪0cm以上日数(日) | GU4: 日最深積雪0cm以上日数(日) | GV4: 日最深積雪0cm以上日数(日) | GW4: 日最深積雪0cm以上日数(日) | GX4: 日最深積雪0cm以上日数(日) | GY4: 日最深積雪0cm以上日数(日) | GZ4: 日最深積雪0cm以上日数(日) | HA4: 日最深積雪0cm以上日数(日) | HB4: 日最深積雪0cm以上日数(日) | HC4: 日最深積雪0cm以上日数(日) | HD4: 日最深積雪0cm以上日数(日) | HE4: 日最深積雪0cm以上日数(日) | HF4: 日最深積雪0cm以上日数(日) | HG4: 日最深積雪0cm以上日数(日) | HH4: 日最深積雪0cm以上日数(日) | HI4: 日最深積雪0cm以上日数(日) | HJ4: 日最深積雪0cm以上日数(日) | HK4: 日最深積雪0cm以上日数(日) | HL4: 日最深積雪0cm以上日数(日) | HM4: 日最深積雪0cm以上日数(日) | HN4: 日最深積雪0cm以上日数(日) | HO4: 日最深積雪0cm以上日数(日) | HP4: 日最深積雪0cm以上日数(日) | HQ4: 日最深積雪0cm以上日数(日) | HR4: 日最深積雪0cm以上日数(日) | HS4: 日最深積雪0cm以上日数(日) | HT4: 日最深積雪0cm以上日数(日) | HU4: 日最深積雪0cm以上日数(日) | HV4: 日最深積雪0cm以上日数(日) | HW4: 日最深積雪0cm以上日数(日) | HX4: 日最深積雪0cm以上日数(日) | HY4: 日最深積雪0cm以上日数(日) | HZ4: 日最深積雪0cm以上日数(日) | IA4: 日最深積雪0cm以上日数(日) | IB4: 日最深積雪0cm以上日数(日) | ID4: 青森県 | IE4: 青森 | IF4: 日最深積雪0cm以上日数(日) | IG4: 平年値(日) | II4: 30.8 | IJ4: 28.1 | IK4: 25 | IL4: 3.4 | IM4: 0 | IN4: 0 | IO4: 0 | IP4: 0 | IQ4: 0 | IR4: 0 | IS4: 6.6 | IT4: 24.3 | IU4: 118.2
E5: 平年値(日) | F5: 平年値(日) | J5: 平年値(日) | K5: 平年値(日) | O5: 平年値(日) | P5: 平年値(日) | T5: 平年値(日) | U5: 平年値(日) | Y5: 平年値(日) | Z5: 平年値(日) | AD5: 平年値(日) | AE5: 平年値(日) | AI5: 平年値(日) | AJ5: 平年値(日) | AN5: 平年値(日) | AO5: 平年値(日) | AS5: 平年値(日) | AT5: 平年値(日) | AX5: 平年値(日) | AY5: 平年値(日) | BC5: 平年値(日) | BD5: 平年値(日) | BH5: 平年値(日) | BI5: 平年値(日) | BM5: 平年値(日) | BN5: 平年値(日) | BR5: 平年値(日) | BS5: 平年値(日) | BW5: 平年値(日) | BX5: 平年値(日) | CB5: 平年値(日) | CC5: 平年値(日) | CG5: 平年値(日) | CH5: 平年値(日) | CL5: 平年値(日) | CM5: 平年値(日) | CQ5: 平年値(日) | CR5: 平年値(日) | CV5: 平年値(日) | CW5: 平年値(日) | DA5: 平年値(日) | DB5: 平年値(日) | DF5: 平年値(日) | DG5: 平年値(日) | DK5: 平年値(日) | DL5: 平年値(日) | DP5: 平年値(日) | DQ5: 平年値(日) | DU5: 平年値(日) | DV5: 平年値(日) | DZ5: 平年値(日) | EA5: 平年値(日) | EE5: 平年値(日) | EF5: 平年値(日) | EJ5: 平年値(日) | EK5: 平年値(日) | EO5: 平年値(日) | EP5: 平年値(日) | ET5: 平年値(日) | EU5: 平年値(日) | EY5: 平年値(日) | EZ5: 平年値(日) | FD5: 平年値(日) | FE5: 平年値(日) | FI5: 平年値(日) | FJ5: 平年値(日) | FN5: 平年値(日) | FO5: 平年値(日) | FS5: 平年値(日) | FT5: 平年値(日) | FX5: 平年値(日) | FY5: 平年値(日) | GC5: 平年値(日) | GD5: 平年値(日) | GH5: 平年値(日) | GI5: 平年値(日) | GM5: 平年値(日) | GN5: 平年値(日) | GR5: 平年値(日) | GS5: 平年値(日) | GW5: 平年値(日) | GX5: 平年値(日) | HB5: 平年値(日) | HC5: 平年値(日) | HG5: 平年値(日) | HH5: 平年値(日) | HL5: 平年値(日) | HM5: 平年値(日) | HQ5: 平年値(日) | HR5: 平年値(日) | HV5: 平年値(日) | HW5: 平年値(日) | IA5: 平年値(日) | IB5: 平年値(日) | ID5: 岩手県 | IE5: 盛岡 | IF5: 日最深積雪0cm以上日数(日) | IG5: 平年値(日) | II5: 26.8 | IJ5: 25.3 | IK5: 15.3 | IL5: 1.4 | IM5: 0 | IN5: 0 | IO5: 0 | IP5: 0 | IQ5: 0 | IR5: 0 | IS5: 2.8 | IT5: 16.3 | IU5: 87.9
C6: 品質情報 | D6: 均質番号 | F6: 品質情報 | H6: 品質情報 | I6: 均質番号 | K6: 品質情報 | M6: 品質情報 | N6: 均質番号 | P6: 品質情報 | R6: 品質情報 | S6: 均質番号 | U6: 品質情報 | W6: 品質情報 | X6: 均質番号 | Z6: 品質情報 | AB6: 品質情報 | AC6: 均質番号 | AE6: 品質情報 | AG6: 品質情報 | AH6: 均質番号 | AJ6: 品質情報 | AL6: 品質情報 | AM6: 均質番号 | AO6: 品質情報 | AQ6: 品質情報 | AR6: 均質番号 | AT6: 品質情報 | AV6: 品質情報 | AW6: 均質番号 | AY6: 品質情報 | BA6: 品質情報 | BB6: 均質番号 | BD6: 品質情報 | BF6: 品質情報 | BG6: 均質番号 | BI6: 品質情報 | BK6: 品質情報 | BL6: 均質番号 | BN6: 品質情報 | BP6: 品質情報 | BQ6: 均質番号 | BS6: 品質情報 | BU6: 品質情報 | BV6: 均質番号 | BX6: 品質情報 | BZ6: 品質情報 | CA6: 均質番号 | CC6: 品質情報 | CE6: 品質情報 | CF6: 均質番号 | CH6: 品質情報 | CJ6: 品質情報 | CK6: 均質番号 | CM6: 品質情報 | CO6: 品質情報 | CP6: 均質番号 | CR6: 品質情報 | CT6: 品質情報 | CU6: 均質番号 | CW6: 品質情報 | CY6: 品質情報 | CZ6: 均質番号 | DB6: 品質情報 | DD6: 品質情報 | DE6: 均質番号 | DG6: 品質情報 | DI6: 品質情報 | DJ6: 均質番号 | DL6: 品質情報 | DN6: 品質情報 | DO6: 均質番号 | DQ6: 品質情報 | DS6: 品質情報 | DT6: 均質番号 | DV6: 品質情報 | DX6: 品質情報 | DY6: 均質番号 | EA6: 品質情報 | EC6: 品質情報 | ED6: 均質番号 | EF6: 品質情報 | EH6: 品質情報 | EI6: 均質番号 | EK6: 品質情報 | EM6: 品質情報 | EN6: 均質番号 | EP6: 品質情報 | ER6: 品質情報 | ES6: 均質番号 | EU6: 品質情報 | EW6: 品質情報 | EX6: 均質番号 | EZ6: 品質情報 | FB6: 品質情報 | FC6: 均質番号 | FE6: 品質情報 | FG6: 品質情報 | FH6: 均質番号 | FJ6: 品質情報 | FL6: 品質情報 | FM6: 均質番号 | FO6: 品質情報 | FQ6: 品質情報 | FR6: 均質番号 | FT6: 品質情報 | FV6: 品質情報 | FW6: 均質番号 | FY6: 品質情報 | GA6: 品質情報 | GB6: 均質番号 | GD6: 品質情報 | GF6: 品質情報 | GG6: 均質番号 | GI6: 品質情報 | GK6: 品質情報 | GL6: 均質番号 | GN6: 品質情報 | GP6: 品質情報 | GQ6: 均質番号 | GS6: 品質情報 | GU6: 品質情報 | GV6: 均質番号 | GX6: 品質情報 | GZ6: 品質情報 | HA6: 均質番号 | HC6: 品質情報 | HE6: 品質情報 | HF6: 均質番号 | HH6: 品質情報 | HJ6: 品質情報 | HK6: 均質番号 | HM6: 品質情報 | HO6: 品質情報 | HP6: 均質番号 | HR6: 品質情報 | HT6: 品質情報 | HU6: 均質番号 | HW6: 品質情報 | HY6: 品質情報 | HZ6: 均質番号 | IB6: 品質情報 | ID6: 宮城県 | IE6: 仙台 | IF6: 日最深積雪0cm以上日数(日) | IG6: 平年値(日) | II6: 13 | IJ6: 11 | IK6: 5.6 | IL6: 0.5 | IM6: 0 | IN6: 0 | IO6: 0 | IP6: 0 | IQ6: 0 | IR6: 0 | IS6: 0.4 | IT6: 5.2 | IU6: 35.7
A7: 2019-01-01 | B7: 0 | C7: 8 | D7: 1 | E7: 0 | F7: 8 | G7: 0 | H7: 8 | I7: 1 | J7: 0.6 | K7: 8 | L7: 0 | M7: 8 | N7: 1 | O7: 0.1 | P7: 8 | Q7: 0 | R7: 8 | S7: 1 | T7: 0.5 | U7: 8 | V7: 0 | W7: 8 | X7: 1 | Y7: 1 | Z7: 8 | AA7: 2 | AB7: 8 | AC7: 1 | AD7: 1.7 | AE7: 8 | AF7: 0 | AG7: 8 | AH7: 1 | AI7: 1.8 | AJ7: 8 | AK7: 0 | AL7: 8 | AM7: 1 | AN7: 1.2 | AO7: 8 | AQ7: 0 | AR7: 1 | AS7: 3.2 | AT7: 8 | AU7: 3 | AV7: 8 | AW7: 1 | AX7: 11.2 | AY7: 8 | AZ7: 3 | BA7: 8 | BB7: 1 | BC7: 15.5 | BD7: 8 | BE7: 1 | BF7: 8 | BG7: 1 | BH7: 2.7 | BI7: 8 | BJ7: 0 | BK7: 8 | BL7: 1 | BM7: 0.9 | BN7: 8 | BO7: 0 | BP7: 8 | BQ7: 1 | BR7: 0.8 | BS7: 8 | BT7: 0 | BU7: 8 | BV7: 1 | BW7: 0.8 | BX7: 8 | BY7: 0 | BZ7: 8 | CA7: 1 | CB7: 0.4 | CC7: 8 | CD7: 0 | CE7: 8 | CF7: 1 | CG7: 1.2 | CH7: 8 | CI7: 0 | CJ7: 8 | CK7: 1 | CL7: 0.5 | CM7: 8 | CN7: 2 | CO7: 8 | CP7: 1 | CQ7: 3.1 | CR7: 8 | CS7: 0 | CT7: 8 | CU7: 1 | CV7: 0.3 | CW7: 8 | CX7: 0 | CY7: 8 | CZ7: 1 | DA7: 0.9 | DB7: 8 | DC7: 1 | DD7: 8 | DE7: 1 | DF7: 1.4 | DG7: 8 | DH7: 2 | DI7: 8 | DJ7: 1 | DK7: 10.1 | DL7: 8 | DM7: 8 | DN7: 8 | DO7: 1 | DP7: 19.9 | DQ7: 8 | DR7: 11 | DS7: 8 | DT7: 1 | DU7: 18.7 | DV7: 8 | DW7: 15 | DX7: 8 | DY7: 1 | DZ7: 21.7 | EA7: 8 | EB7: 2 | EC7: 8 | ED7: 1 | EE7: 1.5 | EF7: 8 | EG7: 0 | EH7: 8 | EI7: 1 | EJ7: 2.1 | EK7: 8 | EL7: 0 | EM7: 8 | EN7: 1 | EO7: 5 | EP7: 8 | EQ7: 17 | ER7: 8 | ES7: 1 | ET7: 19.8 | EU7: 8 | EV7: 23 | EW7: 8 | EX7: 1 | EY7: 22.9 | EZ7: 8 | FA7: 0 | FB7: 8 | FC7: 1 | FD7: 0 | FE7: 8 | FF7: 2 | FG7: 8 | FH7: 1 | FI7: 2.9 | FJ7: 8 | FK7: 0 | FL7: 8 | FM7: 1 | FN7: 4.5 | FO7: 8 | FP7: 0 | FQ7: 8 | FR7: 1 | FS7: 1.6 | FT7: 8 | FU7: 0 | FV7: 8 | FW7: 1 | FX7: 1.6 | FY7: 8 | GA7: 0 | GB7: 1 | GC7: 0.9 | GD7: 8 | GE7: 0 | GF7: 8 | GG7: 1 | GH7: 2.5 | GI7: 8 | GJ7: 1 | GK7: 8 | GL7: 1 | GM7: 3.6 | GN7: 8 | GO7: 1 | GP7: 8 | GQ7: 1 | GR7: 2.6 | GS7: 8 | GT7: 22 | GU7: 8 | GV7: 1 | GW7: 17.9 | GX7: 8 | GY7: 31 | GZ7: 8 | HA7: 1 | HB7: 27.8 | HC7: 8 | HD7: 5 | HE7: 8 | HF7: 1 | HG7: 13 | HH7: 8 | HI7: 26 | HJ7: 8 | HK7: 1 | HL7: 27.3 | HM7: 8 | HN7: 18 | HO7: 8 | HP7: 1 | HQ7: 26.8 | HR7: 8 | HS7: 31 | HT7: 8 | HU7: 1 | HV7: 30.8 | HW7: 8 | HX7: 31 | HY7: 8 | HZ7: 1 | IA7: 31 | IB7: 8 | ID7: 秋田県 | IE7: 秋田 | IF7: 日最深積雪0cm以上日数(日) | IG7: 平年値(日) | II7: 27.3 | IJ7: 24.4 | IK7: 13.5 | IL7: 0.5 | IM7: 0 | IN7: 0 | IO7: 0 | IP7: 0 | IQ7: 0 | IR7: 0 | IS7: 3 | IT7: 16.6 | IU7: 85.3
A8: 2019-02-01 | B8: 0 | C8: 8 | D8: 1 | E8: 0 | F8: 8 | G8: 0 | H8: 8 | I8: 1 | J8: 0.6 | K8: 8 | L8: 0 | M8: 8 | N8: 1 | O8: 0 | P8: 8 | Q8: 0 | R8: 8 | S8: 1 | T8: 0.4 | U8: 8 | V8: 0 | W8: 8 | X8: 1 | Y8: 0.8 | Z8: 8 | AA8: 0 | AB8: 8 | AC8: 1 | AD8: 0.9 | AE8: 8 | AF8: 0 | AG8: 8 | AH8: 1 | AI8: 1.3 | AJ8: 8 | AK8: 0 | AL8: 8 | AM8: 1 | AN8: 0.9 | AO8: 8 | AQ8: 0 | AR8: 1 | AS8: 2.1 | AT8: 8 | AU8: 0 | AV8: 8 | AW8: 1 | AX8: 9.1 | AY8: 8 | AZ8: 0 | BA8: 8 | BB8: 1 | BC8: 13.2 | BD8: 8 | BE8: 0 | BF8: 8 | BG8: 1 | BH8: 2.3 | BI8: 8 | BJ8: 1 | BK8: 8 | BL8: 1 | BM8: 1.1 | BN8: 8 | BO8: 0 | BP8: 8 | BQ8: 1 | BR8: 1.1 | BS8: 8 | BT8: 1 | BU8: 8 | BV8: 1 | BW8: 1.1 | BX8: 8 | BY8: 0 | BZ8: 8 | CA8: 1 | CB8: 0.2 | CC8: 8 | CD8: 0 | CE8: 8 | CF8: 1 | CG8: 1.2 | CH8: 8 | CI8: 0 | CJ8: 8 | CK8: 1 | CL8: 1.2 | CM8: 8 | CN8: 0 | CO8: 8 | CP8: 1 | CQ8: 3.9 | CR8: 8 | CS8: 0 | CT8: 8 | CU8: 1 | CV8: 0.9 | CW8: 8 | CX8: 0 | CY8: 8 | CZ8: 1 | DA8: 1 | DB8: 8 | DC8: 0 | DD8: 8 | DE8: 1 | DF8: 1.9 | DG8: 8 | DH8: 0 | DI8: 8 | DJ8: 1 | DK8: 9.2 | DL8: 8 | DM8: 3 | DN8: 8 | DO8: 1 | DP8: 17.5 | DQ8: 8 | DR8: 7 | DS8: 8 | DT8: 1 | DU8: 16.9 | DV8: 8 | DW8: 10 | DX8: 8 | DY8: 1 | DZ8: 19.4 | EA8: 8 | EB8: 0 | EC8: 8 | ED8: 1 | EE8: 2.2 | EF8: 8 | EG8: 0 | EH8: 8 | EI8: 1 | EJ8: 2.8 | EK8: 8 | EL8: 0 | EM8: 8 | EN8: 1 | EO8: 4.8 | EP8: 8 | EQ8: 9 | ER8: 8 | ES8: 1 | ET8: 18.4 | EU8: 8 | EW8: 0 | EX8: 1 | EY8: 19.6 | EZ8: 8 | FA8: 0 | FB8: 8 | FC8: 1 | FD8: 0.2 | FE8: 8 | FG8: 0 | FH8: 1 | FI8: 3.5 | FJ8: 8 | FL8: 0 | FM8: 1 | FN8: 3.1 | FO8: 8 | FQ8: 0 | FR8: 1 | FS8: 2.3 | FT8: 8 | FU8: 3 | FV8: 8 | FW8: 1 | FX8: 2 | FY8: 8 | GA8: 0 | GB8: 1 | GC8: 1.2 | GD8: 8 | GF8: 0 | GG8: 1 | GH8: 2.8 | GI8: 8 | GK8: 0 | GL8: 1 | GM8: 3.8 | GN8: 8 | GP8: 0 | GQ8: 1 | GR8: 3.1 | GS8: 8 | GT8: 2 | GU8: 8 | GV8: 1 | GW8: 13.5 | GX8: 8 | GY8: 20 | GZ8: 8 | HA8: 1 | HB8: 26 | HC8: 8 | HD8: 1 | HE8: 8 | HF8: 1 | HG8: 11 | HH8: 8 | HI8: 19 | HJ8: 8 | HK8: 1 | HL8: 24.4 | HM8: 8 | HN8: 15 | HO8: 8 | HP8: 1 | HQ8: 25.3 | HR8: 8 | HS8: 28 | HT8: 8 | HU8: 1 | HV8: 28.1 | HW8: 8 | HX8: 28 | HY8: 8 | HZ8: 1 | IA8: 28.2 | IB8: 8 | ID8: 山形県 | IE8: 山形 | IF8: 日最深積雪0cm以上日数(日) | IG8: 平年値(日) | II8: 27.8 | IJ8: 26 | IK8: 14.4 | IL8: 1 | IM8: 0 | IN8: 0 | IO8: 0 | IP8: 0 | IQ8: 0 | IR8: 0 | IS8: 2.4 | IT8: 14.8 | IU8: 86.4
A9: 2019-03-01 | B9: 0 | C9: 8 | D9: 1 | E9: 0 | F9: 8 | G9: 0 | H9: 8 | I9: 1 | J9: 0 | K9: 8 | L9: 0 | M9: 8 | N9: 1 | O9: 0 | P9: 8 | Q9: 0 | R9: 8 | S9: 1 | T9: 0.1 | U9: 8 | V9: 0 | W9: 8 | X9: 1 | Y9: 0.1 | Z9: 8 | AA9: 0 | AB9: 8 | AC9: 1 | AD9: 0.3 | AE9: 8 | AF9: 0 | AG9: 8 | AH9: 1 | AI9: 0.3 | AJ9: 8 | AK9: 0 | AL9: 8 | AM9: 1 | AN9: 0.2 | AO9: 8 | AQ9: 0 | AR9: 1 | AS9: 0.5 | AT9: 8 | AU9: 1 | AV9: 8 | AW9: 1 | AX9: 2.1 | AY9: 8 | AZ9: 0 | BA9: 8 | BB9: 1 | BC9: 4 | BD9: 8 | BE9: 0 | BF9: 8 | BG9: 1 | BH9: 0.7 | BI9: 8 | BJ9: 0 | BK9: 8 | BL9: 1 | BM9: 0.4 | BN9: 8 | BO9: 0 | BP9: 8 | BQ9: 1 | BR9: 0.2 | BS9: 8 | BT9: 0 | BU9: 8 | BV9: 1 | BW9: 0.3 | BX9: 8 | BY9: 0 | BZ9: 8 | CA9: 1 | CB9: 0.1 | CC9: 8 | CD9: 0 | CE9: 8 | CF9: 1 | CG9: 0.2 | CH9: 8 | CI9: 0 | CJ9: 8 | CK9: 1 | CL9: 0.5 | CM9: 8 | CN9: 0 | CO9: 8 | CP9: 1 | CQ9: 1 | CR9: 8 | CS9: 0 | CT9: 8 | CU9: 1 | CV9: 0.2 | CW9: 8 | CX9: 0 | CY9: 8 | CZ9: 1 | DA9: 0.1 | DB9: 8 | DC9: 0 | DD9: 8 | DE9: 1 | DF9: 0.8 | DG9: 8 | DH9: 1 | DI9: 8 | DJ9: 1 | DK9: 2.3 | DL9: 8 | DM9: 3 | DN9: 8 | DO9: 1 | DP9: 5.9 | DQ9: 8 | DR9: 1 | DS9: 8 | DT9: 1 | DU9: 6.2 | DV9: 8 | DW9: 3 | DX9: 8 | DY9: 1 | DZ9: 7.9 | EA9: 8 | EB9: 0 | EC9: 8 | ED9: 1 | EE9: 0.4 | EF9: 8 | EG9: 0 | EH9: 8 | EI9: 1 | EJ9: 0.4 | EK9: 8 | EL9: 0 | EM9: 8 | EN9: 1 | EO9: 0.9 | EP9: 8 | EQ9: 1 | ER9: 8 | ES9: 1 | ET9: 6.5 | EU9: 8 | EW9: 0 | EX9: 1 | EY9: 8.2 | EZ9: 8 | FA9: 0 | FB9: 8 | FC9: 1 | FD9: 0 | FE9: 8 | FG9: 0 | FH9: 1 | FI9: 1.7 | FJ9: 8 | FL9: 0 | FM9: 1 | FN9: 0.9 | FO9: 8 | FQ9: 0 | FR9: 1 | FS9: 0.7 | FT9: 8 | FU9: 0 | FV9: 8 | FW9: 1 | FX9: 0.8 | FY9: 8 | GA9: 0 | GB9: 1 | GC9: 0.3 | GD9: 8 | GF9: 0 | GG9: 1 | GH9: 1.2 | GI9: 8 | GK9: 0 | GL9: 1 | GM9: 1.9 | GN9: 8 | GP9: 0 | GQ9: 1 | GR9: 1.1 | GS9: 8 | GT9: 4 | GU9: 8 | GV9: 1 | GW9: 6.3 | GX9: 8 | GY9: 7 | GZ9: 8 | HA9: 1 | HB9: 14.4 | HC9: 8 | HD9: 2 | HE9: 8 | HF9: 1 | HG9: 5.6 | HH9: 8 | HI9: 6 | HJ9: 8 | HK9: 1 | HL9: 13.5 | HM9: 8 | HN9: 10 | HO9: 8 | HP9: 1 | HQ9: 15.3 | HR9: 8 | HS9: 25 | HT9: 8 | HU9: 1 | HV9: 25 | HW9: 8 | HX9: 26 | HY9: 8 | HZ9: 1 | IA9: 29.6 | IB9: 8 | ID9: 福島県 | IE9: 福島 | IF9: 日最深積雪0cm以上日数(日) | IG9: 平年値(日) | II9: 17.9 | IJ9: 13.5 | IK9: 6.3 | IL9: 0.4 | IM9: 0 | IN9: 0 | IO9: 0 | IP9: 0 | IQ9: 0 | IR9: 0 | IS9: 0.4 | IT9: 6.8 | IU9: 45.3
A10: 2019-04-01 | B10: 0 | C10: 8 | D10: 1 | E10: 0 | F10: 8 | G10: 0 | H10: 8 | I10: 1 | J10: 0 | K10: 8 | L10: 0 | M10: 8 | N10: 1 | O10: 0 | P10: 8 | Q10: 0 | R10: 8 | S10: 1 | T10: 0 | U10: 8 | V10: 0 | W10: 8 | X10: 1 | Y10: 0 | Z10: 8 | AA10: 0 | AB10: 8 | AC10: 1 | AD10: 0 | AE10: 8 | AF10: 0 | AG10: 8 | AH10: 1 | AI10: 0 | AJ10: 8 | AK10: 0 | AL10: 8 | AM10: 1 | AN10: 0 | AO10: 8 | AQ10: 0 | AR10: 1 | AS10: 0 | AT10: 8 | AU10: 0 | AV10: 8 | AW10: 1 | AX10: 0.1 | AY10: 8 | AZ10: 0 | BA10: 8 | BB10: 1 | BC10: 0.2 | BD10: 8 | BE10: 0 | BF10: 8 | BG10: 1 | BH10: 0 | BI10: 8 | BJ10: 0 | BK10: 8 | BL10: 1 | BM10: 0 | BN10: 8 | BO10: 0 | BP10: 8 | BQ10: 1 | BR10: 0 | BS10: 8 | BT10: 0 | BU10: 8 | BV10: 1 | BW10: 0 | BX10: 8 | BY10: 0 | BZ10: 8 | CA10: 1 | CB10: 0 | CC10: 8 | CD10: 0 | CE10: 8 | CF10: 1 | CG10: 0 | CH10: 8 | CI10: 0 | CJ10: 8 | CK10: 1 | CL10: 0 | CM10: 8 | CN10: 0 | CO10: 8 | CP10: 1 | CQ10: 0 | CR10: 8 | CS10: 0 | CT10: 8 | CU10: 1 | CV10: 0 | CW10: 8 | CX10: 0 | CY10: 8 | CZ10: 1 | DA10: 0 | DB10: 8 | DC10: 0 | DD10: 8 | DE10: 1 | DF10: 0 | DG10: 8 | DH10: 0 | DI10: 8 | DJ10: 1 | DK10: 0.1 | DL10: 8 | DM10: 2 | DN10: 8 | DO10: 1 | DP10: 0.1 | DQ10: 8 | DR10: 1 | DS10: 8 | DT10: 1 | DU10: 0.2 | DV10: 8 | DW10: 1 | DX10: 8 | DY10: 1 | DZ10: 0.3 | EA10: 8 | EB10: 0 | EC10: 8 | ED10: 1 | EE10: 0 | EF10: 8 | EG10: 0 | EH10: 8 | EI10: 1 | EJ10: 0 | EK10: 8 | EL10: 0 | EM10: 8 | EN10: 1 | EO10: 0 | EP10: 8 | EQ10: 0 | ER10: 8 | ES10: 1 | ET10: 0.2 | EU10: 8 | EW10: 0 | EX10: 1 | EY10: 0.6 | EZ10: 8 | FA10: 0 | FB10: 8 | FC10: 1 | FD10: 0 | FE10: 8 | FG10: 0 | FH10: 1 | FI10: 0.2 | FJ10: 8 | FL10: 0 | FM10: 1 | FN10: 0.1 | FO10: 8 | FQ10: 0 | FR10: 1 | FS10: 0 | FT10: 8 | FU10: 0 | FV10: 8 | FW10: 1 | FX10: 0.1 | FY10: 8 | GA10: 0 | GB10: 1 | GC10: 0 | GD10: 8 | GF10: 0 | GG10: 1 | GH10: 0.2 | GI10: 8 | GK10: 0 | GL10: 1 | GM10: 0.2 | GN10: 8 | GP10: 0 | GQ10: 1 | GR10: 0.1 | GS10: 8 | GT10: 3 | GU10: 8 | GV10: 1 | GW10: 0.4 | GX10: 8 | GY10: 4 | GZ10: 8 | HA10: 1 | HB10: 1 | HC10: 8 | HD10: 4 | HE10: 8 | HF10: 1 | HG10: 0.5 | HH10: 8 | HI10: 2 | HJ10: 8 | HK10: 1 | HL10: 0.5 | HM10: 8 | HN10: 4 | HO10: 8 | HP10: 1 | HQ10: 1.4 | HR10: 8 | HS10: 4 | HT10: 8 | HU10: 1 | HV10: 3.4 | HW10: 8 | HX10: 3 | HY10: 8 | HZ10: 1 | IA10: 6.4 | IB10: 8 | ID10: 茨城県 | IE10: 水戸 | IF10: 日最深積雪0cm以上日数(日) | IG10: 平年値(日) | II10: 2.6 | IJ10: 3.1 | IK10: 1.1 | IL10: 0.1 | IM10: 0 | IN10: 0 | IO10: 0 | IP10: 0 | IQ10: 0 | IR10: 0 | IS10: 0 | IT10: 0.5 | IU10: 7.4
A11: 2019-05-01 | B11: 0 | C11: 8 | D11: 1 | E11: 0 | F11: 8 | G11: 0 | H11: 8 | I11: 1 | J11: 0 | K11: 8 | L11: 0 | M11: 8 | N11: 1 | O11: 0 | P11: 8 | Q11: 0 | R11: 8 | S11: 1 | T11: 0 | U11: 8 | V11: 0 | W11: 8 | X11: 1 | Y11: 0 | Z11: 8 | AA11: 0 | AB11: 8 | AC11: 1 | AD11: 0 | AE11: 8 | AF11: 0 | AG11: 8 | AH11: 1 | AI11: 0 | AJ11: 8 | AK11: 0 | AL11: 8 | AM11: 1 | AN11: 0 | AO11: 8 | AQ11: 0 | AR11: 1 | AS11: 0 | AT11: 8 | AU11: 0 | AV11: 8 | AW11: 1 | AX11: 0 | AY11: 8 | AZ11: 0 | BA11: 8 | BB11: 1 | BC11: 0 | BD11: 8 | BE11: 0 | BF11: 8 | BG11: 1 | BH11: 0 | BI11: 8 | BJ11: 0 | BK11: 8 | BL11: 1 | BM11: 0 | BN11: 8 | BO11: 0 | BP11: 8 | BQ11: 1 | BR11: 0 | BS11: 8 | BT11: 0 | BU11: 8 | BV11: 1 | BW11: 0 | BX11: 8 | BY11: 0 | BZ11: 8 | CA11: 1 | CB11: 0 | CC11: 8 | CD11: 0 | CE11: 8 | CF11: 1 | CG11: 0 | CH11: 8 | CI11: 0 | CJ11: 8 | CK11: 1 | CL11: 0 | CM11: 8 | CN11: 0 | CO11: 8 | CP11: 1 | CQ11: 0 | CR11: 8 | CS11: 0 | CT11: 8 | CU11: 1 | CV11: 0 | CW11: 8 | CX11: 0 | CY11: 8 | CZ11: 1 | DA11: 0 | DB11: 8 | DC11: 0 | DD11: 8 | DE11: 1 | DF11: 0 | DG11: 8 | DH11: 0 | DI11: 8 | DJ11: 1 | DK11: 0 | DL11: 8 | DM11: 0 | DN11: 8 | DO11: 1 | DP11: 0 | DQ11: 8 | DR11: 0 | DS11: 8 | DT11: 1 | DU11: 0 | DV11: 8 | DW11: 0 | DX11: 8 | DY11: 1 | DZ11: 0 | EA11: 8 | EB11: 0 | EC11: 8 | ED11: 1 | EE11: 0 | EF11: 8 | EG11: 0 | EH11: 8 | EI11: 1 | EJ11: 0 | EK11: 8 | EL11: 0 | EM11: 8 | EN11: 1 | EO11: 0 | EP11: 8 | EQ11: 0 | ER11: 8 | ES11: 1 | ET11: 0 | EU11: 8 | EW11: 0 | EX11: 1 | EY11: 0 | EZ11: 8 | FA11: 0 | FB11: 8 | FC11: 1 | FD11: 0 | FE11: 8 | FG11: 0 | FH11: 1 | FI11: 0 | FJ11: 8 | FL11: 0 | FM11: 1 | FN11: 0 | FO11: 8 | FQ11: 0 | FR11: 1 | FS11: 0 | FT11: 8 | FU11: 0 | FV11: 8 | FW11: 1 | FX11: 0 | FY11: 8 | GA11: 0 | GB11: 1 | GC11: 0 | GD11: 8 | GF11: 0 | GG11: 1 | GH11: 0 | GI11: 8 | GK11: 0 | GL11: 1 | GM11: 0 | GN11: 8 | GP11: 0 | GQ11: 1 | GR11: 0 | GS11: 8 | GT11: 0 | GU11: 8 | GV11: 1 | GW11: 0 | GX11: 8 | GY11: 0 | GZ11: 8 | HA11: 1 | HB11: 0 | HC11: 8 | HD11: 0 | HE11: 8 | HF11: 1 | HG11: 0 | HH11: 8 | HI11: 0 | HJ11: 8 | HK11: 1 | HL11: 0 | HM11: 8 | HN11: 0 | HO11: 8 | HP11: 1 | HQ11: 0 | HR11: 8 | HS11: 0 | HT11: 8 | HU11: 1 | HV11: 0 | HW11: 8 | HX11: 0 | HY11: 8 | HZ11: 1 | IA11: 0 | IB11: 8 | ID11: 栃木県 | IE11: 宇都宮 | IF11: 日最深積雪0cm以上日数(日) | IG11: 平年値(日) | II11: 3.6 | IJ11: 3.8 | IK11: 1.9 | IL11: 0.2 | IM11: 0 | IN11: 0 | IO11: 0 | IP11: 0 | IQ11: 0 | IR11: 0 | IS11: 0 | IT11: 1.1 | IU11: 10.6
A12: 2019-06-01 | B12: 0 | C12: 8 | D12: 1 | E12: 0 | F12: 8 | G12: 0 | H12: 8 | I12: 1 | J12: 0 | K12: 8 | L12: 0 | M12: 8 | N12: 1 | O12: 0 | P12: 8 | Q12: 0 | R12: 8 | S12: 1 | T12: 0 | U12: 8 | V12: 0 | W12: 8 | X12: 1 | Y12: 0 | Z12: 8 | AA12: 0 | AB12: 8 | AC12: 1 | AD12: 0 | AE12: 8 | AF12: 0 | AG12: 8 | AH12: 1 | AI12: 0 | AJ12: 8 | AK12: 0 | AL12: 8 | AM12: 1 | AN12: 0 | AO12: 8 | AQ12: 0 | AR12: 1 | AS12: 0 | AT12: 8 | AU12: 0 | AV12: 8 | AW12: 1 | AX12: 0 | AY12: 8 | AZ12: 0 | BA12: 8 | BB12: 1 | BC12: 0 | BD12: 8 | BE12: 0 | BF12: 8 | BG12: 1 | BH12: 0 | BI12: 8 | BJ12: 0 | BK12: 8 | BL12: 1 | BM12: 0 | BN12: 8 | BO12: 0 | BP12: 8 | BQ12: 1 | BR12: 0 | BS12: 8 | BT12: 0 | BU12: 8 | BV12: 1 | BW12: 0 | BX12: 8 | BY12: 0 | BZ12: 8 | CA12: 1 | CB12: 0 | CC12: 8 | CD12: 0 | CE12: 8 | CF12: 1 | CG12: 0 | CH12: 8 | CI12: 0 | CJ12: 8 | CK12: 1 | CL12: 0 | CM12: 8 | CN12: 0 | CO12: 8 | CP12: 1 | CQ12: 0 | CR12: 8 | CS12: 0 | CT12: 8 | CU12: 1 | CV12: 0 | CW12: 8 | CX12: 0 | CY12: 8 | CZ12: 1 | DA12: 0 | DB12: 8 | DC12: 0 | DD12: 8 | DE12: 1 | DF12: 0 | DG12: 8 | DH12: 0 | DI12: 8 | DJ12: 1 | DK12: 0 | DL12: 8 | DM12: 0 | DN12: 8 | DO12: 1 | DP12: 0 | DQ12: 8 | DR12: 0 | DS12: 8 | DT12: 1 | DU12: 0 | DV12: 8 | DW12: 0 | DX12: 8 | DY12: 1 | DZ12: 0 | EA12: 8 | EB12: 0 | EC12: 8 | ED12: 1 | EE12: 0 | EF12: 8 | EG12: 0 | EH12: 8 | EI12: 1 | EJ12: 0 | EK12: 8 | EL12: 0 | EM12: 8 | EN12: 1 | EO12: 0 | EP12: 8 | EQ12: 0 | ER12: 8 | ES12: 1 | ET12: 0 | EU12: 8 | EW12: 0 | EX12: 1 | EY12: 0 | EZ12: 8 | FA12: 0 | FB12: 8 | FC12: 1 | FD12: 0 | FE12: 8 | FG12: 0 | FH12: 1 | FI12: 0 | FJ12: 8 | FL12: 0 | FM12: 1 | FN12: 0 | FO12: 8 | FQ12: 0 | FR12: 1 | FS12: 0 | FT12: 8 | FU12: 0 | FV12: 8 | FW12: 1 | FX12: 0 | FY12: 8 | GA12: 0 | GB12: 1 | GC12: 0 | GD12: 8 | GF12: 0 | GG12: 1 | GH12: 0 | GI12: 8 | GK12: 0 | GL12: 1 | GM12: 0 | GN12: 8 | GP12: 0 | GQ12: 1 | GR12: 0 | GS12: 8 | GT12: 0 | GU12: 8 | GV12: 1 | GW12: 0 | GX12: 8 | GY12: 0 | GZ12: 8 | HA12: 1 | HB12: 0 | HC12: 8 | HD12: 0 | HE12: 8 | HF12: 1 | HG12: 0 | HH12: 8 | HI12: 0 | HJ12: 8 | HK12: 1 | HL12: 0 | HM12: 8 | HN12: 0 | HO12: 8 | HP12: 1 | HQ12: 0 | HR12: 8 | HS12: 0 | HT12: 8 | HU12: 1 | HV12: 0 | HW12: 8 | HX12: 0 | HY12: 8 | HZ12: 1 | IA12: 0 | IB12: 8 | ID12: 群馬県 | IE12: 前橋 | IF12: 日最深積雪0cm以上日数(日) | IG12: 平年値(日) | II12: 2.9 | IJ12: 3.5 | IK12: 1.7 | IL12: 0.2 | IM12: 0 | IN12: 0 | IO12: 0 | IP12: 0 | IQ12: 0 | IR12: 0 | IS12: 0 | IT12: 1 | IU12: 9.3
A13: 2019-07-01 | B13: 0 | C13: 8 | D13: 1 | E13: 0 | F13: 8 | G13: 0 | H13: 8 | I13: 1 | J13: 0 | K13: 8 | L13: 0 | M13: 8 | N13: 1 | O13: 0 | P13: 8 | Q13: 0 | R13: 8 | S13: 1 | T13: 0 | U13: 8 | V13: 0 | W13: 8 | X13: 1 | Y13: 0 | Z13: 8 | AA13: 0 | AB13: 8 | AC13: 1 | AD13: 0 | AE13: 8 | AF13: 0 | AG13: 8 | AH13: 1 | AI13: 0 | AJ13: 8 | AK13: 0 | AL13: 8 | AM13: 1 | AN13: 0 | AO13: 8 | AQ13: 0 | AR13: 1 | AS13: 0 | AT13: 8 | AU13: 0 | AV13: 8 | AW13: 1 | AX13: 0 | AY13: 8 | AZ13: 0 | BA13: 8 | BB13: 1 | BC13: 0 | BD13: 8 | BE13: 0 | BF13: 8 | BG13: 1 | BH13: 0 | BI13: 8 | BJ13: 0 | BK13: 8 | BL13: 1 | BM13: 0 | BN13: 8 | BO13: 0 | BP13: 8 | BQ13: 1 | BR13: 0 | BS13: 8 | BT13: 0 | BU13: 8 | BV13: 1 | BW13: 0 | BX13: 8 | BY13: 0 | BZ13: 8 | CA13: 1 | CB13: 0 | CC13: 8 | CD13: 0 | CE13: 8 | CF13: 1 | CG13: 0 | CH13: 8 | CI13: 0 | CJ13: 8 | CK13: 1 | CL13: 0 | CM13: 8 | CN13: 0 | CO13: 8 | CP13: 1 | CQ13: 0 | CR13: 8 | CS13: 0 | CT13: 8 | CU13: 1 | CV13: 0 | CW13: 8 | CX13: 0 | CY13: 8 | CZ13: 1 | DA13: 0 | DB13: 8 | DC13: 0 | DD13: 8 | DE13: 1 | DF13: 0 | DG13: 8 | DH13: 0 | DI13: 8 | DJ13: 1 | DK13: 0 | DL13: 8 | DM13: 0 | DN13: 8 | DO13: 1 | DP13: 0 | DQ13: 8 | DR13: 0 | DS13: 8 | DT13: 1 | DU13: 0 | DV13: 8 | DW13: 0 | DX13: 8 | DY13: 1 | DZ13: 0 | EA13: 8 | EB13: 0 | EC13: 8 | ED13: 1 | EE13: 0 | EF13: 8 | EG13: 0 | EH13: 8 | EI13: 1 | EJ13: 0 | EK13: 8 | EL13: 0 | EM13: 8 | EN13: 1 | EO13: 0 | EP13: 8 | EQ13: 0 | ER13: 8 | ES13: 1 | ET13: 0 | EU13: 8 | EW13: 0 | EX13: 1 | EY13: 0 | EZ13: 8 | FA13: 0 | FB13: 8 | FC13: 1 | FD13: 0 | FE13: 8 | FG13: 0 | FH13: 1 | FI13: 0 | FJ13: 8 | FL13: 0 | FM13: 1 | FN13: 0 | FO13: 8 | FQ13: 0 | FR13: 1 | FS13: 0 | FT13: 8 | FU13: 0 | FV13: 8 | FW13: 1 | FX13: 0 | FY13: 8 | GA13: 0 | GB13: 1 | GC13: 0 | GD13: 8 | GF13: 0 | GG13: 1 | GH13: 0 | GI13: 8 | GK13: 0 | GL13: 1 | GM13: 0 | GN13: 8 | GP13: 0 | GQ13: 1 | GR13: 0 | GS13: 8 | GT13: 0 | GU13: 8 | GV13: 1 | GW13: 0 | GX13: 8 | GY13: 0 | GZ13: 8 | HA13: 1 | HB13: 0 | HC13: 8 | HD13: 0 | HE13: 8 | HF13: 1 | HG13: 0 | HH13: 8 | HI13: 0 | HJ13: 8 | HK13: 1 | HL13: 0 | HM13: 8 | HN13: 0 | HO13: 8 | HP13: 1 | HQ13: 0 | HR13: 8 | HS13: 0 | HT13: 8 | HU13: 1 | HV13: 0 | HW13: 8 | HX13: 0 | HY13: 8 | HZ13: 1 | IA13: 0 | IB13: 8 | ID13: 埼玉県 | IE13: 熊谷 | IF13: 日最深積雪0cm以上日数(日) | IG13: 平年値(日) | II13: 2.5 | IJ13: 2.8 | IK13: 1.2 | IL13: 0.2 | IM13: 0 | IN13: 0 | IO13: 0 | IP13: 0 | IQ13: 0 | IR13: 0 | IS13: 0 | IT13: 0.5 | IU13: 7.2
A14: 2019-08-01 | B14: 0 | C14: 8 | D14: 1 | E14: 0 | F14: 8 | G14: 0 | H14: 8 | I14: 1 | J14: 0 | K14: 8 | L14: 0 | M14: 8 | N14: 1 | O14: 0 | P14: 8 | Q14: 0 | R14: 8 | S14: 1 | T14: 0 | U14: 8 | V14: 0 | W14: 8 | X14: 1 | Y14: 0 | Z14: 8 | AA14: 0 | AB14: 8 | AC14: 1 | AD14: 0 | AE14: 8 | AF14: 0 | AG14: 8 | AH14: 1 | AI14: 0 | AJ14: 8 | AK14: 0 | AL14: 8 | AM14: 1 | AN14: 0 | AO14: 8 | AQ14: 0 | AR14: 1 | AS14: 0 | AT14: 8 | AU14: 0 | AV14: 8 | AW14: 1 | AX14: 0 | AY14: 8 | AZ14: 0 | BA14: 8 | BB14: 1 | BC14: 0 | BD14: 8 | BE14: 0 | BF14: 8 | BG14: 1 | BH14: 0 | BI14: 8 | BJ14: 0 | BK14: 8 | BL14: 1 | BM14: 0 | BN14: 8 | BO14: 0 | BP14: 8 | BQ14: 1 | BR14: 0 | BS14: 8 | BT14: 0 | BU14: 8 | BV14: 1 | BW14: 0 | BX14: 8 | BY14: 0 | BZ14: 8 | CA14: 1 | CB14: 0 | CC14: 8 | CD14: 0 | CE14: 8 | CF14: 1 | CG14: 0 | CH14: 8 | CI14: 0 | CJ14: 8 | CK14: 1 | CL14: 0 | CM14: 8 | CN14: 0 | CO14: 8 | CP14: 1 | CQ14: 0 | CR14: 8 | CS14: 0 | CT14: 8 | CU14: 1 | CV14: 0 | CW14: 8 | CX14: 0 | CY14: 8 | CZ14: 1 | DA14: 0 | DB14: 8 | DC14: 0 | DD14: 8 | DE14: 1 | DF14: 0 | DG14: 8 | DH14: 0 | DI14: 8 | DJ14: 1 | DK14: 0 | DL14: 8 | DM14: 0 | DN14: 8 | DO14: 1 | DP14: 0 | DQ14: 8 | DR14: 0 | DS14: 8 | DT14: 1 | DU14: 0 | DV14: 8 | DW14: 0 | DX14: 8 | DY14: 1 | DZ14: 0 | EA14: 8 | EB14: 0 | EC14: 8 | ED14: 1 | EE14: 0 | EF14: 8 | EG14: 0 | EH14: 8 | EI14: 1 | EJ14: 0 | EK14: 8 | EL14: 0 | EM14: 8 | EN14: 1 | EO14: 0 | EP14: 8 | EQ14: 0 | ER14: 8 | ES14: 1 | ET14: 0 | EU14: 8 | EW14: 0 | EX14: 1 | EY14: 0 | EZ14: 8 | FA14: 0 | FB14: 8 | FC14: 1 | FD14: 0 | FE14: 8 | FG14: 0 | FH14: 1 | FI14: 0 | FJ14: 8 | FL14: 0 | FM14: 1 | FN14: 0 | FO14: 8 | FQ14: 0 | FR14: 1 | FS14: 0 | FT14: 8 | FU14: 0 | FV14: 8 | FW14: 1 | FX14: 0 | FY14: 8 | GA14: 0 | GB14: 1 | GC14: 0 | GD14: 8 | GF14: 0 | GG14: 1 | GH14: 0 | GI14: 8 | GK14: 0 | GL14: 1 | GM14: 0 | GN14: 8 | GP14: 0 | GQ14: 1 | GR14: 0 | GS14: 8 | GT14: 0 | GU14: 8 | GV14: 1 | GW14: 0 | GX14: 8 | GY14: 0 | GZ14: 8 | HA14: 1 | HB14: 0 | HC14: 8 | HD14: 0 | HE14: 8 | HF14: 1 | HG14: 0 | HH14: 8 | HI14: 0 | HJ14: 8 | HK14: 1 | HL14: 0 | HM14: 8 | HN14: 0 | HO14: 8 | HP14: 1 | HQ14: 0 | HR14: 8 | HS14: 0 | HT14: 8 | HU14: 1 | HV14: 0 | HW14: 8 | HX14: 0 | HY14: 8 | HZ14: 1 | IA14: 0 | IB14: 8 | ID14: 千葉県 | IE14: 千葉 | IF14: 日最深積雪0cm以上日数(日) | IG14: 平年値(日) | II14: 0.9 | IJ14: 1.2 | IK14: 0.3 | IL14: 0 | IM14: 0 | IN14: 0 | IO14: 0 | IP14: 0 | IQ14: 0 | IR14: 0 | IS14: 0 | IT14: 0.1 | IU14: 2.5
A15: 2019-09-01 | B15: 0 | C15: 8 | D15: 1 | E15: 0 | F15: 8 | G15: 0 | H15: 8 | I15: 1 | J15: 0 | K15: 8 | L15: 0 | M15: 8 | N15: 1 | O15: 0 | P15: 8 | Q15: 0 | R15: 8 | S15: 1 | T15: 0 | U15: 8 | V15: 0 | W15: 8 | X15: 1 | Y15: 0 | Z15: 8 | AA15: 0 | AB15: 8 | AC15: 1 | AD15: 0 | AE15: 8 | AF15: 0 | AG15: 8 | AH15: 1 | AI15: 0 | AJ15: 8 | AK15: 0 | AL15: 8 | AM15: 1 | AN15: 0 | AO15: 8 | AQ15: 0 | AR15: 1 | AS15: 0 | AT15: 8 | AU15: 0 | AV15: 8 | AW15: 1 | AX15: 0 | AY15: 8 | AZ15: 0 | BA15: 8 | BB15: 1 | BC15: 0 | BD15: 8 | BE15: 0 | BF15: 8 | BG15: 1 | BH15: 0 | BI15: 8 | BJ15: 0 | BK15: 8 | BL15: 1 | BM15: 0 | BN15: 8 | BO15: 0 | BP15: 8 | BQ15: 1 | BR15: 0 | BS15: 8 | BT15: 0 | BU15: 8 | BV15: 1 | BW15: 0 | BX15: 8 | BY15: 0 | BZ15: 8 | CA15: 1 | CB15: 0 | CC15: 8 | CD15: 0 | CE15: 8 | CF15: 1 | CG15: 0 | CH15: 8 | CI15: 0 | CJ15: 8 | CK15: 1 | CL15: 0 | CM15: 8 | CN15: 0 | CO15: 8 | CP15: 1 | CQ15: 0 | CR15: 8 | CS15: 0 | CT15: 8 | CU15: 1 | CV15: 0 | CW15: 8 | CX15: 0 | CY15: 8 | CZ15: 1 | DA15: 0 | DB15: 8 | DC15: 0 | DD15: 8 | DE15: 1 | DF15: 0 | DG15: 8 | DH15: 0 | DI15: 8 | DJ15: 1 | DK15: 0 | DL15: 8 | DM15: 0 | DN15: 8 | DO15: 1 | DP15: 0 | DQ15: 8 | DR15: 0 | DS15: 8 | DT15: 1 | DU15: 0 | DV15: 8 | DW15: 0 | DX15: 8 | DY15: 1 | DZ15: 0 | EA15: 8 | EB15: 0 | EC15: 8 | ED15: 1 | EE15: 0 | EF15: 8 | EG15: 0 | EH15: 8 | EI15: 1 | EJ15: 0 | EK15: 8 | EL15: 0 | EM15: 8 | EN15: 1 | EO15: 0 | EP15: 8 | EQ15: 0 | ER15: 8 | ES15: 1 | ET15: 0 | EU15: 8 | EW15: 0 | EX15: 1 | EY15: 0 | EZ15: 8 | FA15: 0 | FB15: 8 | FC15: 1 | FD15: 0 | FE15: 8 | FG15: 0 | FH15: 1 | FI15: 0 | FJ15: 8 | FL15: 0 | FM15: 1 | FN15: 0 | FO15: 8 | FQ15: 0 | FR15: 1 | FS15: 0 | FT15: 8 | FU15: 0 | FV15: 8 | FW15: 1 | FX15: 0 | FY15: 8 | GA15: 0 | GB15: 1 | GC15: 0 | GD15: 8 | GF15: 0 | GG15: 1 | GH15: 0 | GI15: 8 | GK15: 0 | GL15: 1 | GM15: 0 | GN15: 8 | GP15: 0 | GQ15: 1 | GR15: 0 | GS15: 8 | GT15: 0 | GU15: 8 | GV15: 1 | GW15: 0 | GX15: 8 | GY15: 0 | GZ15: 8 | HA15: 1 | HB15: 0 | HC15: 8 | HD15: 0 | HE15: 8 | HF15: 1 | HG15: 0 | HH15: 8 | HI15: 0 | HJ15: 8 | HK15: 1 | HL15: 0 | HM15: 8 | HN15: 0 | HO15: 8 | HP15: 1 | HQ15: 0 | HR15: 8 | HS15: 0 | HT15: 8 | HU15: 1 | HV15: 0 | HW15: 8 | HX15: 0 | HY15: 8 | HZ15: 1 | IA15: 0 | IB15: 8 | ID15: 東京都 | IE15: 東京 | IF15: 日最深積雪0cm以上日数(日) | IG15: 平年値(日) | II15: 1.6 | IJ15: 2 | IK15: 0.8 | IL15: 0.1 | IM15: 0 | IN15: 0 | IO15: 0 | IP15: 0 | IQ15: 0 | IR15: 0 | IS15: 0 | IT15: 0.4 | IU15: 4.9
A16: 2019-10-01 | B16: 0 | C16: 8 | D16: 1 | E16: 0 | F16: 8 | G16: 0 | H16: 8 | I16: 1 | J16: 0 | K16: 8 | L16: 0 | M16: 8 | N16: 1 | O16: 0 | P16: 8 | Q16: 0 | R16: 8 | S16: 1 | T16: 0 | U16: 8 | V16: 0 | W16: 8 | X16: 1 | Y16: 0 | Z16: 8 | AA16: 0 | AB16: 8 | AC16: 1 | AD16: 0 | AE16: 8 | AF16: 0 | AG16: 8 | AH16: 1 | AI16: 0 | AJ16: 8 | AK16: 0 | AL16: 8 | AM16: 1 | AN16: 0 | AO16: 8 | AQ16: 0 | AR16: 1 | AS16: 0 | AT16: 8 | AU16: 0 | AV16: 8 | AW16: 1 | AX16: 0 | AY16: 8 | AZ16: 0 | BA16: 8 | BB16: 1 | BC16: 0 | BD16: 8 | BE16: 0 | BF16: 8 | BG16: 1 | BH16: 0 | BI16: 8 | BJ16: 0 | BK16: 8 | BL16: 1 | BM16: 0 | BN16: 8 | BO16: 0 | BP16: 8 | BQ16: 1 | BR16: 0 | BS16: 8 | BT16: 0 | BU16: 8 | BV16: 1 | BW16: 0 | BX16: 8 | BY16: 0 | BZ16: 8 | CA16: 1 | CB16: 0 | CC16: 8 | CD16: 0 | CE16: 8 | CF16: 1 | CG16: 0 | CH16: 8 | CI16: 0 | CJ16: 8 | CK16: 1 | CL16: 0 | CM16: 8 | CN16: 0 | CO16: 8 | CP16: 1 | CQ16: 0 | CR16: 8 | CS16: 0 | CT16: 8 | CU16: 1 | CV16: 0 | CW16: 8 | CX16: 0 | CY16: 8 | CZ16: 1 | DA16: 0 | DB16: 8 | DC16: 0 | DD16: 8 | DE16: 1 | DF16: 0 | DG16: 8 | DH16: 0 | DI16: 8 | DJ16: 1 | DK16: 0 | DL16: 8 | DM16: 0 | DN16: 8 | DO16: 1 | DP16: 0 | DQ16: 8 | DR16: 0 | DS16: 8 | DT16: 1 | DU16: 0 | DV16: 8 | DW16: 0 | DX16: 8 | DY16: 1 | DZ16: 0 | EA16: 8 | EB16: 0 | EC16: 8 | ED16: 1 | EE16: 0 | EF16: 8 | EG16: 0 | EH16: 8 | EI16: 1 | EJ16: 0 | EK16: 8 | EL16: 0 | EM16: 8 | EN16: 1 | EO16: 0 | EP16: 8 | EQ16: 0 | ER16: 8 | ES16: 1 | ET16: 0 | EU16: 8 | EW16: 0 | EX16: 1 | EY16: 0 | EZ16: 8 | FA16: 0 | FB16: 8 | FC16: 1 | FD16: 0 | FE16: 8 | FG16: 0 | FH16: 1 | FI16: 0 | FJ16: 8 | FL16: 0 | FM16: 1 | FN16: 0 | FO16: 8 | FQ16: 0 | FR16: 1 | FS16: 0 | FT16: 8 | FU16: 0 | FV16: 8 | FW16: 1 | FX16: 0 | FY16: 8 | GA16: 0 | GB16: 1 | GC16: 0 | GD16: 8 | GF16: 0 | GG16: 1 | GH16: 0 | GI16: 8 | GK16: 0 | GL16: 1 | GM16: 0 | GN16: 8 | GP16: 0 | GQ16: 1 | GR16: 0 | GS16: 8 | GT16: 0 | GU16: 8 | GV16: 1 | GW16: 0 | GX16: 8 | GY16: 0 | GZ16: 8 | HA16: 1 | HB16: 0 | HC16: 8 | HD16: 0 | HE16: 8 | HF16: 1 | HG16: 0 | HH16: 8 | HI16: 0 | HJ16: 8 | HK16: 1 | HL16: 0 | HM16: 8 | HN16: 0 | HO16: 8 | HP16: 1 | HQ16: 0 | HR16: 8 | HS16: 0 | HT16: 8 | HU16: 1 | HV16: 0 | HW16: 8 | HX16: 0 | HY16: 8 | HZ16: 1 | IA16: 0.6 | IB16: 8 | ID16: 神奈川県 | IE16: 横浜 | IF16: 日最深積雪0cm以上日数(日) | IG16: 平年値(日) | II16: 1.6 | IJ16: 2.3 | IK16: 0.7 | IL16: 0 | IM16: 0 | IN16: 0 | IO16: 0 | IP16: 0 | IQ16: 0 | IR16: 0 | IS16: 0 | IT16: 0.3 | IU16: 4.9
A17: 2019-11-01 | B17: 0 | C17: 8 | D17: 1 | E17: 0 | F17: 8 | G17: 0 | H17: 8 | I17: 1 | J17: 0 | K17: 8 | L17: 0 | M17: 8 | N17: 1 | O17: 0 | P17: 8 | Q17: 0 | R17: 8 | S17: 1 | T17: 0 | U17: 8 | V17: 0 | W17: 8 | X17: 1 | Y17: 0 | Z17: 8 | AA17: 0 | AB17: 8 | AC17: 1 | AD17: 0.1 | AE17: 8 | AF17: 0 | AG17: 8 | AH17: 1 | AI17: 0 | AJ17: 8 | AK17: 0 | AL17: 8 | AM17: 1 | AN17: 0 | AO17: 8 | AQ17: 0 | AR17: 1 | AS17: 0 | AT17: 8 | AU17: 0 | AV17: 8 | AW17: 1 | AX17: 0.2 | AY17: 8 | AZ17: 0 | BA17: 8 | BB17: 1 | BC17: 0.1 | BD17: 8 | BE17: 0 | BF17: 8 | BG17: 1 | BH17: 0 | BI17: 8 | BJ17: 0 | BK17: 8 | BL17: 1 | BM17: 0 | BN17: 8 | BO17: 0 | BP17: 8 | BQ17: 1 | BR17: 0 | BS17: 8 | BT17: 0 | BU17: 8 | BV17: 1 | BW17: 0 | BX17: 8 | BY17: 0 | BZ17: 8 | CA17: 1 | CB17: 0 | CC17: 8 | CD17: 0 | CE17: 8 | CF17: 1 | CG17: 0 | CH17: 8 | CI17: 0 | CJ17: 8 | CK17: 1 | CL17: 0 | CM17: 8 | CN17: 0 | CO17: 8 | CP17: 1 | CQ17: 0 | CR17: 8 | CS17: 0 | CT17: 8 | CU17: 1 | CV17: 0 | CW17: 8 | CX17: 0 | CY17: 8 | CZ17: 1 | DA17: 0 | DB17: 8 | DC17: 0 | DD17: 8 | DE17: 1 | DF17: 0 | DG17: 8 | DH17: 0 | DI17: 8 | DJ17: 1 | DK17: 0 | DL17: 8 | DM17: 0 | DN17: 8 | DO17: 1 | DP17: 0.3 | DQ17: 8 | DR17: 0 | DS17: 8 | DT17: 1 | DU17: 0.6 | DV17: 8 | DW17: 0 | DX17: 8 | DY17: 1 | DZ17: 0.5 | EA17: 8 | EB17: 0 | EC17: 8 | ED17: 1 | EE17: 0 | EF17: 8 | EG17: 0 | EH17: 8 | EI17: 1 | EJ17: 0 | EK17: 8 | EL17: 0 | EM17: 8 | EN17: 1 | EO17: 0 | EP17: 8 | EQ17: 1 | ER17: 8 | ES17: 1 | ET17: 0.7 | EU17: 8 | EW17: 0 | EX17: 1 | EY17: 0.9 | EZ17: 8 | FA17: 0 | FB17: 8 | FC17: 1 | FD17: 0 | FE17: 8 | FG17: 0 | FH17: 1 | FI17: 0 | FJ17: 8 | FL17: 0 | FM17: 1 | FN17: 0 | FO17: 8 | FQ17: 0 | FR17: 1 | FS17: 0 | FT17: 8 | FU17: 0 | FV17: 8 | FW17: 1 | FX17: 0 | FY17: 8 | GA17: 0 | GB17: 1 | GC17: 0 | GD17: 8 | GF17: 0 | GG17: 1 | GH17: 0 | GI17: 8 | GK17: 0 | GL17: 1 | GM17: 0 | GN17: 8 | GP17: 0 | GQ17: 1 | GR17: 0 | GS17: 8 | GT17: 0 | GU17: 8 | GV17: 1 | GW17: 0.4 | GX17: 8 | GY17: 1 | GZ17: 8 | HA17: 1 | HB17: 2.4 | HC17: 8 | HD17: 0 | HE17: 8 | HF17: 1 | HG17: 0.4 | HH17: 8 | HI17: 3 | HJ17: 8 | HK17: 1 | HL17: 3 | HM17: 8 | HN17: 0 | HO17: 8 | HP17: 1 | HQ17: 2.8 | HR17: 8 | HS17: 5 | HT17: 8 | HU17: 1 | HV17: 6.6 | HW17: 8 | HX17: 14 | HY17: 8 | HZ17: 1 | IA17: 8.7 | IB17: 8 | ID17: 新潟県 | IE17: 新潟 | IF17: 日最深積雪0cm以上日数(日) | IG17: 平年値(日) | II17: 19.8 | IJ17: 18.4 | IK17: 6.5 | IL17: 0.2 | IM17: 0 | IN17: 0 | IO17: 0 | IP17: 0 | IQ17: 0 | IR17: 0 | IS17: 0.7 | IT17: 8.6 | IU17: 54.2
A18: 2019-12-01 | B18: 0 | C18: 8 | D18: 1 | E18: 0 | F18: 8 | G18: 0 | H18: 8 | I18: 1 | J18: 0.1 | K18: 8 | L18: 0 | M18: 8 | N18: 1 | O18: 0 | P18: 8 | Q18: 0 | R18: 8 | S18: 1 | T18: 0.1 | U18: 8 | V18: 0 | W18: 8 | X18: 1 | Y18: 0.3 | Z18: 8 | AA18: 0 | AB18: 8 | AC18: 1 | AD18: 0.8 | AE18: 8 | AF18: 0 | AG18: 8 | AH18: 1 | AI18: 0.6 | AJ18: 8 | AK18: 0 | AL18: 8 | AM18: 1 | AN18: 0.2 | AO18: 8 | AQ18: 0 | AR18: 1 | AS18: 1.2 | AT18: 8 | AU18: 1 | AV18: 8 | AW18: 1 | AX18: 4.3 | AY18: 8 | AZ18: 1 | BA18: 8 | BB18: 1 | BC18: 6.7 | BD18: 8 | BE18: 0 | BF18: 8 | BG18: 1 | BH18: 1.2 | BI18: 8 | BJ18: 0 | BK18: 8 | BL18: 1 | BM18: 0.1 | BN18: 8 | BO18: 0 | BP18: 8 | BQ18: 1 | BR18: 0.2 | BS18: 8 | BT18: 0 | BU18: 8 | BV18: 1 | BW18: 0.1 | BX18: 8 | BY18: 0 | BZ18: 8 | CA18: 1 | CB18: 0.2 | CC18: 8 | CD18: 0 | CE18: 8 | CF18: 1 | CG18: 0.2 | CH18: 8 | CI18: 0 | CJ18: 8 | CK18: 1 | CL18: 0.4 | CM18: 8 | CN18: 0 | CO18: 8 | CP18: 1 | CQ18: 1.2 | CR18: 8 | CS18: 0 | CT18: 8 | CU18: 1 | CV18: 0.1 | CW18: 8 | CX18: 0 | CY18: 8 | CZ18: 1 | DA18: 0.2 | DB18: 8 | DC18: 0 | DD18: 8 | DE18: 1 | DF18: 0.7 | DG18: 8 | DH18: 0 | DI18: 8 | DJ18: 1 | DK18: 3.5 | DL18: 8 | DM18: 0 | DN18: 8 | DO18: 1 | DP18: 7.6 | DQ18: 8 | DR18: 1 | DS18: 8 | DT18: 1 | DU18: 7.1 | DV18: 8 | DW18: 1 | DX18: 8 | DY18: 1 | DZ18: 8.6 | EA18: 8 | EB18: 0 | EC18: 8 | ED18: 1 | EE18: 0.4 | EF18: 8 | EG18: 0 | EH18: 8 | EI18: 1 | EJ18: 0.9 | EK18: 8 | EL18: 0 | EM18: 8 | EN18: 1 | EO18: 2.4 | EP18: 8 | EQ18: 0 | ER18: 8 | ES18: 1 | ET18: 8.6 | EU18: 8 | EW18: 0 | EX18: 1 | EY18: 10.8 | EZ18: 8 | FA18: 0 | FB18: 8 | FC18: 1 | FD18: 0 | FE18: 8 | FG18: 0 | FH18: 1 | FI18: 1 | FJ18: 8 | FL18: 0 | FM18: 1 | FN18: 0.6 | FO18: 8 | FQ18: 0 | FR18: 1 | FS18: 0.3 | FT18: 8 | FU18: 0 | FV18: 8 | FW18: 1 | FX18: 0.4 | FY18: 8 | GA18: 0 | GB18: 1 | GC18: 0.1 | GD18: 8 | GF18: 0 | GG18: 1 | GH18: 0.5 | GI18: 8 | GK18: 0 | GL18: 1 | GM18: 1.1 | GN18: 8 | GP18: 0 | GQ18: 1 | GR18: 0.5 | GS18: 8 | GT18: 3 | GU18: 8 | GV18: 1 | GW18: 6.8 | GX18: 8 | GY18: 6 | GZ18: 8 | HA18: 1 | HB18: 14.8 | HC18: 8 | HD18: 0 | HE18: 8 | HF18: 1 | HG18: 5.2 | HH18: 8 | HI18: 9 | HJ18: 8 | HK18: 1 | HL18: 16.6 | HM18: 8 | HN18: 18 | HO18: 8 | HP18: 1 | HQ18: 16.3 | HR18: 8 | HS18: 26 | HT18: 8 | HU18: 1 | HV18: 24.3 | HW18: 8 | HX18: 29 | HY18: 8 | HZ18: 1 | IA18: 27.9 | IB18: 8 | ID18: 富山県 | IE18: 富山 | IF18: 日最深積雪0cm以上日数(日) | IG18: 平年値(日) | II18: 21.7 | IJ18: 19.4 | IK18: 7.9 | IL18: 0.3 | IM18: 0 | IN18: 0 | IO18: 0 | IP18: 0 | IQ18: 0 | IR18: 0 | IS18: 0.5 | IT18: 8.6 | IU18: 58.4
A19: 合計 | B19: =SUM(B7:B18) -> 0 | C19: =SUM(C7:C18) -> 96 | D19: 12 | E19: 0 | F19: 96 | G19: 0 | H19: 96 | I19: 12 | J19: 1.3 | K19: 96 | L19: 0 | M19: 96 | N19: 12 | O19: 0.1 | P19: 96 | Q19: 0 | R19: 96 | S19: 12 | T19: 1.1 | U19: 96 | V19: 0 | W19: 96 | X19: 12 | Y19: 2.2 | Z19: 96 | AA19: 2 | AB19: 96 | AC19: 12 | AD19: 3.8 | AE19: 96 | AF19: 0 | AG19: 96 | AH19: 12 | AI19: 4 | AJ19: 96 | AK19: 0 | AL19: 96 | AM19: 12 | AN19: 2.5 | AO19: 96 | AP19: 0 | AQ19: 0 | AR19: 12 | AS19: 7 | AT19: 96 | AU19: 5 | AV19: 96 | AW19: 12 | AX19: 27 | AY19: 96 | AZ19: 4 | BA19: 96 | BB19: 12 | BC19: 39.7 | BD19: 96 | BE19: 1 | BF19: 96 | BG19: 12 | BH19: 6.9 | BI19: 96 | BJ19: 1 | BK19: 96 | BL19: 12 | BM19: 2.5 | BN19: 96 | BO19: =SUM(BO7:BO18) -> 0 | BP19: 96 | BQ19: 12 | BR19: 2.3 | BS19: 96 | BT19: 1 | BU19: 96 | BV19: 12 | BW19: 2.3 | BX19: 96 | BY19: 0 | BZ19: 96 | CA19: 12 | CB19: 0.9 | CC19: 96 | CD19: 0 | CE19: 96 | CF19: 12 | CG19: 2.8 | CH19: 96 | CI19: 0 | CJ19: 96 | CK19: 12 | CL19: 2.6 | CM19: 96 | CN19: 2 | CO19: 96 | CP19: 12 | CQ19: 9.2 | CR19: 96 | CS19: 0 | CT19: 96 | CU19: 12 | CV19: 1.5 | CW19: 96 | CX19: 0 | CY19: 96 | CZ19: 12 | DA19: 2.2 | DB19: 96 | DC19: 1 | DD19: 96 | DE19: 12 | DF19: 4.8 | DG19: 96 | DH19: 3 | DI19: 96 | DJ19: 12 | DK19: 25.2 | DL19: 96 | DM19: 16 | DN19: 96 | DO19: 12 | DP19: 51.3 | DQ19: 96 | DR19: 21 | DS19: 96 | DT19: 12 | DU19: 49.7 | DV19: 96 | DW19: 30 | DX19: 96 | DY19: 12 | DZ19: 58.4 | EA19: =SUM(EA7:EA18) -> 96 | EB19: 2 | EC19: 96 | ED19: 12 | EE19: 4.5 | EF19: 96 | EG19: 0 | EH19: 96 | EI19: 12 | EJ19: 6.2 | EK19: 96 | EL19: 0 | EM19: 96 | EN19: 12 | EO19: 13.1 | EP19: 96 | EQ19: 28 | ER19: 96 | ES19: 12 | ET19: 54.2 | EU19: 96 | EV19: 23 | EW19: 8 | EX19: 12 | EY19: 63 | EZ19: 96 | FA19: 0 | FB19: 96 | FC19: 12 | FD19: 0.2 | FE19: 96 | FF19: 2 | FG19: 8 | FH19: 12 | FI19: 9.3 | FJ19: 96 | FK19: 0 | FL19: 8 | FM19: 12 | FN19: 9.2 | FO19: 96 | FP19: 0 | FQ19: 8 | FR19: 12 | FS19: 4.9 | FT19: 96 | FU19: 3 | FV19: 96 | FW19: 12 | FX19: 4.9 | FY19: 96 | FZ19: 0 | GA19: 0 | GB19: 12 | GC19: 2.5 | GD19: 96 | GE19: 0 | GF19: 8 | GG19: 12 | GH19: 7.2 | GI19: 96 | GJ19: 1 | GK19: 8 | GL19: 12 | GM19: =SUM(GM7:GM18) -> 10.6 | GN19: 96 | GO19: 1 | GP19: 8 | GQ19: 12 | GR19: 7.4 | GS19: 96 | GT19: 34 | GU19: 96 | GV19: 12 | GW19: 45.3 | GX19: 96 | GY19: 69 | GZ19: 96 | HA19: 12 | HB19: 86.4 | HC19: 96 | HD19: 12 | HE19: 96 | HF19: 12 | HG19: 35.7 | HH19: 96 | HI19: 65 | HJ19: 96 | HK19: 12 | HL19: 85.3 | HM19: 96 | HN19: 65 | HO19: 96 | HP19: 12 | HQ19: 87.9 | HR19: 96 | HS19: 119 | HT19: 96 | HU19: 12 | HV19: 118.2 | HW19: 96 | HX19: 131 | HY19: 96 | HZ19: 12 | IA19: 132.4 | IB19: 96 | ID19: 石川県 | IE19: 金沢 | IF19: 日最深積雪0cm以上日数(日) | IG19: 平年値(日) | II19: 18.7 | IJ19: 16.9 | IK19: 6.2 | IL19: 0.2 | IM19: 0 | IN19: 0 | IO19: 0 | IP19: 0 | IQ19: 0 | IR19: 0 | IS19: 0.6 | IT19: 7.1 | IU19: 49.7
ID20: 福井県 | IE20: 福井 | IF20: 日最深積雪0cm以上日数(日) | IG20: 平年値(日) | II20: 19.9 | IJ20: 17.5 | IK20: 5.9 | IL20: 0.1 | IM20: 0 | IN20: 0 | IO20: 0 | IP20: 0 | IQ20: 0 | IR20: 0 | IS20: 0.3 | IT20: 7.6 | IU20: 51.3
ID21: 山梨県 | IE21: 甲府 | IF21: 日最深積雪0cm以上日数(日) | IG21: 平年値(日) | II21: 4.5 | IJ21: 3.1 | IK21: 0.9 | IL21: 0.1 | IM21: 0 | IN21: 0 | IO21: 0 | IP21: 0 | IQ21: 0 | IR21: 0 | IS21: 0 | IT21: 0.6 | IU21: 9.2
ID22: 長野県 | IE22: 長野 | IF22: 日最深積雪0cm以上日数(日) | IG22: 平年値(日) | II22: 22.9 | IJ22: 19.6 | IK22: 8.2 | IL22: 0.6 | IM22: 0 | IN22: 0 | IO22: 0 | IP22: 0 | IQ22: 0 | IR22: 0 | IS22: 0.9 | IT22: 10.8 | IU22: 63
ID23: 岐阜県 | IE23: 岐阜 | IF23: 日最深積雪0cm以上日数(日) | IG23: 平年値(日) | II23: 5 | IJ23: 4.8 | IK23: 0.9 | IL23: 0 | IM23: 0 | IN23: 0 | IO23: 0 | IP23: 0 | IQ23: 0 | IR23: 0 | IS23: 0 | IT23: 2.4 | IU23: 13.1
ID24: 静岡県 | IE24: 静岡 | IF24: 日最深積雪0cm以上日数(日) | IG24: 平年値(日) | II24: 0 | IJ24: 0.2 | IK24: 0 | IL24: 0 | IM24: 0 | IN24: 0 | IO24: 0 | IP24: 0 | IQ24: 0 | IR24: 0 | IS24: 0 | IT24: 0 | IU24: 0.2
ID25: 愛知県 | IE25: 名古屋 | IF25: 日最深積雪0cm以上日数(日) | IG25: 平年値(日) | II25: 2.1 | IJ25: 2.8 | IK25: 0.4 | IL25: 0 | IM25: 0 | IN25: 0 | IO25: 0 | IP25: 0 | IQ25: 0 | IR25: 0 | IS25: 0 | IT25: 0.9 | IU25: 6.2
ID26: 三重県 | IE26: 津 | IF26: 日最深積雪0cm以上日数(日) | IG26: 平年値(日) | II26: 1.5 | IJ26: 2.2 | IK26: 0.4 | IL26: 0 | IM26: 0 | IN26: 0 | IO26: 0 | IP26: 0 | IQ26: 0 | IR26: 0 | IS26: 0 | IT26: 0.4 | IU26: 4.5
ID27: 滋賀県 | IE27: 彦根 | IF27: 日最深積雪0cm以上日数(日) | IG27: 平年値(日) | II27: 10.1 | IJ27: 9.2 | IK27: 2.3 | IL27: 0.1 | IM27: 0 | IN27: 0 | IO27: 0 | IP27: 0 | IQ27: 0 | IR27: 0 | IS27: 0 | IT27: 3.5 | IU27: 25.2
ID28: 京都府 | IE28: 京都 | IF28: 日最深積雪0cm以上日数(日) | IG28: 平年値(日) | II28: 3.1 | IJ28: 3.9 | IK28: 1 | IL28: 0 | IM28: 0 | IN28: 0 | IO28: 0 | IP28: 0 | IQ28: 0 | IR28: 0 | IS28: 0 | IT28: 1.2 | IU28: 9.2
ID29: 大阪府 | IE29: 大阪 | IF29: 日最深積雪0cm以上日数(日) | IG29: 平年値(日) | II29: 0.3 | IJ29: 0.9 | IK29: 0.2 | IL29: 0 | IM29: 0 | IN29: 0 | IO29: 0 | IP29: 0 | IQ29: 0 | IR29: 0 | IS29: 0 | IT29: 0.1 | IU29: 1.5
ID30: 兵庫県 | IE30: 神戸 | IF30: 日最深積雪0cm以上日数(日) | IG30: 平年値(日) | II30: 0.5 | IJ30: 1.2 | IK30: 0.5 | IL30: 0 | IM30: 0 | IN30: 0 | IO30: 0 | IP30: 0 | IQ30: 0 | IR30: 0 | IS30: 0 | IT30: 0.4 | IU30: 2.6
ID31: 奈良県 | IE31: 奈良 | IF31: 日最深積雪0cm以上日数(日) | IG31: 平年値(日) | II31: 1.4 | IJ31: 1.9 | IK31: 0.8 | IL31: 0 | IM31: 0 | IN31: 0 | IO31: 0 | IP31: 0 | IQ31: 0 | IR31: 0 | IS31: 0 | IT31: 0.7 | IU31: 4.8
ID32: 和歌山県 | IE32: 和歌山 | IF32: 日最深積雪0cm以上日数(日) | IG32: 平年値(日) | II32: 0.9 | IJ32: 1 | IK32: 0.1 | IL32: 0 | IM32: 0 | IN32: 0 | IO32: 0 | IP32: 0 | IQ32: 0 | IR32: 0 | IS32: 0 | IT32: 0.2 | IU32: 2.2
ID33: 鳥取県 | IE33: 鳥取 | IF33: 日最深積雪0cm以上日数(日) | IG33: 平年値(日) | II33: 15.5 | IJ33: 13.2 | IK33: 4 | IL33: 0.2 | IM33: 0 | IN33: 0 | IO33: 0 | IP33: 0 | IQ33: 0 | IR33: 0 | IS33: 0.1 | IT33: 6.7 | IU33: 39.7
ID34: 島根県 | IE34: 松江 | IF34: 日最深積雪0cm以上日数(日) | IG34: 平年値(日) | II34: 11.2 | IJ34: 9.1 | IK34: 2.1 | IL34: 0.1 | IM34: 0 | IN34: 0 | IO34: 0 | IP34: 0 | IQ34: 0 | IR34: 0 | IS34: 0.2 | IT34: 4.3 | IU34: 27
ID35: 岡山県 | IE35: 岡山 | IF35: 日最深積雪0cm以上日数(日) | IG35: 平年値(日) | II35: 0.9 | IJ35: 1.1 | IK35: 0.4 | IL35: 0 | IM35: 0 | IN35: 0 | IO35: 0 | IP35: 0 | IQ35: 0 | IR35: 0 | IS35: 0 | IT35: 0.1 | IU35: 2.5
ID36: 広島県 | IE36: 広島 | IF36: 日最深積雪0cm以上日数(日) | IG36: 平年値(日) | II36: 2.7 | IJ36: 2.3 | IK36: 0.7 | IL36: 0 | IM36: 0 | IN36: 0 | IO36: 0 | IP36: 0 | IQ36: 0 | IR36: 0 | IS36: 0 | IT36: 1.2 | IU36: 6.9
ID37: 山口県 | IE37: 山口 | IF37: 日最深積雪0cm以上日数(日) | IG37: 平年値(日) | II37: 3.2 | IJ37: 2.1 | IK37: 0.5 | IL37: 0 | IM37: 0 | IN37: 0 | IO37: 0 | IP37: 0 | IQ37: 0 | IR37: 0 | IS37: 0 | IT37: 1.2 | IU37: 7
ID38: 徳島県 | IE38: 徳島 | IF38: 日最深積雪0cm以上日数(日) | IG38: 平年値(日) | II38: 1.2 | IJ38: 1.2 | IK38: 0.2 | IL38: 0 | IM38: 0 | IN38: 0 | IO38: 0 | IP38: 0 | IQ38: 0 | IR38: 0 | IS38: 0 | IT38: 0.2 | IU38: 2.8
ID39: 香川県 | IE39: 高松 | IF39: 日最深積雪0cm以上日数(日) | IG39: 平年値(日) | II39: 0.8 | IJ39: 1.1 | IK39: 0.3 | IL39: 0 | IM39: 0 | IN39: 0 | IO39: 0 | IP39: 0 | IQ39: 0 | IR39: 0 | IS39: 0 | IT39: 0.1 | IU39: 2.3
ID40: 愛媛県 | IE40: 松山 | IF40: 日最深積雪0cm以上日数(日) | IG40: 平年値(日) | II40: 0.8 | IJ40: 1.1 | IK40: 0.2 | IL40: 0 | IM40: 0 | IN40: 0 | IO40: 0 | IP40: 0 | IQ40: 0 | IR40: 0 | IS40: 0 | IT40: 0.2 | IU40: 2.3
ID41: 高知県 | IE41: 高知 | IF41: 日最深積雪0cm以上日数(日) | IG41: 平年値(日) | II41: 0.4 | IJ41: 0.2 | IK41: 0.1 | IL41: 0 | IM41: 0 | IN41: 0 | IO41: 0 | IP41: 0 | IQ41: 0 | IR41: 0 | IS41: 0 | IT41: 0.2 | IU41: 0.9
ID42: 福岡県 | IE42: 福岡 | IF42: 日最深積雪0cm以上日数(日) | IG42: 平年値(日) | II42: 1.7 | IJ42: 0.9 | IK42: 0.3 | IL42: 0 | IM42: 0 | IN42: 0 | IO42: 0 | IP42: 0 | IQ42: 0 | IR42: 0 | IS42: 0.1 | IT42: 0.8 | IU42: 3.8
ID43: 佐賀県 | IE43: 佐賀 | IF43: 日最深積雪0cm以上日数(日) | IG43: 平年値(日) | II43: 1.8 | IJ43: 1.3 | IK43: 0.3 | IL43: 0 | IM43: 0 | IN43: 0 | IO43: 0 | IP43: 0 | IQ43: 0 | IR43: 0 | IS43: 0 | IT43: 0.6 | IU43: 4
ID44: 長崎県 | IE44: 長崎 | IF44: 日最深積雪0cm以上日数(日) | IG44: 平年値(日) | II44: 1.2 | IJ44: 0.9 | IK44: 0.2 | IL44: 0 | IM44: 0 | IN44: 0 | IO44: 0 | IP44: 0 | IQ44: 0 | IR44: 0 | IS44: 0 | IT44: 0.2 | IU44: 2.5
ID45: 熊本県 | IE45: 熊本 | IF45: 日最深積雪0cm以上日数(日) | IG45: 平年値(日) | II45: 1 | IJ45: 0.8 | IK45: 0.1 | IL45: 0 | IM45: 0 | IN45: 0 | IO45: 0 | IP45: 0 | IQ45: 0 | IR45: 0 | IS45: 0 | IT45: 0.3 | IU45: 2.2
ID46: 大分県 | IE46: 大分 | IF46: 日最深積雪0cm以上日数(日) | IG46: 平年値(日) | II46: 0.5 | IJ46: 0.4 | IK46: 0.1 | IL46: 0 | IM46: 0 | IN46: 0 | IO46: 0 | IP46: 0 | IQ46: 0 | IR46: 0 | IS46: 0 | IT46: 0.1 | IU46: 1.1
ID47: 宮崎県 | IE47: 宮崎 | IF47: 日最深積雪0cm以上日数(日) | IG47: 平年値(日) | II47: 0.1 | IJ47: 0 | IK47: 0 | IL47: 0 | IM47: 0 | IN47: 0 | IO47: 0 | IP47: 0 | IQ47: 0 | IR47: 0 | IS47: 0 | IT47: 0 | IU47: 0.1
ID48: 鹿児島県 | IE48: 鹿児島 | IF48: 日最深積雪0cm以上日数(日) | IG48: 平年値(日) | II48: 0.6 | IJ48: 0.6 | IK48: 0 | IL48: 0 | IM48: 0 | IN48: 0 | IO48: 0 | IP48: 0 | IQ48: 0 | IR48: 0 | IS48: 0 | IT48: 0.1 | IU48: 1.3
ID49: 沖縄県 | IE49: 那覇 | IF49: 日最深積雪0cm以上日数(日) | IG49: 平年値(日) | II49: 0 | IJ49: 0 | IK49: 0 | IL49: 0 | IM49: 0 | IN49: 0 | IO49: 0 | IP49: 0 | IQ49: 0 | IR49: 0 | IS49: 0 | IT49: 0 | IU49: 0

Sheet 係数・物性 (hidden)
A2: ■係数
A3: 記号 | B3: 項目 | C3: 単位 | D3: 値 | E3: 備考
A4: ρ | B4: 水の比熱 | C4: kJ/kgK | D4: 4.179 | E4: [1]
A5: cw | B5: 水の密度 | C5: kg/m3 | D5: =0.99662*1000 -> 996.62 | E5: [1]
A6: Cw | B6: 容積比熱 | C6: MJ/m3K | D6: =D4*D5/1000 -> 4.16487498 | E6: cwρ
A7: g | B7: 重力加速度 | C7: m/s2 | D7: 9.806
A8: [1]JSMEテキストシリーズ伝熱工学、社団法人日本機械学会、2011年1月14日

Sheet 配管摩擦抵抗線図(不要) (hidden)
A1: ■流量
A2: 流量 | B2: 200 | C2: L/min | D2: 配管径 | E2: =VLOOKUP(1,J4:K21,2,FALSE) -> 65A
G4: 管径 | H4: 流量[L/min] | I4: 判定① | J4: 判定② | K4: 対象管径 | M4: 熱量目安[kW](温度差5℃)
G5: 300A | H5: 9800 | I5: =IF($B$2<=H5,1,0) -> 1 | J5: =IF(I5=I6,0,1) -> 0 | K5: =G5 -> 300A | M5: =H5*5/14.3 -> 3426.573427 | O5: =H5/1000*60*24*365 -> 5150880
G6: 250A | H6: 6500 | I6: 1 | J6: 0 | K6: 250A | M6: 2272.727273
G7: 225A | H7: 5100 | I7: 1 | J7: 0 | K7: 225A | M7: 1783.216783
G8: 200A | H8: 3900 | I8: 1 | J8: 0 | K8: 200A | M8: 1363.636364
G9: 175A | H9: 2900 | I9: 1 | J9: 0 | K9: 175A | M9: 1013.986014
G10: 150A | H10: 2050 | I10: 1 | J10: 0 | K10: 150A | M10: 716.7832168
G11: 125A | H11: 1400 | I11: 1 | J11: 0 | K11: 125A | M11: 489.5104895
G12: 100A | H12: 850 | I12: 1 | J12: 0 | K12: 100A | M12: 297.2027972
G13: 90A | H13: 620 | I13: 1 | J13: 0 | K13: 90A | M13: 216.7832168
G14: 80A | H14: 450 | I14: 1 | J14: 0 | K14: 80A | M14: 157.3426573
G15: 65A | H15: 290 | I15: 1 | J15: 1 | K15: 65A | M15: 101.3986014
G16: 50A | H16: 170 | I16: 0 | J16: 0 | K16: 50A | M16: 59.44055944
G17: 40A | H17: 95 | I17: 0 | J17: 0 | K17: 40A | M17: 33.21678322
G18: 32A | H18: 68 | I18: 0 | J18: 0 | K18: 32A | M18: 23.77622378
G19: 25A | H19: 36 | I19: 0 | J19: 0 | K19: 25A | M19: 12.58741259
G20: 20A | H20: 20 | I20: 0 | J20: 0 | K20: 20A | M20: 6.993006993
G21: 15A | H21: 10 | I21: 0 | J21: 0 | K21: 15A | M21: 3.496503497

Sheet ポンプ選定(参考・不要) (hidden)
A1: =HYPERLINK(B1,"荏原機種選定") -> 荏原機種選定 | B1: https://www.ebook.ebara.com/EDASNet/LoginCheck.do
B2: ■ラインポンプ
B39: ■下水取水ポンプ

Sheet ポンプ効率近似式 (hidden)
B2: ■ポンプ動力の算定
B9: ■ポンプ効率の近似式
B10: ◆小型渦巻ポンプ
B11: 吐出し量 | C11: m3/min | D11: 0.08 | E11: 0.1 | F11: 0.15 | G11: 0.2 | H11: 0.3 | I11: 0.4 | J11: 0.5 | K11: 0.6 | L11: 0.8 | M11: 1 | N11: 1.5 | O11: 2 | P11: 3 | Q11: 4 | R11: 5 | S11: 6 | T11: 8 | U11: 10 | V11: 15
B12: log(吐出し量) | D12: =LN(D11) -> -2.525728644 | E12: -2.302585093 | F12: -1.897119985 | G12: -1.609437912 | H12: -1.203972804 | I12: -0.9162907319 | J12: -0.6931471806 | K12: -0.5108256238 | L12: -0.2231435513 | M12: 0 | N12: 0.4054651081 | O12: 0.6931471806 | P12: 1.098612289 | Q12: 1.386294361 | R12: 1.609437912 | S12: 1.791759469 | T12: 2.079441542 | U12: 2.302585093 | V12: 2.708050201
B13: A効率 | C13: % | D13: 32 | E13: 37 | F13: 44 | G13: 48 | H13: 53.5 | I13: 57 | J13: 59 | K13: 60.5 | L13: 63.5 | M13: 65.5 | N13: 68.5 | O13: 70.5 | P13: 73 | Q13: 74 | R13: 74.5 | S13: 75 | T13: 75.5 | U13: 76 | V13: 76.5
B14: B効率 | C14: % | D14: 26 | E14: 30.5 | F14: 36 | G14: 39.5 | H14: 44 | I14: 46.5 | J14: 48.5 | K14: 49.5 | L14: 52 | M14: 53.5 | N14: 56 | O14: 58 | P14: 60 | Q14: 60.5 | R14: 61 | S14: 61.5 | T14: 62 | U14: 62.5 | V14: 63
B15: B効率（近似式より） | C15: % | D15: =-1.403*LN(D11)^2+6.9719*LN(D11)+53.781 -> 27.22170729 | E15: =-1.403*LN(E11)^2+6.9719*LN(E11)+53.781 -> 30.28904394 | F15: 35.50498205 | G15: 38.9259824 | H15: 43.35330264 | I15: 46.21476969 | J15: 48.27437159 | K15: 49.85347206 | L15: 52.15540583 | M15: 53.781 | N15: 56.37720625 | O15: 57.93947725 | P15: 59.74706562 | Q15: 60.74980334 | R15: 61.36766276 | S15: 61.76877384 | T15: 62.21197828 | U15: 62.39582996 | V15: 62.37230434
B31: ◆設備排水用水中ポンプ
B32: 吐出し量 | C32: m3/min | D32: 0.08 | E32: 0.1 | F32: 0.15 | G32: 0.2 | H32: 0.3 | I32: 0.4 | J32: 0.5 | K32: 0.6 | L32: 0.8 | M32: 1 | N32: 1.5 | O32: 2 | P32: 3 | Q32: 4
B33: log(吐出し量) | D33: =LN(D32) -> -2.525728644 | E33: -2.302585093 | F33: -1.897119985 | G33: -1.609437912 | H33: -1.203972804 | I33: -0.9162907319 | J33: -0.6931471806 | K33: -0.5108256238 | L33: -0.2231435513 | M33: 0 | N33: 0.4054651081 | O33: 0.6931471806 | P33: 1.098612289 | Q33: 1.386294361
B34: A効率 | C34: % | D34: 28 | E34: 30 | F34: 35.5 | G34: 38.5 | H34: 43 | I34: 46 | J34: 47.5 | K34: 49 | L34: 51 | M34: 53 | N34: 55.5 | O34: 57 | P34: 59 | Q34: 60
B35: B効率 | C35: % | D35: 22 | E35: 24.5 | F35: 29 | G35: 31.5 | H35: 35.5 | I35: 37.5 | J35: 39 | K35: 40 | L35: 42 | M35: 43.5 | N35: 45.5 | O35: 46.5 | P35: 48 | Q35: 49
B36: B効率（近似式より） | C36: % | D36: =-1.1599*LN(D32)^2+5.5019*LN(D32)+43.417 -> 22.12133749 | E36: =-1.1599*LN(E32)^2+5.5019*LN(E32)+43.417 -> 24.59873546 | F36: 28.80468095 | G36: 31.55755572 | H36: 35.11152839 | I36: 37.40182108 | J36: 39.04609608 | K36: 40.30382093 | L36: 42.13153154 | M36: 43.417 | N36: 45.45713865 | O36: 46.67334902 | P36: 48.06151485 | Q36: 48.81514314
B50: ※参考
B51: 宮田征門・中村美紀子・ 玄姫・三浦尚志，「建築物の設備・機器のエネルギー効率に関する既存試験方法の調査」，国立研究開発法人建築研究所，建築研究資料No.187号，2017(平成29年)9月
B52: https://www.kenken.go.jp/japanese/contents/publications/data/187/index.html
B53: https://www.kenken.go.jp/japanese/contents/publications/data/187/4.pdf

Sheet 蓄熱槽容量関数 (hidden)
B1: ■蓄熱槽容量の検討 | D1: 蓄熱バランスシートを各HP容量、建物用途、熱利用用途で作成し、関数を作成
C2: HP容量 | D2: 50kW | E2: 100kW | F2: 300kW | G2: 500kW | H2: 1000kW | I2: 2000kW
B3: 建物用途 | C3: 熱利用用途 | D3: 50 | E3: 100 | F3: 300 | G3: 500 | H3: 1000 | I3: 2000
B4: 集合住宅 | C4: 給湯(冬期) | D4: 8.6 | E4: 17.1 | F4: 51.1 | G4: 85.1 | H4: 170.2 | I4: 340.3
C5: 冷房(夏期) | D5: 79.1 | E5: 158.2 | F5: 474.4 | G5: 790.6 | H5: 1581.1 | I5: 3162.2
C6: 暖房(冬期) | D6: 35.6 | E6: 71.1 | F6: 213.1 | G6: 355.2 | H6: 710.3 | I6: 1420.5
B7: 業務施設 | C7: 給湯(冬期) | D7: 9.6 | E7: 19.2 | F7: 57.5 | G7: 95.8 | H7: 191.5 | I7: 383
C8: 冷房(夏期) | D8: 91.3 | E8: 182.5 | F8: 547.2 | G8: 912 | H8: 1824 | I8: 3647.9
C9: 暖房(冬期) | D9: 119.9 | E9: 239.7 | F9: 718.9 | G9: 1198.2 | H9: 2396.3 | I9: 4792.4
B10: 商業施設 | C10: 給湯(冬期) | D10: 10.1 | E10: 20.2 | F10: 60.5 | G10: 100.9 | H10: 201.7 | I10: 403.3
C11: 冷房(夏期) | D11: 111.8 | E11: 223.6 | F11: 670.7 | G11: 1117.9 | H11: 2235.6 | I11: 4471.2
C12: 暖房(冬期) | D12: 111.8 | E12: 223.6 | F12: 670.7 | G12: 1117.9 | H12: 2235.6 | I12: 4471.2
B13: 宿泊施設 | C13: 給湯(冬期) | D13: 4.8 | E13: 9.5 | F13: 28.5 | G13: 47.4 | H13: 94.7 | I13: 189.4
C14: 冷房(夏期) | D14: 60.2 | E14: 120.3 | F14: 360.7 | G14: 601.1 | H14: 1202.1 | I14: 2404.1
C15: 暖房(冬期) | D15: 41.6 | E15: 83.2 | F15: 249.4 | G15: 415.6 | H15: 831.1 | I15: 1662.1
B16: 医療施設 | C16: 給湯(冬期) | D16: 7.9 | E16: 15.8 | F16: 47.3 | G16: 78.9 | H16: 157.7 | I16: 315.3
C17: 冷房(夏期) | D17: 49.4 | E17: 98.8 | F17: 296.3 | G17: 493.8 | H17: 987.5 | I17: 1974.9
C18: 暖房(冬期) | D18: 51.5 | E18: 102.8 | F18: 308.4 | G18: 513.9 | H18: 1027.7 | I18: 2055.4
B20: ■蓄熱槽容量関数
B24: 建物用途 | C24: 熱利用用途 | D24: 傾きa
B25: 集合住宅 | C25: 給湯(冬期) | D25: 0.1702
C26: 冷房(夏期) | D26: 1.5811
C27: 暖房(冬期) | D27: 0.7103
B28: 業務施設 | C28: 給湯(冬期) | D28: 0.1915
C29: 冷房(夏期) | D29: 1.824
C30: 暖房(冬期) | D30: 2.3962
B31: 商業施設 | C31: 給湯(冬期) | D31: 0.2017
C32: 冷房(夏期) | D32: 2.2356
C33: 暖房(冬期) | D33: 2.2356
B34: 宿泊施設 | C34: 給湯(冬期) | D34: 0.0947
C35: 冷房(夏期) | D35: 1.2021
C36: 暖房(冬期) | D36: 0.8311
B37: 医療施設 | C37: 給湯(冬期) | D37: 0.1577
C38: 冷房(夏期) | D38: 0.9875
C39: 暖房(冬期) | D39: 1.0277

Sheet HP性能曲線 (hidden)
B2: ■COP関数
B3: 項目 | C3: 熱利用用途 | D3: 冷温水出口温度[℃] | E3: a | F3: b | G3: 備考
B4: 空冷ヒートポンプ | C4: 冷房 | D4: 7 | E4: -0.0956 | F4: 7.313 | G4: メーカ性能表より作成
B5: COP=a×外気温+b | C5: 暖房 | D5: 45 | E5: 0.0782 | F5: 3.1059 | G5: メーカ性能表より作成
C6: 給湯 | D6: 55 | E6: 0.063 | F6: 2.5226 | G6: メーカ性能表より作成
B8: 項目 | C8: 熱利用用途 | D8: 冷温水出口温度[℃] | E8: a | F8: b | G8: 備考
B9: 水冷ヒートポンプ | C9: 冷房 | D9: 7 | E9: -0.1083 | F9: 7.4622 | G9: メーカ性能表より作成
B10: COP=a×下水温度+b | C10: 暖房 | D10: 45 | E10: 0.0619 | F10: 3.0761 | G10: メーカ性能表より作成
C11: 給湯 | D11: 65~70 | E11: 0.0521 | F11: 2.5852 | G11: メーカ性能表より作成

Sheet 冷却塔消費電力関数 (hidden)
B2: 型番 | C2: 冷却能力 | D2: 冷却水量 | E2: 定格消費電力 | F2: 公表価格
C3: kW | D3: L/min | E3: kW | F3: 円
A4: 空研 | B4: SKB-200R | C4: 907 | D4: 2600 | E4: 5.5 | F4: 6707000
A5: 空研 | B5: SKB-500R | C5: 2267 | D5: 6500 | E5: =7.5*2 -> 15 | F5: 15120000
A6: 空研 | B6: SKB-80S | C6: 363 | D6: 1040 | E6: 2.2 | F6: 3196000
A7: 空研 | B7: SKB-100S | C7: 453 | D7: 1300 | E7: 2.2 | F7: 4420000
A8: 空研 | B8: SKB-200S | C8: 907 | D8: 2600 | E8: 5.5 | F8: 8212000
A9: 空研 | B9: SKB-300S | C9: 1360 | D9: 3900 | E9: =3.7*2 -> 7.4 | F9: 11780000
A10: 三菱ｹﾐｶﾙｲﾝﾌﾗﾃｯｸ | B10: HT-10KE | C10: 45 | D10: 130 | E10: 0.2 | F10: 330000
A11: 三菱ｹﾐｶﾙｲﾝﾌﾗﾃｯｸ | B11: HT-30KE | C11: 136 | D11: 390 | E11: 1.1 | F11: 760000
A12: 三菱ｹﾐｶﾙｲﾝﾌﾗﾃｯｸ | B12: HT-200ME-RM | C12: 907 | D12: 2600 | E12: 7.5 | F12: 6750000
A13: 三菱ｹﾐｶﾙｲﾝﾌﾗﾃｯｸ | B13: HT-300ME-RM | C13: 1360 | D13: 3900 | E13: =3.7*2 -> 7.4 | F13: 10010000
A14: 三菱ｹﾐｶﾙｲﾝﾌﾗﾃｯｸ | B14: HT-500ME-RM | C14: 2267 | D14: 6500 | E14: =7.5*2 -> 15 | F14: 15930000
A16: 空研カタログ、クーリングタワー07シリーズ | H16: a | I16: b
A17: 三菱ｹﾐｶﾙｲﾝﾌﾗﾃｯｸカタログ、ヒシクーリングタワーVol.15 | H17: 0.0023 | I17: -0.2045

Sheet 価格関数 (hidden)
B2: ■機器価格関数
B12: 機器名称 | C12: x軸項目 | D12: x軸項目単位 | E12: 傾きa[千円] | F12: 切片b[千円] | G12: 備考
B13: ボイラ | C13: 出力 | D13: kW | E13: 5.0483 | F13: 399.9 | G13: 積算資料公表価格ベース
B14: バイオマスボイラ | C14: 出力 | D14: kW | E14: 32.248 | F14: 3998.8 | G14: 積算資料公表価格ベース
B15: 吸収式冷温水機 | C15: 冷房能力 | D15: kW | E15: 38.281 | F15: 1843.8 | G15: 積算資料公表価格ベース
B16: 吸収式冷温水機 | C16: 暖房能力 | D16: kW | E16: 45.187 | F16: 2100.1 | G16: 積算資料公表価格ベース
B17: 吸収式冷凍機 | C17: 冷房能力 | D17: kW | E17: 16.58 | F17: 9940.9 | G17: 積算資料公表価格ベース
B18: 冷却塔 | C18: 冷却能力 | D18: kW | E18: 4.5178 | F18: 521.17 | G18: 積算資料公表価格ベース
B19: 冷却塔 | C19: 水量 | D19: L/min | E19: 1.5757 | F19: 520.9 | G19: 積算資料公表価格ベース
B20: 貯湯槽 | C20: 容量 | D20: L | E20: 0.3443 | F20: 1335.6 | G20: 積算資料公表価格ベース
B21: 循環ポンプ | C21: 出力 | D21: kW | E21: 37.312 | F21: 112.28 | G21: メーカWEB公開価格ベース
B22: 汚水汚物ポンプ | C22: 出力 | D22: kW | E22: 45.056 | F22: 112.67 | G22: メーカWEB公開価格ベース
B23: 水冷ヒートポンプ | C23: 加熱能力 | D23: kW | E23: 88.807 | F23: 1398.7 | G23: メーカ見積、WEB公開価格ベース
B24: 空冷ヒートポンプ | C24: 加熱能力or冷却能力 | D24: kW | E24: 52.039 | F24: 3887 | G24: メーカWEB公開価格ベース
B25: 下水熱交換器(管路外) | C25: 交換熱量 | D25: kW | E25: =12204/86 -> 141.9069767 | G25: 参考（ヒアリングより） | H25: 倉
B26: 下水熱交換器(管路内) | C26: 交換熱量 | D26: kW | E26: =31000/90 -> 344.4444444 | G26: 参考（ヒアリングより） | H26: 富
B27: 下水熱交換器(処理水(再生水)) | C27: 交換熱量 | D27: kW | E27: 33.8 | F27: 1046 | G27: メーカ見積ベース
B28: スクリーン | C28: 処理流量 | D28: L/min | E28: 7.4813 | F28: 3668.6 | G28: メーカ見積ベース

Sheet 下水温度・流量月別(不要) (hidden)
B2: ■下水温度・流量の入力
B3: 項目 | C3: 単位 | D3: 4月 | E3: 5月 | F3: 6月 | G3: 7月 | H3: 8月 | I3: 9月 | J3: 10月 | K3: 11月 | L3: 12月 | M3: 1月 | N3: 2月 | O3: 3月 | P3: 合計 | Q3: 平均 | R3: 最大 | S3: 最小
B4: 日数 | C4: 日/月 | D4: =熱需要量算定・原単位!D24 -> 30 | E4: =熱需要量算定・原単位!E24 -> 31 | F4: =熱需要量算定・原単位!F24 -> 30 | G4: =熱需要量算定・原単位!G24 -> 31 | H4: =熱需要量算定・原単位!H24 -> 31 | I4: =熱需要量算定・原単位!I24 -> 30 | J4: =熱需要量算定・原単位!J24 -> 31 | K4: =熱需要量算定・原単位!K24 -> 30 | L4: =熱需要量算定・原単位!L24 -> 31 | M4: =熱需要量算定・原単位!M24 -> 31 | N4: =熱需要量算定・原単位!N24 -> 28 | O4: =熱需要量算定・原単位!O24 -> 31 | P4: 365
B5: 下水温度 | C5: ℃ | D5: =下水温度!F3 ->  | E5: =下水温度!G3 ->  | F5: =下水温度!H3 ->  | G5: =下水温度!I3 ->  | H5: =下水温度!J3 ->  | I5: =下水温度!K3 ->  | J5: =下水温度!L3 ->  | K5: =下水温度!M3 ->  | L5: =下水温度!N3 ->  | M5: =下水温度!C3 ->  | N5: =下水温度!D3 ->  | O5: =下水温度!E3 ->  | P5: - | Q5: =IF(ISERROR(AVERAGE(D5:O5)),0,AVERAGE(D5:O5)) -> 0 | R5: =MAX(D5:O5) ->  | S5: =MIN(D5:O5) -> 
B6: 下水流量 | C6: m3/月 | D6: =$P$6*D4/$P$4 -> 0 | E6: =$P$6*E4/$P$4 -> 0 | F6: 0 | G6: 0 | H6: 0 | I6: 0 | J6: 0 | K6: 0 | L6: 0 | M6: 0 | N6: 0 | O6: 0 | P6: =入力シート!C45 -> 0 | Q6: =IF(ISERROR(AVERAGE(D6:O6)),0,AVERAGE(D6:O6)) -> 0 | R6: =MAX(D6:O6) -> 0 | S6: =MIN(D6:O6) -> 0

Sheet 入力シート
B1: 下水熱利用可能性簡易検討ツール | F1: ver1.0
B2: 入力・選択セル | F2: .
B3: 入力不要セル
B5: ①対象施設情報
B6: 項目 | C6: 値 | D6: 単位 | E6: 備考
B7: 地域選択 | D7: - | E7: 都道府県を選択してください。
B8: 熱利用用途 | D8: - | E8: 給湯、空調、融雪から選択してください。
B9: 建物用途 | D9: - | E9: 給湯、空調利用の場合は建物用途を選択してください。
B10: 延床面積 | D10: m2 | E10: 給湯、空調利用の場合は数値を入力してください。
B11: 融雪面積 | D11: m2 | E11: 融雪利用の場合は数値を入力して下さい。
B13: ②比較対象システムの設定
B14: 項目 | C14: 値 | D14: 単位 | E14: 備考
B15: 比較対象システム（熱源設備） | D15: - | E15: 選択してください。
B16: 燃料種別の選択 | D16: - | E16: 選択してください。
B22: ③対象施設のエネルギー使用状況
B23: 項目 | C23: 値
B24: 現状の電気/燃料使用状況データの有無 | C24: 無し
B25: 項目 | C25: 料金 | D25: 単位 | E25: 使用量 | F25: 単位
B26: 電気 | D26: 円/年 | F26: kWh/年
B27: =IF(C16="","※燃料種別を選択してください。",C16) -> ※燃料種別を選択してください。 | D27: 円/年 | F27: =VLOOKUP(B27,E単価!$G$6:$M$11,7,FALSE) -> 
B32: ④CO2排出係数の設定
B33: 項目 | C33: 値 | D33: 単位 | E33: 備考
B34: 電気CO2排出係数 | C34: 0.000488 | D34: tCO2/kWh | E34: 0.000488
B41: ⑤下水熱利用の設定
B42: ・下水熱量の設定
B43: 項目 | C43: 値 | D43: 単位 | E43: 備考
B44: 下水熱量の設定方法選択 | C44: 下水流量と下水温度を入力
B45: 熱利用場所の下水流量 | D45: m3/年 | E45: ※１
B46: 熱利用場所の下水温度 | D46: ℃ | E46: ※１
B47: 熱利用場所の下水熱ポテンシャル | C47: 1000000 | D47: MJ/年 | E47: ※２
B54: ・下水熱利用システムの設定
B55: 項目 | C55: 値 | D55: 単位 | E55: 備考
B56: 下水熱交換方式の選択 | D56: - | E56: 下水熱交換方式を選択してください。
B57: 下水取得場所と熱利用場所の距離 | D57: m | E57: ※３
B58: 熱導管単価の入力 | C58: 無し | E58: ※４
B59: 掘削単価 | D59: 千円/m | E59: ※４
B60: 配管単価 | D60: 千円/m | E60: ※４
B66: ⑥複合システムの設定（利用する他の再エネ熱の選択と設定）
B67: 項目 | C67: 値 | D67: 単位 | E67: 備考
B68: 対象のエネルギー種別 | C68: 利用しない | D68: - | E68: 選択してください。
B70: ・空気熱
B71: 項目 | C71: 値 | D71: 単位 | E71: 備考
B72: 設定項目は有りません。 | D72: -
B75: ・太陽熱
B76: 項目 | C76: 値 | D76: 単位 | E76: 備考
B77: 設置面積 | C77: 500 | D77: m2 | E77: 太陽熱集熱パネルを設置する面積を入力してください。
B80: ・地中熱
B81: 項目 | C81: 値 | D81: 単位 | E81: 備考
B82: 設定項目は有りません。
B85: ・バイオマス熱
B86: 項目 | C86: 値 | D86: 単位 | E86: 備考
B87: 燃料発熱量・価格の入力 | C87: 無し | D87: -
B88: バイオマス燃料種別 | C88: 木質チップ | D88: - | E88: 選択してください。
B89: バイオマス燃料発熱量 | C89: 10 | D89: MJ/kg | E89: ユーザー入力
B90: バイオマス燃料燃料価格 | C90: 35 | D90: 円/kg | E90: ユーザー入力
B91: バイオマス燃料供給量 | C91: 150 | D91: t/年 | E91: ユーザー入力
B94: ⑦熱需要量と下水熱利用可能量の確認
B95: ・熱需給マッチング結果 | C95: =マッチング!R32 -> 
B107: ・下水熱利用量の割合設定（熱需要量≦下水熱利用可能量の場合）
B108: 項目 | C108: 値 | D108: 単位 | E108: 備考
B109: 下水熱利用量の割合 | C109: 100 | D109: ％ | E109: 整数値で0~100の値を入力して下さい。
B110: その他システム熱利用量の割合 | C110: =100-C109 -> 0 | D110: ％
B118: ⑧維持管理費の設定
B119: 項目 | C119: 値 | D119: 単位 | E119: 備考
B120: 維持管理費の考慮 | C120: 有り
B121: 維持管理費の設定(建設費に対する割合) | C121: 2 | D121: ％ | E121: 整数値で0~100の値を入力して下さい。デフォルト値2%
B125: ⑨補助金利用の設定
B126: 項目 | C126: 値 | D126: 単位 | E126: 備考
B127: 補助金の利用 | C127: 有り | E127: 補助金利用の有無を選択してください。
B128: 補助率 | C128: 10分の5.5 | E128: 補助率を選択して下さい。

Sheet 熱需要量算定・原単位 (hidden)
B2: ■熱需要量の設定 原単位からの算定 | U2: ■熱負荷原単位情報
AJ3: □時刻別負荷変動比率 | BN3: □地域係数
B4: □年間熱負荷原単位設定 | U4: □年間熱負荷原単位 | BP4: 年間熱負荷 | BR4: 最大熱負荷
B5: 項目 | C5: 単位 | D5: 値 | G5: 設定セル | U5: 建物用途 | V5: 冷房負荷 | X5: 暖房負荷 | Z5: 給湯負荷 | AB5: 電力負荷 | AD5: 根拠資料 | AJ5: 検索key | AK5: =AK6&AK7&AK8 -> 集合住宅冷房夏期 | AL5: 集合住宅暖房冬期 | AM5: 集合住宅給湯夏期 | AN5: 集合住宅給湯冬期 | AO5: 集合住宅給湯中間期 | AP5: 業務施設冷房夏期 | AQ5: 業務施設冷房中間期 | AR5: 業務施設暖房冬期 | AS5: 業務施設暖房中間期 | AT5: 業務施設給湯夏期 | AU5: 業務施設給湯冬期 | AV5: 業務施設給湯中間期 | AW5: 商業施設冷房- | AX5: 商業施設暖房- | AY5: 商業施設給湯- | AZ5: 宿泊施設冷房夏期 | BA5: 宿泊施設冷房冬期 | BB5: 宿泊施設冷房中間期 | BC5: 宿泊施設暖房冬期 | BD5: 宿泊施設暖房中間期 | BE5: 宿泊施設給湯- | BF5: 医療施設冷房夏期 | BG5: 医療施設冷房中間期 | BH5: 医療施設暖房冬期 | BI5: 医療施設暖房中間期 | BJ5: 医療施設給湯夏期 | BK5: 医療施設給湯冬期 | BL5: 医療施設給湯中間期 | BN5: 地域区分 | BO5: 都道府県 | BP5: 冷房 | BQ5: 暖房 | BR5: 冷房 | BS5: 暖房
B6: 建物用途 | C6: 入力シートより選択→ | D6: =入力シート!C9 -> 0 | G6: 変更設定していいセル（計算式が入力されている） | U6: 集合住宅 | V6: 33.49 | W6: MJ/m2年 | X6: 83.72 | Y6: MJ/m2年 | Z6: 125.58 | AA6: MJ/m2年 | AB6: 21 | AC6: kWh/m2年 | AD6: [1] | AJ6: 建物用途 | AK6: 集合住宅 | AL6: 集合住宅 | AM6: 集合住宅 | AN6: 集合住宅 | AO6: 集合住宅 | AP6: 業務施設 | AQ6: 業務施設 | AR6: 業務施設 | AS6: 業務施設 | AT6: 業務施設 | AU6: 業務施設 | AV6: 業務施設 | AW6: 商業施設 | AX6: 商業施設 | AY6: 商業施設 | AZ6: 宿泊施設 | BA6: 宿泊施設 | BB6: 宿泊施設 | BC6: 宿泊施設 | BD6: 宿泊施設 | BE6: 宿泊施設 | BF6: 医療施設 | BG6: 医療施設 | BH6: 医療施設 | BI6: 医療施設 | BJ6: 医療施設 | BK6: 医療施設 | BL6: 医療施設 | BN6: 北海道 | BO6: 北海道 | BP6: 0.5 | BQ6: 2.4 | BR6: 0.8 | BS6: 1.5
B7: 延床面積 | C7: m2 | D7: =入力シート!C10 -> 0 | G7: 変更しなくていい設定セル | U7: 業務施設 | V7: 293.02 | W7: MJ/m2年 | X7: 129.77 | Y7: MJ/m2年 | Z7: 9.21 | AA7: MJ/m2年 | AB7: 156 | AC7: kWh/m2年 | AD7: [1] | AJ7: 熱利用用途 | AK7: 冷房 | AL7: 暖房 | AM7: 給湯 | AN7: 給湯 | AO7: 給湯 | AP7: 冷房 | AQ7: 冷房 | AR7: 暖房 | AS7: 暖房 | AT7: 給湯 | AU7: 給湯 | AV7: 給湯 | AW7: 冷房 | AX7: 暖房 | AY7: 給湯 | AZ7: 冷房 | BA7: 冷房 | BB7: 冷房 | BC7: 暖房 | BD7: 暖房 | BE7: 給湯 | BF7: 冷房 | BG7: 冷房 | BH7: 暖房 | BI7: 暖房 | BJ7: 給湯 | BK7: 給湯 | BL7: 給湯 | BN7: 東北 | BO7: 青森県 | BP7: 0.7 | BQ7: 1.4 | BR7: 0.9 | BS7: 1.3
B8: 年間熱負荷原単位：冷房 | C8: MJ/m2年 | D8: =VLOOKUP(D6,U6:AC10,2,FALSE) ->  | G8: デフォ値・係数 | U8: 商業施設 | V8: 523.25 | W8: MJ/m2年 | X8: 146.51 | Y8: MJ/m2年 | Z8: 96.28 | AA8: MJ/m2年 | AB8: 226 | AC8: kWh/m2年 | AD8: [1] | AJ8: 季節 | AK8: 夏期 | AL8: 冬期 | AM8: 夏期 | AN8: 冬期 | AO8: 中間期 | AP8: 夏期 | AQ8: 中間期 | AR8: 冬期 | AS8: 中間期 | AT8: 夏期 | AU8: 冬期 | AV8: 中間期 | AW8: - | AX8: - | AY8: - | AZ8: 夏期 | BA8: 冬期 | BB8: 中間期 | BC8: 冬期 | BD8: 中間期 | BE8: - | BF8: 夏期 | BG8: 中間期 | BH8: 冬期 | BI8: 中間期 | BJ8: 夏期 | BK8: 冬期 | BL8: 中間期 | BN8: 東北 | BO8: 岩手県 | BP8: 0.7 | BQ8: 1.4 | BR8: 0.9 | BS8: 1.3
B9: 年間熱負荷原単位：暖房 | C9: MJ/m2年 | D9: =VLOOKUP(D6,U6:AC10,4,FALSE) ->  | G9: 計算式・項目確認セル | U9: 宿泊施設 | V9: 418.6 | W9: MJ/m2年 | X9: 334.88 | Y9: MJ/m2年 | Z9: 334.88 | AA9: MJ/m2年 | AB9: 200 | AC9: kWh/m2年 | AD9: [1] | AJ9: 1 | AK9: 0.3 | AL9: 4 | AM9: 1.5 | AN9: 2.7 | AO9: 3 | AP9: 0 | AQ9: 0 | AR9: 0 | AS9: 0 | AT9: 0 | AU9: 0 | AV9: 0 | AW9: 0 | AX9: 0 | AY9: 0 | AZ9: 2.34 | BA9: 0 | BB9: 0.29 | BC9: 3.05 | BD9: 5.35 | BE9: 2.37 | BF9: 1.6 | BG9: 2.7 | BH9: 0.2 | BI9: 2.7 | BJ9: 0.46 | BK9: 0.58 | BL9: 0.49 | BN9: 東北 | BO9: 宮城県 | BP9: 0.7 | BQ9: 1.4 | BR9: 0.9 | BS9: 1.3
B10: 年間熱負荷原単位：給湯 | C10: MJ/m2年 | D10: =VLOOKUP(D6,U6:AC10,6,FALSE) ->  | U10: 医療施設 | V10: 334.88 | W10: MJ/m2年 | X10: 309.76 | Y10: MJ/m2年 | Z10: 334.88 | AA10: MJ/m2年 | AB10: 170 | AC10: kWh/m2年 | AD10: [1] | AJ10: 2 | AK10: 0.3 | AL10: 2.6 | AM10: 1.7 | AN10: 0.3 | AO10: 0.3 | AP10: 0 | AQ10: 0 | AR10: 0 | AS10: 0 | AT10: 0 | AU10: 0 | AV10: 0 | AW10: 0 | AX10: 0 | AY10: 0 | AZ10: 1.8 | BA10: 0 | BB10: 0.29 | BC10: 3.43 | BD10: 3.21 | BE10: 1.43 | BF10: 1.6 | BG10: 2.6 | BH10: 0.3 | BI10: 2.6 | BJ10: 0.33 | BK10: 0.45 | BL10: 0.36 | BN10: 東北 | BO10: 秋田県 | BP10: 0.7 | BQ10: 1.4 | BR10: 0.9 | BS10: 1.3
B11: 地域選択 | C11: 入力シートより選択→ | D11: =入力シート!C7 -> 0 | AJ11: 3 | AK11: 0.3 | AL11: 1.8 | AM11: 1.1 | AN11: 0.2 | AO11: 0.1 | AP11: 0 | AQ11: 0 | AR11: 0 | AS11: 0 | AT11: 0 | AU11: 0 | AV11: 0 | AW11: 0 | AX11: 0 | AY11: 0 | AZ11: 1.71 | BA11: 0 | BB11: 0.29 | BC11: 3.81 | BD11: 2.67 | BE11: 0.64 | BF11: 1.5 | BG11: 2.5 | BH11: 0.3 | BI11: 2.5 | BJ11: 0.26 | BK11: 0.35 | BL11: 0.29 | BN11: 東北 | BO11: 山形県 | BP11: 0.7 | BQ11: 1.4 | BR11: 0.9 | BS11: 1.3
B12: 地域係数：冷房 | D12: =VLOOKUP(D11,BO6:BQ52,2,FALSE) ->  | U12: □月別負荷変動費率 | AJ12: 4 | AK12: 0.3 | AL12: 1.8 | AM12: 0 | AN12: 0 | AO12: 0 | AP12: 0 | AQ12: 0 | AR12: 0 | AS12: 0 | AT12: 0 | AU12: 0 | AV12: 0 | AW12: 0 | AX12: 0 | AY12: 0 | AZ12: 1.53 | BA12: 0 | BB12: 0.29 | BC12: 3.43 | BD12: 2.41 | BE12: 0.38 | BF12: 1.5 | BG12: 2.5 | BH12: 0.3 | BI12: 2.5 | BJ12: 0.56 | BK12: 0.29 | BL12: 0.29 | BN12: 東北 | BO12: 福島県 | BP12: 0.7 | BQ12: 1.4 | BR12: 0.9 | BS12: 1.3
B13: 地域係数：暖房 | D13: =VLOOKUP(D11,BO6:BQ52,3,FALSE) ->  | U13: 項目 | V13: 単位 | W13: 4月 | X13: 5月 | Y13: 6月 | Z13: 7月 | AA13: 8月 | AB13: 9月 | AC13: 10月 | AD13: 11月 | AE13: 12月 | AF13: 1月 | AG13: 2月 | AH13: 3月 | AJ13: 5 | AK13: 0.3 | AL13: 1.8 | AM13: 0 | AN13: 0 | AO13: 0 | AP13: 0 | AQ13: 0 | AR13: 0 | AS13: 0 | AT13: 0 | AU13: 0 | AV13: 0 | AW13: 0 | AX13: 0 | AY13: 0 | AZ13: 1.44 | BA13: 0 | BB13: 0.29 | BC13: 3.05 | BD13: 2.41 | BE13: 0.73 | BF13: 1.5 | BG13: 2.4 | BH13: 0.3 | BI13: 2.4 | BJ13: 0.56 | BK13: 0.48 | BL13: 0.55 | BN13: 関東 | BO13: 茨城県 | BP13: 1 | BQ13: 1 | BR13: 1 | BS13: 1
U14: 季節 | W14: 中間期 | X14: 中間期 | Y14: 夏期 | Z14: 夏期 | AA14: 夏期 | AB14: 夏期 | AC14: 中間期 | AD14: 中間期 | AE14: 冬期 | AF14: 冬期 | AG14: 冬期 | AH14: 冬期 | AJ14: 6 | AK14: 0.3 | AL14: 2.3 | AM14: 0.2 | AN14: 0.3 | AO14: 0.3 | AP14: 0 | AQ14: 0 | AR14: 0 | AS14: 0 | AT14: 0 | AU14: 0 | AV14: 5.21 | AW14: 0 | AX14: 0 | AY14: 0 | AZ14: 1.35 | BA14: 0 | BB14: 0.29 | BC14: 3.05 | BD14: 2.67 | BE14: 2.35 | BF14: 3.4 | BG14: 3.4 | BH14: 5.1 | BI14: 3.4 | BJ14: 1.34 | BK14: 1.45 | BL14: 1.4 | BN14: 関東 | BO14: 栃木県 | BP14: 1 | BQ14: 1 | BR14: 1 | BS14: 1
B15: □月別負荷変動費率 | C15: 月別変動費率より自動入力 | U15: 集合住宅 | V15: 冷房 | W15: 0 | X15: 0 | Y15: 7.96 | Z15: 32.14 | AA15: 47.76 | AB15: 12.14 | AC15: 0 | AD15: 0 | AE15: 0 | AF15: 0 | AG15: 0 | AH15: 0 | AJ15: 7 | AK15: 0.3 | AL15: 3.1 | AM15: 1.3 | AN15: 2 | AO15: 2.3 | AP15: 0 | AQ15: 0 | AR15: 0.3 | AS15: 0 | AT15: 3.79 | AU15: 1.97 | AV15: 0.26 | AW15: 0 | AX15: 0 | AY15: 0 | AZ15: 1.8 | BA15: 0 | BB15: 0.29 | BC15: 3.24 | BD15: 3.21 | BE15: 4.64 | BF15: 2.6 | BG15: 2.5 | BH15: 4.7 | BI15: 2.5 | BJ15: 2.2 | BK15: 0.97 | BL15: 2.25 | BN15: 関東 | BO15: 群馬県 | BP15: 1 | BQ15: 1 | BR15: 1 | BS15: 1
B16: 項目 | C16: 単位 | D16: 4月 | E16: 5月 | F16: 6月 | G16: 7月 | H16: 8月 | I16: 9月 | J16: 10月 | K16: 11月 | L16: 12月 | M16: 1月 | N16: 2月 | O16: 3月 | P16: 合計 | Q16: 最大 | R16: 最小 | S16: 備考 | V16: 暖房 | W16: 8.11 | X16: 0 | Y16: 0 | Z16: 0 | AA16: 0 | AB16: 0 | AC16: 0 | AD16: 8.95 | AE16: 18.77 | AF16: 24.03 | AG16: 20.03 | AH16: 20.08 | AJ16: 8 | AK16: 1.4 | AL16: 5.6 | AM16: 2.3 | AN16: 3.5 | AO16: 2.8 | AP16: 1.79 | AQ16: 0.4 | AR16: 16.99 | AS16: 14.76 | AT16: 4.55 | AU16: 0.33 | AV16: 3.91 | AW16: 7.9 | AX16: 0 | AY16: 0 | AZ16: 1.98 | BA16: 0 | BB16: 0.34 | BC16: 4.19 | BD16: 4.28 | BE16: 4.53 | BF16: 2.8 | BG16: 2.6 | BH16: 4.7 | BI16: 2.6 | BJ16: 3.21 | BK16: 0.39 | BL16: 3.32 | BN16: 関東 | BO16: 埼玉県 | BP16: 1 | BQ16: 1 | BR16: 1 | BS16: 1
B17: 季節 | D17: 中間期 | E17: 中間期 | F17: 夏期 | G17: 夏期 | H17: 夏期 | I17: 夏期 | J17: 中間期 | K17: 中間期 | L17: 冬期 | M17: 冬期 | N17: 冬期 | O17: 冬期 | V17: 給湯 | W17: 10.32 | X17: 9.04 | Y17: 6.76 | Z17: 5.41 | AA17: 3.76 | AB17: 3.87 | AC17: 6.22 | AD17: 7.1 | AE17: 10.57 | AF17: 12.08 | AG17: 12.55 | AH17: 12.32 | AJ17: 9 | AK17: 1.9 | AL17: 4.4 | AM17: 2.5 | AN17: 2.9 | AO17: 2.6 | AP17: 9.57 | AQ17: 11.78 | AR17: 12.29 | AS17: 13.65 | AT17: 6.06 | AU17: 1.64 | AV17: 5.21 | AW17: 7.3 | AX17: 16.9 | AY17: 1.25 | AZ17: 2.71 | BA17: 0 | BB17: 0.86 | BC17: 5.71 | BD17: 4.28 | BE17: 3.97 | BF17: 6.4 | BG17: 4.3 | BH17: 10.3 | BI17: 4.3 | BJ17: 7.18 | BK17: 7.58 | BL17: 7.06 | BN17: 関東 | BO17: 千葉県 | BP17: 1 | BQ17: 1 | BR17: 1 | BS17: 1
B18: 月別負荷変動比率：冷房 | C18: - | D18: =VLOOKUP($D$6,$V$33:$AH$37,2,FALSE) ->  | E18: =VLOOKUP($D$6,$V$33:$AH$37,3,FALSE) ->  | F18: =VLOOKUP($D$6,$V$33:$AH$37,4,FALSE) ->  | G18: =VLOOKUP($D$6,$V$33:$AH$37,5,FALSE) ->  | H18: =VLOOKUP($D$6,$V$33:$AH$37,6,FALSE) ->  | I18: =VLOOKUP($D$6,$V$33:$AH$37,7,FALSE) ->  | J18: =VLOOKUP($D$6,$V$33:$AH$37,8,FALSE) ->  | K18: =VLOOKUP($D$6,$V$33:$AH$37,9,FALSE) ->  | L18: =VLOOKUP($D$6,$V$33:$AH$37,10,FALSE) ->  | M18: =VLOOKUP($D$6,$V$33:$AH$37,11,FALSE) ->  | N18: =VLOOKUP($D$6,$V$33:$AH$37,12,FALSE) ->  | O18: =VLOOKUP($D$6,$V$33:$AH$37,13,FALSE) ->  | P18: =SUM(D18:O18) ->  | Q18: =MAX(D18:O18) ->  | R18: =MIN(D18:O18) ->  | U18: 業務施設 | V18: 冷房 | W18: 0 | X18: 3.92 | Y18: 15.67 | Z18: 27.63 | AA18: 30.72 | AB18: 19.79 | AC18: 2.27 | AD18: 0 | AE18: 0 | AF18: 0 | AG18: 0 | AH18: 0 | AJ18: 10 | AK18: 2.3 | AL18: 4.5 | AM18: 2 | AN18: 3.5 | AO18: 2.7 | AP18: 9.17 | AQ18: 13.37 | AR18: 8.09 | AS18: 7.48 | AT18: 4.55 | AU18: 6.57 | AV18: 4.43 | AW18: 8.3 | AX18: 12.8 | AY18: 9.17 | AZ18: 3.52 | BA18: 4.95 | BB18: 4.87 | BC18: 4.95 | BD18: 3.48 | BE18: 3.8 | BF18: 6.3 | BG18: 5 | BH18: 8.3 | BI18: 5 | BJ18: 9.17 | BK18: 9.39 | BL18: 9.05 | BN18: 関東 | BO18: 東京都 | BP18: 1 | BQ18: 1 | BR18: 1 | BS18: 1
B19: 月別負荷変動比率：暖房 | C19: - | D19: =VLOOKUP($D$6,$V$38:$AH$42,2,FALSE) ->  | E19: =VLOOKUP($D$6,$V$38:$AH$42,3,FALSE) ->  | F19: =VLOOKUP($D$6,$V$38:$AH$42,4,FALSE) ->  | G19: =VLOOKUP($D$6,$V$38:$AH$42,5,FALSE) ->  | H19: =VLOOKUP($D$6,$V$38:$AH$42,6,FALSE) ->  | I19: =VLOOKUP($D$6,$V$38:$AH$42,7,FALSE) ->  | J19: =VLOOKUP($D$6,$V$38:$AH$42,8,FALSE) ->  | K19: =VLOOKUP($D$6,$V$38:$AH$42,9,FALSE) ->  | L19: =VLOOKUP($D$6,$V$38:$AH$42,10,FALSE) ->  | M19: =VLOOKUP($D$6,$V$38:$AH$42,11,FALSE) ->  | N19: =VLOOKUP($D$6,$V$38:$AH$42,12,FALSE) ->  | O19: =VLOOKUP($D$6,$V$38:$AH$42,13,FALSE) ->  | P19: =SUM(D19:O19) ->  | Q19: =MAX(D19:O19) ->  | R19: =MIN(D19:O19) ->  | V19: 暖房 | W19: 4.27 | X19: 0 | Y19: 0 | Z19: 0 | AA19: 0 | AB19: 0 | AC19: 0 | AD19: 7.98 | AE19: 21.37 | AF19: 25.93 | AG19: 22.79 | AH19: 17.66 | AJ19: 11 | AK19: 2.4 | AL19: 2.7 | AM19: 1.7 | AN19: 2.9 | AO19: 2 | AP19: 8.97 | AQ19: 11.19 | AR19: 10.29 | AS19: 8.39 | AT19: 11.36 | AU19: 5.75 | AV19: 11.98 | AW19: 8.7 | AX19: 10.3 | AY19: 10.1 | AZ19: 3.61 | BA19: 4.95 | BB19: 4.58 | BC19: 5.14 | BD19: 4.55 | BE19: 4.51 | BF19: 6.6 | BG19: 5.3 | BH19: 7.5 | BI19: 5.3 | BJ19: 9.93 | BK19: 10.06 | BL19: 9.7 | BN19: 関東 | BO19: 神奈川県 | BP19: 1 | BQ19: 1 | BR19: 1 | BS19: 1
B20: 月別負荷変動比率：給湯 | C20: - | D20: =VLOOKUP($D$6,$V$43:$AH$47,2,FALSE) ->  | E20: =VLOOKUP($D$6,$V$43:$AH$47,3,FALSE) ->  | F20: =VLOOKUP($D$6,$V$43:$AH$47,4,FALSE) ->  | G20: =VLOOKUP($D$6,$V$43:$AH$47,5,FALSE) ->  | H20: =VLOOKUP($D$6,$V$43:$AH$47,6,FALSE) ->  | I20: =VLOOKUP($D$6,$V$43:$AH$47,7,FALSE) ->  | J20: =VLOOKUP($D$6,$V$43:$AH$47,8,FALSE) ->  | K20: =VLOOKUP($D$6,$V$43:$AH$47,9,FALSE) ->  | L20: =VLOOKUP($D$6,$V$43:$AH$47,10,FALSE) ->  | M20: =VLOOKUP($D$6,$V$43:$AH$47,11,FALSE) ->  | N20: =VLOOKUP($D$6,$V$43:$AH$47,12,FALSE) ->  | O20: =VLOOKUP($D$6,$V$43:$AH$47,13,FALSE) ->  | P20: =SUM(D20:O20) ->  | Q20: =MAX(D20:O20) ->  | R20: =MIN(D20:O20) ->  | V20: 給湯 | W20: 10.34 | X20: 6.9 | Y20: 3.45 | Z20: 3.45 | AA20: 3.45 | AB20: 3.45 | AC20: 6.9 | AD20: 6.9 | AE20: 10.34 | AF20: 13.79 | AG20: 17.24 | AH20: 13.79 | AJ20: 12 | AK20: 3.1 | AL20: 4 | AM20: 2.1 | AN20: 2.6 | AO20: 2.3 | AP20: 9.27 | AQ20: 11.87 | AR20: 10.49 | AS20: 12.44 | AT20: 13.64 | AU20: 14.78 | AV20: 10.68 | AW20: 10 | AX20: 9.4 | AY20: 2.5 | AZ20: 3.61 | BA20: 7.43 | BB20: 8.59 | BC20: 4.95 | BD20: 4.55 | BE20: 3.25 | BF20: 6.8 | BG20: 5.8 | BH20: 6.9 | BI20: 5.8 | BJ20: 7.9 | BK20: 8.1 | BL20: 7.55 | BN20: 北陸 | BO20: 新潟県 | BP20: 0.9 | BQ20: 1.4 | BR20: 1 | BS20: 1.1
U21: 商業施設 | V21: 冷房 | W21: 4.05 | X21: 8.91 | Y21: 12.63 | Z21: 19.29 | AA21: 20.81 | AB21: 13.68 | AC21: 10.93 | AD21: 3.64 | AE21: 2.02 | AF21: 0 | AG21: 1.21 | AH21: 2.83 | AJ21: 13 | AK21: 4.1 | AL21: 3.9 | AM21: 1.8 | AN21: 2.1 | AO21: 1.6 | AP21: 9.37 | AQ21: 10.4 | AR21: 10.29 | AS21: 13.04 | AT21: 15.13 | AU21: 12.48 | AV21: 19.78 | AW21: 10.2 | AX21: 7.5 | AY21: 8.41 | AZ21: 7.13 | BA21: 9.9 | BB21: 8.59 | BC21: 4.95 | BD21: 5.35 | BE21: 3.59 | BF21: 6.9 | BG21: 6.3 | BH21: 6.4 | BI21: 6.3 | BJ21: 8.62 | BK21: 8.9 | BL21: 8.5 | BN21: 北陸 | BO21: 富山県 | BP21: 0.9 | BQ21: 1.4 | BR21: 1 | BS21: 1.1
B22: □月別日数と運転時間 | C22: （ヒートポンプ容量の目安設定のため） | V22: 暖房 | W22: 0 | X22: 0 | Y22: 0 | Z22: 0 | AA22: 0 | AB22: 0 | AC22: 0 | AD22: 0 | AE22: 21.69 | AF22: 32.8 | AG22: 29.64 | AH22: 15.87 | AJ22: 14 | AK22: 6.1 | AL22: 3.9 | AM22: 1.8 | AN22: 2.1 | AO22: 1.6 | AP22: 9.27 | AQ22: 11.68 | AR22: 8.39 | AS22: 12.84 | AT22: 11.36 | AU22: 27.09 | AV22: 5.47 | AW22: 11.2 | AX22: 6.9 | AY22: 17.15 | AZ22: 7.21 | BA22: 8.91 | BB22: 9.45 | BC22: 5.14 | BD22: 5.88 | BE22: 4.08 | BF22: 6.1 | BG22: 6.1 | BH22: 5.2 | BI22: 6.1 | BJ22: 9.4 | BK22: 9.52 | BL22: 9.34 | BN22: 北陸 | BO22: 石川県 | BP22: 0.9 | BQ22: 1.4 | BR22: 1 | BS22: 1.1
B23: 項目 | C23: 単位 | D23: 4月 | E23: 5月 | F23: 6月 | G23: 7月 | H23: 8月 | I23: 9月 | J23: 10月 | K23: 11月 | L23: 12月 | M23: 1月 | N23: 2月 | O23: 3月 | P23: 合計 | Q23: 最大 | R23: 最小 | S23: 備考 | V23: 給湯 | W23: 9.07 | X23: 7.83 | Y23: 7.26 | Z23: 7.99 | AA23: 7.84 | AB23: 8.12 | AC23: 7.62 | AD23: 9.07 | AE23: 10.35 | AF23: 7.66 | AG23: 8.02 | AH23: 9.17 | AJ23: 15 | AK23: 6.7 | AL23: 3.9 | AM23: 1.8 | AN23: 1.8 | AO23: 1.4 | AP23: 8.97 | AQ23: 11.78 | AR23: 8.19 | AS23: 12.54 | AT23: 7.58 | AU23: 8.7 | AV23: 6.51 | AW23: 11.2 | AX23: 5.6 | AY23: 17.12 | AZ23: 8.66 | BA23: 8.42 | BB23: 6.87 | BC23: 4.95 | BD23: 6.42 | BE23: 3.8 | BF23: 6.1 | BG23: 6.2 | BH23: 5 | BI23: 6.2 | BJ23: 8.36 | BK23: 8.71 | BL23: 8.59 | BN23: 北陸 | BO23: 福井県 | BP23: 0.9 | BQ23: 1.4 | BR23: 1 | BS23: 1.1
B24: 日数 | C24: 日 | D24: 30 | E24: 31 | F24: 30 | G24: 31 | H24: 31 | I24: 30 | J24: 31 | K24: 30 | L24: 31 | M24: 31 | N24: 28 | O24: 31 | P24: =SUM(D24:O24) -> 365 | Q24: =MAX(D24:O24) -> 31 | R24: =MIN(D24:O24) -> 28 | U24: 宿泊施設 | V24: 冷房 | W24: 3.89 | X24: 7.56 | Y24: 14.06 | Z24: 21.42 | AA24: 24.77 | AB24: 14.96 | AC24: 5.18 | AD24: 2.14 | AE24: 1 | AF24: 1 | AG24: 0.91 | AH24: 3.11 | AJ24: 16 | AK24: 5.2 | AL24: 4.1 | AM24: 1.8 | AN24: 1.8 | AO24: 1.4 | AP24: 10.69 | AQ24: 11.19 | AR24: 9.09 | AS24: 3.44 | AT24: 4.55 | AU24: 4.43 | AV24: 5.47 | AW24: 9.6 | AX24: 5.4 | AY24: 5.36 | AZ24: 6.5 | BA24: 5.94 | BB24: 5.73 | BC24: 6.1 | BD24: 5.88 | BE24: 3.95 | BF24: 6.3 | BG24: 6.4 | BH24: 4.8 | BI24: 6.4 | BJ24: 6.32 | BK24: 6.87 | BL24: 6.41 | BN24: 山梨県 | BO24: 山梨県 | BP24: 0.9 | BQ24: 1.4 | BR24: 1 | BS24: 1.1
B25: ヒートポンプ運転時間 | C25: h/日 | D25: 22 | E25: 22 | F25: 22 | G25: 22 | H25: 22 | I25: 22 | J25: 22 | K25: 22 | L25: 22 | M25: 22 | N25: 22 | O25: 22 | P25: =SUM(D25:O25) -> 264 | Q25: =MAX(D25:O25) -> 22 | R25: =MIN(D25:O25) -> 22 | V25: 暖房 | W25: 12.48 | X25: 3.07 | Y25: 0 | Z25: 0 | AA25: 0 | AB25: 0 | AC25: 0 | AD25: 12.77 | AE25: 18.83 | AF25: 20.54 | AG25: 17.87 | AH25: 14.41 | AJ25: 17 | AK25: 4.4 | AL25: 4.1 | AM25: 4 | AN25: 3.6 | AO25: 3.4 | AP25: 8.97 | AQ25: 3.86 | AR25: 5.59 | AS25: 1.42 | AT25: 6.06 | AU25: 4.27 | AV25: 5.99 | AW25: 8 | AX25: 7.3 | AY25: 3.67 | AZ25: 6.59 | BA25: 6.43 | BB25: 6 | BC25: 7.24 | BD25: 6.42 | BE25: 4.23 | BF25: 6.3 | BG25: 6.1 | BH25: 4.9 | BI25: 6.1 | BJ25: 5.14 | BK25: 5.65 | BL25: 5.11 | BN25: 長野県 | BO25: 長野県 | BP25: 0.7 | BQ25: 1.4 | BR25: 0.9 | BS25: 1.3
V26: 給湯 | W26: 8.65 | X26: 7.78 | Y26: 7.33 | Z26: 7.33 | AA26: 6.23 | AB26: 7.02 | AC26: 7.58 | AD26: 8.72 | AE26: 9.64 | AF26: 10.14 | AG26: 10.07 | AH26: 9.51 | AJ26: 18 | AK26: 4.7 | AL26: 5.7 | AM26: 7 | AN26: 7.2 | AO26: 9.5 | AP26: 9.27 | AQ26: 1.68 | AR26: 0 | AS26: 0 | AT26: 3.79 | AU26: 4.27 | AV26: 5.47 | AW26: 7.6 | AX26: 8.8 | AY26: 10.54 | AZ26: 6.68 | BA26: 5.93 | BB26: 6 | BC26: 6.86 | BD26: 6.95 | BE26: 4.68 | BF26: 6.2 | BG26: 6.1 | BH26: 5 | BI26: 6.1 | BJ26: 5.67 | BK26: 5.77 | BL26: 5.47 | BN26: 東海 | BO26: 岐阜県 | BP26: 1.1 | BQ26: 0.9 | BR26: 1 | BS26: 1
B27: □月別熱需要量とHP容量：空調 | U27: 医療施設 | V27: 冷房 | W27: 0 | X27: 2.53 | Y27: 5.85 | Z27: 19.36 | AA27: 45.82 | AB27: 21.95 | AC27: 4.49 | AD27: 0 | AE27: 0 | AF27: 0 | AG27: 0 | AH27: 0 | AJ27: 19 | AK27: 4.7 | AL27: 6.1 | AM27: 9.5 | AN27: 8.5 | AO27: 11.2 | AP27: 3.89 | AQ27: 0.5 | AR27: 0 | AS27: 0 | AT27: 4.55 | AU27: 3.78 | AV27: 5.73 | AW27: 0 | AX27: 9.1 | AY27: 13.54 | AZ27: 6.94 | BA27: 5.94 | BB27: 5.73 | BC27: 6.1 | BD27: 6.41 | BE27: 5.36 | BF27: 5.8 | BG27: 5.4 | BH27: 5 | BI27: 5.4 | BJ27: 5.18 | BK27: 4.97 | BL27: 5.05 | BN27: 静岡県 | BO27: 静岡県 | BP27: 1 | BQ27: 1 | BR27: 1 | BS27: 1
B28: 項目 | C28: 単位 | D28: 4月 | E28: 5月 | F28: 6月 | G28: 7月 | H28: 8月 | I28: 9月 | J28: 10月 | K28: 11月 | L28: 12月 | M28: 1月 | N28: 2月 | O28: 3月 | P28: 合計 | Q28: 最大 | R28: 最小 | S28: 備考 | V28: 暖房 | W28: 2.67 | X28: 0 | Y28: 0 | Z28: 0 | AA28: 0 | AB28: 0 | AC28: 0 | AD28: 8.65 | AE28: 20.07 | AF28: 27.49 | AG28: 21.2 | AH28: 19.92 | AJ28: 20 | AK28: 12.5 | AL28: 6.1 | AM28: 12.5 | AN28: 11.8 | AO28: 13.2 | AP28: 0.4 | AQ28: 0.3 | AR28: 0 | AS28: 0 | AT28: 3.03 | AU28: 3.94 | AV28: 2.6 | AW28: 0 | AX28: 0 | AY28: 1.19 | AZ28: 7.03 | BA28: 6.44 | BB28: 6.59 | BC28: 5.33 | BD28: 5.34 | BE28: 7.48 | BF28: 3.2 | BG28: 3.4 | BH28: 3.5 | BI28: 3.4 | BJ28: 4 | BK28: 3.9 | BL28: 4.04 | BN28: 東海 | BO28: 愛知県 | BP28: 1.1 | BQ28: 0.9 | BR28: 1 | BS28: 1
B29: 延床面積 設定 | C29: m2 | D29: =D7 -> 0 | V29: 給湯 | W29: 9.85 | X29: 8.09 | Y29: 7.88 | Z29: 7.13 | AA29: 5.54 | AB29: 5.76 | AC29: 7.88 | AD29: 8.19 | AE29: 10.14 | AF29: 9.51 | AG29: 9.98 | AH29: 10.05 | AJ29: 21 | AK29: 13.8 | AL29: 6.2 | AM29: 12.3 | AN29: 13.3 | AO29: 13.8 | AP29: 0.4 | AQ29: 0 | AR29: 0 | AS29: 0 | AT29: 0 | AU29: 0 | AV29: 1.3 | AW29: 0 | AX29: 0 | AY29: 0 | AZ29: 6.85 | BA29: 7.43 | BB29: 6.59 | BC29: 1.52 | BD29: 0.27 | BE29: 8.57 | BF29: 3.1 | BG29: 3.3 | BH29: 3.5 | BI29: 3.3 | BJ29: 2.06 | BK29: 2.24 | BL29: 2.22 | BN29: 東海 | BO29: 三重県 | BP29: 1.1 | BQ29: 0.9 | BR29: 1 | BS29: 1
B30: 月別熱需要量：冷房 | C30: MJ/月 | D30: =D18*$D$8/100*$D$29*$D$12 ->  | E30: =E18*$D$8/100*$D$29*$D$12 ->  | F30: =F18*$D$8/100*$D$29*$D$12 ->  | P30: =SUM(D30:O30) ->  | Q30: =MAX(D30:O30) ->  | R30: =MIN(D30:O30) ->  | U30: ↓並べ替え | AJ30: 22 | AK30: 12 | AL30: 6 | AM30: 12.2 | AN30: 11.3 | AO30: 9.4 | AP30: 0 | AQ30: 0 | AR30: 0 | AS30: 0 | AT30: 0 | AU30: 0 | AV30: 0 | AW30: 0 | AX30: 0 | AY30: 0 | AZ30: 4.51 | BA30: 8.42 | BB30: 8.59 | BC30: 1.14 | BD30: 0 | BE30: 8.97 | BF30: 3 | BG30: 3.2 | BH30: 3.6 | BI30: 3.2 | BJ30: 1.04 | BK30: 1.29 | BL30: 1.14 | BN30: 近畿 | BO30: 滋賀県 | BP30: 1.1 | BQ30: 0.9 | BR30: 1 | BS30: 1
C31: kWh/月 | D31: =D30*1000/3600 ->  | P31: =SUM(D31:O31) ->  | U31: 項目 | V31: 単位 | W31: 4月 | X31: 5月 | Y31: 6月 | Z31: 7月 | AA31: 8月 | AB31: 9月 | AC31: 10月 | AD31: 11月 | AE31: 12月 | AF31: 1月 | AG31: 2月 | AH31: 3月 | AJ31: 23 | AK31: 6.7 | AL31: 5.8 | AM31: 12.1 | AN31: 9 | AO31: 9.5 | AP31: 0 | AQ31: 0 | AR31: 0 | AS31: 0 | AT31: 0 | AU31: 0 | AV31: 0 | AW31: 0 | AX31: 0 | AY31: 0 | AZ31: 2.34 | BA31: 8.91 | BB31: 8.59 | BC31: 0 | BD31: 2.67 | BE31: 7.73 | BF31: 2.8 | BG31: 3.1 | BH31: 4 | BI31: 3.1 | BJ31: 0.72 | BK31: 1.03 | BL31: 0.88 | BN31: 近畿 | BO31: 京都府 | BP31: 1.1 | BQ31: 0.9 | BR31: 1 | BS31: 1
B32: ヒートポンプ容量：冷房 | C32: kW | D32: =D30/3.6/D$24/D$25 ->  | P32: - | S32: 目安 | U32: 季節 | W32: 中間期 | X32: 中間期 | Y32: 夏期 | Z32: 夏期 | AA32: 夏期 | AB32: 夏期 | AC32: 中間期 | AD32: 中間期 | AE32: 冬期 | AF32: 冬期 | AG32: 冬期 | AH32: 冬期 | AJ32: 24 | AK32: 5.9 | AL32: 5.6 | AM32: 6.8 | AN32: 6.6 | AO32: 5.6 | AP32: 0 | AQ32: 0 | AR32: 0 | AS32: 0 | AT32: 0 | AU32: 0 | AV32: 0 | AW32: 0 | AX32: 0 | AY32: 0 | AZ32: 2.16 | BA32: 0 | BB32: 0 | BC32: 2.67 | BD32: 5.34 | BE32: 4.96 | BF32: 1.6 | BG32: 2.8 | BH32: 0.2 | BI32: 2.8 | BJ32: 0.69 | BK32: 1.06 | BL32: 0.94 | BN32: 近畿 | BO32: 大阪府 | BP32: 1.1 | BQ32: 0.9 | BR32: 1 | BS32: 1
B33: 月別熱需要量：暖房 | C33: MJ/月 | D33: =D19*$D$9/100*$D$29*$D$13 ->  | E33: =E19*$D$9/100*$D$29*$D$13 ->  | P33: =SUM(D33:O33) ->  | U33: 冷房 | V33: 集合住宅 | W33: =W15 -> 0 | X33: 0 | Y33: 7.96 | Z33: 32.14 | AA33: 47.76 | AB33: 12.14 | AC33: 0 | AD33: 0 | AE33: 0 | AF33: 0 | AG33: 0 | AH33: 0 | AJ33: 合計 | AK33: =SUM(AK9:AK32) -> 100 | AL33: 100 | AM33: 100 | AN33: 100 | AO33: 100 | AP33: 100 | AQ33: 100 | AR33: 100 | AS33: 100 | AT33: 100 | AU33: 100 | AV33: 100 | AW33: 100 | AX33: 100 | AY33: 100 | AZ33: 100 | BA33: 100 | BB33: 100 | BC33: 100 | BD33: 100 | BE33: 100 | BF33: 100 | BG33: 100 | BH33: 100 | BI33: 100 | BJ33: 100.3 | BK33: 100 | BL33: 100 | BN33: 近畿 | BO33: 兵庫県 | BP33: 1.1 | BQ33: 0.9 | BR33: 1 | BS33: 1
C34: kWh/月 | D34: =D33*1000/3600 ->  | P34: =SUM(D34:O34) ->  | V34: 業務施設 | W34: =W18 -> 0 | X34: 3.92 | Y34: 15.67 | Z34: 27.63 | AA34: 30.72 | AB34: 19.79 | AC34: 2.27 | AD34: 0 | AE34: 0 | AF34: 0 | AG34: 0 | AH34: 0 | AJ34: 運転時間 | AK34: =COUNTIF(AK9:AK32,">0") -> 24 | AL34: =COUNTIF(AL9:AL32,">0") -> 24 | AM34: 22 | AN34: 22 | AO34: 22 | AP34: 14 | AQ34: 13 | AR34: 11 | AS34: 10 | AT34: 14 | AU34: 14 | AV34: 16 | AW34: 11 | AX34: 11 | AY34: 12 | AZ34: 24 | BA34: 14 | BB34: 23 | BC34: 23 | BD34: 23 | BE34: 24 | BF34: 24 | BG34: 24 | BH34: 24 | BI34: 24 | BJ34: 24 | BK34: 24 | BL34: 24 | BN34: 近畿 | BO34: 奈良県 | BP34: 1.1 | BQ34: 0.9 | BR34: 1 | BS34: 1
B35: ヒートポンプ容量：暖房 | C35: kW | D35: =D33/3.6/D$24/D$25 ->  | P35: - | S35: 目安 | V35: 商業施設 | W35: =W21 -> 4.05 | X35: 8.91 | Y35: 12.63 | Z35: 19.29 | AA35: 20.81 | AB35: 13.68 | AC35: 10.93 | AD35: 3.64 | AE35: 2.02 | AF35: 0 | AG35: 1.21 | AH35: 2.83 | AJ35: (0以上の時間数) | BN35: 近畿 | BO35: 和歌山県 | BP35: 1.1 | BQ35: 0.9 | BR35: 1 | BS35: 1
V36: 宿泊施設 | W36: =W24 -> 3.89 | X36: 7.56 | Y36: 14.06 | Z36: 21.42 | AA36: 24.77 | AB36: 14.96 | AC36: 5.18 | AD36: 2.14 | AE36: 1 | AF36: 1 | AG36: 0.91 | AH36: 3.11 | BN36: 中国 | BO36: 鳥取県 | BP36: 1.1 | BQ36: 0.9 | BR36: 1 | BS36: 1
B37: ・空調月別熱需要量（熱利用用途を月別に設定） | V37: 医療施設 | W37: =W27 -> 0 | X37: 2.53 | Y37: 5.85 | Z37: 19.36 | AA37: 45.82 | AB37: 21.95 | AC37: 4.49 | AD37: 0 | AE37: 0 | AF37: 0 | AG37: 0 | AH37: 0 | BN37: 中国 | BO37: 島根県 | BP37: 1.1 | BQ37: 0.9 | BR37: 1 | BS37: 1
B38: 項目 | C38: 単位 | D38: 4月 | E38: 5月 | F38: 6月 | G38: 7月 | H38: 8月 | I38: 9月 | J38: 10月 | K38: 11月 | L38: 12月 | M38: 1月 | N38: 2月 | O38: 3月 | P38: 合計 | Q38: 最大 | R38: 最小 | S38: 備考 | U38: 暖房 | V38: 集合住宅 | W38: =W16 -> 8.11 | X38: 0 | Y38: 0 | Z38: 0 | AA38: 0 | AB38: 0 | AC38: 0 | AD38: 8.95 | AE38: 18.77 | AF38: 24.03 | AG38: 20.03 | AH38: 20.08 | BN38: 中国 | BO38: 岡山県 | BP38: 1.1 | BQ38: 0.9 | BR38: 1 | BS38: 1
B39: 熱利用用途 | D39: 暖房 | E39: 冷房 | F39: 冷房 | G39: 冷房 | H39: 冷房 | I39: 冷房 | J39: 冷房 | K39: 暖房 | L39: 暖房 | M39: 暖房 | N39: 暖房 | O39: 暖房 | V39: 業務施設 | W39: =W19 -> 4.27 | X39: 0 | Y39: 0 | Z39: 0 | AA39: 0 | AB39: 0 | AC39: 0 | AD39: 7.98 | AE39: 21.37 | AF39: 25.93 | AG39: 22.79 | AH39: 17.66 | BN39: 中国 | BO39: 広島県 | BP39: 1.1 | BQ39: 0.9 | BR39: 1 | BS39: 1
B40: 月別熱需要量：空調 | C40: MJ/月 | D40: =IF(D39="暖房",D33,IF(D39="冷房",D30,0)) ->  | E40: =IF(E39="暖房",E33,IF(E39="冷房",E30,0)) ->  | P40: =SUM(D40:O40) ->  | Q40: =MAX(D40:O40) ->  | R40: =MIN(D40:O40) ->  | V40: 商業施設 | W40: =W22 -> 0 | X40: 0 | Y40: 0 | Z40: 0 | AA40: 0 | AB40: 0 | AC40: 0 | AD40: 0 | AE40: 21.69 | AF40: 32.8 | AG40: 29.64 | AH40: 15.87 | BN40: 中国 | BO40: 山口県 | BP40: 1.1 | BQ40: 0.9 | BR40: 1 | BS40: 1
C41: kWh/月 | D41: =D40*1000/3600 ->  | P41: =SUM(D41:O41) ->  | Q41: =MAX(D41:O41) ->  | R41: =MIN(D41:O41) ->  | V41: 宿泊施設 | W41: =W25 -> 12.48 | X41: 3.07 | Y41: 0 | Z41: 0 | AA41: 0 | AB41: 0 | AC41: 0 | AD41: 12.77 | AE41: 18.83 | AF41: 20.54 | AG41: 17.87 | AH41: 14.41 | BN41: 四国 | BO41: 徳島県 | BP41: 1.1 | BQ41: 0.9 | BR41: 1 | BS41: 1
V42: 医療施設 | W42: =W28 -> 2.67 | X42: 0 | Y42: 0 | Z42: 0 | AA42: 0 | AB42: 0 | AC42: 0 | AD42: 8.65 | AE42: 20.07 | AF42: 27.49 | AG42: 21.2 | AH42: 19.92 | BN42: 四国 | BO42: 香川県 | BP42: 1.1 | BQ42: 0.9 | BR42: 1 | BS42: 1
B43: □月別熱需要量とHP容量：給湯 | U43: 給湯 | V43: 集合住宅 | W43: =W17 -> 10.32 | X43: 9.04 | Y43: 6.76 | Z43: 5.41 | AA43: 3.76 | AB43: 3.87 | AC43: 6.22 | AD43: 7.1 | AE43: 10.57 | AF43: 12.08 | AG43: 12.55 | AH43: 12.32 | BN43: 四国 | BO43: 愛媛県 | BP43: 1.1 | BQ43: 0.9 | BR43: 1 | BS43: 1
B44: 項目 | C44: 単位 | D44: 4月 | E44: 5月 | F44: 6月 | G44: 7月 | H44: 8月 | I44: 9月 | J44: 10月 | K44: 11月 | L44: 12月 | M44: 1月 | N44: 2月 | O44: 3月 | P44: 合計 | Q44: 最大 | R44: 最小 | S44: 備考 | V44: 業務施設 | W44: =W20 -> 10.34 | X44: 6.9 | Y44: 3.45 | Z44: 3.45 | AA44: 3.45 | AB44: 3.45 | AC44: 6.9 | AD44: 6.9 | AE44: 10.34 | AF44: 13.79 | AG44: 17.24 | AH44: 13.79 | BN44: 四国 | BO44: 高知県 | BP44: 1.1 | BQ44: 0.9 | BR44: 1 | BS44: 1
B45: 延床面積 設定 | C45: m2 | D45: =D7 -> 0 | V45: 商業施設 | W45: =W23 -> 9.07 | X45: 7.83 | Y45: 7.26 | Z45: 7.99 | AA45: 7.84 | AB45: 8.12 | AC45: 7.62 | AD45: 9.07 | AE45: 10.35 | AF45: 7.66 | AG45: 8.02 | AH45: 9.17 | BN45: 九州 | BO45: 福岡県 | BP45: 1.2 | BQ45: 0.7 | BR45: 1 | BS45: 1
B46: 月別熱需要量：給湯 | C46: MJ/月 | D46: =$D$10*D20/100*$D$45 ->  | P46: =SUM(D46:O46) ->  | Q46: =MAX(D46:O46) ->  | R46: =MIN(D46:O46) ->  | V46: 宿泊施設 | W46: =W26 -> 8.65 | X46: 7.78 | Y46: 7.33 | Z46: 7.33 | AA46: 6.23 | AB46: 7.02 | AC46: 7.58 | AD46: 8.72 | AE46: 9.64 | AF46: 10.14 | AG46: 10.07 | AH46: 9.51 | BN46: 九州 | BO46: 佐賀県 | BP46: 1.2 | BQ46: 0.7 | BR46: 1 | BS46: 1
C47: kWh/月 | D47: =D46*1000/3600 ->  | P47: =SUM(D47:O47) ->  | Q47: =MAX(D47:O47) ->  | R47: =MIN(D47:O47) ->  | V47: 医療施設 | W47: =W29 -> 9.85 | X47: 8.09 | Y47: 7.88 | Z47: 7.13 | AA47: 5.54 | AB47: 5.76 | AC47: 7.88 | AD47: 8.19 | AE47: 10.14 | AF47: 9.51 | AG47: 9.98 | AH47: 10.05 | BN47: 九州 | BO47: 長崎県 | BP47: 1.2 | BQ47: 0.7 | BR47: 1 | BS47: 1
B48: ヒートポンプ容量：給湯 | C48: kW | D48: =D46/3.6/D$24/D$25 ->  | E48: =E46/3.6/E$24/E$25 ->  | P48: - | Q48: =MAX(D48:O48) ->  | R48: =MIN(D48:O48) ->  | S48: 目安 | BN48: 九州 | BO48: 熊本県 | BP48: 1.2 | BQ48: 0.7 | BR48: 1 | BS48: 1
BN49: 九州 | BO49: 大分県 | BP49: 1.2 | BQ49: 0.7 | BR49: 1 | BS49: 1
BN50: 九州 | BO50: 宮崎県 | BP50: 1.2 | BQ50: 0.7 | BR50: 1 | BS50: 1
BN51: 九州 | BO51: 鹿児島県 | BP51: 1.2 | BQ51: 0.7 | BR51: 1 | BS51: 1
B52: 空調熱需要量 | C52: 冷暖混合 | G52: 冷暖 別 | M52: 給湯熱需要量 | BN52: 沖縄 | BO52: 沖縄県 | BP52: 1.5 | BQ52: 0.07 | BR52: 1.1 | BS52: 0.5

Sheet 熱需要量算定_月別時間別(不要) (hidden)
A1: 建物用途 | B1: =熱需要量算定・原単位!D6 -> 0 | E1: 設定セル
A2: 延床面積 | B2: =熱需要量算定・原単位!D7 -> 0 | C2: m2 | E2: 変更設定していいセル（計算式が入力されている）
A3: 地域 | B3: =熱需要量算定・原単位!D11 -> 0 | E3: あまり変更しなくていい設定セル
A4: 地域係数：冷房 | B4: =熱需要量算定・原単位!D12 ->  | E4: 計算セル
A5: 地域係数：暖房 | B5: =熱需要量算定・原単位!D13 ->  | E5: 計算式・項目確認セル
B7: 冷房 | C7: 月別負荷率*面積 | M7: 単位 | N7: MJ/月 | P7: 暖房 | Q7: 月別負荷率*面積 | AA7: 単位 | AB7: MJ/月 | AD7: 給湯 | AE7: 月別負荷率*面積 | AO7: 単位 | AP7: MJ/月
B8: 項目 | C8: 4月 | D8: 5月 | E8: 6月 | F8: 7月 | G8: 8月 | H8: 9月 | I8: 10月 | J8: 11月 | K8: 12月 | L8: 1月 | M8: 2月 | N8: 3月 | P8: 項目 | Q8: 4月 | R8: 5月 | S8: 6月 | T8: 7月 | U8: 8月 | V8: 9月 | W8: 10月 | X8: 11月 | Y8: 12月 | Z8: 1月 | AA8: 2月 | AB8: 3月 | AD8: 項目 | AE8: 4月 | AF8: 5月 | AG8: 6月 | AH8: 7月 | AI8: 8月 | AJ8: 9月 | AK8: 10月 | AL8: 11月 | AM8: 12月 | AN8: 1月 | AO8: 2月 | AP8: 3月
B9: 季節 | C9: 中間期 | D9: 中間期 | E9: 夏期 | F9: 夏期 | G9: 夏期 | H9: 夏期 | I9: 中間期 | J9: 中間期 | K9: 冬期 | L9: 冬期 | M9: 冬期 | N9: 冬期 | P9: 季節 | Q9: 中間期 | R9: 中間期 | S9: 夏期 | T9: 夏期 | U9: 夏期 | V9: 夏期 | W9: 中間期 | X9: 中間期 | Y9: 冬期 | Z9: 冬期 | AA9: 冬期 | AB9: 冬期 | AD9: 季節 | AE9: 中間期 | AF9: 中間期 | AG9: 夏期 | AH9: 夏期 | AI9: 夏期 | AJ9: 夏期 | AK9: 中間期 | AL9: 中間期 | AM9: 冬期 | AN9: 冬期 | AO9: 冬期 | AP9: 冬期
B10: 集合住宅 | C10: =$B$2*熱需要量算定・原単位!W15/100*熱需要量算定・原単位!$V$6*$B$4 ->  | D10: =$B$2*熱需要量算定・原単位!X15/100*熱需要量算定・原単位!$V$6*$B$4 ->  | E10: =$B$2*熱需要量算定・原単位!Y15/100*熱需要量算定・原単位!$V$6*$B$4 ->  | F10: =$B$2*熱需要量算定・原単位!Z15/100*熱需要量算定・原単位!$V$6*$B$4 ->  | G10: =$B$2*熱需要量算定・原単位!AA15/100*熱需要量算定・原単位!$V$6*$B$4 ->  | H10: =$B$2*熱需要量算定・原単位!AB15/100*熱需要量算定・原単位!$V$6*$B$4 ->  | I10: =$B$2*熱需要量算定・原単位!AC15/100*熱需要量算定・原単位!$V$6*$B$4 ->  | J10: =$B$2*熱需要量算定・原単位!AD15/100*熱需要量算定・原単位!$V$6*$B$4 ->  | K10: =$B$2*熱需要量算定・原単位!AE15/100*熱需要量算定・原単位!$V$6*$B$4 ->  | L10: =$B$2*熱需要量算定・原単位!AF15/100*熱需要量算定・原単位!$V$6*$B$4 ->  | M10: =$B$2*熱需要量算定・原単位!AG15/100*熱需要量算定・原単位!$V$6*$B$4 ->  | N10: =$B$2*熱需要量算定・原単位!AH15/100*熱需要量算定・原単位!$V$6*$B$4 ->  | P10: 集合住宅 | Q10: =$B$2*熱需要量算定・原単位!$X$6*熱需要量算定・原単位!W38/100*$B$5 ->  | R10: =$B$2*熱需要量算定・原単位!$X$6*熱需要量算定・原単位!X38/100*$B$5 ->  | S10: =$B$2*熱需要量算定・原単位!$X$6*熱需要量算定・原単位!Y38/100*$B$5 ->  | T10: =$B$2*熱需要量算定・原単位!$X$6*熱需要量算定・原単位!Z38/100*$B$5 ->  | U10: =$B$2*熱需要量算定・原単位!$X$6*熱需要量算定・原単位!AA38/100*$B$5 ->  | V10: =$B$2*熱需要量算定・原単位!$X$6*熱需要量算定・原単位!AB38/100*$B$5 ->  | W10: =$B$2*熱需要量算定・原単位!$X$6*熱需要量算定・原単位!AC38/100*$B$5 ->  | X10: =$B$2*熱需要量算定・原単位!$X$6*熱需要量算定・原単位!AD38/100*$B$5 ->  | Y10: =$B$2*熱需要量算定・原単位!$X$6*熱需要量算定・原単位!AE38/100*$B$5 ->  | Z10: =$B$2*熱需要量算定・原単位!$X$6*熱需要量算定・原単位!AF38/100*$B$5 ->  | AA10: =$B$2*熱需要量算定・原単位!$X$6*熱需要量算定・原単位!AG38/100*$B$5 ->  | AB10: =$B$2*熱需要量算定・原単位!$X$6*熱需要量算定・原単位!AH38/100*$B$5 ->  | AD10: 集合住宅 | AE10: =$B$2*熱需要量算定・原単位!$Z$6*熱需要量算定・原単位!W43/100 -> 0 | AF10: =$B$2*熱需要量算定・原単位!$Z$6*熱需要量算定・原単位!X43/100 -> 0 | AG10: =$B$2*熱需要量算定・原単位!$Z$6*熱需要量算定・原単位!Y43/100 -> 0 | AH10: =$B$2*熱需要量算定・原単位!$Z$6*熱需要量算定・原単位!Z43/100 -> 0 | AI10: =$B$2*熱需要量算定・原単位!$Z$6*熱需要量算定・原単位!AA43/100 -> 0 | AJ10: =$B$2*熱需要量算定・原単位!$Z$6*熱需要量算定・原単位!AB43/100 -> 0 | AK10: =$B$2*熱需要量算定・原単位!$Z$6*熱需要量算定・原単位!AC43/100 -> 0 | AL10: =$B$2*熱需要量算定・原単位!$Z$6*熱需要量算定・原単位!AD43/100 -> 0 | AM10: =$B$2*熱需要量算定・原単位!$Z$6*熱需要量算定・原単位!AE43/100 -> 0 | AN10: =$B$2*熱需要量算定・原単位!$Z$6*熱需要量算定・原単位!AF43/100 -> 0 | AO10: =$B$2*熱需要量算定・原単位!$Z$6*熱需要量算定・原単位!AG43/100 -> 0 | AP10: =$B$2*熱需要量算定・原単位!$Z$6*熱需要量算定・原単位!AH43/100 -> 0
B11: 業務施設 | C11: =$B$2*熱需要量算定・原単位!W18/100*熱需要量算定・原単位!$V$7*$B$4 ->  | D11: =$B$2*熱需要量算定・原単位!X18/100*熱需要量算定・原単位!$V$7*$B$4 ->  | E11: =$B$2*熱需要量算定・原単位!Y18/100*熱需要量算定・原単位!$V$7*$B$4 ->  | F11: =$B$2*熱需要量算定・原単位!Z18/100*熱需要量算定・原単位!$V$7*$B$4 ->  | G11: =$B$2*熱需要量算定・原単位!AA18/100*熱需要量算定・原単位!$V$7*$B$4 ->  | H11: =$B$2*熱需要量算定・原単位!AB18/100*熱需要量算定・原単位!$V$7*$B$4 ->  | I11: =$B$2*熱需要量算定・原単位!AC18/100*熱需要量算定・原単位!$V$7*$B$4 ->  | J11: =$B$2*熱需要量算定・原単位!AD18/100*熱需要量算定・原単位!$V$7*$B$4 ->  | K11: =$B$2*熱需要量算定・原単位!AE18/100*熱需要量算定・原単位!$V$7*$B$4 ->  | L11: =$B$2*熱需要量算定・原単位!AF18/100*熱需要量算定・原単位!$V$7*$B$4 ->  | M11: =$B$2*熱需要量算定・原単位!AG18/100*熱需要量算定・原単位!$V$7*$B$4 ->  | N11: =$B$2*熱需要量算定・原単位!AH18/100*熱需要量算定・原単位!$V$7*$B$4 ->  | P11: 業務施設 | Q11: =$B$2*熱需要量算定・原単位!$X$7*熱需要量算定・原単位!W39/100*$B$5 ->  | R11: =$B$2*熱需要量算定・原単位!$X$7*熱需要量算定・原単位!X39/100*$B$5 ->  | S11: =$B$2*熱需要量算定・原単位!$X$7*熱需要量算定・原単位!Y39/100*$B$5 ->  | T11: =$B$2*熱需要量算定・原単位!$X$7*熱需要量算定・原単位!Z39/100*$B$5 ->  | U11: =$B$2*熱需要量算定・原単位!$X$7*熱需要量算定・原単位!AA39/100*$B$5 ->  | V11: =$B$2*熱需要量算定・原単位!$X$7*熱需要量算定・原単位!AB39/100*$B$5 ->  | W11: =$B$2*熱需要量算定・原単位!$X$7*熱需要量算定・原単位!AC39/100*$B$5 ->  | X11: =$B$2*熱需要量算定・原単位!$X$7*熱需要量算定・原単位!AD39/100*$B$5 ->  | Y11: =$B$2*熱需要量算定・原単位!$X$7*熱需要量算定・原単位!AE39/100*$B$5 ->  | Z11: =$B$2*熱需要量算定・原単位!$X$7*熱需要量算定・原単位!AF39/100*$B$5 ->  | AA11: =$B$2*熱需要量算定・原単位!$X$7*熱需要量算定・原単位!AG39/100*$B$5 ->  | AB11: =$B$2*熱需要量算定・原単位!$X$7*熱需要量算定・原単位!AH39/100*$B$5 ->  | AD11: 業務施設 | AE11: =$B$2*熱需要量算定・原単位!$Z$7*熱需要量算定・原単位!W44/100 -> 0 | AF11: =$B$2*熱需要量算定・原単位!$Z$7*熱需要量算定・原単位!X44/100 -> 0 | AG11: =$B$2*熱需要量算定・原単位!$Z$7*熱需要量算定・原単位!Y44/100 -> 0 | AH11: =$B$2*熱需要量算定・原単位!$Z$7*熱需要量算定・原単位!Z44/100 -> 0 | AI11: =$B$2*熱需要量算定・原単位!$Z$7*熱需要量算定・原単位!AA44/100 -> 0 | AJ11: =$B$2*熱需要量算定・原単位!$Z$7*熱需要量算定・原単位!AB44/100 -> 0 | AK11: =$B$2*熱需要量算定・原単位!$Z$7*熱需要量算定・原単位!AC44/100 -> 0 | AL11: =$B$2*熱需要量算定・原単位!$Z$7*熱需要量算定・原単位!AD44/100 -> 0 | AM11: =$B$2*熱需要量算定・原単位!$Z$7*熱需要量算定・原単位!AE44/100 -> 0 | AN11: =$B$2*熱需要量算定・原単位!$Z$7*熱需要量算定・原単位!AF44/100 -> 0 | AO11: =$B$2*熱需要量算定・原単位!$Z$7*熱需要量算定・原単位!AG44/100 -> 0 | AP11: =$B$2*熱需要量算定・原単位!$Z$7*熱需要量算定・原単位!AH44/100 -> 0
B12: 商業施設 | C12: =$B$2*熱需要量算定・原単位!W21/100*熱需要量算定・原単位!$V$8*$B$4 ->  | D12: =$B$2*熱需要量算定・原単位!X21/100*熱需要量算定・原単位!$V$8*$B$4 ->  | E12: =$B$2*熱需要量算定・原単位!Y21/100*熱需要量算定・原単位!$V$8*$B$4 ->  | F12: =$B$2*熱需要量算定・原単位!Z21/100*熱需要量算定・原単位!$V$8*$B$4 ->  | G12: =$B$2*熱需要量算定・原単位!AA21/100*熱需要量算定・原単位!$V$8*$B$4 ->  | H12: =$B$2*熱需要量算定・原単位!AB21/100*熱需要量算定・原単位!$V$8*$B$4 ->  | I12: =$B$2*熱需要量算定・原単位!AC21/100*熱需要量算定・原単位!$V$8*$B$4 ->  | J12: =$B$2*熱需要量算定・原単位!AD21/100*熱需要量算定・原単位!$V$8*$B$4 ->  | K12: =$B$2*熱需要量算定・原単位!AE21/100*熱需要量算定・原単位!$V$8*$B$4 ->  | L12: =$B$2*熱需要量算定・原単位!AF21/100*熱需要量算定・原単位!$V$8*$B$4 ->  | M12: =$B$2*熱需要量算定・原単位!AG21/100*熱需要量算定・原単位!$V$8*$B$4 ->  | N12: =$B$2*熱需要量算定・原単位!AH21/100*熱需要量算定・原単位!$V$8*$B$4 ->  | P12: 商業施設 | Q12: =$B$2*熱需要量算定・原単位!$X$8*熱需要量算定・原単位!W40/100*$B$5 ->  | R12: =$B$2*熱需要量算定・原単位!$X$8*熱需要量算定・原単位!X40/100*$B$5 ->  | S12: =$B$2*熱需要量算定・原単位!$X$8*熱需要量算定・原単位!Y40/100*$B$5 ->  | T12: =$B$2*熱需要量算定・原単位!$X$8*熱需要量算定・原単位!Z40/100*$B$5 ->  | U12: =$B$2*熱需要量算定・原単位!$X$8*熱需要量算定・原単位!AA40/100*$B$5 ->  | V12: =$B$2*熱需要量算定・原単位!$X$8*熱需要量算定・原単位!AB40/100*$B$5 ->  | W12: =$B$2*熱需要量算定・原単位!$X$8*熱需要量算定・原単位!AC40/100*$B$5 ->  | X12: =$B$2*熱需要量算定・原単位!$X$8*熱需要量算定・原単位!AD40/100*$B$5 ->  | Y12: =$B$2*熱需要量算定・原単位!$X$8*熱需要量算定・原単位!AE40/100*$B$5 ->  | Z12: =$B$2*熱需要量算定・原単位!$X$8*熱需要量算定・原単位!AF40/100*$B$5 ->  | AA12: =$B$2*熱需要量算定・原単位!$X$8*熱需要量算定・原単位!AG40/100*$B$5 ->  | AB12: =$B$2*熱需要量算定・原単位!$X$8*熱需要量算定・原単位!AH40/100*$B$5 ->  | AD12: 商業施設 | AE12: =$B$2*熱需要量算定・原単位!$Z$8*熱需要量算定・原単位!W45/100 -> 0 | AF12: =$B$2*熱需要量算定・原単位!$Z$8*熱需要量算定・原単位!X45/100 -> 0 | AG12: =$B$2*熱需要量算定・原単位!$Z$8*熱需要量算定・原単位!Y45/100 -> 0 | AH12: =$B$2*熱需要量算定・原単位!$Z$8*熱需要量算定・原単位!Z45/100 -> 0 | AI12: =$B$2*熱需要量算定・原単位!$Z$8*熱需要量算定・原単位!AA45/100 -> 0 | AJ12: =$B$2*熱需要量算定・原単位!$Z$8*熱需要量算定・原単位!AB45/100 -> 0 | AK12: =$B$2*熱需要量算定・原単位!$Z$8*熱需要量算定・原単位!AC45/100 -> 0 | AL12: =$B$2*熱需要量算定・原単位!$Z$8*熱需要量算定・原単位!AD45/100 -> 0 | AM12: =$B$2*熱需要量算定・原単位!$Z$8*熱需要量算定・原単位!AE45/100 -> 0 | AN12: =$B$2*熱需要量算定・原単位!$Z$8*熱需要量算定・原単位!AF45/100 -> 0 | AO12: =$B$2*熱需要量算定・原単位!$Z$8*熱需要量算定・原単位!AG45/100 -> 0 | AP12: =$B$2*熱需要量算定・原単位!$Z$8*熱需要量算定・原単位!AH45/100 -> 0
B13: 宿泊施設 | C13: =$B$2*熱需要量算定・原単位!W24/100*熱需要量算定・原単位!$V$9*$B$4 ->  | D13: =$B$2*熱需要量算定・原単位!X24/100*熱需要量算定・原単位!$V$9*$B$4 ->  | E13: =$B$2*熱需要量算定・原単位!Y24/100*熱需要量算定・原単位!$V$9*$B$4 ->  | F13: =$B$2*熱需要量算定・原単位!Z24/100*熱需要量算定・原単位!$V$9*$B$4 ->  | G13: =$B$2*熱需要量算定・原単位!AA24/100*熱需要量算定・原単位!$V$9*$B$4 ->  | H13: =$B$2*熱需要量算定・原単位!AB24/100*熱需要量算定・原単位!$V$9*$B$4 ->  | I13: =$B$2*熱需要量算定・原単位!AC24/100*熱需要量算定・原単位!$V$9*$B$4 ->  | J13: =$B$2*熱需要量算定・原単位!AD24/100*熱需要量算定・原単位!$V$9*$B$4 ->  | K13: =$B$2*熱需要量算定・原単位!AE24/100*熱需要量算定・原単位!$V$9*$B$4 ->  | L13: =$B$2*熱需要量算定・原単位!AF24/100*熱需要量算定・原単位!$V$9*$B$4 ->  | M13: =$B$2*熱需要量算定・原単位!AG24/100*熱需要量算定・原単位!$V$9*$B$4 ->  | N13: =$B$2*熱需要量算定・原単位!AH24/100*熱需要量算定・原単位!$V$9*$B$4 ->  | P13: 宿泊施設 | Q13: =$B$2*熱需要量算定・原単位!$X$9*熱需要量算定・原単位!W41/100*$B$5 ->  | R13: =$B$2*熱需要量算定・原単位!$X$9*熱需要量算定・原単位!X41/100*$B$5 ->  | S13: =$B$2*熱需要量算定・原単位!$X$9*熱需要量算定・原単位!Y41/100*$B$5 ->  | T13: =$B$2*熱需要量算定・原単位!$X$9*熱需要量算定・原単位!Z41/100*$B$5 ->  | U13: =$B$2*熱需要量算定・原単位!$X$9*熱需要量算定・原単位!AA41/100*$B$5 ->  | V13: =$B$2*熱需要量算定・原単位!$X$9*熱需要量算定・原単位!AB41/100*$B$5 ->  | W13: =$B$2*熱需要量算定・原単位!$X$9*熱需要量算定・原単位!AC41/100*$B$5 ->  | X13: =$B$2*熱需要量算定・原単位!$X$9*熱需要量算定・原単位!AD41/100*$B$5 ->  | Y13: =$B$2*熱需要量算定・原単位!$X$9*熱需要量算定・原単位!AE41/100*$B$5 ->  | Z13: =$B$2*熱需要量算定・原単位!$X$9*熱需要量算定・原単位!AF41/100*$B$5 ->  | AA13: =$B$2*熱需要量算定・原単位!$X$9*熱需要量算定・原単位!AG41/100*$B$5 ->  | AB13: =$B$2*熱需要量算定・原単位!$X$9*熱需要量算定・原単位!AH41/100*$B$5 ->  | AD13: 宿泊施設 | AE13: =$B$2*熱需要量算定・原単位!$Z$9*熱需要量算定・原単位!W46/100 -> 0 | AF13: =$B$2*熱需要量算定・原単位!$Z$9*熱需要量算定・原単位!X46/100 -> 0 | AG13: =$B$2*熱需要量算定・原単位!$Z$9*熱需要量算定・原単位!Y46/100 -> 0 | AH13: =$B$2*熱需要量算定・原単位!$Z$9*熱需要量算定・原単位!Z46/100 -> 0 | AI13: =$B$2*熱需要量算定・原単位!$Z$9*熱需要量算定・原単位!AA46/100 -> 0 | AJ13: =$B$2*熱需要量算定・原単位!$Z$9*熱需要量算定・原単位!AB46/100 -> 0 | AK13: =$B$2*熱需要量算定・原単位!$Z$9*熱需要量算定・原単位!AC46/100 -> 0 | AL13: =$B$2*熱需要量算定・原単位!$Z$9*熱需要量算定・原単位!AD46/100 -> 0 | AM13: =$B$2*熱需要量算定・原単位!$Z$9*熱需要量算定・原単位!AE46/100 -> 0 | AN13: =$B$2*熱需要量算定・原単位!$Z$9*熱需要量算定・原単位!AF46/100 -> 0 | AO13: =$B$2*熱需要量算定・原単位!$Z$9*熱需要量算定・原単位!AG46/100 -> 0 | AP13: =$B$2*熱需要量算定・原単位!$Z$9*熱需要量算定・原単位!AH46/100 -> 0
B14: 医療施設 | C14: =$B$2*熱需要量算定・原単位!W27/100*熱需要量算定・原単位!$V$10*$B$4 ->  | D14: =$B$2*熱需要量算定・原単位!X27/100*熱需要量算定・原単位!$V$10*$B$4 ->  | E14: =$B$2*熱需要量算定・原単位!Y27/100*熱需要量算定・原単位!$V$10*$B$4 ->  | F14: =$B$2*熱需要量算定・原単位!Z27/100*熱需要量算定・原単位!$V$10*$B$4 ->  | G14: =$B$2*熱需要量算定・原単位!AA27/100*熱需要量算定・原単位!$V$10*$B$4 ->  | H14: =$B$2*熱需要量算定・原単位!AB27/100*熱需要量算定・原単位!$V$10*$B$4 ->  | I14: =$B$2*熱需要量算定・原単位!AC27/100*熱需要量算定・原単位!$V$10*$B$4 ->  | J14: =$B$2*熱需要量算定・原単位!AD27/100*熱需要量算定・原単位!$V$10*$B$4 ->  | K14: =$B$2*熱需要量算定・原単位!AE27/100*熱需要量算定・原単位!$V$10*$B$4 ->  | L14: =$B$2*熱需要量算定・原単位!AF27/100*熱需要量算定・原単位!$V$10*$B$4 ->  | M14: =$B$2*熱需要量算定・原単位!AG27/100*熱需要量算定・原単位!$V$10*$B$4 ->  | N14: =$B$2*熱需要量算定・原単位!AH27/100*熱需要量算定・原単位!$V$10*$B$4 ->  | P14: 医療施設 | Q14: =$B$2*熱需要量算定・原単位!$X$10*熱需要量算定・原単位!W42/100*$B$5 ->  | R14: =$B$2*熱需要量算定・原単位!$X$10*熱需要量算定・原単位!X42/100*$B$5 ->  | S14: =$B$2*熱需要量算定・原単位!$X$10*熱需要量算定・原単位!Y42/100*$B$5 ->  | T14: =$B$2*熱需要量算定・原単位!$X$10*熱需要量算定・原単位!Z42/100*$B$5 ->  | U14: =$B$2*熱需要量算定・原単位!$X$10*熱需要量算定・原単位!AA42/100*$B$5 ->  | V14: =$B$2*熱需要量算定・原単位!$X$10*熱需要量算定・原単位!AB42/100*$B$5 ->  | W14: =$B$2*熱需要量算定・原単位!$X$10*熱需要量算定・原単位!AC42/100*$B$5 ->  | X14: =$B$2*熱需要量算定・原単位!$X$10*熱需要量算定・原単位!AD42/100*$B$5 ->  | Y14: =$B$2*熱需要量算定・原単位!$X$10*熱需要量算定・原単位!AE42/100*$B$5 ->  | Z14: =$B$2*熱需要量算定・原単位!$X$10*熱需要量算定・原単位!AF42/100*$B$5 ->  | AA14: =$B$2*熱需要量算定・原単位!$X$10*熱需要量算定・原単位!AG42/100*$B$5 ->  | AB14: =$B$2*熱需要量算定・原単位!$X$10*熱需要量算定・原単位!AH42/100*$B$5 ->  | AD14: 医療施設 | AE14: =$B$2*熱需要量算定・原単位!$Z$10*熱需要量算定・原単位!W47/100 -> 0 | AF14: =$B$2*熱需要量算定・原単位!$Z$10*熱需要量算定・原単位!X47/100 -> 0 | AG14: =$B$2*熱需要量算定・原単位!$Z$10*熱需要量算定・原単位!Y47/100 -> 0 | AH14: =$B$2*熱需要量算定・原単位!$Z$10*熱需要量算定・原単位!Z47/100 -> 0 | AI14: =$B$2*熱需要量算定・原単位!$Z$10*熱需要量算定・原単位!AA47/100 -> 0 | AJ14: =$B$2*熱需要量算定・原単位!$Z$10*熱需要量算定・原単位!AB47/100 -> 0 | AK14: =$B$2*熱需要量算定・原単位!$Z$10*熱需要量算定・原単位!AC47/100 -> 0 | AL14: =$B$2*熱需要量算定・原単位!$Z$10*熱需要量算定・原単位!AD47/100 -> 0 | AM14: =$B$2*熱需要量算定・原単位!$Z$10*熱需要量算定・原単位!AE47/100 -> 0 | AN14: =$B$2*熱需要量算定・原単位!$Z$10*熱需要量算定・原単位!AF47/100 -> 0 | AO14: =$B$2*熱需要量算定・原単位!$Z$10*熱需要量算定・原単位!AG47/100 -> 0 | AP14: =$B$2*熱需要量算定・原単位!$Z$10*熱需要量算定・原単位!AH47/100 -> 0
B16: 冷房 | C16: 施設判定 | N16: MJ/月 | P16: 暖房 | AB16: MJ/月 | AD16: 暖房 | AP16: MJ/月
B17: 項目 | C17: 4月 | D17: 5月 | E17: 6月 | F17: 7月 | G17: 8月 | H17: 9月 | I17: 10月 | J17: 11月 | K17: 12月 | L17: 1月 | M17: 2月 | N17: 3月 | P17: 項目 | Q17: 4月 | R17: 5月 | S17: 6月 | T17: 7月 | U17: 8月 | V17: 9月 | W17: 10月 | X17: 11月 | Y17: 12月 | Z17: 1月 | AA17: 2月 | AB17: 3月 | AD17: 項目 | AE17: 4月 | AF17: 5月 | AG17: 6月 | AH17: 7月 | AI17: 8月 | AJ17: 9月 | AK17: 10月 | AL17: 11月 | AM17: 12月 | AN17: 1月 | AO17: 2月 | AP17: 3月
B18: =B1 -> 0 | C18: =INDEX($C10:$N14,MATCH($B18,$B10:$B14,0),MATCH(C17,$C8:$N8,0)) ->  | P18: =B1 -> 0 | Q18: =INDEX($Q10:$AB14,MATCH($P18,$P10:$P14,0),MATCH(Q17,$Q8:$AB8,0)) ->  | AD18: =B1 -> 0 | AE18: =INDEX($AE10:$AP14,MATCH($AD18,$AD10:$AD14,0),MATCH(AE17,$AE8:$AP8,0)) -> 
C19: =IF(COUNTIF(熱需要量算定・原単位!$AK$5:$BL$5,'熱需要量算定_月別時間別(不要)'!$B18&'熱需要量算定_月別時間別(不要)'!$B$7&'熱需要量算定_月別時間別(不要)'!C$9)>0,C9,"-") -> - | D19: =IF(COUNTIF(熱需要量算定・原単位!$AK$5:$BL$5,'熱需要量算定_月別時間別(不要)'!$B18&'熱需要量算定_月別時間別(不要)'!$B$7&'熱需要量算定_月別時間別(不要)'!D$9)>0,D9,"-") -> - | E19: =IF(COUNTIF(熱需要量算定・原単位!$AK$5:$BL$5,'熱需要量算定_月別時間別(不要)'!$B18&'熱需要量算定_月別時間別(不要)'!$B$7&'熱需要量算定_月別時間別(不要)'!E$9)>0,E9,"-") -> - | F19: =IF(COUNTIF(熱需要量算定・原単位!$AK$5:$BL$5,'熱需要量算定_月別時間別(不要)'!$B18&'熱需要量算定_月別時間別(不要)'!$B$7&'熱需要量算定_月別時間別(不要)'!F$9)>0,F9,"-") -> - | G19: =IF(COUNTIF(熱需要量算定・原単位!$AK$5:$BL$5,'熱需要量算定_月別時間別(不要)'!$B18&'熱需要量算定_月別時間別(不要)'!$B$7&'熱需要量算定_月別時間別(不要)'!G$9)>0,G9,"-") -> - | H19: =IF(COUNTIF(熱需要量算定・原単位!$AK$5:$BL$5,'熱需要量算定_月別時間別(不要)'!$B18&'熱需要量算定_月別時間別(不要)'!$B$7&'熱需要量算定_月別時間別(不要)'!H$9)>0,H9,"-") -> - | I19: =IF(COUNTIF(熱需要量算定・原単位!$AK$5:$BL$5,'熱需要量算定_月別時間別(不要)'!$B18&'熱需要量算定_月別時間別(不要)'!$B$7&'熱需要量算定_月別時間別(不要)'!I$9)>0,I9,"-") -> - | J19: =IF(COUNTIF(熱需要量算定・原単位!$AK$5:$BL$5,'熱需要量算定_月別時間別(不要)'!$B18&'熱需要量算定_月別時間別(不要)'!$B$7&'熱需要量算定_月別時間別(不要)'!J$9)>0,J9,"-") -> - | K19: =IF(COUNTIF(熱需要量算定・原単位!$AK$5:$BL$5,'熱需要量算定_月別時間別(不要)'!$B18&'熱需要量算定_月別時間別(不要)'!$B$7&'熱需要量算定_月別時間別(不要)'!K$9)>0,K9,"-") -> - | L19: =IF(COUNTIF(熱需要量算定・原単位!$AK$5:$BL$5,'熱需要量算定_月別時間別(不要)'!$B18&'熱需要量算定_月別時間別(不要)'!$B$7&'熱需要量算定_月別時間別(不要)'!L$9)>0,L9,"-") -> - | M19: =IF(COUNTIF(熱需要量算定・原単位!$AK$5:$BL$5,'熱需要量算定_月別時間別(不要)'!$B18&'熱需要量算定_月別時間別(不要)'!$B$7&'熱需要量算定_月別時間別(不要)'!M$9)>0,M9,"-") -> - | N19: =IF(COUNTIF(熱需要量算定・原単位!$AK$5:$BL$5,'熱需要量算定_月別時間別(不要)'!$B18&'熱需要量算定_月別時間別(不要)'!$B$7&'熱需要量算定_月別時間別(不要)'!N$9)>0,N9,"-") -> - | Q19: =IF(COUNTIF(熱需要量算定・原単位!$AK$5:$BL$5,'熱需要量算定_月別時間別(不要)'!$P18&'熱需要量算定_月別時間別(不要)'!$P$7&'熱需要量算定_月別時間別(不要)'!Q$9)>0,Q9,"-") -> - | R19: =IF(COUNTIF(熱需要量算定・原単位!$AK$5:$BL$5,'熱需要量算定_月別時間別(不要)'!$P18&'熱需要量算定_月別時間別(不要)'!$P$7&'熱需要量算定_月別時間別(不要)'!R$9)>0,R9,"-") -> - | S19: =IF(COUNTIF(熱需要量算定・原単位!$AK$5:$BL$5,'熱需要量算定_月別時間別(不要)'!$P18&'熱需要量算定_月別時間別(不要)'!$P$7&'熱需要量算定_月別時間別(不要)'!S$9)>0,S9,"-") -> - | T19: =IF(COUNTIF(熱需要量算定・原単位!$AK$5:$BL$5,'熱需要量算定_月別時間別(不要)'!$P18&'熱需要量算定_月別時間別(不要)'!$P$7&'熱需要量算定_月別時間別(不要)'!T$9)>0,T9,"-") -> - | U19: =IF(COUNTIF(熱需要量算定・原単位!$AK$5:$BL$5,'熱需要量算定_月別時間別(不要)'!$P18&'熱需要量算定_月別時間別(不要)'!$P$7&'熱需要量算定_月別時間別(不要)'!U$9)>0,U9,"-") -> - | V19: =IF(COUNTIF(熱需要量算定・原単位!$AK$5:$BL$5,'熱需要量算定_月別時間別(不要)'!$P18&'熱需要量算定_月別時間別(不要)'!$P$7&'熱需要量算定_月別時間別(不要)'!V$9)>0,V9,"-") -> - | W19: =IF(COUNTIF(熱需要量算定・原単位!$AK$5:$BL$5,'熱需要量算定_月別時間別(不要)'!$P18&'熱需要量算定_月別時間別(不要)'!$P$7&'熱需要量算定_月別時間別(不要)'!W$9)>0,W9,"-") -> - | X19: =IF(COUNTIF(熱需要量算定・原単位!$AK$5:$BL$5,'熱需要量算定_月別時間別(不要)'!$P18&'熱需要量算定_月別時間別(不要)'!$P$7&'熱需要量算定_月別時間別(不要)'!X$9)>0,X9,"-") -> - | Y19: =IF(COUNTIF(熱需要量算定・原単位!$AK$5:$BL$5,'熱需要量算定_月別時間別(不要)'!$P18&'熱需要量算定_月別時間別(不要)'!$P$7&'熱需要量算定_月別時間別(不要)'!Y$9)>0,Y9,"-") -> - | Z19: =IF(COUNTIF(熱需要量算定・原単位!$AK$5:$BL$5,'熱需要量算定_月別時間別(不要)'!$P18&'熱需要量算定_月別時間別(不要)'!$P$7&'熱需要量算定_月別時間別(不要)'!Z$9)>0,Z9,"-") -> - | AA19: =IF(COUNTIF(熱需要量算定・原単位!$AK$5:$BL$5,'熱需要量算定_月別時間別(不要)'!$P18&'熱需要量算定_月別時間別(不要)'!$P$7&'熱需要量算定_月別時間別(不要)'!AA$9)>0,AA9,"-") -> - | AB19: =IF(COUNTIF(熱需要量算定・原単位!$AK$5:$BL$5,'熱需要量算定_月別時間別(不要)'!$P18&'熱需要量算定_月別時間別(不要)'!$P$7&'熱需要量算定_月別時間別(不要)'!AB$9)>0,AB9,"-") -> - | AE19: =IF(COUNTIF(熱需要量算定・原単位!$AK$5:$BL$5,'熱需要量算定_月別時間別(不要)'!$AD18&'熱需要量算定_月別時間別(不要)'!$AD$7&'熱需要量算定_月別時間別(不要)'!AE$9)>0,AE9,"-") -> - | AF19: =IF(COUNTIF(熱需要量算定・原単位!$AK$5:$BL$5,'熱需要量算定_月別時間別(不要)'!$AD18&'熱需要量算定_月別時間別(不要)'!$AD$7&'熱需要量算定_月別時間別(不要)'!AF$9)>0,AF9,"-") -> - | AG19: =IF(COUNTIF(熱需要量算定・原単位!$AK$5:$BL$5,'熱需要量算定_月別時間別(不要)'!$AD18&'熱需要量算定_月別時間別(不要)'!$AD$7&'熱需要量算定_月別時間別(不要)'!AG$9)>0,AG9,"-") -> - | AH19: =IF(COUNTIF(熱需要量算定・原単位!$AK$5:$BL$5,'熱需要量算定_月別時間別(不要)'!$AD18&'熱需要量算定_月別時間別(不要)'!$AD$7&'熱需要量算定_月別時間別(不要)'!AH$9)>0,AH9,"-") -> - | AI19: =IF(COUNTIF(熱需要量算定・原単位!$AK$5:$BL$5,'熱需要量算定_月別時間別(不要)'!$AD18&'熱需要量算定_月別時間別(不要)'!$AD$7&'熱需要量算定_月別時間別(不要)'!AI$9)>0,AI9,"-") -> - | AJ19: =IF(COUNTIF(熱需要量算定・原単位!$AK$5:$BL$5,'熱需要量算定_月別時間別(不要)'!$AD18&'熱需要量算定_月別時間別(不要)'!$AD$7&'熱需要量算定_月別時間別(不要)'!AJ$9)>0,AJ9,"-") -> - | AK19: =IF(COUNTIF(熱需要量算定・原単位!$AK$5:$BL$5,'熱需要量算定_月別時間別(不要)'!$AD18&'熱需要量算定_月別時間別(不要)'!$AD$7&'熱需要量算定_月別時間別(不要)'!AK$9)>0,AK9,"-") -> - | AL19: =IF(COUNTIF(熱需要量算定・原単位!$AK$5:$BL$5,'熱需要量算定_月別時間別(不要)'!$AD18&'熱需要量算定_月別時間別(不要)'!$AD$7&'熱需要量算定_月別時間別(不要)'!AL$9)>0,AL9,"-") -> - | AM19: =IF(COUNTIF(熱需要量算定・原単位!$AK$5:$BL$5,'熱需要量算定_月別時間別(不要)'!$AD18&'熱需要量算定_月別時間別(不要)'!$AD$7&'熱需要量算定_月別時間別(不要)'!AM$9)>0,AM9,"-") -> - | AN19: =IF(COUNTIF(熱需要量算定・原単位!$AK$5:$BL$5,'熱需要量算定_月別時間別(不要)'!$AD18&'熱需要量算定_月別時間別(不要)'!$AD$7&'熱需要量算定_月別時間別(不要)'!AN$9)>0,AN9,"-") -> - | AO19: =IF(COUNTIF(熱需要量算定・原単位!$AK$5:$BL$5,'熱需要量算定_月別時間別(不要)'!$AD18&'熱需要量算定_月別時間別(不要)'!$AD$7&'熱需要量算定_月別時間別(不要)'!AO$9)>0,AO9,"-") -> - | AP19: =IF(COUNTIF(熱需要量算定・原単位!$AK$5:$BL$5,'熱需要量算定_月別時間別(不要)'!$AD18&'熱需要量算定_月別時間別(不要)'!$AD$7&'熱需要量算定_月別時間別(不要)'!AP$9)>0,AP9,"-") -> -
C20: =$B$18&$B$7&C19 -> 0冷房- | D20: 0冷房- | E20: 0冷房- | F20: 0冷房- | G20: 0冷房- | H20: 0冷房- | I20: 0冷房- | J20: 0冷房- | K20: 0冷房- | L20: 0冷房- | M20: 0冷房- | N20: 0冷房- | Q20: =$P$18&$P$7&Q19 -> 0暖房- | R20: 0暖房- | S20: 0暖房- | T20: 0暖房- | U20: 0暖房- | V20: 0暖房- | W20: 0暖房- | X20: 0暖房- | Y20: 0暖房- | Z20: 0暖房- | AA20: 0暖房- | AB20: 0暖房- | AE20: =$AD$18&$AD$7&AE19 -> 0給湯- | AF20: 0給湯- | AG20: 0給湯- | AH20: 0給湯- | AI20: 0給湯- | AJ20: 0給湯- | AK20: 0給湯- | AL20: 0給湯- | AM20: 0給湯- | AN20: 0給湯- | AO20: 0給湯- | AP20: 0給湯-
B22: 冷房 | C22: 月別 | D22: 日あたり | N22: MJ/日 | P22: 暖房 | Q22: 月別 | R22: 日あたり | AB22: MJ/日 | AD22: 給湯 | AE22: 月別 | AF22: 日あたり | AP22: MJ/日
B23: 項目 | C23: 2018-04-01 | D23: 2018-05-01 | E23: 2018-06-01 | F23: 2018-07-01 | G23: 2018-08-01 | H23: 2018-09-01 | I23: 2018-10-01 | J23: 2018-11-01 | K23: 2018-12-01 | L23: 2019-01-01 | M23: 2019-02-01 | N23: 2019-03-01 | P23: 項目 | Q23: 2018-04-01 | R23: 2018-05-01 | S23: 2018-06-01 | T23: 2018-07-01 | U23: 2018-08-01 | V23: 2018-09-01 | W23: 2018-10-01 | X23: 2018-11-01 | Y23: 2018-12-01 | Z23: 2019-01-01 | AA23: 2019-02-01 | AB23: 2019-03-01 | AD23: 項目 | AE23: 2018-04-01 | AF23: 2018-05-01 | AG23: 2018-06-01 | AH23: 2018-07-01 | AI23: 2018-08-01 | AJ23: 2018-09-01 | AK23: 2018-10-01 | AL23: 2018-11-01 | AM23: 2018-12-01 | AN23: 2019-01-01 | AO23: 2019-02-01 | AP23: 2019-03-01
B24: 日数 | C24: =DAY(EOMONTH(C23,0)) -> 30 | D24: 31 | E24: 30 | F24: 31 | G24: 31 | H24: 30 | I24: 31 | J24: 30 | K24: 31 | L24: 31 | M24: 28 | N24: 31 | P24: 日数 | Q24: =DAY(EOMONTH(Q23,0)) -> 30 | R24: 31 | S24: 30 | T24: 31 | U24: 31 | V24: 30 | W24: 31 | X24: 30 | Y24: 31 | Z24: 31 | AA24: 28 | AB24: 31 | AD24: 日数 | AE24: =DAY(EOMONTH(AE23,0)) -> 30 | AF24: 31 | AG24: 30 | AH24: 31 | AI24: 31 | AJ24: 30 | AK24: 31 | AL24: 30 | AM24: 31 | AN24: 31 | AO24: 28 | AP24: 31
B25: =B18 -> 0 | C25: =C18/C24 ->  | P25: =P18 -> 0 | Q25: =Q18/Q24 ->  | AD25: =AD18 -> 0 | AE25: =AE18/AE24 -> 
B27: 冷房 | C27: 時刻別 | M27: 単位 | N27: MJ/h | P27: 暖房 | Q27: 時刻別 | AA27: 単位 | AB27: MJ/h | AD27: 給湯 | AE27: 時刻別 | AO27: 単位 | AP27: MJ/h
C28: 4月 | D28: 5月 | E28: 6月 | F28: 7月 | G28: 8月 | H28: 9月 | I28: 10月 | J28: 11月 | K28: 12月 | L28: 1月 | M28: 2月 | N28: 3月 | Q28: 4月 | R28: 5月 | S28: 6月 | T28: 7月 | U28: 8月 | V28: 9月 | W28: 10月 | X28: 11月 | Y28: 12月 | Z28: 1月 | AA28: 2月 | AB28: 3月 | AE28: 4月 | AF28: 5月 | AG28: 6月 | AH28: 7月 | AI28: 8月 | AJ28: 9月 | AK28: 10月 | AL28: 11月 | AM28: 12月 | AN28: 1月 | AO28: 2月 | AP28: 3月
B29: 時間 | C29: 中間期 | D29: 中間期 | E29: 夏期 | F29: 夏期 | G29: 夏期 | H29: 夏期 | I29: 中間期 | J29: 中間期 | K29: 冬期 | L29: 冬期 | M29: 冬期 | N29: 冬期 | P29: 時間 | Q29: 中間期 | R29: 中間期 | S29: 夏期 | T29: 夏期 | U29: 夏期 | V29: 夏期 | W29: 中間期 | X29: 中間期 | Y29: 冬期 | Z29: 冬期 | AA29: 冬期 | AB29: 冬期 | AD29: 時間 | AE29: 中間期 | AF29: 中間期 | AG29: 夏期 | AH29: 夏期 | AI29: 夏期 | AJ29: 夏期 | AK29: 中間期 | AL29: 中間期 | AM29: 冬期 | AN29: 冬期 | AO29: 冬期 | AP29: 冬期
B30: 1 | C30: =IFERROR(INDEX(熱需要量算定・原単位!$AK9:$BL9,MATCH(C$20,熱需要量算定・原単位!$AK$5:$BL$5,0)),0)*C$25/100 ->  | D30: =IFERROR(INDEX(熱需要量算定・原単位!$AK9:$BL9,MATCH(D$20,熱需要量算定・原単位!$AK$5:$BL$5,0)),0)*D$25/100 ->  | E30: =IFERROR(INDEX(熱需要量算定・原単位!$AK9:$BL9,MATCH(E$20,熱需要量算定・原単位!$AK$5:$BL$5,0)),0)*E$25/100 ->  | F30: =IFERROR(INDEX(熱需要量算定・原単位!$AK9:$BL9,MATCH(F$20,熱需要量算定・原単位!$AK$5:$BL$5,0)),0)*F$25/100 ->  | G30: =IFERROR(INDEX(熱需要量算定・原単位!$AK9:$BL9,MATCH(G$20,熱需要量算定・原単位!$AK$5:$BL$5,0)),0)*G$25/100 ->  | H30: =IFERROR(INDEX(熱需要量算定・原単位!$AK9:$BL9,MATCH(H$20,熱需要量算定・原単位!$AK$5:$BL$5,0)),0)*H$25/100 ->  | I30: =IFERROR(INDEX(熱需要量算定・原単位!$AK9:$BL9,MATCH(I$20,熱需要量算定・原単位!$AK$5:$BL$5,0)),0)*I$25/100 ->  | J30: =IFERROR(INDEX(熱需要量算定・原単位!$AK9:$BL9,MATCH(J$20,熱需要量算定・原単位!$AK$5:$BL$5,0)),0)*J$25/100 ->  | K30: =IFERROR(INDEX(熱需要量算定・原単位!$AK9:$BL9,MATCH(K$20,熱需要量算定・原単位!$AK$5:$BL$5,0)),0)*K$25/100 ->  | L30: =IFERROR(INDEX(熱需要量算定・原単位!$AK9:$BL9,MATCH(L$20,熱需要量算定・原単位!$AK$5:$BL$5,0)),0)*L$25/100 ->  | M30: =IFERROR(INDEX(熱需要量算定・原単位!$AK9:$BL9,MATCH(M$20,熱需要量算定・原単位!$AK$5:$BL$5,0)),0)*M$25/100 ->  | N30: =IFERROR(INDEX(熱需要量算定・原単位!$AK9:$BL9,MATCH(N$20,熱需要量算定・原単位!$AK$5:$BL$5,0)),0)*N$25/100 ->  | P30: 1 | Q30: =IFERROR(INDEX(熱需要量算定・原単位!$AK9:$BL9,MATCH(Q$20,熱需要量算定・原単位!$AK$5:$BL$5,0)),0)*Q$25/100 ->  | R30: =IFERROR(INDEX(熱需要量算定・原単位!$AK9:$BL9,MATCH(R$20,熱需要量算定・原単位!$AK$5:$BL$5,0)),0)*R$25/100 ->  | S30: =IFERROR(INDEX(熱需要量算定・原単位!$AK9:$BL9,MATCH(S$20,熱需要量算定・原単位!$AK$5:$BL$5,0)),0)*S$25/100 ->  | T30: =IFERROR(INDEX(熱需要量算定・原単位!$AK9:$BL9,MATCH(T$20,熱需要量算定・原単位!$AK$5:$BL$5,0)),0)*T$25/100 ->  | U30: =IFERROR(INDEX(熱需要量算定・原単位!$AK9:$BL9,MATCH(U$20,熱需要量算定・原単位!$AK$5:$BL$5,0)),0)*U$25/100 ->  | V30: =IFERROR(INDEX(熱需要量算定・原単位!$AK9:$BL9,MATCH(V$20,熱需要量算定・原単位!$AK$5:$BL$5,0)),0)*V$25/100 ->  | W30: =IFERROR(INDEX(熱需要量算定・原単位!$AK9:$BL9,MATCH(W$20,熱需要量算定・原単位!$AK$5:$BL$5,0)),0)*W$25/100 ->  | X30: =IFERROR(INDEX(熱需要量算定・原単位!$AK9:$BL9,MATCH(X$20,熱需要量算定・原単位!$AK$5:$BL$5,0)),0)*X$25/100 ->  | Y30: =IFERROR(INDEX(熱需要量算定・原単位!$AK9:$BL9,MATCH(Y$20,熱需要量算定・原単位!$AK$5:$BL$5,0)),0)*Y$25/100 ->  | Z30: =IFERROR(INDEX(熱需要量算定・原単位!$AK9:$BL9,MATCH(Z$20,熱需要量算定・原単位!$AK$5:$BL$5,0)),0)*Z$25/100 ->  | AA30: =IFERROR(INDEX(熱需要量算定・原単位!$AK9:$BL9,MATCH(AA$20,熱需要量算定・原単位!$AK$5:$BL$5,0)),0)*AA$25/100 ->  | AB30: =IFERROR(INDEX(熱需要量算定・原単位!$AK9:$BL9,MATCH(AB$20,熱需要量算定・原単位!$AK$5:$BL$5,0)),0)*AB$25/100 ->  | AD30: 1 | AE30: =IFERROR(INDEX(熱需要量算定・原単位!$AK9:$BL9,MATCH(AE$20,熱需要量算定・原単位!$AK$5:$BL$5,0)),0)*AE$25/100 ->  | AF30: =IFERROR(INDEX(熱需要量算定・原単位!$AK9:$BL9,MATCH(AF$20,熱需要量算定・原単位!$AK$5:$BL$5,0)),0)*AF$25/100 ->  | AG30: =IFERROR(INDEX(熱需要量算定・原単位!$AK9:$BL9,MATCH(AG$20,熱需要量算定・原単位!$AK$5:$BL$5,0)),0)*AG$25/100 ->  | AH30: =IFERROR(INDEX(熱需要量算定・原単位!$AK9:$BL9,MATCH(AH$20,熱需要量算定・原単位!$AK$5:$BL$5,0)),0)*AH$25/100 ->  | AI30: =IFERROR(INDEX(熱需要量算定・原単位!$AK9:$BL9,MATCH(AI$20,熱需要量算定・原単位!$AK$5:$BL$5,0)),0)*AI$25/100 ->  | AJ30: =IFERROR(INDEX(熱需要量算定・原単位!$AK9:$BL9,MATCH(AJ$20,熱需要量算定・原単位!$AK$5:$BL$5,0)),0)*AJ$25/100 ->  | AK30: =IFERROR(INDEX(熱需要量算定・原単位!$AK9:$BL9,MATCH(AK$20,熱需要量算定・原単位!$AK$5:$BL$5,0)),0)*AK$25/100 ->  | AL30: =IFERROR(INDEX(熱需要量算定・原単位!$AK9:$BL9,MATCH(AL$20,熱需要量算定・原単位!$AK$5:$BL$5,0)),0)*AL$25/100 ->  | AM30: =IFERROR(INDEX(熱需要量算定・原単位!$AK9:$BL9,MATCH(AM$20,熱需要量算定・原単位!$AK$5:$BL$5,0)),0)*AM$25/100 ->  | AN30: =IFERROR(INDEX(熱需要量算定・原単位!$AK9:$BL9,MATCH(AN$20,熱需要量算定・原単位!$AK$5:$BL$5,0)),0)*AN$25/100 ->  | AO30: =IFERROR(INDEX(熱需要量算定・原単位!$AK9:$BL9,MATCH(AO$20,熱需要量算定・原単位!$AK$5:$BL$5,0)),0)*AO$25/100 ->  | AP30: =IFERROR(INDEX(熱需要量算定・原単位!$AK9:$BL9,MATCH(AP$20,熱需要量算定・原単位!$AK$5:$BL$5,0)),0)*AP$25/100 -> 
B31: =B30+1 -> 2 | C31: =IFERROR(INDEX(熱需要量算定・原単位!$AK10:$BL10,MATCH(C$20,熱需要量算定・原単位!$AK$5:$BL$5,0)),0)*C$25/100 ->  | D31: =IFERROR(INDEX(熱需要量算定・原単位!$AK10:$BL10,MATCH(D$20,熱需要量算定・原単位!$AK$5:$BL$5,0)),0)*D$25/100 ->  | E31: =IFERROR(INDEX(熱需要量算定・原単位!$AK10:$BL10,MATCH(E$20,熱需要量算定・原単位!$AK$5:$BL$5,0)),0)*E$25/100 ->  | F31: =IFERROR(INDEX(熱需要量算定・原単位!$AK10:$BL10,MATCH(F$20,熱需要量算定・原単位!$AK$5:$BL$5,0)),0)*F$25/100 ->  | G31: =IFERROR(INDEX(熱需要量算定・原単位!$AK10:$BL10,MATCH(G$20,熱需要量算定・原単位!$AK$5:$BL$5,0)),0)*G$25/100 ->  | H31: =IFERROR(INDEX(熱需要量算定・原単位!$AK10:$BL10,MATCH(H$20,熱需要量算定・原単位!$AK$5:$BL$5,0)),0)*H$25/100 ->  | I31: =IFERROR(INDEX(熱需要量算定・原単位!$AK10:$BL10,MATCH(I$20,熱需要量算定・原単位!$AK$5:$BL$5,0)),0)*I$25/100 ->  | J31: =IFERROR(INDEX(熱需要量算定・原単位!$AK10:$BL10,MATCH(J$20,熱需要量算定・原単位!$AK$5:$BL$5,0)),0)*J$25/100 ->  | K31: =IFERROR(INDEX(熱需要量算定・原単位!$AK10:$BL10,MATCH(K$20,熱需要量算定・原単位!$AK$5:$BL$5,0)),0)*K$25/100 ->  | L31: =IFERROR(INDEX(熱需要量算定・原単位!$AK10:$BL10,MATCH(L$20,熱需要量算定・原単位!$AK$5:$BL$5,0)),0)*L$25/100 ->  | M31: =IFERROR(INDEX(熱需要量算定・原単位!$AK10:$BL10,MATCH(M$20,熱需要量算定・原単位!$AK$5:$BL$5,0)),0)*M$25/100 ->  | N31: =IFERROR(INDEX(熱需要量算定・原単位!$AK10:$BL10,MATCH(N$20,熱需要量算定・原単位!$AK$5:$BL$5,0)),0)*N$25/100 ->  | P31: =P30+1 -> 2 | Q31: =IFERROR(INDEX(熱需要量算定・原単位!$AK10:$BL10,MATCH(Q$20,熱需要量算定・原単位!$AK$5:$BL$5,0)),0)*Q$25/100 ->  | R31: =IFERROR(INDEX(熱需要量算定・原単位!$AK10:$BL10,MATCH(R$20,熱需要量算定・原単位!$AK$5:$BL$5,0)),0)*R$25/100 ->  | S31: =IFERROR(INDEX(熱需要量算定・原単位!$AK10:$BL10,MATCH(S$20,熱需要量算定・原単位!$AK$5:$BL$5,0)),0)*S$25/100 ->  | T31: =IFERROR(INDEX(熱需要量算定・原単位!$AK10:$BL10,MATCH(T$20,熱需要量算定・原単位!$AK$5:$BL$5,0)),0)*T$25/100 ->  | U31: =IFERROR(INDEX(熱需要量算定・原単位!$AK10:$BL10,MATCH(U$20,熱需要量算定・原単位!$AK$5:$BL$5,0)),0)*U$25/100 ->  | V31: =IFERROR(INDEX(熱需要量算定・原単位!$AK10:$BL10,MATCH(V$20,熱需要量算定・原単位!$AK$5:$BL$5,0)),0)*V$25/100 ->  | W31: =IFERROR(INDEX(熱需要量算定・原単位!$AK10:$BL10,MATCH(W$20,熱需要量算定・原単位!$AK$5:$BL$5,0)),0)*W$25/100 ->  | X31: =IFERROR(INDEX(熱需要量算定・原単位!$AK10:$BL10,MATCH(X$20,熱需要量算定・原単位!$AK$5:$BL$5,0)),0)*X$25/100 ->  | Y31: =IFERROR(INDEX(熱需要量算定・原単位!$AK10:$BL10,MATCH(Y$20,熱需要量算定・原単位!$AK$5:$BL$5,0)),0)*Y$25/100 ->  | Z31: =IFERROR(INDEX(熱需要量算定・原単位!$AK10:$BL10,MATCH(Z$20,熱需要量算定・原単位!$AK$5:$BL$5,0)),0)*Z$25/100 ->  | AA31: =IFERROR(INDEX(熱需要量算定・原単位!$AK10:$BL10,MATCH(AA$20,熱需要量算定・原単位!$AK$5:$BL$5,0)),0)*AA$25/100 ->  | AB31: =IFERROR(INDEX(熱需要量算定・原単位!$AK10:$BL10,MATCH(AB$20,熱需要量算定・原単位!$AK$5:$BL$5,0)),0)*AB$25/100 ->  | AD31: =AD30+1 -> 2 | AE31: =IFERROR(INDEX(熱需要量算定・原単位!$AK10:$BL10,MATCH(AE$20,熱需要量算定・原単位!$AK$5:$BL$5,0)),0)*AE$25/100 ->  | AF31: =IFERROR(INDEX(熱需要量算定・原単位!$AK10:$BL10,MATCH(AF$20,熱需要量算定・原単位!$AK$5:$BL$5,0)),0)*AF$25/100 ->  | AG31: =IFERROR(INDEX(熱需要量算定・原単位!$AK10:$BL10,MATCH(AG$20,熱需要量算定・原単位!$AK$5:$BL$5,0)),0)*AG$25/100 ->  | AH31: =IFERROR(INDEX(熱需要量算定・原単位!$AK10:$BL10,MATCH(AH$20,熱需要量算定・原単位!$AK$5:$BL$5,0)),0)*AH$25/100 ->  | AI31: =IFERROR(INDEX(熱需要量算定・原単位!$AK10:$BL10,MATCH(AI$20,熱需要量算定・原単位!$AK$5:$BL$5,0)),0)*AI$25/100 ->  | AJ31: =IFERROR(INDEX(熱需要量算定・原単位!$AK10:$BL10,MATCH(AJ$20,熱需要量算定・原単位!$AK$5:$BL$5,0)),0)*AJ$25/100 ->  | AK31: =IFERROR(INDEX(熱需要量算定・原単位!$AK10:$BL10,MATCH(AK$20,熱需要量算定・原単位!$AK$5:$BL$5,0)),0)*AK$25/100 ->  | AL31: =IFERROR(INDEX(熱需要量算定・原単位!$AK10:$BL10,MATCH(AL$20,熱需要量算定・原単位!$AK$5:$BL$5,0)),0)*AL$25/100 ->  | AM31: =IFERROR(INDEX(熱需要量算定・原単位!$AK10:$BL10,MATCH(AM$20,熱需要量算定・原単位!$AK$5:$BL$5,0)),0)*AM$25/100 ->  | AN31: =IFERROR(INDEX(熱需要量算定・原単位!$AK10:$BL10,MATCH(AN$20,熱需要量算定・原単位!$AK$5:$BL$5,0)),0)*AN$25/100 ->  | AO31: =IFERROR(INDEX(熱需要量算定・原単位!$AK10:$BL10,MATCH(AO$20,熱需要量算定・原単位!$AK$5:$BL$5,0)),0)*AO$25/100 ->  | AP31: =IFERROR(INDEX(熱需要量算定・原単位!$AK10:$BL10,MATCH(AP$20,熱需要量算定・原単位!$AK$5:$BL$5,0)),0)*AP$25/100 -> 
B32: 3 | C32: =IFERROR(INDEX(熱需要量算定・原単位!$AK11:$BL11,MATCH(C$20,熱需要量算定・原単位!$AK$5:$BL$5,0)),0)*C$25/100 ->  | D32: =IFERROR(INDEX(熱需要量算定・原単位!$AK11:$BL11,MATCH(D$20,熱需要量算定・原単位!$AK$5:$BL$5,0)),0)*D$25/100 ->  | E32: =IFERROR(INDEX(熱需要量算定・原単位!$AK11:$BL11,MATCH(E$20,熱需要量算定・原単位!$AK$5:$BL$5,0)),0)*E$25/100 ->  | F32: =IFERROR(INDEX(熱需要量算定・原単位!$AK11:$BL11,MATCH(F$20,熱需要量算定・原単位!$AK$5:$BL$5,0)),0)*F$25/100 ->  | G32: =IFERROR(INDEX(熱需要量算定・原単位!$AK11:$BL11,MATCH(G$20,熱需要量算定・原単位!$AK$5:$BL$5,0)),0)*G$25/100 ->  | H32: =IFERROR(INDEX(熱需要量算定・原単位!$AK11:$BL11,MATCH(H$20,熱需要量算定・原単位!$AK$5:$BL$5,0)),0)*H$25/100 ->  | I32: =IFERROR(INDEX(熱需要量算定・原単位!$AK11:$BL11,MATCH(I$20,熱需要量算定・原単位!$AK$5:$BL$5,0)),0)*I$25/100 ->  | J32: =IFERROR(INDEX(熱需要量算定・原単位!$AK11:$BL11,MATCH(J$20,熱需要量算定・原単位!$AK$5:$BL$5,0)),0)*J$25/100 ->  | K32: =IFERROR(INDEX(熱需要量算定・原単位!$AK11:$BL11,MATCH(K$20,熱需要量算定・原単位!$AK$5:$BL$5,0)),0)*K$25/100 ->  | L32: =IFERROR(INDEX(熱需要量算定・原単位!$AK11:$BL11,MATCH(L$20,熱需要量算定・原単位!$AK$5:$BL$5,0)),0)*L$25/100 ->  | M32: =IFERROR(INDEX(熱需要量算定・原単位!$AK11:$BL11,MATCH(M$20,熱需要量算定・原単位!$AK$5:$BL$5,0)),0)*M$25/100 ->  | N32: =IFERROR(INDEX(熱需要量算定・原単位!$AK11:$BL11,MATCH(N$20,熱需要量算定・原単位!$AK$5:$BL$5,0)),0)*N$25/100 ->  | P32: 3 | Q32: =IFERROR(INDEX(熱需要量算定・原単位!$AK11:$BL11,MATCH(Q$20,熱需要量算定・原単位!$AK$5:$BL$5,0)),0)*Q$25/100 ->  | R32: =IFERROR(INDEX(熱需要量算定・原単位!$AK11:$BL11,MATCH(R$20,熱需要量算定・原単位!$AK$5:$BL$5,0)),0)*R$25/100 ->  | S32: =IFERROR(INDEX(熱需要量算定・原単位!$AK11:$BL11,MATCH(S$20,熱需要量算定・原単位!$AK$5:$BL$5,0)),0)*S$25/100 ->  | T32: =IFERROR(INDEX(熱需要量算定・原単位!$AK11:$BL11,MATCH(T$20,熱需要量算定・原単位!$AK$5:$BL$5,0)),0)*T$25/100 ->  | U32: =IFERROR(INDEX(熱需要量算定・原単位!$AK11:$BL11,MATCH(U$20,熱需要量算定・原単位!$AK$5:$BL$5,0)),0)*U$25/100 ->  | V32: =IFERROR(INDEX(熱需要量算定・原単位!$AK11:$BL11,MATCH(V$20,熱需要量算定・原単位!$AK$5:$BL$5,0)),0)*V$25/100 ->  | W32: =IFERROR(INDEX(熱需要量算定・原単位!$AK11:$BL11,MATCH(W$20,熱需要量算定・原単位!$AK$5:$BL$5,0)),0)*W$25/100 ->  | X32: =IFERROR(INDEX(熱需要量算定・原単位!$AK11:$BL11,MATCH(X$20,熱需要量算定・原単位!$AK$5:$BL$5,0)),0)*X$25/100 ->  | Y32: =IFERROR(INDEX(熱需要量算定・原単位!$AK11:$BL11,MATCH(Y$20,熱需要量算定・原単位!$AK$5:$BL$5,0)),0)*Y$25/100 ->  | Z32: =IFERROR(INDEX(熱需要量算定・原単位!$AK11:$BL11,MATCH(Z$20,熱需要量算定・原単位!$AK$5:$BL$5,0)),0)*Z$25/100 ->  | AA32: =IFERROR(INDEX(熱需要量算定・原単位!$AK11:$BL11,MATCH(AA$20,熱需要量算定・原単位!$AK$5:$BL$5,0)),0)*AA$25/100 ->  | AB32: =IFERROR(INDEX(熱需要量算定・原単位!$AK11:$BL11,MATCH(AB$20,熱需要量算定・原単位!$AK$5:$BL$5,0)),0)*AB$25/100 ->  | AD32: 3 | AE32: =IFERROR(INDEX(熱需要量算定・原単位!$AK11:$BL11,MATCH(AE$20,熱需要量算定・原単位!$AK$5:$BL$5,0)),0)*AE$25/100 ->  | AF32: =IFERROR(INDEX(熱需要量算定・原単位!$AK11:$BL11,MATCH(AF$20,熱需要量算定・原単位!$AK$5:$BL$5,0)),0)*AF$25/100 ->  | AG32: =IFERROR(INDEX(熱需要量算定・原単位!$AK11:$BL11,MATCH(AG$20,熱需要量算定・原単位!$AK$5:$BL$5,0)),0)*AG$25/100 ->  | AH32: =IFERROR(INDEX(熱需要量算定・原単位!$AK11:$BL11,MATCH(AH$20,熱需要量算定・原単位!$AK$5:$BL$5,0)),0)*AH$25/100 ->  | AI32: =IFERROR(INDEX(熱需要量算定・原単位!$AK11:$BL11,MATCH(AI$20,熱需要量算定・原単位!$AK$5:$BL$5,0)),0)*AI$25/100 ->  | AJ32: =IFERROR(INDEX(熱需要量算定・原単位!$AK11:$BL11,MATCH(AJ$20,熱需要量算定・原単位!$AK$5:$BL$5,0)),0)*AJ$25/100 ->  | AK32: =IFERROR(INDEX(熱需要量算定・原単位!$AK11:$BL11,MATCH(AK$20,熱需要量算定・原単位!$AK$5:$BL$5,0)),0)*AK$25/100 ->  | AL32: =IFERROR(INDEX(熱需要量算定・原単位!$AK11:$BL11,MATCH(AL$20,熱需要量算定・原単位!$AK$5:$BL$5,0)),0)*AL$25/100 ->  | AM32: =IFERROR(INDEX(熱需要量算定・原単位!$AK11:$BL11,MATCH(AM$20,熱需要量算定・原単位!$AK$5:$BL$5,0)),0)*AM$25/100 ->  | AN32: =IFERROR(INDEX(熱需要量算定・原単位!$AK11:$BL11,MATCH(AN$20,熱需要量算定・原単位!$AK$5:$BL$5,0)),0)*AN$25/100 ->  | AO32: =IFERROR(INDEX(熱需要量算定・原単位!$AK11:$BL11,MATCH(AO$20,熱需要量算定・原単位!$AK$5:$BL$5,0)),0)*AO$25/100 ->  | AP32: =IFERROR(INDEX(熱需要量算定・原単位!$AK11:$BL11,MATCH(AP$20,熱需要量算定・原単位!$AK$5:$BL$5,0)),0)*AP$25/100 -> 
B33: 4 | C33: =IFERROR(INDEX(熱需要量算定・原単位!$AK12:$BL12,MATCH(C$20,熱需要量算定・原単位!$AK$5:$BL$5,0)),0)*C$25/100 ->  | D33: =IFERROR(INDEX(熱需要量算定・原単位!$AK12:$BL12,MATCH(D$20,熱需要量算定・原単位!$AK$5:$BL$5,0)),0)*D$25/100 ->  | E33: =IFERROR(INDEX(熱需要量算定・原単位!$AK12:$BL12,MATCH(E$20,熱需要量算定・原単位!$AK$5:$BL$5,0)),0)*E$25/100 ->  | F33: =IFERROR(INDEX(熱需要量算定・原単位!$AK12:$BL12,MATCH(F$20,熱需要量算定・原単位!$AK$5:$BL$5,0)),0)*F$25/100 ->  | G33: =IFERROR(INDEX(熱需要量算定・原単位!$AK12:$BL12,MATCH(G$20,熱需要量算定・原単位!$AK$5:$BL$5,0)),0)*G$25/100 ->  | H33: =IFERROR(INDEX(熱需要量算定・原単位!$AK12:$BL12,MATCH(H$20,熱需要量算定・原単位!$AK$5:$BL$5,0)),0)*H$25/100 ->  | I33: =IFERROR(INDEX(熱需要量算定・原単位!$AK12:$BL12,MATCH(I$20,熱需要量算定・原単位!$AK$5:$BL$5,0)),0)*I$25/100 ->  | J33: =IFERROR(INDEX(熱需要量算定・原単位!$AK12:$BL12,MATCH(J$20,熱需要量算定・原単位!$AK$5:$BL$5,0)),0)*J$25/100 ->  | K33: =IFERROR(INDEX(熱需要量算定・原単位!$AK12:$BL12,MATCH(K$20,熱需要量算定・原単位!$AK$5:$BL$5,0)),0)*K$25/100 ->  | L33: =IFERROR(INDEX(熱需要量算定・原単位!$AK12:$BL12,MATCH(L$20,熱需要量算定・原単位!$AK$5:$BL$5,0)),0)*L$25/100 ->  | M33: =IFERROR(INDEX(熱需要量算定・原単位!$AK12:$BL12,MATCH(M$20,熱需要量算定・原単位!$AK$5:$BL$5,0)),0)*M$25/100 ->  | N33: =IFERROR(INDEX(熱需要量算定・原単位!$AK12:$BL12,MATCH(N$20,熱需要量算定・原単位!$AK$5:$BL$5,0)),0)*N$25/100 ->  | P33: 4 | Q33: =IFERROR(INDEX(熱需要量算定・原単位!$AK12:$BL12,MATCH(Q$20,熱需要量算定・原単位!$AK$5:$BL$5,0)),0)*Q$25/100 ->  | R33: =IFERROR(INDEX(熱需要量算定・原単位!$AK12:$BL12,MATCH(R$20,熱需要量算定・原単位!$AK$5:$BL$5,0)),0)*R$25/100 ->  | S33: =IFERROR(INDEX(熱需要量算定・原単位!$AK12:$BL12,MATCH(S$20,熱需要量算定・原単位!$AK$5:$BL$5,0)),0)*S$25/100 ->  | T33: =IFERROR(INDEX(熱需要量算定・原単位!$AK12:$BL12,MATCH(T$20,熱需要量算定・原単位!$AK$5:$BL$5,0)),0)*T$25/100 ->  | U33: =IFERROR(INDEX(熱需要量算定・原単位!$AK12:$BL12,MATCH(U$20,熱需要量算定・原単位!$AK$5:$BL$5,0)),0)*U$25/100 ->  | V33: =IFERROR(INDEX(熱需要量算定・原単位!$AK12:$BL12,MATCH(V$20,熱需要量算定・原単位!$AK$5:$BL$5,0)),0)*V$25/100 ->  | W33: =IFERROR(INDEX(熱需要量算定・原単位!$AK12:$BL12,MATCH(W$20,熱需要量算定・原単位!$AK$5:$BL$5,0)),0)*W$25/100 ->  | X33: =IFERROR(INDEX(熱需要量算定・原単位!$AK12:$BL12,MATCH(X$20,熱需要量算定・原単位!$AK$5:$BL$5,0)),0)*X$25/100 ->  | Y33: =IFERROR(INDEX(熱需要量算定・原単位!$AK12:$BL12,MATCH(Y$20,熱需要量算定・原単位!$AK$5:$BL$5,0)),0)*Y$25/100 ->  | Z33: =IFERROR(INDEX(熱需要量算定・原単位!$AK12:$BL12,MATCH(Z$20,熱需要量算定・原単位!$AK$5:$BL$5,0)),0)*Z$25/100 ->  | AA33: =IFERROR(INDEX(熱需要量算定・原単位!$AK12:$BL12,MATCH(AA$20,熱需要量算定・原単位!$AK$5:$BL$5,0)),0)*AA$25/100 ->  | AB33: =IFERROR(INDEX(熱需要量算定・原単位!$AK12:$BL12,MATCH(AB$20,熱需要量算定・原単位!$AK$5:$BL$5,0)),0)*AB$25/100 ->  | AD33: 4 | AE33: =IFERROR(INDEX(熱需要量算定・原単位!$AK12:$BL12,MATCH(AE$20,熱需要量算定・原単位!$AK$5:$BL$5,0)),0)*AE$25/100 ->  | AF33: =IFERROR(INDEX(熱需要量算定・原単位!$AK12:$BL12,MATCH(AF$20,熱需要量算定・原単位!$AK$5:$BL$5,0)),0)*AF$25/100 ->  | AG33: =IFERROR(INDEX(熱需要量算定・原単位!$AK12:$BL12,MATCH(AG$20,熱需要量算定・原単位!$AK$5:$BL$5,0)),0)*AG$25/100 ->  | AH33: =IFERROR(INDEX(熱需要量算定・原単位!$AK12:$BL12,MATCH(AH$20,熱需要量算定・原単位!$AK$5:$BL$5,0)),0)*AH$25/100 ->  | AI33: =IFERROR(INDEX(熱需要量算定・原単位!$AK12:$BL12,MATCH(AI$20,熱需要量算定・原単位!$AK$5:$BL$5,0)),0)*AI$25/100 ->  | AJ33: =IFERROR(INDEX(熱需要量算定・原単位!$AK12:$BL12,MATCH(AJ$20,熱需要量算定・原単位!$AK$5:$BL$5,0)),0)*AJ$25/100 ->  | AK33: =IFERROR(INDEX(熱需要量算定・原単位!$AK12:$BL12,MATCH(AK$20,熱需要量算定・原単位!$AK$5:$BL$5,0)),0)*AK$25/100 ->  | AL33: =IFERROR(INDEX(熱需要量算定・原単位!$AK12:$BL12,MATCH(AL$20,熱需要量算定・原単位!$AK$5:$BL$5,0)),0)*AL$25/100 ->  | AM33: =IFERROR(INDEX(熱需要量算定・原単位!$AK12:$BL12,MATCH(AM$20,熱需要量算定・原単位!$AK$5:$BL$5,0)),0)*AM$25/100 ->  | AN33: =IFERROR(INDEX(熱需要量算定・原単位!$AK12:$BL12,MATCH(AN$20,熱需要量算定・原単位!$AK$5:$BL$5,0)),0)*AN$25/100 ->  | AO33: =IFERROR(INDEX(熱需要量算定・原単位!$AK12:$BL12,MATCH(AO$20,熱需要量算定・原単位!$AK$5:$BL$5,0)),0)*AO$25/100 ->  | AP33: =IFERROR(INDEX(熱需要量算定・原単位!$AK12:$BL12,MATCH(AP$20,熱需要量算定・原単位!$AK$5:$BL$5,0)),0)*AP$25/100 -> 
B34: 5 | C34: =IFERROR(INDEX(熱需要量算定・原単位!$AK13:$BL13,MATCH(C$20,熱需要量算定・原単位!$AK$5:$BL$5,0)),0)*C$25/100 ->  | D34: =IFERROR(INDEX(熱需要量算定・原単位!$AK13:$BL13,MATCH(D$20,熱需要量算定・原単位!$AK$5:$BL$5,0)),0)*D$25/100 ->  | E34: =IFERROR(INDEX(熱需要量算定・原単位!$AK13:$BL13,MATCH(E$20,熱需要量算定・原単位!$AK$5:$BL$5,0)),0)*E$25/100 ->  | F34: =IFERROR(INDEX(熱需要量算定・原単位!$AK13:$BL13,MATCH(F$20,熱需要量算定・原単位!$AK$5:$BL$5,0)),0)*F$25/100 ->  | G34: =IFERROR(INDEX(熱需要量算定・原単位!$AK13:$BL13,MATCH(G$20,熱需要量算定・原単位!$AK$5:$BL$5,0)),0)*G$25/100 ->  | H34: =IFERROR(INDEX(熱需要量算定・原単位!$AK13:$BL13,MATCH(H$20,熱需要量算定・原単位!$AK$5:$BL$5,0)),0)*H$25/100 ->  | I34: =IFERROR(INDEX(熱需要量算定・原単位!$AK13:$BL13,MATCH(I$20,熱需要量算定・原単位!$AK$5:$BL$5,0)),0)*I$25/100 ->  | J34: =IFERROR(INDEX(熱需要量算定・原単位!$AK13:$BL13,MATCH(J$20,熱需要量算定・原単位!$AK$5:$BL$5,0)),0)*J$25/100 ->  | K34: =IFERROR(INDEX(熱需要量算定・原単位!$AK13:$BL13,MATCH(K$20,熱需要量算定・原単位!$AK$5:$BL$5,0)),0)*K$25/100 ->  | L34: =IFERROR(INDEX(熱需要量算定・原単位!$AK13:$BL13,MATCH(L$20,熱需要量算定・原単位!$AK$5:$BL$5,0)),0)*L$25/100 ->  | M34: =IFERROR(INDEX(熱需要量算定・原単位!$AK13:$BL13,MATCH(M$20,熱需要量算定・原単位!$AK$5:$BL$5,0)),0)*M$25/100 ->  | N34: =IFERROR(INDEX(熱需要量算定・原単位!$AK13:$BL13,MATCH(N$20,熱需要量算定・原単位!$AK$5:$BL$5,0)),0)*N$25/100 ->  | P34: 5 | Q34: =IFERROR(INDEX(熱需要量算定・原単位!$AK13:$BL13,MATCH(Q$20,熱需要量算定・原単位!$AK$5:$BL$5,0)),0)*Q$25/100 ->  | R34: =IFERROR(INDEX(熱需要量算定・原単位!$AK13:$BL13,MATCH(R$20,熱需要量算定・原単位!$AK$5:$BL$5,0)),0)*R$25/100 ->  | S34: =IFERROR(INDEX(熱需要量算定・原単位!$AK13:$BL13,MATCH(S$20,熱需要量算定・原単位!$AK$5:$BL$5,0)),0)*S$25/100 ->  | T34: =IFERROR(INDEX(熱需要量算定・原単位!$AK13:$BL13,MATCH(T$20,熱需要量算定・原単位!$AK$5:$BL$5,0)),0)*T$25/100 ->  | U34: =IFERROR(INDEX(熱需要量算定・原単位!$AK13:$BL13,MATCH(U$20,熱需要量算定・原単位!$AK$5:$BL$5,0)),0)*U$25/100 ->  | V34: =IFERROR(INDEX(熱需要量算定・原単位!$AK13:$BL13,MATCH(V$20,熱需要量算定・原単位!$AK$5:$BL$5,0)),0)*V$25/100 ->  | W34: =IFERROR(INDEX(熱需要量算定・原単位!$AK13:$BL13,MATCH(W$20,熱需要量算定・原単位!$AK$5:$BL$5,0)),0)*W$25/100 ->  | X34: =IFERROR(INDEX(熱需要量算定・原単位!$AK13:$BL13,MATCH(X$20,熱需要量算定・原単位!$AK$5:$BL$5,0)),0)*X$25/100 ->  | Y34: =IFERROR(INDEX(熱需要量算定・原単位!$AK13:$BL13,MATCH(Y$20,熱需要量算定・原単位!$AK$5:$BL$5,0)),0)*Y$25/100 ->  | Z34: =IFERROR(INDEX(熱需要量算定・原単位!$AK13:$BL13,MATCH(Z$20,熱需要量算定・原単位!$AK$5:$BL$5,0)),0)*Z$25/100 ->  | AA34: =IFERROR(INDEX(熱需要量算定・原単位!$AK13:$BL13,MATCH(AA$20,熱需要量算定・原単位!$AK$5:$BL$5,0)),0)*AA$25/100 ->  | AB34: =IFERROR(INDEX(熱需要量算定・原単位!$AK13:$BL13,MATCH(AB$20,熱需要量算定・原単位!$AK$5:$BL$5,0)),0)*AB$25/100 ->  | AD34: 5 | AE34: =IFERROR(INDEX(熱需要量算定・原単位!$AK13:$BL13,MATCH(AE$20,熱需要量算定・原単位!$AK$5:$BL$5,0)),0)*AE$25/100 ->  | AF34: =IFERROR(INDEX(熱需要量算定・原単位!$AK13:$BL13,MATCH(AF$20,熱需要量算定・原単位!$AK$5:$BL$5,0)),0)*AF$25/100 ->  | AG34: =IFERROR(INDEX(熱需要量算定・原単位!$AK13:$BL13,MATCH(AG$20,熱需要量算定・原単位!$AK$5:$BL$5,0)),0)*AG$25/100 ->  | AH34: =IFERROR(INDEX(熱需要量算定・原単位!$AK13:$BL13,MATCH(AH$20,熱需要量算定・原単位!$AK$5:$BL$5,0)),0)*AH$25/100 ->  | AI34: =IFERROR(INDEX(熱需要量算定・原単位!$AK13:$BL13,MATCH(AI$20,熱需要量算定・原単位!$AK$5:$BL$5,0)),0)*AI$25/100 ->  | AJ34: =IFERROR(INDEX(熱需要量算定・原単位!$AK13:$BL13,MATCH(AJ$20,熱需要量算定・原単位!$AK$5:$BL$5,0)),0)*AJ$25/100 ->  | AK34: =IFERROR(INDEX(熱需要量算定・原単位!$AK13:$BL13,MATCH(AK$20,熱需要量算定・原単位!$AK$5:$BL$5,0)),0)*AK$25/100 ->  | AL34: =IFERROR(INDEX(熱需要量算定・原単位!$AK13:$BL13,MATCH(AL$20,熱需要量算定・原単位!$AK$5:$BL$5,0)),0)*AL$25/100 ->  | AM34: =IFERROR(INDEX(熱需要量算定・原単位!$AK13:$BL13,MATCH(AM$20,熱需要量算定・原単位!$AK$5:$BL$5,0)),0)*AM$25/100 ->  | AN34: =IFERROR(INDEX(熱需要量算定・原単位!$AK13:$BL13,MATCH(AN$20,熱需要量算定・原単位!$AK$5:$BL$5,0)),0)*AN$25/100 ->  | AO34: =IFERROR(INDEX(熱需要量算定・原単位!$AK13:$BL13,MATCH(AO$20,熱需要量算定・原単位!$AK$5:$BL$5,0)),0)*AO$25/100 ->  | AP34: =IFERROR(INDEX(熱需要量算定・原単位!$AK13:$BL13,MATCH(AP$20,熱需要量算定・原単位!$AK$5:$BL$5,0)),0)*AP$25/100 -> 
B35: 6 | C35: =IFERROR(INDEX(熱需要量算定・原単位!$AK14:$BL14,MATCH(C$20,熱需要量算定・原単位!$AK$5:$BL$5,0)),0)*C$25/100 ->  | D35: =IFERROR(INDEX(熱需要量算定・原単位!$AK14:$BL14,MATCH(D$20,熱需要量算定・原単位!$AK$5:$BL$5,0)),0)*D$25/100 ->  | E35: =IFERROR(INDEX(熱需要量算定・原単位!$AK14:$BL14,MATCH(E$20,熱需要量算定・原単位!$AK$5:$BL$5,0)),0)*E$25/100 ->  | F35: =IFERROR(INDEX(熱需要量算定・原単位!$AK14:$BL14,MATCH(F$20,熱需要量算定・原単位!$AK$5:$BL$5,0)),0)*F$25/100 ->  | G35: =IFERROR(INDEX(熱需要量算定・原単位!$AK14:$BL14,MATCH(G$20,熱需要量算定・原単位!$AK$5:$BL$5,0)),0)*G$25/100 ->  | H35: =IFERROR(INDEX(熱需要量算定・原単位!$AK14:$BL14,MATCH(H$20,熱需要量算定・原単位!$AK$5:$BL$5,0)),0)*H$25/100 ->  | I35: =IFERROR(INDEX(熱需要量算定・原単位!$AK14:$BL14,MATCH(I$20,熱需要量算定・原単位!$AK$5:$BL$5,0)),0)*I$25/100 ->  | J35: =IFERROR(INDEX(熱需要量算定・原単位!$AK14:$BL14,MATCH(J$20,熱需要量算定・原単位!$AK$5:$BL$5,0)),0)*J$25/100 ->  | K35: =IFERROR(INDEX(熱需要量算定・原単位!$AK14:$BL14,MATCH(K$20,熱需要量算定・原単位!$AK$5:$BL$5,0)),0)*K$25/100 ->  | L35: =IFERROR(INDEX(熱需要量算定・原単位!$AK14:$BL14,MATCH(L$20,熱需要量算定・原単位!$AK$5:$BL$5,0)),0)*L$25/100 ->  | M35: =IFERROR(INDEX(熱需要量算定・原単位!$AK14:$BL14,MATCH(M$20,熱需要量算定・原単位!$AK$5:$BL$5,0)),0)*M$25/100 ->  | N35: =IFERROR(INDEX(熱需要量算定・原単位!$AK14:$BL14,MATCH(N$20,熱需要量算定・原単位!$AK$5:$BL$5,0)),0)*N$25/100 ->  | P35: 6 | Q35: =IFERROR(INDEX(熱需要量算定・原単位!$AK14:$BL14,MATCH(Q$20,熱需要量算定・原単位!$AK$5:$BL$5,0)),0)*Q$25/100 ->  | R35: =IFERROR(INDEX(熱需要量算定・原単位!$AK14:$BL14,MATCH(R$20,熱需要量算定・原単位!$AK$5:$BL$5,0)),0)*R$25/100 ->  | S35: =IFERROR(INDEX(熱需要量算定・原単位!$AK14:$BL14,MATCH(S$20,熱需要量算定・原単位!$AK$5:$BL$5,0)),0)*S$25/100 ->  | T35: =IFERROR(INDEX(熱需要量算定・原単位!$AK14:$BL14,MATCH(T$20,熱需要量算定・原単位!$AK$5:$BL$5,0)),0)*T$25/100 ->  | U35: =IFERROR(INDEX(熱需要量算定・原単位!$AK14:$BL14,MATCH(U$20,熱需要量算定・原単位!$AK$5:$BL$5,0)),0)*U$25/100 ->  | V35: =IFERROR(INDEX(熱需要量算定・原単位!$AK14:$BL14,MATCH(V$20,熱需要量算定・原単位!$AK$5:$BL$5,0)),0)*V$25/100 ->  | W35: =IFERROR(INDEX(熱需要量算定・原単位!$AK14:$BL14,MATCH(W$20,熱需要量算定・原単位!$AK$5:$BL$5,0)),0)*W$25/100 ->  | X35: =IFERROR(INDEX(熱需要量算定・原単位!$AK14:$BL14,MATCH(X$20,熱需要量算定・原単位!$AK$5:$BL$5,0)),0)*X$25/100 ->  | Y35: =IFERROR(INDEX(熱需要量算定・原単位!$AK14:$BL14,MATCH(Y$20,熱需要量算定・原単位!$AK$5:$BL$5,0)),0)*Y$25/100 ->  | Z35: =IFERROR(INDEX(熱需要量算定・原単位!$AK14:$BL14,MATCH(Z$20,熱需要量算定・原単位!$AK$5:$BL$5,0)),0)*Z$25/100 ->  | AA35: =IFERROR(INDEX(熱需要量算定・原単位!$AK14:$BL14,MATCH(AA$20,熱需要量算定・原単位!$AK$5:$BL$5,0)),0)*AA$25/100 ->  | AB35: =IFERROR(INDEX(熱需要量算定・原単位!$AK14:$BL14,MATCH(AB$20,熱需要量算定・原単位!$AK$5:$BL$5,0)),0)*AB$25/100 ->  | AD35: 6 | AE35: =IFERROR(INDEX(熱需要量算定・原単位!$AK14:$BL14,MATCH(AE$20,熱需要量算定・原単位!$AK$5:$BL$5,0)),0)*AE$25/100 ->  | AF35: =IFERROR(INDEX(熱需要量算定・原単位!$AK14:$BL14,MATCH(AF$20,熱需要量算定・原単位!$AK$5:$BL$5,0)),0)*AF$25/100 ->  | AG35: =IFERROR(INDEX(熱需要量算定・原単位!$AK14:$BL14,MATCH(AG$20,熱需要量算定・原単位!$AK$5:$BL$5,0)),0)*AG$25/100 ->  | AH35: =IFERROR(INDEX(熱需要量算定・原単位!$AK14:$BL14,MATCH(AH$20,熱需要量算定・原単位!$AK$5:$BL$5,0)),0)*AH$25/100 ->  | AI35: =IFERROR(INDEX(熱需要量算定・原単位!$AK14:$BL14,MATCH(AI$20,熱需要量算定・原単位!$AK$5:$BL$5,0)),0)*AI$25/100 ->  | AJ35: =IFERROR(INDEX(熱需要量算定・原単位!$AK14:$BL14,MATCH(AJ$20,熱需要量算定・原単位!$AK$5:$BL$5,0)),0)*AJ$25/100 ->  | AK35: =IFERROR(INDEX(熱需要量算定・原単位!$AK14:$BL14,MATCH(AK$20,熱需要量算定・原単位!$AK$5:$BL$5,0)),0)*AK$25/100 ->  | AL35: =IFERROR(INDEX(熱需要量算定・原単位!$AK14:$BL14,MATCH(AL$20,熱需要量算定・原単位!$AK$5:$BL$5,0)),0)*AL$25/100 ->  | AM35: =IFERROR(INDEX(熱需要量算定・原単位!$AK14:$BL14,MATCH(AM$20,熱需要量算定・原単位!$AK$5:$BL$5,0)),0)*AM$25/100 ->  | AN35: =IFERROR(INDEX(熱需要量算定・原単位!$AK14:$BL14,MATCH(AN$20,熱需要量算定・原単位!$AK$5:$BL$5,0)),0)*AN$25/100 ->  | AO35: =IFERROR(INDEX(熱需要量算定・原単位!$AK14:$BL14,MATCH(AO$20,熱需要量算定・原単位!$AK$5:$BL$5,0)),0)*AO$25/100 ->  | AP35: =IFERROR(INDEX(熱需要量算定・原単位!$AK14:$BL14,MATCH(AP$20,熱需要量算定・原単位!$AK$5:$BL$5,0)),0)*AP$25/100 -> 
B36: 7 | C36: =IFERROR(INDEX(熱需要量算定・原単位!$AK15:$BL15,MATCH(C$20,熱需要量算定・原単位!$AK$5:$BL$5,0)),0)*C$25/100 ->  | D36: =IFERROR(INDEX(熱需要量算定・原単位!$AK15:$BL15,MATCH(D$20,熱需要量算定・原単位!$AK$5:$BL$5,0)),0)*D$25/100 ->  | E36: =IFERROR(INDEX(熱需要量算定・原単位!$AK15:$BL15,MATCH(E$20,熱需要量算定・原単位!$AK$5:$BL$5,0)),0)*E$25/100 ->  | F36: =IFERROR(INDEX(熱需要量算定・原単位!$AK15:$BL15,MATCH(F$20,熱需要量算定・原単位!$AK$5:$BL$5,0)),0)*F$25/100 ->  | G36: =IFERROR(INDEX(熱需要量算定・原単位!$AK15:$BL15,MATCH(G$20,熱需要量算定・原単位!$AK$5:$BL$5,0)),0)*G$25/100 ->  | H36: =IFERROR(INDEX(熱需要量算定・原単位!$AK15:$BL15,MATCH(H$20,熱需要量算定・原単位!$AK$5:$BL$5,0)),0)*H$25/100 ->  | I36: =IFERROR(INDEX(熱需要量算定・原単位!$AK15:$BL15,MATCH(I$20,熱需要量算定・原単位!$AK$5:$BL$5,0)),0)*I$25/100 ->  | J36: =IFERROR(INDEX(熱需要量算定・原単位!$AK15:$BL15,MATCH(J$20,熱需要量算定・原単位!$AK$5:$BL$5,0)),0)*J$25/100 ->  | K36: =IFERROR(INDEX(熱需要量算定・原単位!$AK15:$BL15,MATCH(K$20,熱需要量算定・原単位!$AK$5:$BL$5,0)),0)*K$25/100 ->  | L36: =IFERROR(INDEX(熱需要量算定・原単位!$AK15:$BL15,MATCH(L$20,熱需要量算定・原単位!$AK$5:$BL$5,0)),0)*L$25/100 ->  | M36: =IFERROR(INDEX(熱需要量算定・原単位!$AK15:$BL15,MATCH(M$20,熱需要量算定・原単位!$AK$5:$BL$5,0)),0)*M$25/100 ->  | N36: =IFERROR(INDEX(熱需要量算定・原単位!$AK15:$BL15,MATCH(N$20,熱需要量算定・原単位!$AK$5:$BL$5,0)),0)*N$25/100 ->  | P36: 7 | Q36: =IFERROR(INDEX(熱需要量算定・原単位!$AK15:$BL15,MATCH(Q$20,熱需要量算定・原単位!$AK$5:$BL$5,0)),0)*Q$25/100 ->  | R36: =IFERROR(INDEX(熱需要量算定・原単位!$AK15:$BL15,MATCH(R$20,熱需要量算定・原単位!$AK$5:$BL$5,0)),0)*R$25/100 ->  | S36: =IFERROR(INDEX(熱需要量算定・原単位!$AK15:$BL15,MATCH(S$20,熱需要量算定・原単位!$AK$5:$BL$5,0)),0)*S$25/100 ->  | T36: =IFERROR(INDEX(熱需要量算定・原単位!$AK15:$BL15,MATCH(T$20,熱需要量算定・原単位!$AK$5:$BL$5,0)),0)*T$25/100 ->  | U36: =IFERROR(INDEX(熱需要量算定・原単位!$AK15:$BL15,MATCH(U$20,熱需要量算定・原単位!$AK$5:$BL$5,0)),0)*U$25/100 ->  | V36: =IFERROR(INDEX(熱需要量算定・原単位!$AK15:$BL15,MATCH(V$20,熱需要量算定・原単位!$AK$5:$BL$5,0)),0)*V$25/100 ->  | W36: =IFERROR(INDEX(熱需要量算定・原単位!$AK15:$BL15,MATCH(W$20,熱需要量算定・原単位!$AK$5:$BL$5,0)),0)*W$25/100 ->  | X36: =IFERROR(INDEX(熱需要量算定・原単位!$AK15:$BL15,MATCH(X$20,熱需要量算定・原単位!$AK$5:$BL$5,0)),0)*X$25/100 ->  | Y36: =IFERROR(INDEX(熱需要量算定・原単位!$AK15:$BL15,MATCH(Y$20,熱需要量算定・原単位!$AK$5:$BL$5,0)),0)*Y$25/100 ->  | Z36: =IFERROR(INDEX(熱需要量算定・原単位!$AK15:$BL15,MATCH(Z$20,熱需要量算定・原単位!$AK$5:$BL$5,0)),0)*Z$25/100 ->  | AA36: =IFERROR(INDEX(熱需要量算定・原単位!$AK15:$BL15,MATCH(AA$20,熱需要量算定・原単位!$AK$5:$BL$5,0)),0)*AA$25/100 ->  | AB36: =IFERROR(INDEX(熱需要量算定・原単位!$AK15:$BL15,MATCH(AB$20,熱需要量算定・原単位!$AK$5:$BL$5,0)),0)*AB$25/100 ->  | AD36: 7 | AE36: =IFERROR(INDEX(熱需要量算定・原単位!$AK15:$BL15,MATCH(AE$20,熱需要量算定・原単位!$AK$5:$BL$5,0)),0)*AE$25/100 ->  | AF36: =IFERROR(INDEX(熱需要量算定・原単位!$AK15:$BL15,MATCH(AF$20,熱需要量算定・原単位!$AK$5:$BL$5,0)),0)*AF$25/100 ->  | AG36: =IFERROR(INDEX(熱需要量算定・原単位!$AK15:$BL15,MATCH(AG$20,熱需要量算定・原単位!$AK$5:$BL$5,0)),0)*AG$25/100 ->  | AH36: =IFERROR(INDEX(熱需要量算定・原単位!$AK15:$BL15,MATCH(AH$20,熱需要量算定・原単位!$AK$5:$BL$5,0)),0)*AH$25/100 ->  | AI36: =IFERROR(INDEX(熱需要量算定・原単位!$AK15:$BL15,MATCH(AI$20,熱需要量算定・原単位!$AK$5:$BL$5,0)),0)*AI$25/100 ->  | AJ36: =IFERROR(INDEX(熱需要量算定・原単位!$AK15:$BL15,MATCH(AJ$20,熱需要量算定・原単位!$AK$5:$BL$5,0)),0)*AJ$25/100 ->  | AK36: =IFERROR(INDEX(熱需要量算定・原単位!$AK15:$BL15,MATCH(AK$20,熱需要量算定・原単位!$AK$5:$BL$5,0)),0)*AK$25/100 ->  | AL36: =IFERROR(INDEX(熱需要量算定・原単位!$AK15:$BL15,MATCH(AL$20,熱需要量算定・原単位!$AK$5:$BL$5,0)),0)*AL$25/100 ->  | AM36: =IFERROR(INDEX(熱需要量算定・原単位!$AK15:$BL15,MATCH(AM$20,熱需要量算定・原単位!$AK$5:$BL$5,0)),0)*AM$25/100 ->  | AN36: =IFERROR(INDEX(熱需要量算定・原単位!$AK15:$BL15,MATCH(AN$20,熱需要量算定・原単位!$AK$5:$BL$5,0)),0)*AN$25/100 ->  | AO36: =IFERROR(INDEX(熱需要量算定・原単位!$AK15:$BL15,MATCH(AO$20,熱需要量算定・原単位!$AK$5:$BL$5,0)),0)*AO$25/100 ->  | AP36: =IFERROR(INDEX(熱需要量算定・原単位!$AK15:$BL15,MATCH(AP$20,熱需要量算定・原単位!$AK$5:$BL$5,0)),0)*AP$25/100 -> 
B37: 8 | C37: =IFERROR(INDEX(熱需要量算定・原単位!$AK16:$BL16,MATCH(C$20,熱需要量算定・原単位!$AK$5:$BL$5,0)),0)*C$25/100 ->  | D37: =IFERROR(INDEX(熱需要量算定・原単位!$AK16:$BL16,MATCH(D$20,熱需要量算定・原単位!$AK$5:$BL$5,0)),0)*D$25/100 ->  | E37: =IFERROR(INDEX(熱需要量算定・原単位!$AK16:$BL16,MATCH(E$20,熱需要量算定・原単位!$AK$5:$BL$5,0)),0)*E$25/100 ->  | F37: =IFERROR(INDEX(熱需要量算定・原単位!$AK16:$BL16,MATCH(F$20,熱需要量算定・原単位!$AK$5:$BL$5,0)),0)*F$25/100 ->  | G37: =IFERROR(INDEX(熱需要量算定・原単位!$AK16:$BL16,MATCH(G$20,熱需要量算定・原単位!$AK$5:$BL$5,0)),0)*G$25/100 ->  | H37: =IFERROR(INDEX(熱需要量算定・原単位!$AK16:$BL16,MATCH(H$20,熱需要量算定・原単位!$AK$5:$BL$5,0)),0)*H$25/100 ->  | I37: =IFERROR(INDEX(熱需要量算定・原単位!$AK16:$BL16,MATCH(I$20,熱需要量算定・原単位!$AK$5:$BL$5,0)),0)*I$25/100 ->  | J37: =IFERROR(INDEX(熱需要量算定・原単位!$AK16:$BL16,MATCH(J$20,熱需要量算定・原単位!$AK$5:$BL$5,0)),0)*J$25/100 ->  | K37: =IFERROR(INDEX(熱需要量算定・原単位!$AK16:$BL16,MATCH(K$20,熱需要量算定・原単位!$AK$5:$BL$5,0)),0)*K$25/100 ->  | L37: =IFERROR(INDEX(熱需要量算定・原単位!$AK16:$BL16,MATCH(L$20,熱需要量算定・原単位!$AK$5:$BL$5,0)),0)*L$25/100 ->  | M37: =IFERROR(INDEX(熱需要量算定・原単位!$AK16:$BL16,MATCH(M$20,熱需要量算定・原単位!$AK$5:$BL$5,0)),0)*M$25/100 ->  | N37: =IFERROR(INDEX(熱需要量算定・原単位!$AK16:$BL16,MATCH(N$20,熱需要量算定・原単位!$AK$5:$BL$5,0)),0)*N$25/100 ->  | P37: 8 | Q37: =IFERROR(INDEX(熱需要量算定・原単位!$AK16:$BL16,MATCH(Q$20,熱需要量算定・原単位!$AK$5:$BL$5,0)),0)*Q$25/100 ->  | R37: =IFERROR(INDEX(熱需要量算定・原単位!$AK16:$BL16,MATCH(R$20,熱需要量算定・原単位!$AK$5:$BL$5,0)),0)*R$25/100 ->  | S37: =IFERROR(INDEX(熱需要量算定・原単位!$AK16:$BL16,MATCH(S$20,熱需要量算定・原単位!$AK$5:$BL$5,0)),0)*S$25/100 ->  | T37: =IFERROR(INDEX(熱需要量算定・原単位!$AK16:$BL16,MATCH(T$20,熱需要量算定・原単位!$AK$5:$BL$5,0)),0)*T$25/100 ->  | U37: =IFERROR(INDEX(熱需要量算定・原単位!$AK16:$BL16,MATCH(U$20,熱需要量算定・原単位!$AK$5:$BL$5,0)),0)*U$25/100 ->  | V37: =IFERROR(INDEX(熱需要量算定・原単位!$AK16:$BL16,MATCH(V$20,熱需要量算定・原単位!$AK$5:$BL$5,0)),0)*V$25/100 ->  | W37: =IFERROR(INDEX(熱需要量算定・原単位!$AK16:$BL16,MATCH(W$20,熱需要量算定・原単位!$AK$5:$BL$5,0)),0)*W$25/100 ->  | X37: =IFERROR(INDEX(熱需要量算定・原単位!$AK16:$BL16,MATCH(X$20,熱需要量算定・原単位!$AK$5:$BL$5,0)),0)*X$25/100 ->  | Y37: =IFERROR(INDEX(熱需要量算定・原単位!$AK16:$BL16,MATCH(Y$20,熱需要量算定・原単位!$AK$5:$BL$5,0)),0)*Y$25/100 ->  | Z37: =IFERROR(INDEX(熱需要量算定・原単位!$AK16:$BL16,MATCH(Z$20,熱需要量算定・原単位!$AK$5:$BL$5,0)),0)*Z$25/100 ->  | AA37: =IFERROR(INDEX(熱需要量算定・原単位!$AK16:$BL16,MATCH(AA$20,熱需要量算定・原単位!$AK$5:$BL$5,0)),0)*AA$25/100 ->  | AB37: =IFERROR(INDEX(熱需要量算定・原単位!$AK16:$BL16,MATCH(AB$20,熱需要量算定・原単位!$AK$5:$BL$5,0)),0)*AB$25/100 ->  | AD37: 8 | AE37: =IFERROR(INDEX(熱需要量算定・原単位!$AK16:$BL16,MATCH(AE$20,熱需要量算定・原単位!$AK$5:$BL$5,0)),0)*AE$25/100 ->  | AF37: =IFERROR(INDEX(熱需要量算定・原単位!$AK16:$BL16,MATCH(AF$20,熱需要量算定・原単位!$AK$5:$BL$5,0)),0)*AF$25/100 ->  | AG37: =IFERROR(INDEX(熱需要量算定・原単位!$AK16:$BL16,MATCH(AG$20,熱需要量算定・原単位!$AK$5:$BL$5,0)),0)*AG$25/100 ->  | AH37: =IFERROR(INDEX(熱需要量算定・原単位!$AK16:$BL16,MATCH(AH$20,熱需要量算定・原単位!$AK$5:$BL$5,0)),0)*AH$25/100 ->  | AI37: =IFERROR(INDEX(熱需要量算定・原単位!$AK16:$BL16,MATCH(AI$20,熱需要量算定・原単位!$AK$5:$BL$5,0)),0)*AI$25/100 ->  | AJ37: =IFERROR(INDEX(熱需要量算定・原単位!$AK16:$BL16,MATCH(AJ$20,熱需要量算定・原単位!$AK$5:$BL$5,0)),0)*AJ$25/100 ->  | AK37: =IFERROR(INDEX(熱需要量算定・原単位!$AK16:$BL16,MATCH(AK$20,熱需要量算定・原単位!$AK$5:$BL$5,0)),0)*AK$25/100 ->  | AL37: =IFERROR(INDEX(熱需要量算定・原単位!$AK16:$BL16,MATCH(AL$20,熱需要量算定・原単位!$AK$5:$BL$5,0)),0)*AL$25/100 ->  | AM37: =IFERROR(INDEX(熱需要量算定・原単位!$AK16:$BL16,MATCH(AM$20,熱需要量算定・原単位!$AK$5:$BL$5,0)),0)*AM$25/100 ->  | AN37: =IFERROR(INDEX(熱需要量算定・原単位!$AK16:$BL16,MATCH(AN$20,熱需要量算定・原単位!$AK$5:$BL$5,0)),0)*AN$25/100 ->  | AO37: =IFERROR(INDEX(熱需要量算定・原単位!$AK16:$BL16,MATCH(AO$20,熱需要量算定・原単位!$AK$5:$BL$5,0)),0)*AO$25/100 ->  | AP37: =IFERROR(INDEX(熱需要量算定・原単位!$AK16:$BL16,MATCH(AP$20,熱需要量算定・原単位!$AK$5:$BL$5,0)),0)*AP$25/100 -> 
B38: 9 | C38: =IFERROR(INDEX(熱需要量算定・原単位!$AK17:$BL17,MATCH(C$20,熱需要量算定・原単位!$AK$5:$BL$5,0)),0)*C$25/100 ->  | D38: =IFERROR(INDEX(熱需要量算定・原単位!$AK17:$BL17,MATCH(D$20,熱需要量算定・原単位!$AK$5:$BL$5,0)),0)*D$25/100 ->  | E38: =IFERROR(INDEX(熱需要量算定・原単位!$AK17:$BL17,MATCH(E$20,熱需要量算定・原単位!$AK$5:$BL$5,0)),0)*E$25/100 ->  | F38: =IFERROR(INDEX(熱需要量算定・原単位!$AK17:$BL17,MATCH(F$20,熱需要量算定・原単位!$AK$5:$BL$5,0)),0)*F$25/100 ->  | G38: =IFERROR(INDEX(熱需要量算定・原単位!$AK17:$BL17,MATCH(G$20,熱需要量算定・原単位!$AK$5:$BL$5,0)),0)*G$25/100 ->  | H38: =IFERROR(INDEX(熱需要量算定・原単位!$AK17:$BL17,MATCH(H$20,熱需要量算定・原単位!$AK$5:$BL$5,0)),0)*H$25/100 ->  | I38: =IFERROR(INDEX(熱需要量算定・原単位!$AK17:$BL17,MATCH(I$20,熱需要量算定・原単位!$AK$5:$BL$5,0)),0)*I$25/100 ->  | J38: =IFERROR(INDEX(熱需要量算定・原単位!$AK17:$BL17,MATCH(J$20,熱需要量算定・原単位!$AK$5:$BL$5,0)),0)*J$25/100 ->  | K38: =IFERROR(INDEX(熱需要量算定・原単位!$AK17:$BL17,MATCH(K$20,熱需要量算定・原単位!$AK$5:$BL$5,0)),0)*K$25/100 ->  | L38: =IFERROR(INDEX(熱需要量算定・原単位!$AK17:$BL17,MATCH(L$20,熱需要量算定・原単位!$AK$5:$BL$5,0)),0)*L$25/100 ->  | M38: =IFERROR(INDEX(熱需要量算定・原単位!$AK17:$BL17,MATCH(M$20,熱需要量算定・原単位!$AK$5:$BL$5,0)),0)*M$25/100 ->  | N38: =IFERROR(INDEX(熱需要量算定・原単位!$AK17:$BL17,MATCH(N$20,熱需要量算定・原単位!$AK$5:$BL$5,0)),0)*N$25/100 ->  | P38: 9 | Q38: =IFERROR(INDEX(熱需要量算定・原単位!$AK17:$BL17,MATCH(Q$20,熱需要量算定・原単位!$AK$5:$BL$5,0)),0)*Q$25/100 ->  | R38: =IFERROR(INDEX(熱需要量算定・原単位!$AK17:$BL17,MATCH(R$20,熱需要量算定・原単位!$AK$5:$BL$5,0)),0)*R$25/100 ->  | S38: =IFERROR(INDEX(熱需要量算定・原単位!$AK17:$BL17,MATCH(S$20,熱需要量算定・原単位!$AK$5:$BL$5,0)),0)*S$25/100 ->  | T38: =IFERROR(INDEX(熱需要量算定・原単位!$AK17:$BL17,MATCH(T$20,熱需要量算定・原単位!$AK$5:$BL$5,0)),0)*T$25/100 ->  | U38: =IFERROR(INDEX(熱需要量算定・原単位!$AK17:$BL17,MATCH(U$20,熱需要量算定・原単位!$AK$5:$BL$5,0)),0)*U$25/100 ->  | V38: =IFERROR(INDEX(熱需要量算定・原単位!$AK17:$BL17,MATCH(V$20,熱需要量算定・原単位!$AK$5:$BL$5,0)),0)*V$25/100 ->  | W38: =IFERROR(INDEX(熱需要量算定・原単位!$AK17:$BL17,MATCH(W$20,熱需要量算定・原単位!$AK$5:$BL$5,0)),0)*W$25/100 ->  | X38: =IFERROR(INDEX(熱需要量算定・原単位!$AK17:$BL17,MATCH(X$20,熱需要量算定・原単位!$AK$5:$BL$5,0)),0)*X$25/100 ->  | Y38: =IFERROR(INDEX(熱需要量算定・原単位!$AK17:$BL17,MATCH(Y$20,熱需要量算定・原単位!$AK$5:$BL$5,0)),0)*Y$25/100 ->  | Z38: =IFERROR(INDEX(熱需要量算定・原単位!$AK17:$BL17,MATCH(Z$20,熱需要量算定・原単位!$AK$5:$BL$5,0)),0)*Z$25/100 ->  | AA38: =IFERROR(INDEX(熱需要量算定・原単位!$AK17:$BL17,MATCH(AA$20,熱需要量算定・原単位!$AK$5:$BL$5,0)),0)*AA$25/100 ->  | AB38: =IFERROR(INDEX(熱需要量算定・原単位!$AK17:$BL17,MATCH(AB$20,熱需要量算定・原単位!$AK$5:$BL$5,0)),0)*AB$25/100 ->  | AD38: 9 | AE38: =IFERROR(INDEX(熱需要量算定・原単位!$AK17:$BL17,MATCH(AE$20,熱需要量算定・原単位!$AK$5:$BL$5,0)),0)*AE$25/100 ->  | AF38: =IFERROR(INDEX(熱需要量算定・原単位!$AK17:$BL17,MATCH(AF$20,熱需要量算定・原単位!$AK$5:$BL$5,0)),0)*AF$25/100 ->  | AG38: =IFERROR(INDEX(熱需要量算定・原単位!$AK17:$BL17,MATCH(AG$20,熱需要量算定・原単位!$AK$5:$BL$5,0)),0)*AG$25/100 ->  | AH38: =IFERROR(INDEX(熱需要量算定・原単位!$AK17:$BL17,MATCH(AH$20,熱需要量算定・原単位!$AK$5:$BL$5,0)),0)*AH$25/100 ->  | AI38: =IFERROR(INDEX(熱需要量算定・原単位!$AK17:$BL17,MATCH(AI$20,熱需要量算定・原単位!$AK$5:$BL$5,0)),0)*AI$25/100 ->  | AJ38: =IFERROR(INDEX(熱需要量算定・原単位!$AK17:$BL17,MATCH(AJ$20,熱需要量算定・原単位!$AK$5:$BL$5,0)),0)*AJ$25/100 ->  | AK38: =IFERROR(INDEX(熱需要量算定・原単位!$AK17:$BL17,MATCH(AK$20,熱需要量算定・原単位!$AK$5:$BL$5,0)),0)*AK$25/100 ->  | AL38: =IFERROR(INDEX(熱需要量算定・原単位!$AK17:$BL17,MATCH(AL$20,熱需要量算定・原単位!$AK$5:$BL$5,0)),0)*AL$25/100 ->  | AM38: =IFERROR(INDEX(熱需要量算定・原単位!$AK17:$BL17,MATCH(AM$20,熱需要量算定・原単位!$AK$5:$BL$5,0)),0)*AM$25/100 ->  | AN38: =IFERROR(INDEX(熱需要量算定・原単位!$AK17:$BL17,MATCH(AN$20,熱需要量算定・原単位!$AK$5:$BL$5,0)),0)*AN$25/100 ->  | AO38: =IFERROR(INDEX(熱需要量算定・原単位!$AK17:$BL17,MATCH(AO$20,熱需要量算定・原単位!$AK$5:$BL$5,0)),0)*AO$25/100 ->  | AP38: =IFERROR(INDEX(熱需要量算定・原単位!$AK17:$BL17,MATCH(AP$20,熱需要量算定・原単位!$AK$5:$BL$5,0)),0)*AP$25/100 -> 
B39: 10 | C39: =IFERROR(INDEX(熱需要量算定・原単位!$AK18:$BL18,MATCH(C$20,熱需要量算定・原単位!$AK$5:$BL$5,0)),0)*C$25/100 ->  | D39: =IFERROR(INDEX(熱需要量算定・原単位!$AK18:$BL18,MATCH(D$20,熱需要量算定・原単位!$AK$5:$BL$5,0)),0)*D$25/100 ->  | E39: =IFERROR(INDEX(熱需要量算定・原単位!$AK18:$BL18,MATCH(E$20,熱需要量算定・原単位!$AK$5:$BL$5,0)),0)*E$25/100 ->  | F39: =IFERROR(INDEX(熱需要量算定・原単位!$AK18:$BL18,MATCH(F$20,熱需要量算定・原単位!$AK$5:$BL$5,0)),0)*F$25/100 ->  | G39: =IFERROR(INDEX(熱需要量算定・原単位!$AK18:$BL18,MATCH(G$20,熱需要量算定・原単位!$AK$5:$BL$5,0)),0)*G$25/100 ->  | H39: =IFERROR(INDEX(熱需要量算定・原単位!$AK18:$BL18,MATCH(H$20,熱需要量算定・原単位!$AK$5:$BL$5,0)),0)*H$25/100 ->  | I39: =IFERROR(INDEX(熱需要量算定・原単位!$AK18:$BL18,MATCH(I$20,熱需要量算定・原単位!$AK$5:$BL$5,0)),0)*I$25/100 ->  | J39: =IFERROR(INDEX(熱需要量算定・原単位!$AK18:$BL18,MATCH(J$20,熱需要量算定・原単位!$AK$5:$BL$5,0)),0)*J$25/100 ->  | K39: =IFERROR(INDEX(熱需要量算定・原単位!$AK18:$BL18,MATCH(K$20,熱需要量算定・原単位!$AK$5:$BL$5,0)),0)*K$25/100 ->  | L39: =IFERROR(INDEX(熱需要量算定・原単位!$AK18:$BL18,MATCH(L$20,熱需要量算定・原単位!$AK$5:$BL$5,0)),0)*L$25/100 ->  | M39: =IFERROR(INDEX(熱需要量算定・原単位!$AK18:$BL18,MATCH(M$20,熱需要量算定・原単位!$AK$5:$BL$5,0)),0)*M$25/100 ->  | N39: =IFERROR(INDEX(熱需要量算定・原単位!$AK18:$BL18,MATCH(N$20,熱需要量算定・原単位!$AK$5:$BL$5,0)),0)*N$25/100 ->  | P39: 10 | Q39: =IFERROR(INDEX(熱需要量算定・原単位!$AK18:$BL18,MATCH(Q$20,熱需要量算定・原単位!$AK$5:$BL$5,0)),0)*Q$25/100 ->  | R39: =IFERROR(INDEX(熱需要量算定・原単位!$AK18:$BL18,MATCH(R$20,熱需要量算定・原単位!$AK$5:$BL$5,0)),0)*R$25/100 ->  | S39: =IFERROR(INDEX(熱需要量算定・原単位!$AK18:$BL18,MATCH(S$20,熱需要量算定・原単位!$AK$5:$BL$5,0)),0)*S$25/100 ->  | T39: =IFERROR(INDEX(熱需要量算定・原単位!$AK18:$BL18,MATCH(T$20,熱需要量算定・原単位!$AK$5:$BL$5,0)),0)*T$25/100 ->  | U39: =IFERROR(INDEX(熱需要量算定・原単位!$AK18:$BL18,MATCH(U$20,熱需要量算定・原単位!$AK$5:$BL$5,0)),0)*U$25/100 ->  | V39: =IFERROR(INDEX(熱需要量算定・原単位!$AK18:$BL18,MATCH(V$20,熱需要量算定・原単位!$AK$5:$BL$5,0)),0)*V$25/100 ->  | W39: =IFERROR(INDEX(熱需要量算定・原単位!$AK18:$BL18,MATCH(W$20,熱需要量算定・原単位!$AK$5:$BL$5,0)),0)*W$25/100 ->  | X39: =IFERROR(INDEX(熱需要量算定・原単位!$AK18:$BL18,MATCH(X$20,熱需要量算定・原単位!$AK$5:$BL$5,0)),0)*X$25/100 ->  | Y39: =IFERROR(INDEX(熱需要量算定・原単位!$AK18:$BL18,MATCH(Y$20,熱需要量算定・原単位!$AK$5:$BL$5,0)),0)*Y$25/100 ->  | Z39: =IFERROR(INDEX(熱需要量算定・原単位!$AK18:$BL18,MATCH(Z$20,熱需要量算定・原単位!$AK$5:$BL$5,0)),0)*Z$25/100 ->  | AA39: =IFERROR(INDEX(熱需要量算定・原単位!$AK18:$BL18,MATCH(AA$20,熱需要量算定・原単位!$AK$5:$BL$5,0)),0)*AA$25/100 ->  | AB39: =IFERROR(INDEX(熱需要量算定・原単位!$AK18:$BL18,MATCH(AB$20,熱需要量算定・原単位!$AK$5:$BL$5,0)),0)*AB$25/100 ->  | AD39: 10 | AE39: =IFERROR(INDEX(熱需要量算定・原単位!$AK18:$BL18,MATCH(AE$20,熱需要量算定・原単位!$AK$5:$BL$5,0)),0)*AE$25/100 ->  | AF39: =IFERROR(INDEX(熱需要量算定・原単位!$AK18:$BL18,MATCH(AF$20,熱需要量算定・原単位!$AK$5:$BL$5,0)),0)*AF$25/100 ->  | AG39: =IFERROR(INDEX(熱需要量算定・原単位!$AK18:$BL18,MATCH(AG$20,熱需要量算定・原単位!$AK$5:$BL$5,0)),0)*AG$25/100 ->  | AH39: =IFERROR(INDEX(熱需要量算定・原単位!$AK18:$BL18,MATCH(AH$20,熱需要量算定・原単位!$AK$5:$BL$5,0)),0)*AH$25/100 ->  | AI39: =IFERROR(INDEX(熱需要量算定・原単位!$AK18:$BL18,MATCH(AI$20,熱需要量算定・原単位!$AK$5:$BL$5,0)),0)*AI$25/100 ->  | AJ39: =IFERROR(INDEX(熱需要量算定・原単位!$AK18:$BL18,MATCH(AJ$20,熱需要量算定・原単位!$AK$5:$BL$5,0)),0)*AJ$25/100 ->  | AK39: =IFERROR(INDEX(熱需要量算定・原単位!$AK18:$BL18,MATCH(AK$20,熱需要量算定・原単位!$AK$5:$BL$5,0)),0)*AK$25/100 ->  | AL39: =IFERROR(INDEX(熱需要量算定・原単位!$AK18:$BL18,MATCH(AL$20,熱需要量算定・原単位!$AK$5:$BL$5,0)),0)*AL$25/100 ->  | AM39: =IFERROR(INDEX(熱需要量算定・原単位!$AK18:$BL18,MATCH(AM$20,熱需要量算定・原単位!$AK$5:$BL$5,0)),0)*AM$25/100 ->  | AN39: =IFERROR(INDEX(熱需要量算定・原単位!$AK18:$BL18,MATCH(AN$20,熱需要量算定・原単位!$AK$5:$BL$5,0)),0)*AN$25/100 ->  | AO39: =IFERROR(INDEX(熱需要量算定・原単位!$AK18:$BL18,MATCH(AO$20,熱需要量算定・原単位!$AK$5:$BL$5,0)),0)*AO$25/100 ->  | AP39: =IFERROR(INDEX(熱需要量算定・原単位!$AK18:$BL18,MATCH(AP$20,熱需要量算定・原単位!$AK$5:$BL$5,0)),0)*AP$25/100 -> 
B40: 11 | C40: =IFERROR(INDEX(熱需要量算定・原単位!$AK19:$BL19,MATCH(C$20,熱需要量算定・原単位!$AK$5:$BL$5,0)),0)*C$25/100 ->  | D40: =IFERROR(INDEX(熱需要量算定・原単位!$AK19:$BL19,MATCH(D$20,熱需要量算定・原単位!$AK$5:$BL$5,0)),0)*D$25/100 ->  | E40: =IFERROR(INDEX(熱需要量算定・原単位!$AK19:$BL19,MATCH(E$20,熱需要量算定・原単位!$AK$5:$BL$5,0)),0)*E$25/100 ->  | F40: =IFERROR(INDEX(熱需要量算定・原単位!$AK19:$BL19,MATCH(F$20,熱需要量算定・原単位!$AK$5:$BL$5,0)),0)*F$25/100 ->  | G40: =IFERROR(INDEX(熱需要量算定・原単位!$AK19:$BL19,MATCH(G$20,熱需要量算定・原単位!$AK$5:$BL$5,0)),0)*G$25/100 ->  | H40: =IFERROR(INDEX(熱需要量算定・原単位!$AK19:$BL19,MATCH(H$20,熱需要量算定・原単位!$AK$5:$BL$5,0)),0)*H$25/100 ->  | I40: =IFERROR(INDEX(熱需要量算定・原単位!$AK19:$BL19,MATCH(I$20,熱需要量算定・原単位!$AK$5:$BL$5,0)),0)*I$25/100 ->  | J40: =IFERROR(INDEX(熱需要量算定・原単位!$AK19:$BL19,MATCH(J$20,熱需要量算定・原単位!$AK$5:$BL$5,0)),0)*J$25/100 ->  | K40: =IFERROR(INDEX(熱需要量算定・原単位!$AK19:$BL19,MATCH(K$20,熱需要量算定・原単位!$AK$5:$BL$5,0)),0)*K$25/100 ->  | L40: =IFERROR(INDEX(熱需要量算定・原単位!$AK19:$BL19,MATCH(L$20,熱需要量算定・原単位!$AK$5:$BL$5,0)),0)*L$25/100 ->  | M40: =IFERROR(INDEX(熱需要量算定・原単位!$AK19:$BL19,MATCH(M$20,熱需要量算定・原単位!$AK$5:$BL$5,0)),0)*M$25/100 ->  | N40: =IFERROR(INDEX(熱需要量算定・原単位!$AK19:$BL19,MATCH(N$20,熱需要量算定・原単位!$AK$5:$BL$5,0)),0)*N$25/100 ->  | P40: 11 | Q40: =IFERROR(INDEX(熱需要量算定・原単位!$AK19:$BL19,MATCH(Q$20,熱需要量算定・原単位!$AK$5:$BL$5,0)),0)*Q$25/100 ->  | R40: =IFERROR(INDEX(熱需要量算定・原単位!$AK19:$BL19,MATCH(R$20,熱需要量算定・原単位!$AK$5:$BL$5,0)),0)*R$25/100 ->  | S40: =IFERROR(INDEX(熱需要量算定・原単位!$AK19:$BL19,MATCH(S$20,熱需要量算定・原単位!$AK$5:$BL$5,0)),0)*S$25/100 ->  | T40: =IFERROR(INDEX(熱需要量算定・原単位!$AK19:$BL19,MATCH(T$20,熱需要量算定・原単位!$AK$5:$BL$5,0)),0)*T$25/100 ->  | U40: =IFERROR(INDEX(熱需要量算定・原単位!$AK19:$BL19,MATCH(U$20,熱需要量算定・原単位!$AK$5:$BL$5,0)),0)*U$25/100 ->  | V40: =IFERROR(INDEX(熱需要量算定・原単位!$AK19:$BL19,MATCH(V$20,熱需要量算定・原単位!$AK$5:$BL$5,0)),0)*V$25/100 ->  | W40: =IFERROR(INDEX(熱需要量算定・原単位!$AK19:$BL19,MATCH(W$20,熱需要量算定・原単位!$AK$5:$BL$5,0)),0)*W$25/100 ->  | X40: =IFERROR(INDEX(熱需要量算定・原単位!$AK19:$BL19,MATCH(X$20,熱需要量算定・原単位!$AK$5:$BL$5,0)),0)*X$25/100 ->  | Y40: =IFERROR(INDEX(熱需要量算定・原単位!$AK19:$BL19,MATCH(Y$20,熱需要量算定・原単位!$AK$5:$BL$5,0)),0)*Y$25/100 ->  | Z40: =IFERROR(INDEX(熱需要量算定・原単位!$AK19:$BL19,MATCH(Z$20,熱需要量算定・原単位!$AK$5:$BL$5,0)),0)*Z$25/100 ->  | AA40: =IFERROR(INDEX(熱需要量算定・原単位!$AK19:$BL19,MATCH(AA$20,熱需要量算定・原単位!$AK$5:$BL$5,0)),0)*AA$25/100 ->  | AB40: =IFERROR(INDEX(熱需要量算定・原単位!$AK19:$BL19,MATCH(AB$20,熱需要量算定・原単位!$AK$5:$BL$5,0)),0)*AB$25/100 ->  | AD40: 11 | AE40: =IFERROR(INDEX(熱需要量算定・原単位!$AK19:$BL19,MATCH(AE$20,熱需要量算定・原単位!$AK$5:$BL$5,0)),0)*AE$25/100 ->  | AF40: =IFERROR(INDEX(熱需要量算定・原単位!$AK19:$BL19,MATCH(AF$20,熱需要量算定・原単位!$AK$5:$BL$5,0)),0)*AF$25/100 ->  | AG40: =IFERROR(INDEX(熱需要量算定・原単位!$AK19:$BL19,MATCH(AG$20,熱需要量算定・原単位!$AK$5:$BL$5,0)),0)*AG$25/100 ->  | AH40: =IFERROR(INDEX(熱需要量算定・原単位!$AK19:$BL19,MATCH(AH$20,熱需要量算定・原単位!$AK$5:$BL$5,0)),0)*AH$25/100 ->  | AI40: =IFERROR(INDEX(熱需要量算定・原単位!$AK19:$BL19,MATCH(AI$20,熱需要量算定・原単位!$AK$5:$BL$5,0)),0)*AI$25/100 ->  | AJ40: =IFERROR(INDEX(熱需要量算定・原単位!$AK19:$BL19,MATCH(AJ$20,熱需要量算定・原単位!$AK$5:$BL$5,0)),0)*AJ$25/100 ->  | AK40: =IFERROR(INDEX(熱需要量算定・原単位!$AK19:$BL19,MATCH(AK$20,熱需要量算定・原単位!$AK$5:$BL$5,0)),0)*AK$25/100 ->  | AL40: =IFERROR(INDEX(熱需要量算定・原単位!$AK19:$BL19,MATCH(AL$20,熱需要量算定・原単位!$AK$5:$BL$5,0)),0)*AL$25/100 ->  | AM40: =IFERROR(INDEX(熱需要量算定・原単位!$AK19:$BL19,MATCH(AM$20,熱需要量算定・原単位!$AK$5:$BL$5,0)),0)*AM$25/100 ->  | AN40: =IFERROR(INDEX(熱需要量算定・原単位!$AK19:$BL19,MATCH(AN$20,熱需要量算定・原単位!$AK$5:$BL$5,0)),0)*AN$25/100 ->  | AO40: =IFERROR(INDEX(熱需要量算定・原単位!$AK19:$BL19,MATCH(AO$20,熱需要量算定・原単位!$AK$5:$BL$5,0)),0)*AO$25/100 ->  | AP40: =IFERROR(INDEX(熱需要量算定・原単位!$AK19:$BL19,MATCH(AP$20,熱需要量算定・原単位!$AK$5:$BL$5,0)),0)*AP$25/100 -> 
B41: 12 | C41: =IFERROR(INDEX(熱需要量算定・原単位!$AK20:$BL20,MATCH(C$20,熱需要量算定・原単位!$AK$5:$BL$5,0)),0)*C$25/100 ->  | D41: =IFERROR(INDEX(熱需要量算定・原単位!$AK20:$BL20,MATCH(D$20,熱需要量算定・原単位!$AK$5:$BL$5,0)),0)*D$25/100 ->  | E41: =IFERROR(INDEX(熱需要量算定・原単位!$AK20:$BL20,MATCH(E$20,熱需要量算定・原単位!$AK$5:$BL$5,0)),0)*E$25/100 ->  | F41: =IFERROR(INDEX(熱需要量算定・原単位!$AK20:$BL20,MATCH(F$20,熱需要量算定・原単位!$AK$5:$BL$5,0)),0)*F$25/100 ->  | G41: =IFERROR(INDEX(熱需要量算定・原単位!$AK20:$BL20,MATCH(G$20,熱需要量算定・原単位!$AK$5:$BL$5,0)),0)*G$25/100 ->  | H41: =IFERROR(INDEX(熱需要量算定・原単位!$AK20:$BL20,MATCH(H$20,熱需要量算定・原単位!$AK$5:$BL$5,0)),0)*H$25/100 ->  | I41: =IFERROR(INDEX(熱需要量算定・原単位!$AK20:$BL20,MATCH(I$20,熱需要量算定・原単位!$AK$5:$BL$5,0)),0)*I$25/100 ->  | J41: =IFERROR(INDEX(熱需要量算定・原単位!$AK20:$BL20,MATCH(J$20,熱需要量算定・原単位!$AK$5:$BL$5,0)),0)*J$25/100 ->  | K41: =IFERROR(INDEX(熱需要量算定・原単位!$AK20:$BL20,MATCH(K$20,熱需要量算定・原単位!$AK$5:$BL$5,0)),0)*K$25/100 ->  | L41: =IFERROR(INDEX(熱需要量算定・原単位!$AK20:$BL20,MATCH(L$20,熱需要量算定・原単位!$AK$5:$BL$5,0)),0)*L$25/100 ->  | M41: =IFERROR(INDEX(熱需要量算定・原単位!$AK20:$BL20,MATCH(M$20,熱需要量算定・原単位!$AK$5:$BL$5,0)),0)*M$25/100 ->  | N41: =IFERROR(INDEX(熱需要量算定・原単位!$AK20:$BL20,MATCH(N$20,熱需要量算定・原単位!$AK$5:$BL$5,0)),0)*N$25/100 ->  | P41: 12 | Q41: =IFERROR(INDEX(熱需要量算定・原単位!$AK20:$BL20,MATCH(Q$20,熱需要量算定・原単位!$AK$5:$BL$5,0)),0)*Q$25/100 ->  | R41: =IFERROR(INDEX(熱需要量算定・原単位!$AK20:$BL20,MATCH(R$20,熱需要量算定・原単位!$AK$5:$BL$5,0)),0)*R$25/100 ->  | S41: =IFERROR(INDEX(熱需要量算定・原単位!$AK20:$BL20,MATCH(S$20,熱需要量算定・原単位!$AK$5:$BL$5,0)),0)*S$25/100 ->  | T41: =IFERROR(INDEX(熱需要量算定・原単位!$AK20:$BL20,MATCH(T$20,熱需要量算定・原単位!$AK$5:$BL$5,0)),0)*T$25/100 ->  | U41: =IFERROR(INDEX(熱需要量算定・原単位!$AK20:$BL20,MATCH(U$20,熱需要量算定・原単位!$AK$5:$BL$5,0)),0)*U$25/100 ->  | V41: =IFERROR(INDEX(熱需要量算定・原単位!$AK20:$BL20,MATCH(V$20,熱需要量算定・原単位!$AK$5:$BL$5,0)),0)*V$25/100 ->  | W41: =IFERROR(INDEX(熱需要量算定・原単位!$AK20:$BL20,MATCH(W$20,熱需要量算定・原単位!$AK$5:$BL$5,0)),0)*W$25/100 ->  | X41: =IFERROR(INDEX(熱需要量算定・原単位!$AK20:$BL20,MATCH(X$20,熱需要量算定・原単位!$AK$5:$BL$5,0)),0)*X$25/100 ->  | Y41: =IFERROR(INDEX(熱需要量算定・原単位!$AK20:$BL20,MATCH(Y$20,熱需要量算定・原単位!$AK$5:$BL$5,0)),0)*Y$25/100 ->  | Z41: =IFERROR(INDEX(熱需要量算定・原単位!$AK20:$BL20,MATCH(Z$20,熱需要量算定・原単位!$AK$5:$BL$5,0)),0)*Z$25/100 ->  | AA41: =IFERROR(INDEX(熱需要量算定・原単位!$AK20:$BL20,MATCH(AA$20,熱需要量算定・原単位!$AK$5:$BL$5,0)),0)*AA$25/100 ->  | AB41: =IFERROR(INDEX(熱需要量算定・原単位!$AK20:$BL20,MATCH(AB$20,熱需要量算定・原単位!$AK$5:$BL$5,0)),0)*AB$25/100 ->  | AD41: 12 | AE41: =IFERROR(INDEX(熱需要量算定・原単位!$AK20:$BL20,MATCH(AE$20,熱需要量算定・原単位!$AK$5:$BL$5,0)),0)*AE$25/100 ->  | AF41: =IFERROR(INDEX(熱需要量算定・原単位!$AK20:$BL20,MATCH(AF$20,熱需要量算定・原単位!$AK$5:$BL$5,0)),0)*AF$25/100 ->  | AG41: =IFERROR(INDEX(熱需要量算定・原単位!$AK20:$BL20,MATCH(AG$20,熱需要量算定・原単位!$AK$5:$BL$5,0)),0)*AG$25/100 ->  | AH41: =IFERROR(INDEX(熱需要量算定・原単位!$AK20:$BL20,MATCH(AH$20,熱需要量算定・原単位!$AK$5:$BL$5,0)),0)*AH$25/100 ->  | AI41: =IFERROR(INDEX(熱需要量算定・原単位!$AK20:$BL20,MATCH(AI$20,熱需要量算定・原単位!$AK$5:$BL$5,0)),0)*AI$25/100 ->  | AJ41: =IFERROR(INDEX(熱需要量算定・原単位!$AK20:$BL20,MATCH(AJ$20,熱需要量算定・原単位!$AK$5:$BL$5,0)),0)*AJ$25/100 ->  | AK41: =IFERROR(INDEX(熱需要量算定・原単位!$AK20:$BL20,MATCH(AK$20,熱需要量算定・原単位!$AK$5:$BL$5,0)),0)*AK$25/100 ->  | AL41: =IFERROR(INDEX(熱需要量算定・原単位!$AK20:$BL20,MATCH(AL$20,熱需要量算定・原単位!$AK$5:$BL$5,0)),0)*AL$25/100 ->  | AM41: =IFERROR(INDEX(熱需要量算定・原単位!$AK20:$BL20,MATCH(AM$20,熱需要量算定・原単位!$AK$5:$BL$5,0)),0)*AM$25/100 ->  | AN41: =IFERROR(INDEX(熱需要量算定・原単位!$AK20:$BL20,MATCH(AN$20,熱需要量算定・原単位!$AK$5:$BL$5,0)),0)*AN$25/100 ->  | AO41: =IFERROR(INDEX(熱需要量算定・原単位!$AK20:$BL20,MATCH(AO$20,熱需要量算定・原単位!$AK$5:$BL$5,0)),0)*AO$25/100 ->  | AP41: =IFERROR(INDEX(熱需要量算定・原単位!$AK20:$BL20,MATCH(AP$20,熱需要量算定・原単位!$AK$5:$BL$5,0)),0)*AP$25/100 -> 
B42: 13 | C42: =IFERROR(INDEX(熱需要量算定・原単位!$AK21:$BL21,MATCH(C$20,熱需要量算定・原単位!$AK$5:$BL$5,0)),0)*C$25/100 ->  | D42: =IFERROR(INDEX(熱需要量算定・原単位!$AK21:$BL21,MATCH(D$20,熱需要量算定・原単位!$AK$5:$BL$5,0)),0)*D$25/100 ->  | E42: =IFERROR(INDEX(熱需要量算定・原単位!$AK21:$BL21,MATCH(E$20,熱需要量算定・原単位!$AK$5:$BL$5,0)),0)*E$25/100 ->  | F42: =IFERROR(INDEX(熱需要量算定・原単位!$AK21:$BL21,MATCH(F$20,熱需要量算定・原単位!$AK$5:$BL$5,0)),0)*F$25/100 ->  | G42: =IFERROR(INDEX(熱需要量算定・原単位!$AK21:$BL21,MATCH(G$20,熱需要量算定・原単位!$AK$5:$BL$5,0)),0)*G$25/100 ->  | H42: =IFERROR(INDEX(熱需要量算定・原単位!$AK21:$BL21,MATCH(H$20,熱需要量算定・原単位!$AK$5:$BL$5,0)),0)*H$25/100 ->  | I42: =IFERROR(INDEX(熱需要量算定・原単位!$AK21:$BL21,MATCH(I$20,熱需要量算定・原単位!$AK$5:$BL$5,0)),0)*I$25/100 ->  | J42: =IFERROR(INDEX(熱需要量算定・原単位!$AK21:$BL21,MATCH(J$20,熱需要量算定・原単位!$AK$5:$BL$5,0)),0)*J$25/100 ->  | K42: =IFERROR(INDEX(熱需要量算定・原単位!$AK21:$BL21,MATCH(K$20,熱需要量算定・原単位!$AK$5:$BL$5,0)),0)*K$25/100 ->  | L42: =IFERROR(INDEX(熱需要量算定・原単位!$AK21:$BL21,MATCH(L$20,熱需要量算定・原単位!$AK$5:$BL$5,0)),0)*L$25/100 ->  | M42: =IFERROR(INDEX(熱需要量算定・原単位!$AK21:$BL21,MATCH(M$20,熱需要量算定・原単位!$AK$5:$BL$5,0)),0)*M$25/100 ->  | N42: =IFERROR(INDEX(熱需要量算定・原単位!$AK21:$BL21,MATCH(N$20,熱需要量算定・原単位!$AK$5:$BL$5,0)),0)*N$25/100 ->  | P42: 13 | Q42: =IFERROR(INDEX(熱需要量算定・原単位!$AK21:$BL21,MATCH(Q$20,熱需要量算定・原単位!$AK$5:$BL$5,0)),0)*Q$25/100 ->  | R42: =IFERROR(INDEX(熱需要量算定・原単位!$AK21:$BL21,MATCH(R$20,熱需要量算定・原単位!$AK$5:$BL$5,0)),0)*R$25/100 ->  | S42: =IFERROR(INDEX(熱需要量算定・原単位!$AK21:$BL21,MATCH(S$20,熱需要量算定・原単位!$AK$5:$BL$5,0)),0)*S$25/100 ->  | T42: =IFERROR(INDEX(熱需要量算定・原単位!$AK21:$BL21,MATCH(T$20,熱需要量算定・原単位!$AK$5:$BL$5,0)),0)*T$25/100 ->  | U42: =IFERROR(INDEX(熱需要量算定・原単位!$AK21:$BL21,MATCH(U$20,熱需要量算定・原単位!$AK$5:$BL$5,0)),0)*U$25/100 ->  | V42: =IFERROR(INDEX(熱需要量算定・原単位!$AK21:$BL21,MATCH(V$20,熱需要量算定・原単位!$AK$5:$BL$5,0)),0)*V$25/100 ->  | W42: =IFERROR(INDEX(熱需要量算定・原単位!$AK21:$BL21,MATCH(W$20,熱需要量算定・原単位!$AK$5:$BL$5,0)),0)*W$25/100 ->  | X42: =IFERROR(INDEX(熱需要量算定・原単位!$AK21:$BL21,MATCH(X$20,熱需要量算定・原単位!$AK$5:$BL$5,0)),0)*X$25/100 ->  | Y42: =IFERROR(INDEX(熱需要量算定・原単位!$AK21:$BL21,MATCH(Y$20,熱需要量算定・原単位!$AK$5:$BL$5,0)),0)*Y$25/100 ->  | Z42: =IFERROR(INDEX(熱需要量算定・原単位!$AK21:$BL21,MATCH(Z$20,熱需要量算定・原単位!$AK$5:$BL$5,0)),0)*Z$25/100 ->  | AA42: =IFERROR(INDEX(熱需要量算定・原単位!$AK21:$BL21,MATCH(AA$20,熱需要量算定・原単位!$AK$5:$BL$5,0)),0)*AA$25/100 ->  | AB42: =IFERROR(INDEX(熱需要量算定・原単位!$AK21:$BL21,MATCH(AB$20,熱需要量算定・原単位!$AK$5:$BL$5,0)),0)*AB$25/100 ->  | AD42: 13 | AE42: =IFERROR(INDEX(熱需要量算定・原単位!$AK21:$BL21,MATCH(AE$20,熱需要量算定・原単位!$AK$5:$BL$5,0)),0)*AE$25/100 ->  | AF42: =IFERROR(INDEX(熱需要量算定・原単位!$AK21:$BL21,MATCH(AF$20,熱需要量算定・原単位!$AK$5:$BL$5,0)),0)*AF$25/100 ->  | AG42: =IFERROR(INDEX(熱需要量算定・原単位!$AK21:$BL21,MATCH(AG$20,熱需要量算定・原単位!$AK$5:$BL$5,0)),0)*AG$25/100 ->  | AH42: =IFERROR(INDEX(熱需要量算定・原単位!$AK21:$BL21,MATCH(AH$20,熱需要量算定・原単位!$AK$5:$BL$5,0)),0)*AH$25/100 ->  | AI42: =IFERROR(INDEX(熱需要量算定・原単位!$AK21:$BL21,MATCH(AI$20,熱需要量算定・原単位!$AK$5:$BL$5,0)),0)*AI$25/100 ->  | AJ42: =IFERROR(INDEX(熱需要量算定・原単位!$AK21:$BL21,MATCH(AJ$20,熱需要量算定・原単位!$AK$5:$BL$5,0)),0)*AJ$25/100 ->  | AK42: =IFERROR(INDEX(熱需要量算定・原単位!$AK21:$BL21,MATCH(AK$20,熱需要量算定・原単位!$AK$5:$BL$5,0)),0)*AK$25/100 ->  | AL42: =IFERROR(INDEX(熱需要量算定・原単位!$AK21:$BL21,MATCH(AL$20,熱需要量算定・原単位!$AK$5:$BL$5,0)),0)*AL$25/100 ->  | AM42: =IFERROR(INDEX(熱需要量算定・原単位!$AK21:$BL21,MATCH(AM$20,熱需要量算定・原単位!$AK$5:$BL$5,0)),0)*AM$25/100 ->  | AN42: =IFERROR(INDEX(熱需要量算定・原単位!$AK21:$BL21,MATCH(AN$20,熱需要量算定・原単位!$AK$5:$BL$5,0)),0)*AN$25/100 ->  | AO42: =IFERROR(INDEX(熱需要量算定・原単位!$AK21:$BL21,MATCH(AO$20,熱需要量算定・原単位!$AK$5:$BL$5,0)),0)*AO$25/100 ->  | AP42: =IFERROR(INDEX(熱需要量算定・原単位!$AK21:$BL21,MATCH(AP$20,熱需要量算定・原単位!$AK$5:$BL$5,0)),0)*AP$25/100 -> 
B43: 14 | C43: =IFERROR(INDEX(熱需要量算定・原単位!$AK22:$BL22,MATCH(C$20,熱需要量算定・原単位!$AK$5:$BL$5,0)),0)*C$25/100 ->  | D43: =IFERROR(INDEX(熱需要量算定・原単位!$AK22:$BL22,MATCH(D$20,熱需要量算定・原単位!$AK$5:$BL$5,0)),0)*D$25/100 ->  | E43: =IFERROR(INDEX(熱需要量算定・原単位!$AK22:$BL22,MATCH(E$20,熱需要量算定・原単位!$AK$5:$BL$5,0)),0)*E$25/100 ->  | F43: =IFERROR(INDEX(熱需要量算定・原単位!$AK22:$BL22,MATCH(F$20,熱需要量算定・原単位!$AK$5:$BL$5,0)),0)*F$25/100 ->  | G43: =IFERROR(INDEX(熱需要量算定・原単位!$AK22:$BL22,MATCH(G$20,熱需要量算定・原単位!$AK$5:$BL$5,0)),0)*G$25/100 ->  | H43: =IFERROR(INDEX(熱需要量算定・原単位!$AK22:$BL22,MATCH(H$20,熱需要量算定・原単位!$AK$5:$BL$5,0)),0)*H$25/100 ->  | I43: =IFERROR(INDEX(熱需要量算定・原単位!$AK22:$BL22,MATCH(I$20,熱需要量算定・原単位!$AK$5:$BL$5,0)),0)*I$25/100 ->  | J43: =IFERROR(INDEX(熱需要量算定・原単位!$AK22:$BL22,MATCH(J$20,熱需要量算定・原単位!$AK$5:$BL$5,0)),0)*J$25/100 ->  | K43: =IFERROR(INDEX(熱需要量算定・原単位!$AK22:$BL22,MATCH(K$20,熱需要量算定・原単位!$AK$5:$BL$5,0)),0)*K$25/100 ->  | L43: =IFERROR(INDEX(熱需要量算定・原単位!$AK22:$BL22,MATCH(L$20,熱需要量算定・原単位!$AK$5:$BL$5,0)),0)*L$25/100 ->  | M43: =IFERROR(INDEX(熱需要量算定・原単位!$AK22:$BL22,MATCH(M$20,熱需要量算定・原単位!$AK$5:$BL$5,0)),0)*M$25/100 ->  | N43: =IFERROR(INDEX(熱需要量算定・原単位!$AK22:$BL22,MATCH(N$20,熱需要量算定・原単位!$AK$5:$BL$5,0)),0)*N$25/100 ->  | P43: 14 | Q43: =IFERROR(INDEX(熱需要量算定・原単位!$AK22:$BL22,MATCH(Q$20,熱需要量算定・原単位!$AK$5:$BL$5,0)),0)*Q$25/100 ->  | R43: =IFERROR(INDEX(熱需要量算定・原単位!$AK22:$BL22,MATCH(R$20,熱需要量算定・原単位!$AK$5:$BL$5,0)),0)*R$25/100 ->  | S43: =IFERROR(INDEX(熱需要量算定・原単位!$AK22:$BL22,MATCH(S$20,熱需要量算定・原単位!$AK$5:$BL$5,0)),0)*S$25/100 ->  | T43: =IFERROR(INDEX(熱需要量算定・原単位!$AK22:$BL22,MATCH(T$20,熱需要量算定・原単位!$AK$5:$BL$5,0)),0)*T$25/100 ->  | U43: =IFERROR(INDEX(熱需要量算定・原単位!$AK22:$BL22,MATCH(U$20,熱需要量算定・原単位!$AK$5:$BL$5,0)),0)*U$25/100 ->  | V43: =IFERROR(INDEX(熱需要量算定・原単位!$AK22:$BL22,MATCH(V$20,熱需要量算定・原単位!$AK$5:$BL$5,0)),0)*V$25/100 ->  | W43: =IFERROR(INDEX(熱需要量算定・原単位!$AK22:$BL22,MATCH(W$20,熱需要量算定・原単位!$AK$5:$BL$5,0)),0)*W$25/100 ->  | X43: =IFERROR(INDEX(熱需要量算定・原単位!$AK22:$BL22,MATCH(X$20,熱需要量算定・原単位!$AK$5:$BL$5,0)),0)*X$25/100 ->  | Y43: =IFERROR(INDEX(熱需要量算定・原単位!$AK22:$BL22,MATCH(Y$20,熱需要量算定・原単位!$AK$5:$BL$5,0)),0)*Y$25/100 ->  | Z43: =IFERROR(INDEX(熱需要量算定・原単位!$AK22:$BL22,MATCH(Z$20,熱需要量算定・原単位!$AK$5:$BL$5,0)),0)*Z$25/100 ->  | AA43: =IFERROR(INDEX(熱需要量算定・原単位!$AK22:$BL22,MATCH(AA$20,熱需要量算定・原単位!$AK$5:$BL$5,0)),0)*AA$25/100 ->  | AB43: =IFERROR(INDEX(熱需要量算定・原単位!$AK22:$BL22,MATCH(AB$20,熱需要量算定・原単位!$AK$5:$BL$5,0)),0)*AB$25/100 ->  | AD43: 14 | AE43: =IFERROR(INDEX(熱需要量算定・原単位!$AK22:$BL22,MATCH(AE$20,熱需要量算定・原単位!$AK$5:$BL$5,0)),0)*AE$25/100 ->  | AF43: =IFERROR(INDEX(熱需要量算定・原単位!$AK22:$BL22,MATCH(AF$20,熱需要量算定・原単位!$AK$5:$BL$5,0)),0)*AF$25/100 ->  | AG43: =IFERROR(INDEX(熱需要量算定・原単位!$AK22:$BL22,MATCH(AG$20,熱需要量算定・原単位!$AK$5:$BL$5,0)),0)*AG$25/100 ->  | AH43: =IFERROR(INDEX(熱需要量算定・原単位!$AK22:$BL22,MATCH(AH$20,熱需要量算定・原単位!$AK$5:$BL$5,0)),0)*AH$25/100 ->  | AI43: =IFERROR(INDEX(熱需要量算定・原単位!$AK22:$BL22,MATCH(AI$20,熱需要量算定・原単位!$AK$5:$BL$5,0)),0)*AI$25/100 ->  | AJ43: =IFERROR(INDEX(熱需要量算定・原単位!$AK22:$BL22,MATCH(AJ$20,熱需要量算定・原単位!$AK$5:$BL$5,0)),0)*AJ$25/100 ->  | AK43: =IFERROR(INDEX(熱需要量算定・原単位!$AK22:$BL22,MATCH(AK$20,熱需要量算定・原単位!$AK$5:$BL$5,0)),0)*AK$25/100 ->  | AL43: =IFERROR(INDEX(熱需要量算定・原単位!$AK22:$BL22,MATCH(AL$20,熱需要量算定・原単位!$AK$5:$BL$5,0)),0)*AL$25/100 ->  | AM43: =IFERROR(INDEX(熱需要量算定・原単位!$AK22:$BL22,MATCH(AM$20,熱需要量算定・原単位!$AK$5:$BL$5,0)),0)*AM$25/100 ->  | AN43: =IFERROR(INDEX(熱需要量算定・原単位!$AK22:$BL22,MATCH(AN$20,熱需要量算定・原単位!$AK$5:$BL$5,0)),0)*AN$25/100 ->  | AO43: =IFERROR(INDEX(熱需要量算定・原単位!$AK22:$BL22,MATCH(AO$20,熱需要量算定・原単位!$AK$5:$BL$5,0)),0)*AO$25/100 ->  | AP43: =IFERROR(INDEX(熱需要量算定・原単位!$AK22:$BL22,MATCH(AP$20,熱需要量算定・原単位!$AK$5:$BL$5,0)),0)*AP$25/100 -> 
B44: 15 | C44: =IFERROR(INDEX(熱需要量算定・原単位!$AK23:$BL23,MATCH(C$20,熱需要量算定・原単位!$AK$5:$BL$5,0)),0)*C$25/100 ->  | D44: =IFERROR(INDEX(熱需要量算定・原単位!$AK23:$BL23,MATCH(D$20,熱需要量算定・原単位!$AK$5:$BL$5,0)),0)*D$25/100 ->  | E44: =IFERROR(INDEX(熱需要量算定・原単位!$AK23:$BL23,MATCH(E$20,熱需要量算定・原単位!$AK$5:$BL$5,0)),0)*E$25/100 ->  | F44: =IFERROR(INDEX(熱需要量算定・原単位!$AK23:$BL23,MATCH(F$20,熱需要量算定・原単位!$AK$5:$BL$5,0)),0)*F$25/100 ->  | G44: =IFERROR(INDEX(熱需要量算定・原単位!$AK23:$BL23,MATCH(G$20,熱需要量算定・原単位!$AK$5:$BL$5,0)),0)*G$25/100 ->  | H44: =IFERROR(INDEX(熱需要量算定・原単位!$AK23:$BL23,MATCH(H$20,熱需要量算定・原単位!$AK$5:$BL$5,0)),0)*H$25/100 ->  | I44: =IFERROR(INDEX(熱需要量算定・原単位!$AK23:$BL23,MATCH(I$20,熱需要量算定・原単位!$AK$5:$BL$5,0)),0)*I$25/100 ->  | J44: =IFERROR(INDEX(熱需要量算定・原単位!$AK23:$BL23,MATCH(J$20,熱需要量算定・原単位!$AK$5:$BL$5,0)),0)*J$25/100 ->  | K44: =IFERROR(INDEX(熱需要量算定・原単位!$AK23:$BL23,MATCH(K$20,熱需要量算定・原単位!$AK$5:$BL$5,0)),0)*K$25/100 ->  | L44: =IFERROR(INDEX(熱需要量算定・原単位!$AK23:$BL23,MATCH(L$20,熱需要量算定・原単位!$AK$5:$BL$5,0)),0)*L$25/100 ->  | M44: =IFERROR(INDEX(熱需要量算定・原単位!$AK23:$BL23,MATCH(M$20,熱需要量算定・原単位!$AK$5:$BL$5,0)),0)*M$25/100 ->  | N44: =IFERROR(INDEX(熱需要量算定・原単位!$AK23:$BL23,MATCH(N$20,熱需要量算定・原単位!$AK$5:$BL$5,0)),0)*N$25/100 ->  | P44: 15 | Q44: =IFERROR(INDEX(熱需要量算定・原単位!$AK23:$BL23,MATCH(Q$20,熱需要量算定・原単位!$AK$5:$BL$5,0)),0)*Q$25/100 ->  | R44: =IFERROR(INDEX(熱需要量算定・原単位!$AK23:$BL23,MATCH(R$20,熱需要量算定・原単位!$AK$5:$BL$5,0)),0)*R$25/100 ->  | S44: =IFERROR(INDEX(熱需要量算定・原単位!$AK23:$BL23,MATCH(S$20,熱需要量算定・原単位!$AK$5:$BL$5,0)),0)*S$25/100 ->  | T44: =IFERROR(INDEX(熱需要量算定・原単位!$AK23:$BL23,MATCH(T$20,熱需要量算定・原単位!$AK$5:$BL$5,0)),0)*T$25/100 ->  | U44: =IFERROR(INDEX(熱需要量算定・原単位!$AK23:$BL23,MATCH(U$20,熱需要量算定・原単位!$AK$5:$BL$5,0)),0)*U$25/100 ->  | V44: =IFERROR(INDEX(熱需要量算定・原単位!$AK23:$BL23,MATCH(V$20,熱需要量算定・原単位!$AK$5:$BL$5,0)),0)*V$25/100 ->  | W44: =IFERROR(INDEX(熱需要量算定・原単位!$AK23:$BL23,MATCH(W$20,熱需要量算定・原単位!$AK$5:$BL$5,0)),0)*W$25/100 ->  | X44: =IFERROR(INDEX(熱需要量算定・原単位!$AK23:$BL23,MATCH(X$20,熱需要量算定・原単位!$AK$5:$BL$5,0)),0)*X$25/100 ->  | Y44: =IFERROR(INDEX(熱需要量算定・原単位!$AK23:$BL23,MATCH(Y$20,熱需要量算定・原単位!$AK$5:$BL$5,0)),0)*Y$25/100 ->  | Z44: =IFERROR(INDEX(熱需要量算定・原単位!$AK23:$BL23,MATCH(Z$20,熱需要量算定・原単位!$AK$5:$BL$5,0)),0)*Z$25/100 ->  | AA44: =IFERROR(INDEX(熱需要量算定・原単位!$AK23:$BL23,MATCH(AA$20,熱需要量算定・原単位!$AK$5:$BL$5,0)),0)*AA$25/100 ->  | AB44: =IFERROR(INDEX(熱需要量算定・原単位!$AK23:$BL23,MATCH(AB$20,熱需要量算定・原単位!$AK$5:$BL$5,0)),0)*AB$25/100 ->  | AD44: 15 | AE44: =IFERROR(INDEX(熱需要量算定・原単位!$AK23:$BL23,MATCH(AE$20,熱需要量算定・原単位!$AK$5:$BL$5,0)),0)*AE$25/100 ->  | AF44: =IFERROR(INDEX(熱需要量算定・原単位!$AK23:$BL23,MATCH(AF$20,熱需要量算定・原単位!$AK$5:$BL$5,0)),0)*AF$25/100 ->  | AG44: =IFERROR(INDEX(熱需要量算定・原単位!$AK23:$BL23,MATCH(AG$20,熱需要量算定・原単位!$AK$5:$BL$5,0)),0)*AG$25/100 ->  | AH44: =IFERROR(INDEX(熱需要量算定・原単位!$AK23:$BL23,MATCH(AH$20,熱需要量算定・原単位!$AK$5:$BL$5,0)),0)*AH$25/100 ->  | AI44: =IFERROR(INDEX(熱需要量算定・原単位!$AK23:$BL23,MATCH(AI$20,熱需要量算定・原単位!$AK$5:$BL$5,0)),0)*AI$25/100 ->  | AJ44: =IFERROR(INDEX(熱需要量算定・原単位!$AK23:$BL23,MATCH(AJ$20,熱需要量算定・原単位!$AK$5:$BL$5,0)),0)*AJ$25/100 ->  | AK44: =IFERROR(INDEX(熱需要量算定・原単位!$AK23:$BL23,MATCH(AK$20,熱需要量算定・原単位!$AK$5:$BL$5,0)),0)*AK$25/100 ->  | AL44: =IFERROR(INDEX(熱需要量算定・原単位!$AK23:$BL23,MATCH(AL$20,熱需要量算定・原単位!$AK$5:$BL$5,0)),0)*AL$25/100 ->  | AM44: =IFERROR(INDEX(熱需要量算定・原単位!$AK23:$BL23,MATCH(AM$20,熱需要量算定・原単位!$AK$5:$BL$5,0)),0)*AM$25/100 ->  | AN44: =IFERROR(INDEX(熱需要量算定・原単位!$AK23:$BL23,MATCH(AN$20,熱需要量算定・原単位!$AK$5:$BL$5,0)),0)*AN$25/100 ->  | AO44: =IFERROR(INDEX(熱需要量算定・原単位!$AK23:$BL23,MATCH(AO$20,熱需要量算定・原単位!$AK$5:$BL$5,0)),0)*AO$25/100 ->  | AP44: =IFERROR(INDEX(熱需要量算定・原単位!$AK23:$BL23,MATCH(AP$20,熱需要量算定・原単位!$AK$5:$BL$5,0)),0)*AP$25/100 -> 
B45: 16 | C45: =IFERROR(INDEX(熱需要量算定・原単位!$AK24:$BL24,MATCH(C$20,熱需要量算定・原単位!$AK$5:$BL$5,0)),0)*C$25/100 ->  | D45: =IFERROR(INDEX(熱需要量算定・原単位!$AK24:$BL24,MATCH(D$20,熱需要量算定・原単位!$AK$5:$BL$5,0)),0)*D$25/100 ->  | E45: =IFERROR(INDEX(熱需要量算定・原単位!$AK24:$BL24,MATCH(E$20,熱需要量算定・原単位!$AK$5:$BL$5,0)),0)*E$25/100 ->  | F45: =IFERROR(INDEX(熱需要量算定・原単位!$AK24:$BL24,MATCH(F$20,熱需要量算定・原単位!$AK$5:$BL$5,0)),0)*F$25/100 ->  | G45: =IFERROR(INDEX(熱需要量算定・原単位!$AK24:$BL24,MATCH(G$20,熱需要量算定・原単位!$AK$5:$BL$5,0)),0)*G$25/100 ->  | H45: =IFERROR(INDEX(熱需要量算定・原単位!$AK24:$BL24,MATCH(H$20,熱需要量算定・原単位!$AK$5:$BL$5,0)),0)*H$25/100 ->  | I45: =IFERROR(INDEX(熱需要量算定・原単位!$AK24:$BL24,MATCH(I$20,熱需要量算定・原単位!$AK$5:$BL$5,0)),0)*I$25/100 ->  | J45: =IFERROR(INDEX(熱需要量算定・原単位!$AK24:$BL24,MATCH(J$20,熱需要量算定・原単位!$AK$5:$BL$5,0)),0)*J$25/100 ->  | K45: =IFERROR(INDEX(熱需要量算定・原単位!$AK24:$BL24,MATCH(K$20,熱需要量算定・原単位!$AK$5:$BL$5,0)),0)*K$25/100 ->  | L45: =IFERROR(INDEX(熱需要量算定・原単位!$AK24:$BL24,MATCH(L$20,熱需要量算定・原単位!$AK$5:$BL$5,0)),0)*L$25/100 ->  | M45: =IFERROR(INDEX(熱需要量算定・原単位!$AK24:$BL24,MATCH(M$20,熱需要量算定・原単位!$AK$5:$BL$5,0)),0)*M$25/100 ->  | N45: =IFERROR(INDEX(熱需要量算定・原単位!$AK24:$BL24,MATCH(N$20,熱需要量算定・原単位!$AK$5:$BL$5,0)),0)*N$25/100 ->  | P45: 16 | Q45: =IFERROR(INDEX(熱需要量算定・原単位!$AK24:$BL24,MATCH(Q$20,熱需要量算定・原単位!$AK$5:$BL$5,0)),0)*Q$25/100 ->  | R45: =IFERROR(INDEX(熱需要量算定・原単位!$AK24:$BL24,MATCH(R$20,熱需要量算定・原単位!$AK$5:$BL$5,0)),0)*R$25/100 ->  | S45: =IFERROR(INDEX(熱需要量算定・原単位!$AK24:$BL24,MATCH(S$20,熱需要量算定・原単位!$AK$5:$BL$5,0)),0)*S$25/100 ->  | T45: =IFERROR(INDEX(熱需要量算定・原単位!$AK24:$BL24,MATCH(T$20,熱需要量算定・原単位!$AK$5:$BL$5,0)),0)*T$25/100 ->  | U45: =IFERROR(INDEX(熱需要量算定・原単位!$AK24:$BL24,MATCH(U$20,熱需要量算定・原単位!$AK$5:$BL$5,0)),0)*U$25/100 ->  | V45: =IFERROR(INDEX(熱需要量算定・原単位!$AK24:$BL24,MATCH(V$20,熱需要量算定・原単位!$AK$5:$BL$5,0)),0)*V$25/100 ->  | W45: =IFERROR(INDEX(熱需要量算定・原単位!$AK24:$BL24,MATCH(W$20,熱需要量算定・原単位!$AK$5:$BL$5,0)),0)*W$25/100 ->  | X45: =IFERROR(INDEX(熱需要量算定・原単位!$AK24:$BL24,MATCH(X$20,熱需要量算定・原単位!$AK$5:$BL$5,0)),0)*X$25/100 ->  | Y45: =IFERROR(INDEX(熱需要量算定・原単位!$AK24:$BL24,MATCH(Y$20,熱需要量算定・原単位!$AK$5:$BL$5,0)),0)*Y$25/100 ->  | Z45: =IFERROR(INDEX(熱需要量算定・原単位!$AK24:$BL24,MATCH(Z$20,熱需要量算定・原単位!$AK$5:$BL$5,0)),0)*Z$25/100 ->  | AA45: =IFERROR(INDEX(熱需要量算定・原単位!$AK24:$BL24,MATCH(AA$20,熱需要量算定・原単位!$AK$5:$BL$5,0)),0)*AA$25/100 ->  | AB45: =IFERROR(INDEX(熱需要量算定・原単位!$AK24:$BL24,MATCH(AB$20,熱需要量算定・原単位!$AK$5:$BL$5,0)),0)*AB$25/100 ->  | AD45: 16 | AE45: =IFERROR(INDEX(熱需要量算定・原単位!$AK24:$BL24,MATCH(AE$20,熱需要量算定・原単位!$AK$5:$BL$5,0)),0)*AE$25/100 ->  | AF45: =IFERROR(INDEX(熱需要量算定・原単位!$AK24:$BL24,MATCH(AF$20,熱需要量算定・原単位!$AK$5:$BL$5,0)),0)*AF$25/100 ->  | AG45: =IFERROR(INDEX(熱需要量算定・原単位!$AK24:$BL24,MATCH(AG$20,熱需要量算定・原単位!$AK$5:$BL$5,0)),0)*AG$25/100 ->  | AH45: =IFERROR(INDEX(熱需要量算定・原単位!$AK24:$BL24,MATCH(AH$20,熱需要量算定・原単位!$AK$5:$BL$5,0)),0)*AH$25/100 ->  | AI45: =IFERROR(INDEX(熱需要量算定・原単位!$AK24:$BL24,MATCH(AI$20,熱需要量算定・原単位!$AK$5:$BL$5,0)),0)*AI$25/100 ->  | AJ45: =IFERROR(INDEX(熱需要量算定・原単位!$AK24:$BL24,MATCH(AJ$20,熱需要量算定・原単位!$AK$5:$BL$5,0)),0)*AJ$25/100 ->  | AK45: =IFERROR(INDEX(熱需要量算定・原単位!$AK24:$BL24,MATCH(AK$20,熱需要量算定・原単位!$AK$5:$BL$5,0)),0)*AK$25/100 ->  | AL45: =IFERROR(INDEX(熱需要量算定・原単位!$AK24:$BL24,MATCH(AL$20,熱需要量算定・原単位!$AK$5:$BL$5,0)),0)*AL$25/100 ->  | AM45: =IFERROR(INDEX(熱需要量算定・原単位!$AK24:$BL24,MATCH(AM$20,熱需要量算定・原単位!$AK$5:$BL$5,0)),0)*AM$25/100 ->  | AN45: =IFERROR(INDEX(熱需要量算定・原単位!$AK24:$BL24,MATCH(AN$20,熱需要量算定・原単位!$AK$5:$BL$5,0)),0)*AN$25/100 ->  | AO45: =IFERROR(INDEX(熱需要量算定・原単位!$AK24:$BL24,MATCH(AO$20,熱需要量算定・原単位!$AK$5:$BL$5,0)),0)*AO$25/100 ->  | AP45: =IFERROR(INDEX(熱需要量算定・原単位!$AK24:$BL24,MATCH(AP$20,熱需要量算定・原単位!$AK$5:$BL$5,0)),0)*AP$25/100 -> 
B46: 17 | C46: =IFERROR(INDEX(熱需要量算定・原単位!$AK25:$BL25,MATCH(C$20,熱需要量算定・原単位!$AK$5:$BL$5,0)),0)*C$25/100 ->  | D46: =IFERROR(INDEX(熱需要量算定・原単位!$AK25:$BL25,MATCH(D$20,熱需要量算定・原単位!$AK$5:$BL$5,0)),0)*D$25/100 ->  | E46: =IFERROR(INDEX(熱需要量算定・原単位!$AK25:$BL25,MATCH(E$20,熱需要量算定・原単位!$AK$5:$BL$5,0)),0)*E$25/100 ->  | F46: =IFERROR(INDEX(熱需要量算定・原単位!$AK25:$BL25,MATCH(F$20,熱需要量算定・原単位!$AK$5:$BL$5,0)),0)*F$25/100 ->  | G46: =IFERROR(INDEX(熱需要量算定・原単位!$AK25:$BL25,MATCH(G$20,熱需要量算定・原単位!$AK$5:$BL$5,0)),0)*G$25/100 ->  | H46: =IFERROR(INDEX(熱需要量算定・原単位!$AK25:$BL25,MATCH(H$20,熱需要量算定・原単位!$AK$5:$BL$5,0)),0)*H$25/100 ->  | I46: =IFERROR(INDEX(熱需要量算定・原単位!$AK25:$BL25,MATCH(I$20,熱需要量算定・原単位!$AK$5:$BL$5,0)),0)*I$25/100 ->  | J46: =IFERROR(INDEX(熱需要量算定・原単位!$AK25:$BL25,MATCH(J$20,熱需要量算定・原単位!$AK$5:$BL$5,0)),0)*J$25/100 ->  | K46: =IFERROR(INDEX(熱需要量算定・原単位!$AK25:$BL25,MATCH(K$20,熱需要量算定・原単位!$AK$5:$BL$5,0)),0)*K$25/100 ->  | L46: =IFERROR(INDEX(熱需要量算定・原単位!$AK25:$BL25,MATCH(L$20,熱需要量算定・原単位!$AK$5:$BL$5,0)),0)*L$25/100 ->  | M46: =IFERROR(INDEX(熱需要量算定・原単位!$AK25:$BL25,MATCH(M$20,熱需要量算定・原単位!$AK$5:$BL$5,0)),0)*M$25/100 ->  | N46: =IFERROR(INDEX(熱需要量算定・原単位!$AK25:$BL25,MATCH(N$20,熱需要量算定・原単位!$AK$5:$BL$5,0)),0)*N$25/100 ->  | P46: 17 | Q46: =IFERROR(INDEX(熱需要量算定・原単位!$AK25:$BL25,MATCH(Q$20,熱需要量算定・原単位!$AK$5:$BL$5,0)),0)*Q$25/100 ->  | R46: =IFERROR(INDEX(熱需要量算定・原単位!$AK25:$BL25,MATCH(R$20,熱需要量算定・原単位!$AK$5:$BL$5,0)),0)*R$25/100 ->  | S46: =IFERROR(INDEX(熱需要量算定・原単位!$AK25:$BL25,MATCH(S$20,熱需要量算定・原単位!$AK$5:$BL$5,0)),0)*S$25/100 ->  | T46: =IFERROR(INDEX(熱需要量算定・原単位!$AK25:$BL25,MATCH(T$20,熱需要量算定・原単位!$AK$5:$BL$5,0)),0)*T$25/100 ->  | U46: =IFERROR(INDEX(熱需要量算定・原単位!$AK25:$BL25,MATCH(U$20,熱需要量算定・原単位!$AK$5:$BL$5,0)),0)*U$25/100 ->  | V46: =IFERROR(INDEX(熱需要量算定・原単位!$AK25:$BL25,MATCH(V$20,熱需要量算定・原単位!$AK$5:$BL$5,0)),0)*V$25/100 ->  | W46: =IFERROR(INDEX(熱需要量算定・原単位!$AK25:$BL25,MATCH(W$20,熱需要量算定・原単位!$AK$5:$BL$5,0)),0)*W$25/100 ->  | X46: =IFERROR(INDEX(熱需要量算定・原単位!$AK25:$BL25,MATCH(X$20,熱需要量算定・原単位!$AK$5:$BL$5,0)),0)*X$25/100 ->  | Y46: =IFERROR(INDEX(熱需要量算定・原単位!$AK25:$BL25,MATCH(Y$20,熱需要量算定・原単位!$AK$5:$BL$5,0)),0)*Y$25/100 ->  | Z46: =IFERROR(INDEX(熱需要量算定・原単位!$AK25:$BL25,MATCH(Z$20,熱需要量算定・原単位!$AK$5:$BL$5,0)),0)*Z$25/100 ->  | AA46: =IFERROR(INDEX(熱需要量算定・原単位!$AK25:$BL25,MATCH(AA$20,熱需要量算定・原単位!$AK$5:$BL$5,0)),0)*AA$25/100 ->  | AB46: =IFERROR(INDEX(熱需要量算定・原単位!$AK25:$BL25,MATCH(AB$20,熱需要量算定・原単位!$AK$5:$BL$5,0)),0)*AB$25/100 ->  | AD46: 17 | AE46: =IFERROR(INDEX(熱需要量算定・原単位!$AK25:$BL25,MATCH(AE$20,熱需要量算定・原単位!$AK$5:$BL$5,0)),0)*AE$25/100 ->  | AF46: =IFERROR(INDEX(熱需要量算定・原単位!$AK25:$BL25,MATCH(AF$20,熱需要量算定・原単位!$AK$5:$BL$5,0)),0)*AF$25/100 ->  | AG46: =IFERROR(INDEX(熱需要量算定・原単位!$AK25:$BL25,MATCH(AG$20,熱需要量算定・原単位!$AK$5:$BL$5,0)),0)*AG$25/100 ->  | AH46: =IFERROR(INDEX(熱需要量算定・原単位!$AK25:$BL25,MATCH(AH$20,熱需要量算定・原単位!$AK$5:$BL$5,0)),0)*AH$25/100 ->  | AI46: =IFERROR(INDEX(熱需要量算定・原単位!$AK25:$BL25,MATCH(AI$20,熱需要量算定・原単位!$AK$5:$BL$5,0)),0)*AI$25/100 ->  | AJ46: =IFERROR(INDEX(熱需要量算定・原単位!$AK25:$BL25,MATCH(AJ$20,熱需要量算定・原単位!$AK$5:$BL$5,0)),0)*AJ$25/100 ->  | AK46: =IFERROR(INDEX(熱需要量算定・原単位!$AK25:$BL25,MATCH(AK$20,熱需要量算定・原単位!$AK$5:$BL$5,0)),0)*AK$25/100 ->  | AL46: =IFERROR(INDEX(熱需要量算定・原単位!$AK25:$BL25,MATCH(AL$20,熱需要量算定・原単位!$AK$5:$BL$5,0)),0)*AL$25/100 ->  | AM46: =IFERROR(INDEX(熱需要量算定・原単位!$AK25:$BL25,MATCH(AM$20,熱需要量算定・原単位!$AK$5:$BL$5,0)),0)*AM$25/100 ->  | AN46: =IFERROR(INDEX(熱需要量算定・原単位!$AK25:$BL25,MATCH(AN$20,熱需要量算定・原単位!$AK$5:$BL$5,0)),0)*AN$25/100 ->  | AO46: =IFERROR(INDEX(熱需要量算定・原単位!$AK25:$BL25,MATCH(AO$20,熱需要量算定・原単位!$AK$5:$BL$5,0)),0)*AO$25/100 ->  | AP46: =IFERROR(INDEX(熱需要量算定・原単位!$AK25:$BL25,MATCH(AP$20,熱需要量算定・原単位!$AK$5:$BL$5,0)),0)*AP$25/100 -> 
B47: 18 | C47: =IFERROR(INDEX(熱需要量算定・原単位!$AK26:$BL26,MATCH(C$20,熱需要量算定・原単位!$AK$5:$BL$5,0)),0)*C$25/100 ->  | D47: =IFERROR(INDEX(熱需要量算定・原単位!$AK26:$BL26,MATCH(D$20,熱需要量算定・原単位!$AK$5:$BL$5,0)),0)*D$25/100 ->  | E47: =IFERROR(INDEX(熱需要量算定・原単位!$AK26:$BL26,MATCH(E$20,熱需要量算定・原単位!$AK$5:$BL$5,0)),0)*E$25/100 ->  | F47: =IFERROR(INDEX(熱需要量算定・原単位!$AK26:$BL26,MATCH(F$20,熱需要量算定・原単位!$AK$5:$BL$5,0)),0)*F$25/100 ->  | G47: =IFERROR(INDEX(熱需要量算定・原単位!$AK26:$BL26,MATCH(G$20,熱需要量算定・原単位!$AK$5:$BL$5,0)),0)*G$25/100 ->  | H47: =IFERROR(INDEX(熱需要量算定・原単位!$AK26:$BL26,MATCH(H$20,熱需要量算定・原単位!$AK$5:$BL$5,0)),0)*H$25/100 ->  | I47: =IFERROR(INDEX(熱需要量算定・原単位!$AK26:$BL26,MATCH(I$20,熱需要量算定・原単位!$AK$5:$BL$5,0)),0)*I$25/100 ->  | J47: =IFERROR(INDEX(熱需要量算定・原単位!$AK26:$BL26,MATCH(J$20,熱需要量算定・原単位!$AK$5:$BL$5,0)),0)*J$25/100 ->  | K47: =IFERROR(INDEX(熱需要量算定・原単位!$AK26:$BL26,MATCH(K$20,熱需要量算定・原単位!$AK$5:$BL$5,0)),0)*K$25/100 ->  | L47: =IFERROR(INDEX(熱需要量算定・原単位!$AK26:$BL26,MATCH(L$20,熱需要量算定・原単位!$AK$5:$BL$5,0)),0)*L$25/100 ->  | M47: =IFERROR(INDEX(熱需要量算定・原単位!$AK26:$BL26,MATCH(M$20,熱需要量算定・原単位!$AK$5:$BL$5,0)),0)*M$25/100 ->  | N47: =IFERROR(INDEX(熱需要量算定・原単位!$AK26:$BL26,MATCH(N$20,熱需要量算定・原単位!$AK$5:$BL$5,0)),0)*N$25/100 ->  | P47: 18 | Q47: =IFERROR(INDEX(熱需要量算定・原単位!$AK26:$BL26,MATCH(Q$20,熱需要量算定・原単位!$AK$5:$BL$5,0)),0)*Q$25/100 ->  | R47: =IFERROR(INDEX(熱需要量算定・原単位!$AK26:$BL26,MATCH(R$20,熱需要量算定・原単位!$AK$5:$BL$5,0)),0)*R$25/100 ->  | S47: =IFERROR(INDEX(熱需要量算定・原単位!$AK26:$BL26,MATCH(S$20,熱需要量算定・原単位!$AK$5:$BL$5,0)),0)*S$25/100 ->  | T47: =IFERROR(INDEX(熱需要量算定・原単位!$AK26:$BL26,MATCH(T$20,熱需要量算定・原単位!$AK$5:$BL$5,0)),0)*T$25/100 ->  | U47: =IFERROR(INDEX(熱需要量算定・原単位!$AK26:$BL26,MATCH(U$20,熱需要量算定・原単位!$AK$5:$BL$5,0)),0)*U$25/100 ->  | V47: =IFERROR(INDEX(熱需要量算定・原単位!$AK26:$BL26,MATCH(V$20,熱需要量算定・原単位!$AK$5:$BL$5,0)),0)*V$25/100 ->  | W47: =IFERROR(INDEX(熱需要量算定・原単位!$AK26:$BL26,MATCH(W$20,熱需要量算定・原単位!$AK$5:$BL$5,0)),0)*W$25/100 ->  | X47: =IFERROR(INDEX(熱需要量算定・原単位!$AK26:$BL26,MATCH(X$20,熱需要量算定・原単位!$AK$5:$BL$5,0)),0)*X$25/100 ->  | Y47: =IFERROR(INDEX(熱需要量算定・原単位!$AK26:$BL26,MATCH(Y$20,熱需要量算定・原単位!$AK$5:$BL$5,0)),0)*Y$25/100 ->  | Z47: =IFERROR(INDEX(熱需要量算定・原単位!$AK26:$BL26,MATCH(Z$20,熱需要量算定・原単位!$AK$5:$BL$5,0)),0)*Z$25/100 ->  | AA47: =IFERROR(INDEX(熱需要量算定・原単位!$AK26:$BL26,MATCH(AA$20,熱需要量算定・原単位!$AK$5:$BL$5,0)),0)*AA$25/100 ->  | AB47: =IFERROR(INDEX(熱需要量算定・原単位!$AK26:$BL26,MATCH(AB$20,熱需要量算定・原単位!$AK$5:$BL$5,0)),0)*AB$25/100 ->  | AD47: 18 | AE47: =IFERROR(INDEX(熱需要量算定・原単位!$AK26:$BL26,MATCH(AE$20,熱需要量算定・原単位!$AK$5:$BL$5,0)),0)*AE$25/100 ->  | AF47: =IFERROR(INDEX(熱需要量算定・原単位!$AK26:$BL26,MATCH(AF$20,熱需要量算定・原単位!$AK$5:$BL$5,0)),0)*AF$25/100 ->  | AG47: =IFERROR(INDEX(熱需要量算定・原単位!$AK26:$BL26,MATCH(AG$20,熱需要量算定・原単位!$AK$5:$BL$5,0)),0)*AG$25/100 ->  | AH47: =IFERROR(INDEX(熱需要量算定・原単位!$AK26:$BL26,MATCH(AH$20,熱需要量算定・原単位!$AK$5:$BL$5,0)),0)*AH$25/100 ->  | AI47: =IFERROR(INDEX(熱需要量算定・原単位!$AK26:$BL26,MATCH(AI$20,熱需要量算定・原単位!$AK$5:$BL$5,0)),0)*AI$25/100 ->  | AJ47: =IFERROR(INDEX(熱需要量算定・原単位!$AK26:$BL26,MATCH(AJ$20,熱需要量算定・原単位!$AK$5:$BL$5,0)),0)*AJ$25/100 ->  | AK47: =IFERROR(INDEX(熱需要量算定・原単位!$AK26:$BL26,MATCH(AK$20,熱需要量算定・原単位!$AK$5:$BL$5,0)),0)*AK$25/100 ->  | AL47: =IFERROR(INDEX(熱需要量算定・原単位!$AK26:$BL26,MATCH(AL$20,熱需要量算定・原単位!$AK$5:$BL$5,0)),0)*AL$25/100 ->  | AM47: =IFERROR(INDEX(熱需要量算定・原単位!$AK26:$BL26,MATCH(AM$20,熱需要量算定・原単位!$AK$5:$BL$5,0)),0)*AM$25/100 ->  | AN47: =IFERROR(INDEX(熱需要量算定・原単位!$AK26:$BL26,MATCH(AN$20,熱需要量算定・原単位!$AK$5:$BL$5,0)),0)*AN$25/100 ->  | AO47: =IFERROR(INDEX(熱需要量算定・原単位!$AK26:$BL26,MATCH(AO$20,熱需要量算定・原単位!$AK$5:$BL$5,0)),0)*AO$25/100 ->  | AP47: =IFERROR(INDEX(熱需要量算定・原単位!$AK26:$BL26,MATCH(AP$20,熱需要量算定・原単位!$AK$5:$BL$5,0)),0)*AP$25/100 -> 
B48: 19 | C48: =IFERROR(INDEX(熱需要量算定・原単位!$AK27:$BL27,MATCH(C$20,熱需要量算定・原単位!$AK$5:$BL$5,0)),0)*C$25/100 ->  | D48: =IFERROR(INDEX(熱需要量算定・原単位!$AK27:$BL27,MATCH(D$20,熱需要量算定・原単位!$AK$5:$BL$5,0)),0)*D$25/100 ->  | E48: =IFERROR(INDEX(熱需要量算定・原単位!$AK27:$BL27,MATCH(E$20,熱需要量算定・原単位!$AK$5:$BL$5,0)),0)*E$25/100 ->  | F48: =IFERROR(INDEX(熱需要量算定・原単位!$AK27:$BL27,MATCH(F$20,熱需要量算定・原単位!$AK$5:$BL$5,0)),0)*F$25/100 ->  | G48: =IFERROR(INDEX(熱需要量算定・原単位!$AK27:$BL27,MATCH(G$20,熱需要量算定・原単位!$AK$5:$BL$5,0)),0)*G$25/100 ->  | H48: =IFERROR(INDEX(熱需要量算定・原単位!$AK27:$BL27,MATCH(H$20,熱需要量算定・原単位!$AK$5:$BL$5,0)),0)*H$25/100 ->  | I48: =IFERROR(INDEX(熱需要量算定・原単位!$AK27:$BL27,MATCH(I$20,熱需要量算定・原単位!$AK$5:$BL$5,0)),0)*I$25/100 ->  | J48: =IFERROR(INDEX(熱需要量算定・原単位!$AK27:$BL27,MATCH(J$20,熱需要量算定・原単位!$AK$5:$BL$5,0)),0)*J$25/100 ->  | K48: =IFERROR(INDEX(熱需要量算定・原単位!$AK27:$BL27,MATCH(K$20,熱需要量算定・原単位!$AK$5:$BL$5,0)),0)*K$25/100 ->  | L48: =IFERROR(INDEX(熱需要量算定・原単位!$AK27:$BL27,MATCH(L$20,熱需要量算定・原単位!$AK$5:$BL$5,0)),0)*L$25/100 ->  | M48: =IFERROR(INDEX(熱需要量算定・原単位!$AK27:$BL27,MATCH(M$20,熱需要量算定・原単位!$AK$5:$BL$5,0)),0)*M$25/100 ->  | N48: =IFERROR(INDEX(熱需要量算定・原単位!$AK27:$BL27,MATCH(N$20,熱需要量算定・原単位!$AK$5:$BL$5,0)),0)*N$25/100 ->  | P48: 19 | Q48: =IFERROR(INDEX(熱需要量算定・原単位!$AK27:$BL27,MATCH(Q$20,熱需要量算定・原単位!$AK$5:$BL$5,0)),0)*Q$25/100 ->  | R48: =IFERROR(INDEX(熱需要量算定・原単位!$AK27:$BL27,MATCH(R$20,熱需要量算定・原単位!$AK$5:$BL$5,0)),0)*R$25/100 ->  | S48: =IFERROR(INDEX(熱需要量算定・原単位!$AK27:$BL27,MATCH(S$20,熱需要量算定・原単位!$AK$5:$BL$5,0)),0)*S$25/100 ->  | T48: =IFERROR(INDEX(熱需要量算定・原単位!$AK27:$BL27,MATCH(T$20,熱需要量算定・原単位!$AK$5:$BL$5,0)),0)*T$25/100 ->  | U48: =IFERROR(INDEX(熱需要量算定・原単位!$AK27:$BL27,MATCH(U$20,熱需要量算定・原単位!$AK$5:$BL$5,0)),0)*U$25/100 ->  | V48: =IFERROR(INDEX(熱需要量算定・原単位!$AK27:$BL27,MATCH(V$20,熱需要量算定・原単位!$AK$5:$BL$5,0)),0)*V$25/100 ->  | W48: =IFERROR(INDEX(熱需要量算定・原単位!$AK27:$BL27,MATCH(W$20,熱需要量算定・原単位!$AK$5:$BL$5,0)),0)*W$25/100 ->  | X48: =IFERROR(INDEX(熱需要量算定・原単位!$AK27:$BL27,MATCH(X$20,熱需要量算定・原単位!$AK$5:$BL$5,0)),0)*X$25/100 ->  | Y48: =IFERROR(INDEX(熱需要量算定・原単位!$AK27:$BL27,MATCH(Y$20,熱需要量算定・原単位!$AK$5:$BL$5,0)),0)*Y$25/100 ->  | Z48: =IFERROR(INDEX(熱需要量算定・原単位!$AK27:$BL27,MATCH(Z$20,熱需要量算定・原単位!$AK$5:$BL$5,0)),0)*Z$25/100 ->  | AA48: =IFERROR(INDEX(熱需要量算定・原単位!$AK27:$BL27,MATCH(AA$20,熱需要量算定・原単位!$AK$5:$BL$5,0)),0)*AA$25/100 ->  | AB48: =IFERROR(INDEX(熱需要量算定・原単位!$AK27:$BL27,MATCH(AB$20,熱需要量算定・原単位!$AK$5:$BL$5,0)),0)*AB$25/100 ->  | AD48: 19 | AE48: =IFERROR(INDEX(熱需要量算定・原単位!$AK27:$BL27,MATCH(AE$20,熱需要量算定・原単位!$AK$5:$BL$5,0)),0)*AE$25/100 ->  | AF48: =IFERROR(INDEX(熱需要量算定・原単位!$AK27:$BL27,MATCH(AF$20,熱需要量算定・原単位!$AK$5:$BL$5,0)),0)*AF$25/100 ->  | AG48: =IFERROR(INDEX(熱需要量算定・原単位!$AK27:$BL27,MATCH(AG$20,熱需要量算定・原単位!$AK$5:$BL$5,0)),0)*AG$25/100 ->  | AH48: =IFERROR(INDEX(熱需要量算定・原単位!$AK27:$BL27,MATCH(AH$20,熱需要量算定・原単位!$AK$5:$BL$5,0)),0)*AH$25/100 ->  | AI48: =IFERROR(INDEX(熱需要量算定・原単位!$AK27:$BL27,MATCH(AI$20,熱需要量算定・原単位!$AK$5:$BL$5,0)),0)*AI$25/100 ->  | AJ48: =IFERROR(INDEX(熱需要量算定・原単位!$AK27:$BL27,MATCH(AJ$20,熱需要量算定・原単位!$AK$5:$BL$5,0)),0)*AJ$25/100 ->  | AK48: =IFERROR(INDEX(熱需要量算定・原単位!$AK27:$BL27,MATCH(AK$20,熱需要量算定・原単位!$AK$5:$BL$5,0)),0)*AK$25/100 ->  | AL48: =IFERROR(INDEX(熱需要量算定・原単位!$AK27:$BL27,MATCH(AL$20,熱需要量算定・原単位!$AK$5:$BL$5,0)),0)*AL$25/100 ->  | AM48: =IFERROR(INDEX(熱需要量算定・原単位!$AK27:$BL27,MATCH(AM$20,熱需要量算定・原単位!$AK$5:$BL$5,0)),0)*AM$25/100 ->  | AN48: =IFERROR(INDEX(熱需要量算定・原単位!$AK27:$BL27,MATCH(AN$20,熱需要量算定・原単位!$AK$5:$BL$5,0)),0)*AN$25/100 ->  | AO48: =IFERROR(INDEX(熱需要量算定・原単位!$AK27:$BL27,MATCH(AO$20,熱需要量算定・原単位!$AK$5:$BL$5,0)),0)*AO$25/100 ->  | AP48: =IFERROR(INDEX(熱需要量算定・原単位!$AK27:$BL27,MATCH(AP$20,熱需要量算定・原単位!$AK$5:$BL$5,0)),0)*AP$25/100 -> 
B49: 20 | C49: =IFERROR(INDEX(熱需要量算定・原単位!$AK28:$BL28,MATCH(C$20,熱需要量算定・原単位!$AK$5:$BL$5,0)),0)*C$25/100 ->  | D49: =IFERROR(INDEX(熱需要量算定・原単位!$AK28:$BL28,MATCH(D$20,熱需要量算定・原単位!$AK$5:$BL$5,0)),0)*D$25/100 ->  | E49: =IFERROR(INDEX(熱需要量算定・原単位!$AK28:$BL28,MATCH(E$20,熱需要量算定・原単位!$AK$5:$BL$5,0)),0)*E$25/100 ->  | F49: =IFERROR(INDEX(熱需要量算定・原単位!$AK28:$BL28,MATCH(F$20,熱需要量算定・原単位!$AK$5:$BL$5,0)),0)*F$25/100 ->  | G49: =IFERROR(INDEX(熱需要量算定・原単位!$AK28:$BL28,MATCH(G$20,熱需要量算定・原単位!$AK$5:$BL$5,0)),0)*G$25/100 ->  | H49: =IFERROR(INDEX(熱需要量算定・原単位!$AK28:$BL28,MATCH(H$20,熱需要量算定・原単位!$AK$5:$BL$5,0)),0)*H$25/100 ->  | I49: =IFERROR(INDEX(熱需要量算定・原単位!$AK28:$BL28,MATCH(I$20,熱需要量算定・原単位!$AK$5:$BL$5,0)),0)*I$25/100 ->  | J49: =IFERROR(INDEX(熱需要量算定・原単位!$AK28:$BL28,MATCH(J$20,熱需要量算定・原単位!$AK$5:$BL$5,0)),0)*J$25/100 ->  | K49: =IFERROR(INDEX(熱需要量算定・原単位!$AK28:$BL28,MATCH(K$20,熱需要量算定・原単位!$AK$5:$BL$5,0)),0)*K$25/100 ->  | L49: =IFERROR(INDEX(熱需要量算定・原単位!$AK28:$BL28,MATCH(L$20,熱需要量算定・原単位!$AK$5:$BL$5,0)),0)*L$25/100 ->  | M49: =IFERROR(INDEX(熱需要量算定・原単位!$AK28:$BL28,MATCH(M$20,熱需要量算定・原単位!$AK$5:$BL$5,0)),0)*M$25/100 ->  | N49: =IFERROR(INDEX(熱需要量算定・原単位!$AK28:$BL28,MATCH(N$20,熱需要量算定・原単位!$AK$5:$BL$5,0)),0)*N$25/100 ->  | P49: 20 | Q49: =IFERROR(INDEX(熱需要量算定・原単位!$AK28:$BL28,MATCH(Q$20,熱需要量算定・原単位!$AK$5:$BL$5,0)),0)*Q$25/100 ->  | R49: =IFERROR(INDEX(熱需要量算定・原単位!$AK28:$BL28,MATCH(R$20,熱需要量算定・原単位!$AK$5:$BL$5,0)),0)*R$25/100 ->  | S49: =IFERROR(INDEX(熱需要量算定・原単位!$AK28:$BL28,MATCH(S$20,熱需要量算定・原単位!$AK$5:$BL$5,0)),0)*S$25/100 ->  | T49: =IFERROR(INDEX(熱需要量算定・原単位!$AK28:$BL28,MATCH(T$20,熱需要量算定・原単位!$AK$5:$BL$5,0)),0)*T$25/100 ->  | U49: =IFERROR(INDEX(熱需要量算定・原単位!$AK28:$BL28,MATCH(U$20,熱需要量算定・原単位!$AK$5:$BL$5,0)),0)*U$25/100 ->  | V49: =IFERROR(INDEX(熱需要量算定・原単位!$AK28:$BL28,MATCH(V$20,熱需要量算定・原単位!$AK$5:$BL$5,0)),0)*V$25/100 ->  | W49: =IFERROR(INDEX(熱需要量算定・原単位!$AK28:$BL28,MATCH(W$20,熱需要量算定・原単位!$AK$5:$BL$5,0)),0)*W$25/100 ->  | X49: =IFERROR(INDEX(熱需要量算定・原単位!$AK28:$BL28,MATCH(X$20,熱需要量算定・原単位!$AK$5:$BL$5,0)),0)*X$25/100 ->  | Y49: =IFERROR(INDEX(熱需要量算定・原単位!$AK28:$BL28,MATCH(Y$20,熱需要量算定・原単位!$AK$5:$BL$5,0)),0)*Y$25/100 ->  | Z49: =IFERROR(INDEX(熱需要量算定・原単位!$AK28:$BL28,MATCH(Z$20,熱需要量算定・原単位!$AK$5:$BL$5,0)),0)*Z$25/100 ->  | AA49: =IFERROR(INDEX(熱需要量算定・原単位!$AK28:$BL28,MATCH(AA$20,熱需要量算定・原単位!$AK$5:$BL$5,0)),0)*AA$25/100 ->  | AB49: =IFERROR(INDEX(熱需要量算定・原単位!$AK28:$BL28,MATCH(AB$20,熱需要量算定・原単位!$AK$5:$BL$5,0)),0)*AB$25/100 ->  | AD49: 20 | AE49: =IFERROR(INDEX(熱需要量算定・原単位!$AK28:$BL28,MATCH(AE$20,熱需要量算定・原単位!$AK$5:$BL$5,0)),0)*AE$25/100 ->  | AF49: =IFERROR(INDEX(熱需要量算定・原単位!$AK28:$BL28,MATCH(AF$20,熱需要量算定・原単位!$AK$5:$BL$5,0)),0)*AF$25/100 ->  | AG49: =IFERROR(INDEX(熱需要量算定・原単位!$AK28:$BL28,MATCH(AG$20,熱需要量算定・原単位!$AK$5:$BL$5,0)),0)*AG$25/100 ->  | AH49: =IFERROR(INDEX(熱需要量算定・原単位!$AK28:$BL28,MATCH(AH$20,熱需要量算定・原単位!$AK$5:$BL$5,0)),0)*AH$25/100 ->  | AI49: =IFERROR(INDEX(熱需要量算定・原単位!$AK28:$BL28,MATCH(AI$20,熱需要量算定・原単位!$AK$5:$BL$5,0)),0)*AI$25/100 ->  | AJ49: =IFERROR(INDEX(熱需要量算定・原単位!$AK28:$BL28,MATCH(AJ$20,熱需要量算定・原単位!$AK$5:$BL$5,0)),0)*AJ$25/100 ->  | AK49: =IFERROR(INDEX(熱需要量算定・原単位!$AK28:$BL28,MATCH(AK$20,熱需要量算定・原単位!$AK$5:$BL$5,0)),0)*AK$25/100 ->  | AL49: =IFERROR(INDEX(熱需要量算定・原単位!$AK28:$BL28,MATCH(AL$20,熱需要量算定・原単位!$AK$5:$BL$5,0)),0)*AL$25/100 ->  | AM49: =IFERROR(INDEX(熱需要量算定・原単位!$AK28:$BL28,MATCH(AM$20,熱需要量算定・原単位!$AK$5:$BL$5,0)),0)*AM$25/100 ->  | AN49: =IFERROR(INDEX(熱需要量算定・原単位!$AK28:$BL28,MATCH(AN$20,熱需要量算定・原単位!$AK$5:$BL$5,0)),0)*AN$25/100 ->  | AO49: =IFERROR(INDEX(熱需要量算定・原単位!$AK28:$BL28,MATCH(AO$20,熱需要量算定・原単位!$AK$5:$BL$5,0)),0)*AO$25/100 ->  | AP49: =IFERROR(INDEX(熱需要量算定・原単位!$AK28:$BL28,MATCH(AP$20,熱需要量算定・原単位!$AK$5:$BL$5,0)),0)*AP$25/100 -> 
B50: 21 | C50: =IFERROR(INDEX(熱需要量算定・原単位!$AK29:$BL29,MATCH(C$20,熱需要量算定・原単位!$AK$5:$BL$5,0)),0)*C$25/100 ->  | D50: =IFERROR(INDEX(熱需要量算定・原単位!$AK29:$BL29,MATCH(D$20,熱需要量算定・原単位!$AK$5:$BL$5,0)),0)*D$25/100 ->  | E50: =IFERROR(INDEX(熱需要量算定・原単位!$AK29:$BL29,MATCH(E$20,熱需要量算定・原単位!$AK$5:$BL$5,0)),0)*E$25/100 ->  | F50: =IFERROR(INDEX(熱需要量算定・原単位!$AK29:$BL29,MATCH(F$20,熱需要量算定・原単位!$AK$5:$BL$5,0)),0)*F$25/100 ->  | G50: =IFERROR(INDEX(熱需要量算定・原単位!$AK29:$BL29,MATCH(G$20,熱需要量算定・原単位!$AK$5:$BL$5,0)),0)*G$25/100 ->  | H50: =IFERROR(INDEX(熱需要量算定・原単位!$AK29:$BL29,MATCH(H$20,熱需要量算定・原単位!$AK$5:$BL$5,0)),0)*H$25/100 ->  | I50: =IFERROR(INDEX(熱需要量算定・原単位!$AK29:$BL29,MATCH(I$20,熱需要量算定・原単位!$AK$5:$BL$5,0)),0)*I$25/100 ->  | J50: =IFERROR(INDEX(熱需要量算定・原単位!$AK29:$BL29,MATCH(J$20,熱需要量算定・原単位!$AK$5:$BL$5,0)),0)*J$25/100 ->  | K50: =IFERROR(INDEX(熱需要量算定・原単位!$AK29:$BL29,MATCH(K$20,熱需要量算定・原単位!$AK$5:$BL$5,0)),0)*K$25/100 ->  | L50: =IFERROR(INDEX(熱需要量算定・原単位!$AK29:$BL29,MATCH(L$20,熱需要量算定・原単位!$AK$5:$BL$5,0)),0)*L$25/100 ->  | M50: =IFERROR(INDEX(熱需要量算定・原単位!$AK29:$BL29,MATCH(M$20,熱需要量算定・原単位!$AK$5:$BL$5,0)),0)*M$25/100 ->  | N50: =IFERROR(INDEX(熱需要量算定・原単位!$AK29:$BL29,MATCH(N$20,熱需要量算定・原単位!$AK$5:$BL$5,0)),0)*N$25/100 ->  | P50: 21 | Q50: =IFERROR(INDEX(熱需要量算定・原単位!$AK29:$BL29,MATCH(Q$20,熱需要量算定・原単位!$AK$5:$BL$5,0)),0)*Q$25/100 ->  | R50: =IFERROR(INDEX(熱需要量算定・原単位!$AK29:$BL29,MATCH(R$20,熱需要量算定・原単位!$AK$5:$BL$5,0)),0)*R$25/100 ->  | S50: =IFERROR(INDEX(熱需要量算定・原単位!$AK29:$BL29,MATCH(S$20,熱需要量算定・原単位!$AK$5:$BL$5,0)),0)*S$25/100 ->  | T50: =IFERROR(INDEX(熱需要量算定・原単位!$AK29:$BL29,MATCH(T$20,熱需要量算定・原単位!$AK$5:$BL$5,0)),0)*T$25/100 ->  | U50: =IFERROR(INDEX(熱需要量算定・原単位!$AK29:$BL29,MATCH(U$20,熱需要量算定・原単位!$AK$5:$BL$5,0)),0)*U$25/100 ->  | V50: =IFERROR(INDEX(熱需要量算定・原単位!$AK29:$BL29,MATCH(V$20,熱需要量算定・原単位!$AK$5:$BL$5,0)),0)*V$25/100 ->  | W50: =IFERROR(INDEX(熱需要量算定・原単位!$AK29:$BL29,MATCH(W$20,熱需要量算定・原単位!$AK$5:$BL$5,0)),0)*W$25/100 ->  | X50: =IFERROR(INDEX(熱需要量算定・原単位!$AK29:$BL29,MATCH(X$20,熱需要量算定・原単位!$AK$5:$BL$5,0)),0)*X$25/100 ->  | Y50: =IFERROR(INDEX(熱需要量算定・原単位!$AK29:$BL29,MATCH(Y$20,熱需要量算定・原単位!$AK$5:$BL$5,0)),0)*Y$25/100 ->  | Z50: =IFERROR(INDEX(熱需要量算定・原単位!$AK29:$BL29,MATCH(Z$20,熱需要量算定・原単位!$AK$5:$BL$5,0)),0)*Z$25/100 ->  | AA50: =IFERROR(INDEX(熱需要量算定・原単位!$AK29:$BL29,MATCH(AA$20,熱需要量算定・原単位!$AK$5:$BL$5,0)),0)*AA$25/100 ->  | AB50: =IFERROR(INDEX(熱需要量算定・原単位!$AK29:$BL29,MATCH(AB$20,熱需要量算定・原単位!$AK$5:$BL$5,0)),0)*AB$25/100 ->  | AD50: 21 | AE50: =IFERROR(INDEX(熱需要量算定・原単位!$AK29:$BL29,MATCH(AE$20,熱需要量算定・原単位!$AK$5:$BL$5,0)),0)*AE$25/100 ->  | AF50: =IFERROR(INDEX(熱需要量算定・原単位!$AK29:$BL29,MATCH(AF$20,熱需要量算定・原単位!$AK$5:$BL$5,0)),0)*AF$25/100 ->  | AG50: =IFERROR(INDEX(熱需要量算定・原単位!$AK29:$BL29,MATCH(AG$20,熱需要量算定・原単位!$AK$5:$BL$5,0)),0)*AG$25/100 ->  | AH50: =IFERROR(INDEX(熱需要量算定・原単位!$AK29:$BL29,MATCH(AH$20,熱需要量算定・原単位!$AK$5:$BL$5,0)),0)*AH$25/100 ->  | AI50: =IFERROR(INDEX(熱需要量算定・原単位!$AK29:$BL29,MATCH(AI$20,熱需要量算定・原単位!$AK$5:$BL$5,0)),0)*AI$25/100 ->  | AJ50: =IFERROR(INDEX(熱需要量算定・原単位!$AK29:$BL29,MATCH(AJ$20,熱需要量算定・原単位!$AK$5:$BL$5,0)),0)*AJ$25/100 ->  | AK50: =IFERROR(INDEX(熱需要量算定・原単位!$AK29:$BL29,MATCH(AK$20,熱需要量算定・原単位!$AK$5:$BL$5,0)),0)*AK$25/100 ->  | AL50: =IFERROR(INDEX(熱需要量算定・原単位!$AK29:$BL29,MATCH(AL$20,熱需要量算定・原単位!$AK$5:$BL$5,0)),0)*AL$25/100 ->  | AM50: =IFERROR(INDEX(熱需要量算定・原単位!$AK29:$BL29,MATCH(AM$20,熱需要量算定・原単位!$AK$5:$BL$5,0)),0)*AM$25/100 ->  | AN50: =IFERROR(INDEX(熱需要量算定・原単位!$AK29:$BL29,MATCH(AN$20,熱需要量算定・原単位!$AK$5:$BL$5,0)),0)*AN$25/100 ->  | AO50: =IFERROR(INDEX(熱需要量算定・原単位!$AK29:$BL29,MATCH(AO$20,熱需要量算定・原単位!$AK$5:$BL$5,0)),0)*AO$25/100 ->  | AP50: =IFERROR(INDEX(熱需要量算定・原単位!$AK29:$BL29,MATCH(AP$20,熱需要量算定・原単位!$AK$5:$BL$5,0)),0)*AP$25/100 -> 
B51: 22 | C51: =IFERROR(INDEX(熱需要量算定・原単位!$AK30:$BL30,MATCH(C$20,熱需要量算定・原単位!$AK$5:$BL$5,0)),0)*C$25/100 ->  | D51: =IFERROR(INDEX(熱需要量算定・原単位!$AK30:$BL30,MATCH(D$20,熱需要量算定・原単位!$AK$5:$BL$5,0)),0)*D$25/100 ->  | E51: =IFERROR(INDEX(熱需要量算定・原単位!$AK30:$BL30,MATCH(E$20,熱需要量算定・原単位!$AK$5:$BL$5,0)),0)*E$25/100 ->  | F51: =IFERROR(INDEX(熱需要量算定・原単位!$AK30:$BL30,MATCH(F$20,熱需要量算定・原単位!$AK$5:$BL$5,0)),0)*F$25/100 ->  | G51: =IFERROR(INDEX(熱需要量算定・原単位!$AK30:$BL30,MATCH(G$20,熱需要量算定・原単位!$AK$5:$BL$5,0)),0)*G$25/100 ->  | H51: =IFERROR(INDEX(熱需要量算定・原単位!$AK30:$BL30,MATCH(H$20,熱需要量算定・原単位!$AK$5:$BL$5,0)),0)*H$25/100 ->  | I51: =IFERROR(INDEX(熱需要量算定・原単位!$AK30:$BL30,MATCH(I$20,熱需要量算定・原単位!$AK$5:$BL$5,0)),0)*I$25/100 ->  | J51: =IFERROR(INDEX(熱需要量算定・原単位!$AK30:$BL30,MATCH(J$20,熱需要量算定・原単位!$AK$5:$BL$5,0)),0)*J$25/100 ->  | K51: =IFERROR(INDEX(熱需要量算定・原単位!$AK30:$BL30,MATCH(K$20,熱需要量算定・原単位!$AK$5:$BL$5,0)),0)*K$25/100 ->  | L51: =IFERROR(INDEX(熱需要量算定・原単位!$AK30:$BL30,MATCH(L$20,熱需要量算定・原単位!$AK$5:$BL$5,0)),0)*L$25/100 ->  | M51: =IFERROR(INDEX(熱需要量算定・原単位!$AK30:$BL30,MATCH(M$20,熱需要量算定・原単位!$AK$5:$BL$5,0)),0)*M$25/100 ->  | N51: =IFERROR(INDEX(熱需要量算定・原単位!$AK30:$BL30,MATCH(N$20,熱需要量算定・原単位!$AK$5:$BL$5,0)),0)*N$25/100 ->  | P51: 22 | Q51: =IFERROR(INDEX(熱需要量算定・原単位!$AK30:$BL30,MATCH(Q$20,熱需要量算定・原単位!$AK$5:$BL$5,0)),0)*Q$25/100 ->  | R51: =IFERROR(INDEX(熱需要量算定・原単位!$AK30:$BL30,MATCH(R$20,熱需要量算定・原単位!$AK$5:$BL$5,0)),0)*R$25/100 ->  | S51: =IFERROR(INDEX(熱需要量算定・原単位!$AK30:$BL30,MATCH(S$20,熱需要量算定・原単位!$AK$5:$BL$5,0)),0)*S$25/100 ->  | T51: =IFERROR(INDEX(熱需要量算定・原単位!$AK30:$BL30,MATCH(T$20,熱需要量算定・原単位!$AK$5:$BL$5,0)),0)*T$25/100 ->  | U51: =IFERROR(INDEX(熱需要量算定・原単位!$AK30:$BL30,MATCH(U$20,熱需要量算定・原単位!$AK$5:$BL$5,0)),0)*U$25/100 ->  | V51: =IFERROR(INDEX(熱需要量算定・原単位!$AK30:$BL30,MATCH(V$20,熱需要量算定・原単位!$AK$5:$BL$5,0)),0)*V$25/100 ->  | W51: =IFERROR(INDEX(熱需要量算定・原単位!$AK30:$BL30,MATCH(W$20,熱需要量算定・原単位!$AK$5:$BL$5,0)),0)*W$25/100 ->  | X51: =IFERROR(INDEX(熱需要量算定・原単位!$AK30:$BL30,MATCH(X$20,熱需要量算定・原単位!$AK$5:$BL$5,0)),0)*X$25/100 ->  | Y51: =IFERROR(INDEX(熱需要量算定・原単位!$AK30:$BL30,MATCH(Y$20,熱需要量算定・原単位!$AK$5:$BL$5,0)),0)*Y$25/100 ->  | Z51: =IFERROR(INDEX(熱需要量算定・原単位!$AK30:$BL30,MATCH(Z$20,熱需要量算定・原単位!$AK$5:$BL$5,0)),0)*Z$25/100 ->  | AA51: =IFERROR(INDEX(熱需要量算定・原単位!$AK30:$BL30,MATCH(AA$20,熱需要量算定・原単位!$AK$5:$BL$5,0)),0)*AA$25/100 ->  | AB51: =IFERROR(INDEX(熱需要量算定・原単位!$AK30:$BL30,MATCH(AB$20,熱需要量算定・原単位!$AK$5:$BL$5,0)),0)*AB$25/100 ->  | AD51: 22 | AE51: =IFERROR(INDEX(熱需要量算定・原単位!$AK30:$BL30,MATCH(AE$20,熱需要量算定・原単位!$AK$5:$BL$5,0)),0)*AE$25/100 ->  | AF51: =IFERROR(INDEX(熱需要量算定・原単位!$AK30:$BL30,MATCH(AF$20,熱需要量算定・原単位!$AK$5:$BL$5,0)),0)*AF$25/100 ->  | AG51: =IFERROR(INDEX(熱需要量算定・原単位!$AK30:$BL30,MATCH(AG$20,熱需要量算定・原単位!$AK$5:$BL$5,0)),0)*AG$25/100 ->  | AH51: =IFERROR(INDEX(熱需要量算定・原単位!$AK30:$BL30,MATCH(AH$20,熱需要量算定・原単位!$AK$5:$BL$5,0)),0)*AH$25/100 ->  | AI51: =IFERROR(INDEX(熱需要量算定・原単位!$AK30:$BL30,MATCH(AI$20,熱需要量算定・原単位!$AK$5:$BL$5,0)),0)*AI$25/100 ->  | AJ51: =IFERROR(INDEX(熱需要量算定・原単位!$AK30:$BL30,MATCH(AJ$20,熱需要量算定・原単位!$AK$5:$BL$5,0)),0)*AJ$25/100 ->  | AK51: =IFERROR(INDEX(熱需要量算定・原単位!$AK30:$BL30,MATCH(AK$20,熱需要量算定・原単位!$AK$5:$BL$5,0)),0)*AK$25/100 ->  | AL51: =IFERROR(INDEX(熱需要量算定・原単位!$AK30:$BL30,MATCH(AL$20,熱需要量算定・原単位!$AK$5:$BL$5,0)),0)*AL$25/100 ->  | AM51: =IFERROR(INDEX(熱需要量算定・原単位!$AK30:$BL30,MATCH(AM$20,熱需要量算定・原単位!$AK$5:$BL$5,0)),0)*AM$25/100 ->  | AN51: =IFERROR(INDEX(熱需要量算定・原単位!$AK30:$BL30,MATCH(AN$20,熱需要量算定・原単位!$AK$5:$BL$5,0)),0)*AN$25/100 ->  | AO51: =IFERROR(INDEX(熱需要量算定・原単位!$AK30:$BL30,MATCH(AO$20,熱需要量算定・原単位!$AK$5:$BL$5,0)),0)*AO$25/100 ->  | AP51: =IFERROR(INDEX(熱需要量算定・原単位!$AK30:$BL30,MATCH(AP$20,熱需要量算定・原単位!$AK$5:$BL$5,0)),0)*AP$25/100 -> 
B52: 23 | C52: =IFERROR(INDEX(熱需要量算定・原単位!$AK31:$BL31,MATCH(C$20,熱需要量算定・原単位!$AK$5:$BL$5,0)),0)*C$25/100 ->  | D52: =IFERROR(INDEX(熱需要量算定・原単位!$AK31:$BL31,MATCH(D$20,熱需要量算定・原単位!$AK$5:$BL$5,0)),0)*D$25/100 ->  | E52: =IFERROR(INDEX(熱需要量算定・原単位!$AK31:$BL31,MATCH(E$20,熱需要量算定・原単位!$AK$5:$BL$5,0)),0)*E$25/100 ->  | F52: =IFERROR(INDEX(熱需要量算定・原単位!$AK31:$BL31,MATCH(F$20,熱需要量算定・原単位!$AK$5:$BL$5,0)),0)*F$25/100 ->  | G52: =IFERROR(INDEX(熱需要量算定・原単位!$AK31:$BL31,MATCH(G$20,熱需要量算定・原単位!$AK$5:$BL$5,0)),0)*G$25/100 ->  | H52: =IFERROR(INDEX(熱需要量算定・原単位!$AK31:$BL31,MATCH(H$20,熱需要量算定・原単位!$AK$5:$BL$5,0)),0)*H$25/100 ->  | I52: =IFERROR(INDEX(熱需要量算定・原単位!$AK31:$BL31,MATCH(I$20,熱需要量算定・原単位!$AK$5:$BL$5,0)),0)*I$25/100 ->  | J52: =IFERROR(INDEX(熱需要量算定・原単位!$AK31:$BL31,MATCH(J$20,熱需要量算定・原単位!$AK$5:$BL$5,0)),0)*J$25/100 ->  | K52: =IFERROR(INDEX(熱需要量算定・原単位!$AK31:$BL31,MATCH(K$20,熱需要量算定・原単位!$AK$5:$BL$5,0)),0)*K$25/100 ->  | L52: =IFERROR(INDEX(熱需要量算定・原単位!$AK31:$BL31,MATCH(L$20,熱需要量算定・原単位!$AK$5:$BL$5,0)),0)*L$25/100 ->  | M52: =IFERROR(INDEX(熱需要量算定・原単位!$AK31:$BL31,MATCH(M$20,熱需要量算定・原単位!$AK$5:$BL$5,0)),0)*M$25/100 ->  | N52: =IFERROR(INDEX(熱需要量算定・原単位!$AK31:$BL31,MATCH(N$20,熱需要量算定・原単位!$AK$5:$BL$5,0)),0)*N$25/100 ->  | P52: 23 | Q52: =IFERROR(INDEX(熱需要量算定・原単位!$AK31:$BL31,MATCH(Q$20,熱需要量算定・原単位!$AK$5:$BL$5,0)),0)*Q$25/100 ->  | R52: =IFERROR(INDEX(熱需要量算定・原単位!$AK31:$BL31,MATCH(R$20,熱需要量算定・原単位!$AK$5:$BL$5,0)),0)*R$25/100 ->  | S52: =IFERROR(INDEX(熱需要量算定・原単位!$AK31:$BL31,MATCH(S$20,熱需要量算定・原単位!$AK$5:$BL$5,0)),0)*S$25/100 ->  | T52: =IFERROR(INDEX(熱需要量算定・原単位!$AK31:$BL31,MATCH(T$20,熱需要量算定・原単位!$AK$5:$BL$5,0)),0)*T$25/100 ->  | U52: =IFERROR(INDEX(熱需要量算定・原単位!$AK31:$BL31,MATCH(U$20,熱需要量算定・原単位!$AK$5:$BL$5,0)),0)*U$25/100 ->  | V52: =IFERROR(INDEX(熱需要量算定・原単位!$AK31:$BL31,MATCH(V$20,熱需要量算定・原単位!$AK$5:$BL$5,0)),0)*V$25/100 ->  | W52: =IFERROR(INDEX(熱需要量算定・原単位!$AK31:$BL31,MATCH(W$20,熱需要量算定・原単位!$AK$5:$BL$5,0)),0)*W$25/100 ->  | X52: =IFERROR(INDEX(熱需要量算定・原単位!$AK31:$BL31,MATCH(X$20,熱需要量算定・原単位!$AK$5:$BL$5,0)),0)*X$25/100 ->  | Y52: =IFERROR(INDEX(熱需要量算定・原単位!$AK31:$BL31,MATCH(Y$20,熱需要量算定・原単位!$AK$5:$BL$5,0)),0)*Y$25/100 ->  | Z52: =IFERROR(INDEX(熱需要量算定・原単位!$AK31:$BL31,MATCH(Z$20,熱需要量算定・原単位!$AK$5:$BL$5,0)),0)*Z$25/100 ->  | AA52: =IFERROR(INDEX(熱需要量算定・原単位!$AK31:$BL31,MATCH(AA$20,熱需要量算定・原単位!$AK$5:$BL$5,0)),0)*AA$25/100 ->  | AB52: =IFERROR(INDEX(熱需要量算定・原単位!$AK31:$BL31,MATCH(AB$20,熱需要量算定・原単位!$AK$5:$BL$5,0)),0)*AB$25/100 ->  | AD52: 23 | AE52: =IFERROR(INDEX(熱需要量算定・原単位!$AK31:$BL31,MATCH(AE$20,熱需要量算定・原単位!$AK$5:$BL$5,0)),0)*AE$25/100 ->  | AF52: =IFERROR(INDEX(熱需要量算定・原単位!$AK31:$BL31,MATCH(AF$20,熱需要量算定・原単位!$AK$5:$BL$5,0)),0)*AF$25/100 ->  | AG52: =IFERROR(INDEX(熱需要量算定・原単位!$AK31:$BL31,MATCH(AG$20,熱需要量算定・原単位!$AK$5:$BL$5,0)),0)*AG$25/100 ->  | AH52: =IFERROR(INDEX(熱需要量算定・原単位!$AK31:$BL31,MATCH(AH$20,熱需要量算定・原単位!$AK$5:$BL$5,0)),0)*AH$25/100 ->  | AI52: =IFERROR(INDEX(熱需要量算定・原単位!$AK31:$BL31,MATCH(AI$20,熱需要量算定・原単位!$AK$5:$BL$5,0)),0)*AI$25/100 ->  | AJ52: =IFERROR(INDEX(熱需要量算定・原単位!$AK31:$BL31,MATCH(AJ$20,熱需要量算定・原単位!$AK$5:$BL$5,0)),0)*AJ$25/100 ->  | AK52: =IFERROR(INDEX(熱需要量算定・原単位!$AK31:$BL31,MATCH(AK$20,熱需要量算定・原単位!$AK$5:$BL$5,0)),0)*AK$25/100 ->  | AL52: =IFERROR(INDEX(熱需要量算定・原単位!$AK31:$BL31,MATCH(AL$20,熱需要量算定・原単位!$AK$5:$BL$5,0)),0)*AL$25/100 ->  | AM52: =IFERROR(INDEX(熱需要量算定・原単位!$AK31:$BL31,MATCH(AM$20,熱需要量算定・原単位!$AK$5:$BL$5,0)),0)*AM$25/100 ->  | AN52: =IFERROR(INDEX(熱需要量算定・原単位!$AK31:$BL31,MATCH(AN$20,熱需要量算定・原単位!$AK$5:$BL$5,0)),0)*AN$25/100 ->  | AO52: =IFERROR(INDEX(熱需要量算定・原単位!$AK31:$BL31,MATCH(AO$20,熱需要量算定・原単位!$AK$5:$BL$5,0)),0)*AO$25/100 ->  | AP52: =IFERROR(INDEX(熱需要量算定・原単位!$AK31:$BL31,MATCH(AP$20,熱需要量算定・原単位!$AK$5:$BL$5,0)),0)*AP$25/100 -> 
B53: 24 | C53: =IFERROR(INDEX(熱需要量算定・原単位!$AK32:$BL32,MATCH(C$20,熱需要量算定・原単位!$AK$5:$BL$5,0)),0)*C$25/100 ->  | D53: =IFERROR(INDEX(熱需要量算定・原単位!$AK32:$BL32,MATCH(D$20,熱需要量算定・原単位!$AK$5:$BL$5,0)),0)*D$25/100 ->  | E53: =IFERROR(INDEX(熱需要量算定・原単位!$AK32:$BL32,MATCH(E$20,熱需要量算定・原単位!$AK$5:$BL$5,0)),0)*E$25/100 ->  | F53: =IFERROR(INDEX(熱需要量算定・原単位!$AK32:$BL32,MATCH(F$20,熱需要量算定・原単位!$AK$5:$BL$5,0)),0)*F$25/100 ->  | G53: =IFERROR(INDEX(熱需要量算定・原単位!$AK32:$BL32,MATCH(G$20,熱需要量算定・原単位!$AK$5:$BL$5,0)),0)*G$25/100 ->  | H53: =IFERROR(INDEX(熱需要量算定・原単位!$AK32:$BL32,MATCH(H$20,熱需要量算定・原単位!$AK$5:$BL$5,0)),0)*H$25/100 ->  | I53: =IFERROR(INDEX(熱需要量算定・原単位!$AK32:$BL32,MATCH(I$20,熱需要量算定・原単位!$AK$5:$BL$5,0)),0)*I$25/100 ->  | J53: =IFERROR(INDEX(熱需要量算定・原単位!$AK32:$BL32,MATCH(J$20,熱需要量算定・原単位!$AK$5:$BL$5,0)),0)*J$25/100 ->  | K53: =IFERROR(INDEX(熱需要量算定・原単位!$AK32:$BL32,MATCH(K$20,熱需要量算定・原単位!$AK$5:$BL$5,0)),0)*K$25/100 ->  | L53: =IFERROR(INDEX(熱需要量算定・原単位!$AK32:$BL32,MATCH(L$20,熱需要量算定・原単位!$AK$5:$BL$5,0)),0)*L$25/100 ->  | M53: =IFERROR(INDEX(熱需要量算定・原単位!$AK32:$BL32,MATCH(M$20,熱需要量算定・原単位!$AK$5:$BL$5,0)),0)*M$25/100 ->  | N53: =IFERROR(INDEX(熱需要量算定・原単位!$AK32:$BL32,MATCH(N$20,熱需要量算定・原単位!$AK$5:$BL$5,0)),0)*N$25/100 ->  | P53: 24 | Q53: =IFERROR(INDEX(熱需要量算定・原単位!$AK32:$BL32,MATCH(Q$20,熱需要量算定・原単位!$AK$5:$BL$5,0)),0)*Q$25/100 ->  | R53: =IFERROR(INDEX(熱需要量算定・原単位!$AK32:$BL32,MATCH(R$20,熱需要量算定・原単位!$AK$5:$BL$5,0)),0)*R$25/100 ->  | S53: =IFERROR(INDEX(熱需要量算定・原単位!$AK32:$BL32,MATCH(S$20,熱需要量算定・原単位!$AK$5:$BL$5,0)),0)*S$25/100 ->  | T53: =IFERROR(INDEX(熱需要量算定・原単位!$AK32:$BL32,MATCH(T$20,熱需要量算定・原単位!$AK$5:$BL$5,0)),0)*T$25/100 ->  | U53: =IFERROR(INDEX(熱需要量算定・原単位!$AK32:$BL32,MATCH(U$20,熱需要量算定・原単位!$AK$5:$BL$5,0)),0)*U$25/100 ->  | V53: =IFERROR(INDEX(熱需要量算定・原単位!$AK32:$BL32,MATCH(V$20,熱需要量算定・原単位!$AK$5:$BL$5,0)),0)*V$25/100 ->  | W53: =IFERROR(INDEX(熱需要量算定・原単位!$AK32:$BL32,MATCH(W$20,熱需要量算定・原単位!$AK$5:$BL$5,0)),0)*W$25/100 ->  | X53: =IFERROR(INDEX(熱需要量算定・原単位!$AK32:$BL32,MATCH(X$20,熱需要量算定・原単位!$AK$5:$BL$5,0)),0)*X$25/100 ->  | Y53: =IFERROR(INDEX(熱需要量算定・原単位!$AK32:$BL32,MATCH(Y$20,熱需要量算定・原単位!$AK$5:$BL$5,0)),0)*Y$25/100 ->  | Z53: =IFERROR(INDEX(熱需要量算定・原単位!$AK32:$BL32,MATCH(Z$20,熱需要量算定・原単位!$AK$5:$BL$5,0)),0)*Z$25/100 ->  | AA53: =IFERROR(INDEX(熱需要量算定・原単位!$AK32:$BL32,MATCH(AA$20,熱需要量算定・原単位!$AK$5:$BL$5,0)),0)*AA$25/100 ->  | AB53: =IFERROR(INDEX(熱需要量算定・原単位!$AK32:$BL32,MATCH(AB$20,熱需要量算定・原単位!$AK$5:$BL$5,0)),0)*AB$25/100 ->  | AD53: 24 | AE53: =IFERROR(INDEX(熱需要量算定・原単位!$AK32:$BL32,MATCH(AE$20,熱需要量算定・原単位!$AK$5:$BL$5,0)),0)*AE$25/100 ->  | AF53: =IFERROR(INDEX(熱需要量算定・原単位!$AK32:$BL32,MATCH(AF$20,熱需要量算定・原単位!$AK$5:$BL$5,0)),0)*AF$25/100 ->  | AG53: =IFERROR(INDEX(熱需要量算定・原単位!$AK32:$BL32,MATCH(AG$20,熱需要量算定・原単位!$AK$5:$BL$5,0)),0)*AG$25/100 ->  | AH53: =IFERROR(INDEX(熱需要量算定・原単位!$AK32:$BL32,MATCH(AH$20,熱需要量算定・原単位!$AK$5:$BL$5,0)),0)*AH$25/100 ->  | AI53: =IFERROR(INDEX(熱需要量算定・原単位!$AK32:$BL32,MATCH(AI$20,熱需要量算定・原単位!$AK$5:$BL$5,0)),0)*AI$25/100 ->  | AJ53: =IFERROR(INDEX(熱需要量算定・原単位!$AK32:$BL32,MATCH(AJ$20,熱需要量算定・原単位!$AK$5:$BL$5,0)),0)*AJ$25/100 ->  | AK53: =IFERROR(INDEX(熱需要量算定・原単位!$AK32:$BL32,MATCH(AK$20,熱需要量算定・原単位!$AK$5:$BL$5,0)),0)*AK$25/100 ->  | AL53: =IFERROR(INDEX(熱需要量算定・原単位!$AK32:$BL32,MATCH(AL$20,熱需要量算定・原単位!$AK$5:$BL$5,0)),0)*AL$25/100 ->  | AM53: =IFERROR(INDEX(熱需要量算定・原単位!$AK32:$BL32,MATCH(AM$20,熱需要量算定・原単位!$AK$5:$BL$5,0)),0)*AM$25/100 ->  | AN53: =IFERROR(INDEX(熱需要量算定・原単位!$AK32:$BL32,MATCH(AN$20,熱需要量算定・原単位!$AK$5:$BL$5,0)),0)*AN$25/100 ->  | AO53: =IFERROR(INDEX(熱需要量算定・原単位!$AK32:$BL32,MATCH(AO$20,熱需要量算定・原単位!$AK$5:$BL$5,0)),0)*AO$25/100 ->  | AP53: =IFERROR(INDEX(熱需要量算定・原単位!$AK32:$BL32,MATCH(AP$20,熱需要量算定・原単位!$AK$5:$BL$5,0)),0)*AP$25/100 -> 
B54: 合計 | C54: =SUM(C30:C53) ->  | P54: 合計 | Q54: =SUM(Q30:Q53) ->  | AD54: 合計 | AE54: =SUM(AE30:AE53) -> 
B55: 平均 | C55: =AVERAGE(C30:C53) ->  | P55: 平均 | Q55: =AVERAGE(Q30:Q53) ->  | AD55: 平均 | AE55: =AVERAGE(AE30:AE53) -> 
B57: 冷房 | C57: 時刻別 | M57: 単位 | N57: kW | P57: 暖房 | Q57: 時刻別 | AA57: 単位 | AB57: kW | AD57: 給湯 | AE57: 時刻別 | AO57: 単位 | AP57: kW
C58: 4月 | D58: 5月 | E58: 6月 | F58: 7月 | G58: 8月 | H58: 9月 | I58: 10月 | J58: 11月 | K58: 12月 | L58: 1月 | M58: 2月 | N58: 3月 | Q58: 4月 | R58: 5月 | S58: 6月 | T58: 7月 | U58: 8月 | V58: 9月 | W58: 10月 | X58: 11月 | Y58: 12月 | Z58: 1月 | AA58: 2月 | AB58: 3月 | AE58: 4月 | AF58: 5月 | AG58: 6月 | AH58: 7月 | AI58: 8月 | AJ58: 9月 | AK58: 10月 | AL58: 11月 | AM58: 12月 | AN58: 1月 | AO58: 2月 | AP58: 3月
B59: 時間 | C59: 中間期 | D59: 中間期 | E59: 夏期 | F59: 夏期 | G59: 夏期 | H59: 夏期 | I59: 中間期 | J59: 中間期 | K59: 冬期 | L59: 冬期 | M59: 冬期 | N59: 冬期 | P59: 時間 | Q59: 中間期 | R59: 中間期 | S59: 夏期 | T59: 夏期 | U59: 夏期 | V59: 夏期 | W59: 中間期 | X59: 中間期 | Y59: 冬期 | Z59: 冬期 | AA59: 冬期 | AB59: 冬期 | AD59: 時間 | AE59: 中間期 | AF59: 中間期 | AG59: 夏期 | AH59: 夏期 | AI59: 夏期 | AJ59: 夏期 | AK59: 中間期 | AL59: 中間期 | AM59: 冬期 | AN59: 冬期 | AO59: 冬期 | AP59: 冬期
B60: 1 | C60: =C30/3.6 ->  | P60: 1 | Q60: =Q30/3.6 ->  | AD60: 1 | AE60: =AE30/3.6 -> 
B61: =B60+1 -> 2 | C61: =C31/3.6 ->  | P61: =P60+1 -> 2 | Q61: =Q31/3.6 ->  | AD61: =AD60+1 -> 2 | AE61: =AE31/3.6 -> 
B62: 3 | C62: =C32/3.6 ->  | P62: 3 | Q62: =Q32/3.6 ->  | AD62: 3 | AE62: =AE32/3.6 -> 
B63: 4 | C63: =C33/3.6 ->  | P63: 4 | Q63: =Q33/3.6 ->  | AD63: 4 | AE63: =AE33/3.6 -> 
B64: 5 | C64: =C34/3.6 ->  | P64: 5 | Q64: =Q34/3.6 ->  | AD64: 5 | AE64: =AE34/3.6 -> 
B65: 6 | C65: =C35/3.6 ->  | P65: 6 | Q65: =Q35/3.6 ->  | AD65: 6 | AE65: =AE35/3.6 -> 
B66: 7 | C66: =C36/3.6 ->  | P66: 7 | Q66: =Q36/3.6 ->  | AD66: 7 | AE66: =AE36/3.6 -> 
B67: 8 | C67: =C37/3.6 ->  | P67: 8 | Q67: =Q37/3.6 ->  | AD67: 8 | AE67: =AE37/3.6 -> 
B68: 9 | C68: =C38/3.6 ->  | P68: 9 | Q68: =Q38/3.6 ->  | AD68: 9 | AE68: =AE38/3.6 -> 
B69: 10 | C69: =C39/3.6 ->  | P69: 10 | Q69: =Q39/3.6 ->  | AD69: 10 | AE69: =AE39/3.6 -> 
B70: 11 | C70: =C40/3.6 ->  | P70: 11 | Q70: =Q40/3.6 ->  | AD70: 11 | AE70: =AE40/3.6 -> 
B71: 12 | C71: =C41/3.6 ->  | P71: 12 | Q71: =Q41/3.6 ->  | AD71: 12 | AE71: =AE41/3.6 -> 
B72: 13 | C72: =C42/3.6 ->  | P72: 13 | Q72: =Q42/3.6 ->  | AD72: 13 | AE72: =AE42/3.6 -> 
B73: 14 | C73: =C43/3.6 ->  | P73: 14 | Q73: =Q43/3.6 ->  | AD73: 14 | AE73: =AE43/3.6 -> 
B74: 15 | C74: =C44/3.6 ->  | P74: 15 | Q74: =Q44/3.6 ->  | AD74: 15 | AE74: =AE44/3.6 -> 
B75: 16 | C75: =C45/3.6 ->  | P75: 16 | Q75: =Q45/3.6 ->  | AD75: 16 | AE75: =AE45/3.6 -> 
B76: 17 | C76: =C46/3.6 ->  | P76: 17 | Q76: =Q46/3.6 ->  | AD76: 17 | AE76: =AE46/3.6 -> 
B77: 18 | C77: =C47/3.6 ->  | P77: 18 | Q77: =Q47/3.6 ->  | AD77: 18 | AE77: =AE47/3.6 -> 
B78: 19 | C78: =C48/3.6 ->  | P78: 19 | Q78: =Q48/3.6 ->  | AD78: 19 | AE78: =AE48/3.6 -> 
B79: 20 | C79: =C49/3.6 ->  | P79: 20 | Q79: =Q49/3.6 ->  | AD79: 20 | AE79: =AE49/3.6 -> 
B80: 21 | C80: =C50/3.6 ->  | P80: 21 | Q80: =Q50/3.6 ->  | AD80: 21 | AE80: =AE50/3.6 -> 
B81: 22 | C81: =C51/3.6 ->  | P81: 22 | Q81: =Q51/3.6 ->  | AD81: 22 | AE81: =AE51/3.6 -> 
B82: 23 | C82: =C52/3.6 ->  | P82: 23 | Q82: =Q52/3.6 ->  | AD82: 23 | AE82: =AE52/3.6 -> 
B83: 24 | C83: =C53/3.6 ->  | P83: 24 | Q83: =Q53/3.6 ->  | AD83: 24 | AE83: =AE53/3.6 -> 
B84: 合計 | C84: =SUM(C60:C83) ->  | P84: 合計 | Q84: =SUM(Q60:Q83) ->  | AD84: 合計 | AE84: =SUM(AE60:AE83) -> 
B85: 平均 | C85: =AVERAGE(C60:C83) ->  | P85: 平均 | Q85: =AVERAGE(Q60:Q83) ->  | AD85: 平均 | AE85: =AVERAGE(AE60:AE83) -> 
B114: ・負荷率 | P114: ・負荷率 | AD114: ・負荷率
B115: 定格能力 | D115: kW | P115: 定格能力 | R115: kW | AD115: 定格能力 | AF115: kW
B116: 冷房 | C116: 時刻別 | M116: 単位 | N116: - | P116: 暖房 | Q116: 時刻別 | AA116: 単位 | AB116: - | AD116: 給湯 | AE116: 時刻別 | AO116: 単位 | AP116: -
C117: 4月 | D117: 5月 | E117: 6月 | F117: 7月 | G117: 8月 | H117: 9月 | I117: 10月 | J117: 11月 | K117: 12月 | L117: 1月 | M117: 2月 | N117: 3月 | Q117: 4月 | R117: 5月 | S117: 6月 | T117: 7月 | U117: 8月 | V117: 9月 | W117: 10月 | X117: 11月 | Y117: 12月 | Z117: 1月 | AA117: 2月 | AB117: 3月 | AE117: 4月 | AF117: 5月 | AG117: 6月 | AH117: 7月 | AI117: 8月 | AJ117: 9月 | AK117: 10月 | AL117: 11月 | AM117: 12月 | AN117: 1月 | AO117: 2月 | AP117: 3月
B118: 時間 | C118: 中間期 | D118: 中間期 | E118: 夏期 | F118: 夏期 | G118: 夏期 | H118: 夏期 | I118: 中間期 | J118: 中間期 | K118: 冬期 | L118: 冬期 | M118: 冬期 | N118: 冬期 | P118: 時間 | Q118: 中間期 | R118: 中間期 | S118: 夏期 | T118: 夏期 | U118: 夏期 | V118: 夏期 | W118: 中間期 | X118: 中間期 | Y118: 冬期 | Z118: 冬期 | AA118: 冬期 | AB118: 冬期 | AD118: 時間 | AE118: 中間期 | AF118: 中間期 | AG118: 夏期 | AH118: 夏期 | AI118: 夏期 | AJ118: 夏期 | AK118: 中間期 | AL118: 中間期 | AM118: 冬期 | AN118: 冬期 | AO118: 冬期 | AP118: 冬期
B119: 1 | C119: =C60/$C$115 ->  | P119: 1 | Q119: =Q60/$Q$115 ->  | AD119: 1 | AE119: =AE60/$AE$115 -> 
B120: =B119+1 -> 2 | C120: =C61/$C$115 ->  | P120: =P119+1 -> 2 | Q120: =Q61/$Q$115 ->  | AD120: =AD119+1 -> 2 | AE120: =AE61/$AE$115 -> 
B121: 3 | C121: =C62/$C$115 ->  | P121: 3 | Q121: =Q62/$Q$115 ->  | AD121: 3 | AE121: =AE62/$AE$115 -> 
B122: 4 | C122: =C63/$C$115 ->  | P122: 4 | Q122: =Q63/$Q$115 ->  | AD122: 4 | AE122: =AE63/$AE$115 -> 
B123: 5 | C123: =C64/$C$115 ->  | P123: 5 | Q123: =Q64/$Q$115 ->  | AD123: 5 | AE123: =AE64/$AE$115 -> 
B124: 6 | C124: =C65/$C$115 ->  | P124: 6 | Q124: =Q65/$Q$115 ->  | AD124: 6 | AE124: =AE65/$AE$115 -> 
B125: 7 | C125: =C66/$C$115 ->  | P125: 7 | Q125: =Q66/$Q$115 ->  | AD125: 7 | AE125: =AE66/$AE$115 -> 
B126: 8 | C126: =C67/$C$115 ->  | P126: 8 | Q126: =Q67/$Q$115 ->  | AD126: 8 | AE126: =AE67/$AE$115 -> 
B127: 9 | C127: =C68/$C$115 ->  | P127: 9 | Q127: =Q68/$Q$115 ->  | AD127: 9 | AE127: =AE68/$AE$115 -> 
B128: 10 | C128: =C69/$C$115 ->  | P128: 10 | Q128: =Q69/$Q$115 ->  | AD128: 10 | AE128: =AE69/$AE$115 -> 
B129: 11 | C129: =C70/$C$115 ->  | P129: 11 | Q129: =Q70/$Q$115 ->  | AD129: 11 | AE129: =AE70/$AE$115 -> 
B130: 12 | C130: =C71/$C$115 ->  | P130: 12 | Q130: =Q71/$Q$115 ->  | AD130: 12 | AE130: =AE71/$AE$115 -> 
B131: 13 | C131: =C72/$C$115 ->  | P131: 13 | Q131: =Q72/$Q$115 ->  | AD131: 13 | AE131: =AE72/$AE$115 -> 
B132: 14 | C132: =C73/$C$115 ->  | P132: 14 | Q132: =Q73/$Q$115 ->  | AD132: 14 | AE132: =AE73/$AE$115 -> 
B133: 15 | C133: =C74/$C$115 ->  | P133: 15 | Q133: =Q74/$Q$115 ->  | AD133: 15 | AE133: =AE74/$AE$115 -> 
B134: 16 | C134: =C75/$C$115 ->  | P134: 16 | Q134: =Q75/$Q$115 ->  | AD134: 16 | AE134: =AE75/$AE$115 -> 
B135: 17 | C135: =C76/$C$115 ->  | P135: 17 | Q135: =Q76/$Q$115 ->  | AD135: 17 | AE135: =AE76/$AE$115 -> 
B136: 18 | C136: =C77/$C$115 ->  | P136: 18 | Q136: =Q77/$Q$115 ->  | AD136: 18 | AE136: =AE77/$AE$115 -> 
B137: 19 | C137: =C78/$C$115 ->  | P137: 19 | Q137: =Q78/$Q$115 ->  | AD137: 19 | AE137: =AE78/$AE$115 -> 
B138: 20 | C138: =C79/$C$115 ->  | P138: 20 | Q138: =Q79/$Q$115 ->  | AD138: 20 | AE138: =AE79/$AE$115 -> 
B139: 21 | C139: =C80/$C$115 ->  | P139: 21 | Q139: =Q80/$Q$115 ->  | AD139: 21 | AE139: =AE80/$AE$115 -> 
B140: 22 | C140: =C81/$C$115 ->  | P140: 22 | Q140: =Q81/$Q$115 ->  | AD140: 22 | AE140: =AE81/$AE$115 -> 
B141: 23 | C141: =C82/$C$115 ->  | P141: 23 | Q141: =Q82/$Q$115 ->  | AD141: 23 | AE141: =AE82/$AE$115 -> 
B142: 24 | C142: =C83/$C$115 ->  | P142: 24 | Q142: =Q83/$Q$115 ->  | AD142: 24 | AE142: =AE83/$AE$115 -> 
B143: 平均 | C143: =AVERAGE(C119:C142) ->  | P143: 平均 | Q143: =AVERAGE(Q119:Q142) ->  | AD143: 平均 | AE143: =AVERAGE(AE119:AE142) -> 

Sheet 融雪熱需要量算定 (hidden)
J1: 気象庁データから積雪深さ0cm以上の日を融雪が必要な日とした。
A2: ■設計発熱量 | E2: ■都道府県ごとの設計発熱量設定 | J2: ■日最深積雪0cm以上日数 | Z2: ■熱需要量計算（必要発熱量） | AE2: ■熱需要量計算（月別）
A3: 該当地域 | B3: 設計発熱量[W/m2] | E3: 地域区分 | F3: 都道府県 | G3: 設計発熱量 | H3: 備考 | J3: 都道府県 | K3: 地域 | L3: =積雪日数!II2 -> 2019-01-01 | M3: =積雪日数!IJ2 -> 2019-02-01 | N3: =積雪日数!IK2 -> 2019-03-01 | O3: =積雪日数!IL2 -> 2019-04-01 | P3: =積雪日数!IM2 -> 2019-05-01 | Q3: =積雪日数!IN2 -> 2019-06-01 | R3: =積雪日数!IO2 -> 2019-07-01 | S3: =積雪日数!IP2 -> 2019-08-01 | T3: =積雪日数!IQ2 -> 2019-09-01 | U3: =積雪日数!IR2 -> 2019-10-01 | V3: =積雪日数!IS2 -> 2019-11-01 | W3: =積雪日数!IT2 -> 2019-12-01 | X3: =積雪日数!IU2 -> 年間合計 | Z3: 項目 | AA3: 単位 | AB3: 値 | AC3: 備考 | AE3: 項目 | AF3: 単位 | AG3: 4月 | AH3: 5月 | AI3: 6月 | AJ3: 7月 | AK3: 8月 | AL3: 9月 | AM3: 10月 | AN3: 11月 | AO3: 12月 | AP3: 1月 | AQ3: 2月 | AR3: 3月 | AS3: 合計 | AT3: 最大 | AU3: 最小 | AV3: 備考
A4: 関東以南のち方 | B4: 200 | E4: 北海道 | F4: 北海道 | G4: =B6 -> 300 | H4: 北海道は幅があるため、中間の値とする。 | J4: 北海道 | K4: =積雪日数!IE3 -> 札幌 | L4: =積雪日数!II3 -> 31 | M4: =積雪日数!IJ3 -> 28.2 | N4: =積雪日数!IK3 -> 29.6 | O4: =積雪日数!IL3 -> 6.4 | P4: =積雪日数!IM3 -> 0 | Q4: =積雪日数!IN3 -> 0 | R4: =積雪日数!IO3 -> 0 | S4: =積雪日数!IP3 -> 0 | T4: =積雪日数!IQ3 -> 0 | U4: =積雪日数!IR3 -> 0.6 | V4: =積雪日数!IS3 -> 8.7 | W4: =積雪日数!IT3 -> 27.9 | X4: =積雪日数!IU3 -> 132.4 | Z4: 都道府県 | AB4: =入力シート!C7 -> 0 | AE4: 必要発熱量 | AF4: kW | AG4: =$AB$7 ->  | AP4: =$AB$7 -> 
A5: 東北、北陸、道南地方 | B5: 250 | E5: 東北 | F5: 青森県 | G5: =$B$5 -> 250 | J5: 青森県 | K5: =積雪日数!IE4 -> 青森 | L5: =積雪日数!II4 -> 30.8 | M5: =積雪日数!IJ4 -> 28.1 | N5: =積雪日数!IK4 -> 25 | O5: =積雪日数!IL4 -> 3.4 | P5: =積雪日数!IM4 -> 0 | Q5: =積雪日数!IN4 -> 0 | R5: =積雪日数!IO4 -> 0 | S5: =積雪日数!IP4 -> 0 | T5: =積雪日数!IQ4 -> 0 | U5: =積雪日数!IR4 -> 0 | V5: =積雪日数!IS4 -> 6.6 | W5: =積雪日数!IT4 -> 24.3 | X5: =積雪日数!IU4 -> 118.2 | Z5: 設計発熱量 | AA5: W/m | AB5: =VLOOKUP(AB4,F3:G50,2,FALSE) ->  | AE5: 融雪日数 | AF5: 日/月 | AG5: =VLOOKUP(AB4,J3:X50,6,FALSE) ->  | AH5: =VLOOKUP(AB4,J3:X50,7,FALSE) ->  | AI5: =VLOOKUP(AB4,J3:X50,8,FALSE) ->  | AJ5: =VLOOKUP(AB4,J3:X50,9,FALSE) ->  | AK5: =VLOOKUP(AB4,J3:X50,10,FALSE) ->  | AL5: =VLOOKUP(AB4,J3:X50,11,FALSE) ->  | AM5: =VLOOKUP(AB4,J3:X50,12,FALSE) ->  | AN5: =VLOOKUP(AB4,J3:X50,13,FALSE) ->  | AO5: =VLOOKUP(AB4,J3:X50,14,FALSE) ->  | AP5: =VLOOKUP(AB4,J3:X50,3,FALSE) ->  | AQ5: =VLOOKUP(AB4,J3:X50,4,FALSE) ->  | AR5: =VLOOKUP(AB4,J3:X50,5,FALSE) ->  | AS5: =SUM(AG5:AR5) ->  | AT5: =MAX(AG5:AR5) ->  | AU5: =MIN(AG5:AR5) -> 
A6: 東北山間部、道央地方 | B6: 300 | E6: 東北 | F6: 岩手県 | G6: =$B$5 -> 250 | J6: 岩手県 | K6: =積雪日数!IE5 -> 盛岡 | L6: =積雪日数!II5 -> 26.8 | M6: =積雪日数!IJ5 -> 25.3 | N6: =積雪日数!IK5 -> 15.3 | O6: =積雪日数!IL5 -> 1.4 | P6: =積雪日数!IM5 -> 0 | Q6: =積雪日数!IN5 -> 0 | R6: =積雪日数!IO5 -> 0 | S6: =積雪日数!IP5 -> 0 | T6: =積雪日数!IQ5 -> 0 | U6: =積雪日数!IR5 -> 0 | V6: =積雪日数!IS5 -> 2.8 | W6: =積雪日数!IT5 -> 16.3 | X6: =積雪日数!IU5 -> 87.9 | Z6: 対象面積 | AA6: m2 | AB6: =入力シート!C11 -> 0 | AE6: 月別熱需要量：融雪 | AF6: MJ/月 | AG6: =AG7*3.6 ->  | AS6: =SUM(AG6:AR6) ->  | AT6: =MAX(AG6:AR6) ->  | AU6: =MIN(AG6:AR6) -> 
A7: 同等、道北地方 | B7: 350 | E7: 東北 | F7: 宮城県 | G7: 250 | J7: 宮城県 | K7: =積雪日数!IE6 -> 仙台 | L7: =積雪日数!II6 -> 13 | M7: =積雪日数!IJ6 -> 11 | N7: =積雪日数!IK6 -> 5.6 | O7: =積雪日数!IL6 -> 0.5 | P7: =積雪日数!IM6 -> 0 | Q7: =積雪日数!IN6 -> 0 | R7: =積雪日数!IO6 -> 0 | S7: =積雪日数!IP6 -> 0 | T7: =積雪日数!IQ6 -> 0 | U7: =積雪日数!IR6 -> 0 | V7: =積雪日数!IS6 -> 0.4 | W7: =積雪日数!IT6 -> 5.2 | X7: =積雪日数!IU6 -> 35.7 | Z7: 必要発熱量 | AA7: kW | AB7: =AB5*AB6/1000 ->  | AF7: kWh/月 | AG7: =AG4*24*AG5 ->  | AS7: =SUM(AG7:AR7) ->  | AT7: =MAX(AG7:AR7) ->  | AU7: =MIN(AG7:AR7) -> 
E8: 東北 | F8: 秋田県 | G8: 250 | J8: 秋田県 | K8: =積雪日数!IE7 -> 秋田 | L8: =積雪日数!II7 -> 27.3 | M8: =積雪日数!IJ7 -> 24.4 | N8: =積雪日数!IK7 -> 13.5 | O8: =積雪日数!IL7 -> 0.5 | P8: =積雪日数!IM7 -> 0 | Q8: =積雪日数!IN7 -> 0 | R8: =積雪日数!IO7 -> 0 | S8: =積雪日数!IP7 -> 0 | T8: =積雪日数!IQ7 -> 0 | U8: =積雪日数!IR7 -> 0 | V8: =積雪日数!IS7 -> 3 | W8: =積雪日数!IT7 -> 16.6 | X8: =積雪日数!IU7 -> 85.3
E9: 東北 | F9: 山形県 | G9: 250 | J9: 山形県 | K9: =積雪日数!IE8 -> 山形 | L9: =積雪日数!II8 -> 27.8 | M9: =積雪日数!IJ8 -> 26 | N9: =積雪日数!IK8 -> 14.4 | O9: =積雪日数!IL8 -> 1 | P9: =積雪日数!IM8 -> 0 | Q9: =積雪日数!IN8 -> 0 | R9: =積雪日数!IO8 -> 0 | S9: =積雪日数!IP8 -> 0 | T9: =積雪日数!IQ8 -> 0 | U9: =積雪日数!IR8 -> 0 | V9: =積雪日数!IS8 -> 2.4 | W9: =積雪日数!IT8 -> 14.8 | X9: =積雪日数!IU8 -> 86.4
E10: 東北 | F10: 福島県 | G10: 250 | J10: 福島県 | K10: =積雪日数!IE9 -> 福島 | L10: =積雪日数!II9 -> 17.9 | M10: =積雪日数!IJ9 -> 13.5 | N10: =積雪日数!IK9 -> 6.3 | O10: =積雪日数!IL9 -> 0.4 | P10: =積雪日数!IM9 -> 0 | Q10: =積雪日数!IN9 -> 0 | R10: =積雪日数!IO9 -> 0 | S10: =積雪日数!IP9 -> 0 | T10: =積雪日数!IQ9 -> 0 | U10: =積雪日数!IR9 -> 0 | V10: =積雪日数!IS9 -> 0.4 | W10: =積雪日数!IT9 -> 6.8 | X10: =積雪日数!IU9 -> 45.3
E11: 関東 | F11: 茨城県 | G11: =$B$4 -> 200 | J11: 茨城県 | K11: =積雪日数!IE10 -> 水戸 | L11: =積雪日数!II10 -> 2.6 | M11: =積雪日数!IJ10 -> 3.1 | N11: =積雪日数!IK10 -> 1.1 | O11: =積雪日数!IL10 -> 0.1 | P11: =積雪日数!IM10 -> 0 | Q11: =積雪日数!IN10 -> 0 | R11: =積雪日数!IO10 -> 0 | S11: =積雪日数!IP10 -> 0 | T11: =積雪日数!IQ10 -> 0 | U11: =積雪日数!IR10 -> 0 | V11: =積雪日数!IS10 -> 0 | W11: =積雪日数!IT10 -> 0.5 | X11: =積雪日数!IU10 -> 7.4
E12: 関東 | F12: 栃木県 | G12: =$B$4 -> 200 | J12: 栃木県 | K12: =積雪日数!IE11 -> 宇都宮 | L12: =積雪日数!II11 -> 3.6 | M12: =積雪日数!IJ11 -> 3.8 | N12: =積雪日数!IK11 -> 1.9 | O12: =積雪日数!IL11 -> 0.2 | P12: =積雪日数!IM11 -> 0 | Q12: =積雪日数!IN11 -> 0 | R12: =積雪日数!IO11 -> 0 | S12: =積雪日数!IP11 -> 0 | T12: =積雪日数!IQ11 -> 0 | U12: =積雪日数!IR11 -> 0 | V12: =積雪日数!IS11 -> 0 | W12: =積雪日数!IT11 -> 1.1 | X12: =積雪日数!IU11 -> 10.6
E13: 関東 | F13: 群馬県 | G13: 200 | J13: 群馬県 | K13: =積雪日数!IE12 -> 前橋 | L13: =積雪日数!II12 -> 2.9 | M13: =積雪日数!IJ12 -> 3.5 | N13: =積雪日数!IK12 -> 1.7 | O13: =積雪日数!IL12 -> 0.2 | P13: =積雪日数!IM12 -> 0 | Q13: =積雪日数!IN12 -> 0 | R13: =積雪日数!IO12 -> 0 | S13: =積雪日数!IP12 -> 0 | T13: =積雪日数!IQ12 -> 0 | U13: =積雪日数!IR12 -> 0 | V13: =積雪日数!IS12 -> 0 | W13: =積雪日数!IT12 -> 1 | X13: =積雪日数!IU12 -> 9.3
A14: 国土交通省 北海道開発局「北海道開発局道路設計要領 第5集 電気通信施設 第４章ロードヒーティング設備」 | E14: 関東 | F14: 埼玉県 | G14: 200 | J14: 埼玉県 | K14: =積雪日数!IE13 -> 熊谷 | L14: =積雪日数!II13 -> 2.5 | M14: =積雪日数!IJ13 -> 2.8 | N14: =積雪日数!IK13 -> 1.2 | O14: =積雪日数!IL13 -> 0.2 | P14: =積雪日数!IM13 -> 0 | Q14: =積雪日数!IN13 -> 0 | R14: =積雪日数!IO13 -> 0 | S14: =積雪日数!IP13 -> 0 | T14: =積雪日数!IQ13 -> 0 | U14: =積雪日数!IR13 -> 0 | V14: =積雪日数!IS13 -> 0 | W14: =積雪日数!IT13 -> 0.5 | X14: =積雪日数!IU13 -> 7.2
A15: https://www.hkd.mlit.go.jp/ky/kn/dou_ken/ud49g700000022du.html | E15: 関東 | F15: 千葉県 | G15: 200 | J15: 千葉県 | K15: =積雪日数!IE14 -> 千葉 | L15: =積雪日数!II14 -> 0.9 | M15: =積雪日数!IJ14 -> 1.2 | N15: =積雪日数!IK14 -> 0.3 | O15: =積雪日数!IL14 -> 0 | P15: =積雪日数!IM14 -> 0 | Q15: =積雪日数!IN14 -> 0 | R15: =積雪日数!IO14 -> 0 | S15: =積雪日数!IP14 -> 0 | T15: =積雪日数!IQ14 -> 0 | U15: =積雪日数!IR14 -> 0 | V15: =積雪日数!IS14 -> 0 | W15: =積雪日数!IT14 -> 0.1 | X15: =積雪日数!IU14 -> 2.5
E16: 関東 | F16: 東京都 | G16: 200 | J16: 東京都 | K16: =積雪日数!IE15 -> 東京 | L16: =積雪日数!II15 -> 1.6 | M16: =積雪日数!IJ15 -> 2 | N16: =積雪日数!IK15 -> 0.8 | O16: =積雪日数!IL15 -> 0.1 | P16: =積雪日数!IM15 -> 0 | Q16: =積雪日数!IN15 -> 0 | R16: =積雪日数!IO15 -> 0 | S16: =積雪日数!IP15 -> 0 | T16: =積雪日数!IQ15 -> 0 | U16: =積雪日数!IR15 -> 0 | V16: =積雪日数!IS15 -> 0 | W16: =積雪日数!IT15 -> 0.4 | X16: =積雪日数!IU15 -> 4.9
E17: 関東 | F17: 神奈川県 | G17: 200 | J17: 神奈川県 | K17: =積雪日数!IE16 -> 横浜 | L17: =積雪日数!II16 -> 1.6 | M17: =積雪日数!IJ16 -> 2.3 | N17: =積雪日数!IK16 -> 0.7 | O17: =積雪日数!IL16 -> 0 | P17: =積雪日数!IM16 -> 0 | Q17: =積雪日数!IN16 -> 0 | R17: =積雪日数!IO16 -> 0 | S17: =積雪日数!IP16 -> 0 | T17: =積雪日数!IQ16 -> 0 | U17: =積雪日数!IR16 -> 0 | V17: =積雪日数!IS16 -> 0 | W17: =積雪日数!IT16 -> 0.3 | X17: =積雪日数!IU16 -> 4.9
E18: 北陸 | F18: 新潟県 | G18: 200 | J18: 新潟県 | K18: =積雪日数!IE17 -> 新潟 | L18: =積雪日数!II17 -> 19.8 | M18: =積雪日数!IJ17 -> 18.4 | N18: =積雪日数!IK17 -> 6.5 | O18: =積雪日数!IL17 -> 0.2 | P18: =積雪日数!IM17 -> 0 | Q18: =積雪日数!IN17 -> 0 | R18: =積雪日数!IO17 -> 0 | S18: =積雪日数!IP17 -> 0 | T18: =積雪日数!IQ17 -> 0 | U18: =積雪日数!IR17 -> 0 | V18: =積雪日数!IS17 -> 0.7 | W18: =積雪日数!IT17 -> 8.6 | X18: =積雪日数!IU17 -> 54.2
E19: 北陸 | F19: 富山県 | G19: 200 | J19: 富山県 | K19: =積雪日数!IE18 -> 富山 | L19: =積雪日数!II18 -> 21.7 | M19: =積雪日数!IJ18 -> 19.4 | N19: =積雪日数!IK18 -> 7.9 | O19: =積雪日数!IL18 -> 0.3 | P19: =積雪日数!IM18 -> 0 | Q19: =積雪日数!IN18 -> 0 | R19: =積雪日数!IO18 -> 0 | S19: =積雪日数!IP18 -> 0 | T19: =積雪日数!IQ18 -> 0 | U19: =積雪日数!IR18 -> 0 | V19: =積雪日数!IS18 -> 0.5 | W19: =積雪日数!IT18 -> 8.6 | X19: =積雪日数!IU18 -> 58.4
E20: 北陸 | F20: 石川県 | G20: 200 | J20: 石川県 | K20: =積雪日数!IE19 -> 金沢 | L20: =積雪日数!II19 -> 18.7 | M20: =積雪日数!IJ19 -> 16.9 | N20: =積雪日数!IK19 -> 6.2 | O20: =積雪日数!IL19 -> 0.2 | P20: =積雪日数!IM19 -> 0 | Q20: =積雪日数!IN19 -> 0 | R20: =積雪日数!IO19 -> 0 | S20: =積雪日数!IP19 -> 0 | T20: =積雪日数!IQ19 -> 0 | U20: =積雪日数!IR19 -> 0 | V20: =積雪日数!IS19 -> 0.6 | W20: =積雪日数!IT19 -> 7.1 | X20: =積雪日数!IU19 -> 49.7
E21: 北陸 | F21: 福井県 | G21: 200 | J21: 福井県 | K21: =積雪日数!IE20 -> 福井 | L21: =積雪日数!II20 -> 19.9 | M21: =積雪日数!IJ20 -> 17.5 | N21: =積雪日数!IK20 -> 5.9 | O21: =積雪日数!IL20 -> 0.1 | P21: =積雪日数!IM20 -> 0 | Q21: =積雪日数!IN20 -> 0 | R21: =積雪日数!IO20 -> 0 | S21: =積雪日数!IP20 -> 0 | T21: =積雪日数!IQ20 -> 0 | U21: =積雪日数!IR20 -> 0 | V21: =積雪日数!IS20 -> 0.3 | W21: =積雪日数!IT20 -> 7.6 | X21: =積雪日数!IU20 -> 51.3
E22: 山梨県 | F22: 山梨県 | G22: 200 | J22: 山梨県 | K22: =積雪日数!IE21 -> 甲府 | L22: =積雪日数!II21 -> 4.5 | M22: =積雪日数!IJ21 -> 3.1 | N22: =積雪日数!IK21 -> 0.9 | O22: =積雪日数!IL21 -> 0.1 | P22: =積雪日数!IM21 -> 0 | Q22: =積雪日数!IN21 -> 0 | R22: =積雪日数!IO21 -> 0 | S22: =積雪日数!IP21 -> 0 | T22: =積雪日数!IQ21 -> 0 | U22: =積雪日数!IR21 -> 0 | V22: =積雪日数!IS21 -> 0 | W22: =積雪日数!IT21 -> 0.6 | X22: =積雪日数!IU21 -> 9.2
E23: 長野県 | F23: 長野県 | G23: 200 | J23: 長野県 | K23: =積雪日数!IE22 -> 長野 | L23: =積雪日数!II22 -> 22.9 | M23: =積雪日数!IJ22 -> 19.6 | N23: =積雪日数!IK22 -> 8.2 | O23: =積雪日数!IL22 -> 0.6 | P23: =積雪日数!IM22 -> 0 | Q23: =積雪日数!IN22 -> 0 | R23: =積雪日数!IO22 -> 0 | S23: =積雪日数!IP22 -> 0 | T23: =積雪日数!IQ22 -> 0 | U23: =積雪日数!IR22 -> 0 | V23: =積雪日数!IS22 -> 0.9 | W23: =積雪日数!IT22 -> 10.8 | X23: =積雪日数!IU22 -> 63
E24: 東海 | F24: 岐阜県 | G24: 200 | J24: 岐阜県 | K24: =積雪日数!IE23 -> 岐阜 | L24: =積雪日数!II23 -> 5 | M24: =積雪日数!IJ23 -> 4.8 | N24: =積雪日数!IK23 -> 0.9 | O24: =積雪日数!IL23 -> 0 | P24: =積雪日数!IM23 -> 0 | Q24: =積雪日数!IN23 -> 0 | R24: =積雪日数!IO23 -> 0 | S24: =積雪日数!IP23 -> 0 | T24: =積雪日数!IQ23 -> 0 | U24: =積雪日数!IR23 -> 0 | V24: =積雪日数!IS23 -> 0 | W24: =積雪日数!IT23 -> 2.4 | X24: =積雪日数!IU23 -> 13.1
E25: 静岡県 | F25: 静岡県 | G25: 200 | J25: 静岡県 | K25: =積雪日数!IE24 -> 静岡 | L25: =積雪日数!II24 -> 0 | M25: =積雪日数!IJ24 -> 0.2 | N25: =積雪日数!IK24 -> 0 | O25: =積雪日数!IL24 -> 0 | P25: =積雪日数!IM24 -> 0 | Q25: =積雪日数!IN24 -> 0 | R25: =積雪日数!IO24 -> 0 | S25: =積雪日数!IP24 -> 0 | T25: =積雪日数!IQ24 -> 0 | U25: =積雪日数!IR24 -> 0 | V25: =積雪日数!IS24 -> 0 | W25: =積雪日数!IT24 -> 0 | X25: =積雪日数!IU24 -> 0.2
E26: 東海 | F26: 愛知県 | G26: 200 | J26: 愛知県 | K26: =積雪日数!IE25 -> 名古屋 | L26: =積雪日数!II25 -> 2.1 | M26: =積雪日数!IJ25 -> 2.8 | N26: =積雪日数!IK25 -> 0.4 | O26: =積雪日数!IL25 -> 0 | P26: =積雪日数!IM25 -> 0 | Q26: =積雪日数!IN25 -> 0 | R26: =積雪日数!IO25 -> 0 | S26: =積雪日数!IP25 -> 0 | T26: =積雪日数!IQ25 -> 0 | U26: =積雪日数!IR25 -> 0 | V26: =積雪日数!IS25 -> 0 | W26: =積雪日数!IT25 -> 0.9 | X26: =積雪日数!IU25 -> 6.2
E27: 東海 | F27: 三重県 | G27: 200 | J27: 三重県 | K27: =積雪日数!IE26 -> 津 | L27: =積雪日数!II26 -> 1.5 | M27: =積雪日数!IJ26 -> 2.2 | N27: =積雪日数!IK26 -> 0.4 | O27: =積雪日数!IL26 -> 0 | P27: =積雪日数!IM26 -> 0 | Q27: =積雪日数!IN26 -> 0 | R27: =積雪日数!IO26 -> 0 | S27: =積雪日数!IP26 -> 0 | T27: =積雪日数!IQ26 -> 0 | U27: =積雪日数!IR26 -> 0 | V27: =積雪日数!IS26 -> 0 | W27: =積雪日数!IT26 -> 0.4 | X27: =積雪日数!IU26 -> 4.5
E28: 近畿 | F28: 滋賀県 | G28: 200 | J28: 滋賀県 | K28: =積雪日数!IE27 -> 彦根 | L28: =積雪日数!II27 -> 10.1 | M28: =積雪日数!IJ27 -> 9.2 | N28: =積雪日数!IK27 -> 2.3 | O28: =積雪日数!IL27 -> 0.1 | P28: =積雪日数!IM27 -> 0 | Q28: =積雪日数!IN27 -> 0 | R28: =積雪日数!IO27 -> 0 | S28: =積雪日数!IP27 -> 0 | T28: =積雪日数!IQ27 -> 0 | U28: =積雪日数!IR27 -> 0 | V28: =積雪日数!IS27 -> 0 | W28: =積雪日数!IT27 -> 3.5 | X28: =積雪日数!IU27 -> 25.2
E29: 近畿 | F29: 京都府 | G29: 200 | J29: 京都府 | K29: =積雪日数!IE28 -> 京都 | L29: =積雪日数!II28 -> 3.1 | M29: =積雪日数!IJ28 -> 3.9 | N29: =積雪日数!IK28 -> 1 | O29: =積雪日数!IL28 -> 0 | P29: =積雪日数!IM28 -> 0 | Q29: =積雪日数!IN28 -> 0 | R29: =積雪日数!IO28 -> 0 | S29: =積雪日数!IP28 -> 0 | T29: =積雪日数!IQ28 -> 0 | U29: =積雪日数!IR28 -> 0 | V29: =積雪日数!IS28 -> 0 | W29: =積雪日数!IT28 -> 1.2 | X29: =積雪日数!IU28 -> 9.2
E30: 近畿 | F30: 大阪府 | G30: 200 | J30: 大阪府 | K30: =積雪日数!IE29 -> 大阪 | L30: =積雪日数!II29 -> 0.3 | M30: =積雪日数!IJ29 -> 0.9 | N30: =積雪日数!IK29 -> 0.2 | O30: =積雪日数!IL29 -> 0 | P30: =積雪日数!IM29 -> 0 | Q30: =積雪日数!IN29 -> 0 | R30: =積雪日数!IO29 -> 0 | S30: =積雪日数!IP29 -> 0 | T30: =積雪日数!IQ29 -> 0 | U30: =積雪日数!IR29 -> 0 | V30: =積雪日数!IS29 -> 0 | W30: =積雪日数!IT29 -> 0.1 | X30: =積雪日数!IU29 -> 1.5
E31: 近畿 | F31: 兵庫県 | G31: 200 | J31: 兵庫県 | K31: =積雪日数!IE30 -> 神戸 | L31: =積雪日数!II30 -> 0.5 | M31: =積雪日数!IJ30 -> 1.2 | N31: =積雪日数!IK30 -> 0.5 | O31: =積雪日数!IL30 -> 0 | P31: =積雪日数!IM30 -> 0 | Q31: =積雪日数!IN30 -> 0 | R31: =積雪日数!IO30 -> 0 | S31: =積雪日数!IP30 -> 0 | T31: =積雪日数!IQ30 -> 0 | U31: =積雪日数!IR30 -> 0 | V31: =積雪日数!IS30 -> 0 | W31: =積雪日数!IT30 -> 0.4 | X31: =積雪日数!IU30 -> 2.6
E32: 近畿 | F32: 奈良県 | G32: 200 | J32: 奈良県 | K32: =積雪日数!IE31 -> 奈良 | L32: =積雪日数!II31 -> 1.4 | M32: =積雪日数!IJ31 -> 1.9 | N32: =積雪日数!IK31 -> 0.8 | O32: =積雪日数!IL31 -> 0 | P32: =積雪日数!IM31 -> 0 | Q32: =積雪日数!IN31 -> 0 | R32: =積雪日数!IO31 -> 0 | S32: =積雪日数!IP31 -> 0 | T32: =積雪日数!IQ31 -> 0 | U32: =積雪日数!IR31 -> 0 | V32: =積雪日数!IS31 -> 0 | W32: =積雪日数!IT31 -> 0.7 | X32: =積雪日数!IU31 -> 4.8
E33: 近畿 | F33: 和歌山県 | G33: 200 | J33: 和歌山県 | K33: =積雪日数!IE32 -> 和歌山 | L33: =積雪日数!II32 -> 0.9 | M33: =積雪日数!IJ32 -> 1 | N33: =積雪日数!IK32 -> 0.1 | O33: =積雪日数!IL32 -> 0 | P33: =積雪日数!IM32 -> 0 | Q33: =積雪日数!IN32 -> 0 | R33: =積雪日数!IO32 -> 0 | S33: =積雪日数!IP32 -> 0 | T33: =積雪日数!IQ32 -> 0 | U33: =積雪日数!IR32 -> 0 | V33: =積雪日数!IS32 -> 0 | W33: =積雪日数!IT32 -> 0.2 | X33: =積雪日数!IU32 -> 2.2
E34: 中国 | F34: 鳥取県 | G34: 200 | J34: 鳥取県 | K34: =積雪日数!IE33 -> 鳥取 | L34: =積雪日数!II33 -> 15.5 | M34: =積雪日数!IJ33 -> 13.2 | N34: =積雪日数!IK33 -> 4 | O34: =積雪日数!IL33 -> 0.2 | P34: =積雪日数!IM33 -> 0 | Q34: =積雪日数!IN33 -> 0 | R34: =積雪日数!IO33 -> 0 | S34: =積雪日数!IP33 -> 0 | T34: =積雪日数!IQ33 -> 0 | U34: =積雪日数!IR33 -> 0 | V34: =積雪日数!IS33 -> 0.1 | W34: =積雪日数!IT33 -> 6.7 | X34: =積雪日数!IU33 -> 39.7
E35: 中国 | F35: 島根県 | G35: 200 | J35: 島根県 | K35: =積雪日数!IE34 -> 松江 | L35: =積雪日数!II34 -> 11.2 | M35: =積雪日数!IJ34 -> 9.1 | N35: =積雪日数!IK34 -> 2.1 | O35: =積雪日数!IL34 -> 0.1 | P35: =積雪日数!IM34 -> 0 | Q35: =積雪日数!IN34 -> 0 | R35: =積雪日数!IO34 -> 0 | S35: =積雪日数!IP34 -> 0 | T35: =積雪日数!IQ34 -> 0 | U35: =積雪日数!IR34 -> 0 | V35: =積雪日数!IS34 -> 0.2 | W35: =積雪日数!IT34 -> 4.3 | X35: =積雪日数!IU34 -> 27
E36: 中国 | F36: 岡山県 | G36: 200 | J36: 岡山県 | K36: =積雪日数!IE35 -> 岡山 | L36: =積雪日数!II35 -> 0.9 | M36: =積雪日数!IJ35 -> 1.1 | N36: =積雪日数!IK35 -> 0.4 | O36: =積雪日数!IL35 -> 0 | P36: =積雪日数!IM35 -> 0 | Q36: =積雪日数!IN35 -> 0 | R36: =積雪日数!IO35 -> 0 | S36: =積雪日数!IP35 -> 0 | T36: =積雪日数!IQ35 -> 0 | U36: =積雪日数!IR35 -> 0 | V36: =積雪日数!IS35 -> 0 | W36: =積雪日数!IT35 -> 0.1 | X36: =積雪日数!IU35 -> 2.5
E37: 中国 | F37: 広島県 | G37: 200 | J37: 広島県 | K37: =積雪日数!IE36 -> 広島 | L37: =積雪日数!II36 -> 2.7 | M37: =積雪日数!IJ36 -> 2.3 | N37: =積雪日数!IK36 -> 0.7 | O37: =積雪日数!IL36 -> 0 | P37: =積雪日数!IM36 -> 0 | Q37: =積雪日数!IN36 -> 0 | R37: =積雪日数!IO36 -> 0 | S37: =積雪日数!IP36 -> 0 | T37: =積雪日数!IQ36 -> 0 | U37: =積雪日数!IR36 -> 0 | V37: =積雪日数!IS36 -> 0 | W37: =積雪日数!IT36 -> 1.2 | X37: =積雪日数!IU36 -> 6.9
E38: 中国 | F38: 山口県 | G38: 200 | J38: 山口県 | K38: =積雪日数!IE37 -> 山口 | L38: =積雪日数!II37 -> 3.2 | M38: =積雪日数!IJ37 -> 2.1 | N38: =積雪日数!IK37 -> 0.5 | O38: =積雪日数!IL37 -> 0 | P38: =積雪日数!IM37 -> 0 | Q38: =積雪日数!IN37 -> 0 | R38: =積雪日数!IO37 -> 0 | S38: =積雪日数!IP37 -> 0 | T38: =積雪日数!IQ37 -> 0 | U38: =積雪日数!IR37 -> 0 | V38: =積雪日数!IS37 -> 0 | W38: =積雪日数!IT37 -> 1.2 | X38: =積雪日数!IU37 -> 7
E39: 四国 | F39: 徳島県 | G39: 200 | J39: 徳島県 | K39: =積雪日数!IE38 -> 徳島 | L39: =積雪日数!II38 -> 1.2 | M39: =積雪日数!IJ38 -> 1.2 | N39: =積雪日数!IK38 -> 0.2 | O39: =積雪日数!IL38 -> 0 | P39: =積雪日数!IM38 -> 0 | Q39: =積雪日数!IN38 -> 0 | R39: =積雪日数!IO38 -> 0 | S39: =積雪日数!IP38 -> 0 | T39: =積雪日数!IQ38 -> 0 | U39: =積雪日数!IR38 -> 0 | V39: =積雪日数!IS38 -> 0 | W39: =積雪日数!IT38 -> 0.2 | X39: =積雪日数!IU38 -> 2.8
E40: 四国 | F40: 香川県 | G40: 200 | J40: 香川県 | K40: =積雪日数!IE39 -> 高松 | L40: =積雪日数!II39 -> 0.8 | M40: =積雪日数!IJ39 -> 1.1 | N40: =積雪日数!IK39 -> 0.3 | O40: =積雪日数!IL39 -> 0 | P40: =積雪日数!IM39 -> 0 | Q40: =積雪日数!IN39 -> 0 | R40: =積雪日数!IO39 -> 0 | S40: =積雪日数!IP39 -> 0 | T40: =積雪日数!IQ39 -> 0 | U40: =積雪日数!IR39 -> 0 | V40: =積雪日数!IS39 -> 0 | W40: =積雪日数!IT39 -> 0.1 | X40: =積雪日数!IU39 -> 2.3
E41: 四国 | F41: 愛媛県 | G41: 200 | J41: 愛媛県 | K41: =積雪日数!IE40 -> 松山 | L41: =積雪日数!II40 -> 0.8 | M41: =積雪日数!IJ40 -> 1.1 | N41: =積雪日数!IK40 -> 0.2 | O41: =積雪日数!IL40 -> 0 | P41: =積雪日数!IM40 -> 0 | Q41: =積雪日数!IN40 -> 0 | R41: =積雪日数!IO40 -> 0 | S41: =積雪日数!IP40 -> 0 | T41: =積雪日数!IQ40 -> 0 | U41: =積雪日数!IR40 -> 0 | V41: =積雪日数!IS40 -> 0 | W41: =積雪日数!IT40 -> 0.2 | X41: =積雪日数!IU40 -> 2.3
E42: 四国 | F42: 高知県 | G42: 200 | J42: 高知県 | K42: =積雪日数!IE41 -> 高知 | L42: =積雪日数!II41 -> 0.4 | M42: =積雪日数!IJ41 -> 0.2 | N42: =積雪日数!IK41 -> 0.1 | O42: =積雪日数!IL41 -> 0 | P42: =積雪日数!IM41 -> 0 | Q42: =積雪日数!IN41 -> 0 | R42: =積雪日数!IO41 -> 0 | S42: =積雪日数!IP41 -> 0 | T42: =積雪日数!IQ41 -> 0 | U42: =積雪日数!IR41 -> 0 | V42: =積雪日数!IS41 -> 0 | W42: =積雪日数!IT41 -> 0.2 | X42: =積雪日数!IU41 -> 0.9
E43: 九州 | F43: 福岡県 | G43: 200 | J43: 福岡県 | K43: =積雪日数!IE42 -> 福岡 | L43: =積雪日数!II42 -> 1.7 | M43: =積雪日数!IJ42 -> 0.9 | N43: =積雪日数!IK42 -> 0.3 | O43: =積雪日数!IL42 -> 0 | P43: =積雪日数!IM42 -> 0 | Q43: =積雪日数!IN42 -> 0 | R43: =積雪日数!IO42 -> 0 | S43: =積雪日数!IP42 -> 0 | T43: =積雪日数!IQ42 -> 0 | U43: =積雪日数!IR42 -> 0 | V43: =積雪日数!IS42 -> 0.1 | W43: =積雪日数!IT42 -> 0.8 | X43: =積雪日数!IU42 -> 3.8
E44: 九州 | F44: 佐賀県 | G44: 200 | J44: 佐賀県 | K44: =積雪日数!IE43 -> 佐賀 | L44: =積雪日数!II43 -> 1.8 | M44: =積雪日数!IJ43 -> 1.3 | N44: =積雪日数!IK43 -> 0.3 | O44: =積雪日数!IL43 -> 0 | P44: =積雪日数!IM43 -> 0 | Q44: =積雪日数!IN43 -> 0 | R44: =積雪日数!IO43 -> 0 | S44: =積雪日数!IP43 -> 0 | T44: =積雪日数!IQ43 -> 0 | U44: =積雪日数!IR43 -> 0 | V44: =積雪日数!IS43 -> 0 | W44: =積雪日数!IT43 -> 0.6 | X44: =積雪日数!IU43 -> 4
E45: 九州 | F45: 長崎県 | G45: 200 | J45: 長崎県 | K45: =積雪日数!IE44 -> 長崎 | L45: =積雪日数!II44 -> 1.2 | M45: =積雪日数!IJ44 -> 0.9 | N45: =積雪日数!IK44 -> 0.2 | O45: =積雪日数!IL44 -> 0 | P45: =積雪日数!IM44 -> 0 | Q45: =積雪日数!IN44 -> 0 | R45: =積雪日数!IO44 -> 0 | S45: =積雪日数!IP44 -> 0 | T45: =積雪日数!IQ44 -> 0 | U45: =積雪日数!IR44 -> 0 | V45: =積雪日数!IS44 -> 0 | W45: =積雪日数!IT44 -> 0.2 | X45: =積雪日数!IU44 -> 2.5
E46: 九州 | F46: 熊本県 | G46: 200 | J46: 熊本県 | K46: =積雪日数!IE45 -> 熊本 | L46: =積雪日数!II45 -> 1 | M46: =積雪日数!IJ45 -> 0.8 | N46: =積雪日数!IK45 -> 0.1 | O46: =積雪日数!IL45 -> 0 | P46: =積雪日数!IM45 -> 0 | Q46: =積雪日数!IN45 -> 0 | R46: =積雪日数!IO45 -> 0 | S46: =積雪日数!IP45 -> 0 | T46: =積雪日数!IQ45 -> 0 | U46: =積雪日数!IR45 -> 0 | V46: =積雪日数!IS45 -> 0 | W46: =積雪日数!IT45 -> 0.3 | X46: =積雪日数!IU45 -> 2.2
E47: 九州 | F47: 大分県 | G47: 200 | J47: 大分県 | K47: =積雪日数!IE46 -> 大分 | L47: =積雪日数!II46 -> 0.5 | M47: =積雪日数!IJ46 -> 0.4 | N47: =積雪日数!IK46 -> 0.1 | O47: =積雪日数!IL46 -> 0 | P47: =積雪日数!IM46 -> 0 | Q47: =積雪日数!IN46 -> 0 | R47: =積雪日数!IO46 -> 0 | S47: =積雪日数!IP46 -> 0 | T47: =積雪日数!IQ46 -> 0 | U47: =積雪日数!IR46 -> 0 | V47: =積雪日数!IS46 -> 0 | W47: =積雪日数!IT46 -> 0.1 | X47: =積雪日数!IU46 -> 1.1
E48: 九州 | F48: 宮崎県 | G48: 200 | J48: 宮崎県 | K48: =積雪日数!IE47 -> 宮崎 | L48: =積雪日数!II47 -> 0.1 | M48: =積雪日数!IJ47 -> 0 | N48: =積雪日数!IK47 -> 0 | O48: =積雪日数!IL47 -> 0 | P48: =積雪日数!IM47 -> 0 | Q48: =積雪日数!IN47 -> 0 | R48: =積雪日数!IO47 -> 0 | S48: =積雪日数!IP47 -> 0 | T48: =積雪日数!IQ47 -> 0 | U48: =積雪日数!IR47 -> 0 | V48: =積雪日数!IS47 -> 0 | W48: =積雪日数!IT47 -> 0 | X48: =積雪日数!IU47 -> 0.1
E49: 九州 | F49: 鹿児島県 | G49: 200 | J49: 鹿児島県 | K49: =積雪日数!IE48 -> 鹿児島 | L49: =積雪日数!II48 -> 0.6 | M49: =積雪日数!IJ48 -> 0.6 | N49: =積雪日数!IK48 -> 0 | O49: =積雪日数!IL48 -> 0 | P49: =積雪日数!IM48 -> 0 | Q49: =積雪日数!IN48 -> 0 | R49: =積雪日数!IO48 -> 0 | S49: =積雪日数!IP48 -> 0 | T49: =積雪日数!IQ48 -> 0 | U49: =積雪日数!IR48 -> 0 | V49: =積雪日数!IS48 -> 0 | W49: =積雪日数!IT48 -> 0.1 | X49: =積雪日数!IU48 -> 1.3
E50: 沖縄 | F50: 沖縄県 | G50: 200 | J50: 沖縄県 | K50: =積雪日数!IE49 -> 那覇 | L50: =積雪日数!II49 -> 0 | M50: =積雪日数!IJ49 -> 0 | N50: =積雪日数!IK49 -> 0 | O50: =積雪日数!IL49 -> 0 | P50: =積雪日数!IM49 -> 0 | Q50: =積雪日数!IN49 -> 0 | R50: =積雪日数!IO49 -> 0 | S50: =積雪日数!IP49 -> 0 | T50: =積雪日数!IQ49 -> 0 | U50: =積雪日数!IR49 -> 0 | V50: =積雪日数!IS49 -> 0 | W50: =積雪日数!IT49 -> 0 | X50: =積雪日数!IU49 -> 0

Sheet 下水熱ポテンシャル (hidden)
B2: ■下水関連の入力情報 | G2: ■熱需給マッチング
B3: ・下水熱利用の設定 | G3: ・下水熱ポテンシャルの算定 | L3: ・下水熱ポテンシャル、利用可能熱量
B4: 項目 | C4: 単位 | D4: 値 | E4: 備考 | G4: 項目 | H4: 単位 | I4: 値 | J4: 備考 | L4: 項目 | M4: 単位 | N4: 4月 | O4: 5月 | P4: 6月 | Q4: 7月 | R4: 8月 | S4: 9月 | T4: 10月 | U4: 11月 | V4: 12月 | W4: 1月 | X4: 2月 | Y4: 3月 | Z4: 合計 | AA4: 最大 | AB4: 最小 | AC4: 備考
B5: 下水熱量の設定方法選択 | D5: =入力シート!C44 -> 下水流量と下水温度を入力 | G5: 下水流量 | H5: m3/年 | I5: =D6 -> 0 | L5: 月日数 | N5: =熱需要量算定・原単位!D24 -> 30 | O5: =熱需要量算定・原単位!E24 -> 31 | P5: =熱需要量算定・原単位!F24 -> 30 | Q5: =熱需要量算定・原単位!G24 -> 31 | R5: =熱需要量算定・原単位!H24 -> 31 | S5: =熱需要量算定・原単位!I24 -> 30 | T5: =熱需要量算定・原単位!J24 -> 31 | U5: =熱需要量算定・原単位!K24 -> 30 | V5: =熱需要量算定・原単位!L24 -> 31 | W5: =熱需要量算定・原単位!M24 -> 31 | X5: =熱需要量算定・原単位!N24 -> 28 | Y5: =熱需要量算定・原単位!O24 -> 31 | Z5: =SUM(N5:Y5) -> 365 | AA5: =MAX(N5:Y5) -> 31 | AB5: =MIN(N5:Y5) -> 28
B6: 熱利用場所の下水流量 | C6: m3/年 | D6: =入力シート!C45 -> 0 | G6: 下水流量 | H6: m3/h | I6: =I5/8760 -> 0 | L6: 下水温度 | M6: ℃ | N6: =下水温度!F3 ->  | O6: =下水温度!G3 ->  | P6: =下水温度!H3 ->  | Q6: =下水温度!I3 ->  | R6: =下水温度!J3 ->  | S6: =下水温度!K3 ->  | T6: =下水温度!L3 ->  | U6: =下水温度!M3 ->  | V6: =下水温度!N3 ->  | W6: =下水温度!C3 ->  | X6: =下水温度!D3 ->  | Y6: =下水温度!E3 ->  | AA6: =MAX(N6:Y6) ->  | AB6: =MIN(N6:Y6) -> 
B7: 熱利用場所の下水温度 | C7: ℃ | D7: =入力シート!C46 -> 0 | G7: 下水流量 | H7: L/min | I7: =I5*1000/365/24/60 -> 0 | L7: 下水熱ポテンシャル | M7: MJ/月 | N7: =$I$13*N5/$Z$5 ->  | Z7: =SUM(N7:Y7) ->  | AA7: =MAX(N7:Y7) ->  | AB7: =MIN(N7:Y7) ->  | AC7: 月割する。
B8: 熱利用場所の下水熱ポテンシャル | C8: MJ/年 | D8: =入力シート!C47 -> 1000000 | G8: 下水温度 | H8: ℃ | I8: =AVERAGE(下水温度!C3:N3) ->  | M8: kWh/月 | N8: =N7/3.6 ->  | O8: =O7/3.6 ->  | Z8: =SUM(N8:Y8) ->  | AA8: =MAX(N8:Y8) ->  | AB8: =MIN(N8:Y8) -> 
B9: 下水熱利用システムの種類 | D9: =入力シート!C56 -> 0 | G9: 熱利用温度差(デフォルト設定) | H9: ℃ | I9: 5 | L9: 熱利用用途 | M9: - | N9: =IF($I$24="給湯","給湯",IF($I$24="空調",熱需要量算定・原単位!D39,IF($I$24="融雪","融雪",""))) ->  | O9: =IF($I$24="給湯","給湯",IF($I$24="空調",熱需要量算定・原単位!E39,IF($I$24="融雪","融雪",""))) ->  | P9: =IF($I$24="給湯","給湯",IF($I$24="空調",熱需要量算定・原単位!F39,IF($I$24="融雪","融雪",""))) ->  | Q9: =IF($I$24="給湯","給湯",IF($I$24="空調",熱需要量算定・原単位!G39,IF($I$24="融雪","融雪",""))) ->  | R9: =IF($I$24="給湯","給湯",IF($I$24="空調",熱需要量算定・原単位!H39,IF($I$24="融雪","融雪",""))) ->  | S9: =IF($I$24="給湯","給湯",IF($I$24="空調",熱需要量算定・原単位!I39,IF($I$24="融雪","融雪",""))) ->  | T9: =IF($I$24="給湯","給湯",IF($I$24="空調",熱需要量算定・原単位!J39,IF($I$24="融雪","融雪",""))) ->  | U9: =IF($I$24="給湯","給湯",IF($I$24="空調",熱需要量算定・原単位!K39,IF($I$24="融雪","融雪",""))) ->  | V9: =IF($I$24="給湯","給湯",IF($I$24="空調",熱需要量算定・原単位!L39,IF($I$24="融雪","融雪",""))) ->  | W9: =IF($I$24="給湯","給湯",IF($I$24="空調",熱需要量算定・原単位!M39,IF($I$24="融雪","融雪",""))) ->  | X9: =IF($I$24="給湯","給湯",IF($I$24="空調",熱需要量算定・原単位!N39,IF($I$24="融雪","融雪",""))) ->  | Y9: =IF($I$24="給湯","給湯",IF($I$24="空調",熱需要量算定・原単位!O39,IF($I$24="融雪","融雪",""))) -> 
G10: 熱利用温度差 | H10: ℃ | I10: =IF(I8-I9<5,0,I9) ->  | J10: 熱利用後5℃を下回るなら0℃とする。 | L10: （参考）月別熱需要量 | M10: MJ/月 | N10: =IF($I$24="給湯",熱需要量算定・原単位!D46,IF($I$24="空調",熱需要量算定・原単位!D40,IF($I$24="融雪",融雪熱需要量算定!AG6,""))) ->  | O10: =IF($I$24="給湯",熱需要量算定・原単位!E46,IF($I$24="空調",熱需要量算定・原単位!E40,IF($I$24="融雪",融雪熱需要量算定!AH6,""))) ->  | P10: =IF($I$24="給湯",熱需要量算定・原単位!F46,IF($I$24="空調",熱需要量算定・原単位!F40,IF($I$24="融雪",融雪熱需要量算定!AI6,""))) ->  | Q10: =IF($I$24="給湯",熱需要量算定・原単位!G46,IF($I$24="空調",熱需要量算定・原単位!G40,IF($I$24="融雪",融雪熱需要量算定!AJ6,""))) ->  | R10: =IF($I$24="給湯",熱需要量算定・原単位!H46,IF($I$24="空調",熱需要量算定・原単位!H40,IF($I$24="融雪",融雪熱需要量算定!AK6,""))) ->  | S10: =IF($I$24="給湯",熱需要量算定・原単位!I46,IF($I$24="空調",熱需要量算定・原単位!I40,IF($I$24="融雪",融雪熱需要量算定!AL6,""))) ->  | T10: =IF($I$24="給湯",熱需要量算定・原単位!J46,IF($I$24="空調",熱需要量算定・原単位!J40,IF($I$24="融雪",融雪熱需要量算定!AM6,""))) ->  | U10: =IF($I$24="給湯",熱需要量算定・原単位!K46,IF($I$24="空調",熱需要量算定・原単位!K40,IF($I$24="融雪",融雪熱需要量算定!AN6,""))) ->  | V10: =IF($I$24="給湯",熱需要量算定・原単位!L46,IF($I$24="空調",熱需要量算定・原単位!L40,IF($I$24="融雪",融雪熱需要量算定!AO6,""))) ->  | W10: =IF($I$24="給湯",熱需要量算定・原単位!M46,IF($I$24="空調",熱需要量算定・原単位!M40,IF($I$24="融雪",融雪熱需要量算定!AP6,""))) ->  | X10: =IF($I$24="給湯",熱需要量算定・原単位!N46,IF($I$24="空調",熱需要量算定・原単位!N40,IF($I$24="融雪",融雪熱需要量算定!AQ6,""))) ->  | Y10: =IF($I$24="給湯",熱需要量算定・原単位!O46,IF($I$24="空調",熱需要量算定・原単位!O40,IF($I$24="融雪",融雪熱需要量算定!AR6,""))) ->  | Z10: =SUM(N10:Y10) -> 0 | AA10: =MAX(N10:Y10) -> 0 | AB10: =MIN(N10:Y10) -> 0
G11: 下水熱ポテンシャル(流量温度から) | H11: MJ/年 | I11: =D19*I5*I10 ->  | J11: 容積比熱×下水流量×熱利用温度差 | M11: kWh/月 | N11: =IF($I$24="給湯",熱需要量算定・原単位!D47,IF($I$24="空調",熱需要量算定・原単位!D41,IF($I$24="融雪",融雪熱需要量算定!AG7,""))) ->  | O11: =IF($I$24="給湯",熱需要量算定・原単位!E47,IF($I$24="空調",熱需要量算定・原単位!E41,IF($I$24="融雪",融雪熱需要量算定!AH7,""))) ->  | P11: =IF($I$24="給湯",熱需要量算定・原単位!F47,IF($I$24="空調",熱需要量算定・原単位!F41,IF($I$24="融雪",融雪熱需要量算定!AI7,""))) ->  | Q11: =IF($I$24="給湯",熱需要量算定・原単位!G47,IF($I$24="空調",熱需要量算定・原単位!G41,IF($I$24="融雪",融雪熱需要量算定!AJ7,""))) ->  | R11: =IF($I$24="給湯",熱需要量算定・原単位!H47,IF($I$24="空調",熱需要量算定・原単位!H41,IF($I$24="融雪",融雪熱需要量算定!AK7,""))) ->  | S11: =IF($I$24="給湯",熱需要量算定・原単位!I47,IF($I$24="空調",熱需要量算定・原単位!I41,IF($I$24="融雪",融雪熱需要量算定!AL7,""))) ->  | T11: =IF($I$24="給湯",熱需要量算定・原単位!J47,IF($I$24="空調",熱需要量算定・原単位!J41,IF($I$24="融雪",融雪熱需要量算定!AM7,""))) ->  | U11: =IF($I$24="給湯",熱需要量算定・原単位!K47,IF($I$24="空調",熱需要量算定・原単位!K41,IF($I$24="融雪",融雪熱需要量算定!AN7,""))) ->  | V11: =IF($I$24="給湯",熱需要量算定・原単位!L47,IF($I$24="空調",熱需要量算定・原単位!L41,IF($I$24="融雪",融雪熱需要量算定!AO7,""))) ->  | W11: =IF($I$24="給湯",熱需要量算定・原単位!M47,IF($I$24="空調",熱需要量算定・原単位!M41,IF($I$24="融雪",融雪熱需要量算定!AP7,""))) ->  | X11: =IF($I$24="給湯",熱需要量算定・原単位!N47,IF($I$24="空調",熱需要量算定・原単位!N41,IF($I$24="融雪",融雪熱需要量算定!AQ7,""))) ->  | Y11: =IF($I$24="給湯",熱需要量算定・原単位!O47,IF($I$24="空調",熱需要量算定・原単位!O41,IF($I$24="融雪",融雪熱需要量算定!AR7,""))) ->  | Z11: =SUM(N11:Y11) -> 0 | AA11: =MAX(N11:Y11) -> 0 | AB11: =MIN(N11:Y11) -> 0
G12: 下水熱ポテンシャル(直接入力) | H12: MJ/年 | I12: =D8 -> 1000000 | L12: 熱源水入口温度（加熱） | M12: ℃ | N12: =N6-5 ->  | O12: =O6-5 ->  | AC12: 5℃差想定
G13: 下水熱ポテンシャル | H13: MJ/年 | I13: =IF(D5=選択リスト設定!N3,I11,IF(D5=選択リスト設定!N4,I12,0)) ->  | L13: 熱源水入口温度（冷却） | M13: ℃ | N13: =N6+5 ->  | O13: =O6+5 -> 
L14: COP | M14: 給湯 | N14: =HP性能曲線!$E$11*N12+HP性能曲線!$F$11 ->  | O14: =HP性能曲線!$E$11*O12+HP性能曲線!$F$11 ->  | P14: =HP性能曲線!$E$11*P12+HP性能曲線!$F$11 ->  | Q14: =HP性能曲線!$E$11*Q12+HP性能曲線!$F$11 ->  | R14: =HP性能曲線!$E$11*R12+HP性能曲線!$F$11 ->  | S14: =HP性能曲線!$E$11*S12+HP性能曲線!$F$11 ->  | T14: =HP性能曲線!$E$11*T12+HP性能曲線!$F$11 ->  | U14: =HP性能曲線!$E$11*U12+HP性能曲線!$F$11 ->  | V14: =HP性能曲線!$E$11*V12+HP性能曲線!$F$11 ->  | W14: =HP性能曲線!$E$11*W12+HP性能曲線!$F$11 ->  | X14: =HP性能曲線!$E$11*X12+HP性能曲線!$F$11 ->  | Y14: =HP性能曲線!$E$11*Y12+HP性能曲線!$F$11 -> 
B15: ■係数 | G15: ・熱需要量 | L15: COP | M15: 冷房 | N15: =HP性能曲線!$E$9*N13+HP性能曲線!$F$9 ->  | O15: =HP性能曲線!$E$9*O13+HP性能曲線!$F$9 ->  | P15: =HP性能曲線!$E$9*P13+HP性能曲線!$F$9 ->  | Q15: =HP性能曲線!$E$9*Q13+HP性能曲線!$F$9 ->  | R15: =HP性能曲線!$E$9*R13+HP性能曲線!$F$9 ->  | S15: =HP性能曲線!$E$9*S13+HP性能曲線!$F$9 ->  | T15: =HP性能曲線!$E$9*T13+HP性能曲線!$F$9 ->  | U15: =HP性能曲線!$E$9*U13+HP性能曲線!$F$9 ->  | V15: =HP性能曲線!$E$9*V13+HP性能曲線!$F$9 ->  | W15: =HP性能曲線!$E$9*W13+HP性能曲線!$F$9 ->  | X15: =HP性能曲線!$E$9*X13+HP性能曲線!$F$9 ->  | Y15: =HP性能曲線!$E$9*Y13+HP性能曲線!$F$9 -> 
B16: 項目 | C16: 値 | D16: 単位 | E16: 備考 | G16: 項目 | H16: 単位 | I16: 値 | J16: 備考 | L16: COP | M16: 暖房 | N16: =HP性能曲線!$E$10*N12+HP性能曲線!$F$10 ->  | O16: =HP性能曲線!$E$10*O12+HP性能曲線!$F$10 ->  | P16: =HP性能曲線!$E$10*P12+HP性能曲線!$F$10 ->  | Q16: =HP性能曲線!$E$10*Q12+HP性能曲線!$F$10 ->  | R16: =HP性能曲線!$E$10*R12+HP性能曲線!$F$10 ->  | S16: =HP性能曲線!$E$10*S12+HP性能曲線!$F$10 ->  | T16: =HP性能曲線!$E$10*T12+HP性能曲線!$F$10 ->  | U16: =HP性能曲線!$E$10*U12+HP性能曲線!$F$10 ->  | V16: =HP性能曲線!$E$10*V12+HP性能曲線!$F$10 ->  | W16: =HP性能曲線!$E$10*W12+HP性能曲線!$F$10 ->  | X16: =HP性能曲線!$E$10*X12+HP性能曲線!$F$10 ->  | Y16: =HP性能曲線!$E$10*Y12+HP性能曲線!$F$10 -> 
B17: =係数・物性!B4 -> 水の比熱 | C17: =係数・物性!C4 -> kJ/kgK | D17: =係数・物性!D4 -> 4.179 | G17: 給湯 | H17: MJ/年 | I17: =熱需要量算定・原単位!P46 ->  | J17: 熱需要量算定・原単位より | L17: COP | M17: 融雪 | N17: 1 | O17: 1 | P17: 1 | Q17: 1 | R17: 1 | S17: 1 | T17: 1 | U17: 1 | V17: 1 | W17: 1 | X17: 1 | Y17: 1
B18: =係数・物性!B5 -> 水の密度 | C18: =係数・物性!C5 -> kg/m3 | D18: =係数・物性!D5 -> 996.62 | G18: 冷房 | H18: MJ/年 | I18: =SUMIF(熱需要量算定・原単位!D39:O39,G18,熱需要量算定・原単位!D40:O40) ->  | J18: 熱需要量算定・原単位より | L18: COP | M18: - | N18: =IF(N9="給湯",N14,IF(N9="冷房",N15,IF(N9="暖房",N16,IF(N9="融雪",N17,1)))) -> 1 | O18: 1 | P18: 1 | Q18: 1 | R18: 1 | S18: 1 | T18: 1 | U18: 1 | V18: 1 | W18: 1 | X18: 1 | Y18: 1
B19: =係数・物性!B6 -> 容積比熱 | C19: =係数・物性!C6 -> MJ/m3K | D19: =係数・物性!D6 -> 4.16487498 | G19: 暖房 | H19: MJ/年 | I19: =SUMIF(熱需要量算定・原単位!D39:O39,G19,熱需要量算定・原単位!D40:O40) ->  | J19: 熱需要量算定・原単位より | L19: 下水熱利用可能熱量 | M19: 給湯 | N19: =N14/(N14-1)*N$7 ->  | O19: =O14/(O14-1)*O$7 ->  | P19: =P14/(P14-1)*P$7 ->  | Z19: =SUM(N19:Y19) ->  | AA19: =MAX(N19:Y19) ->  | AB19: =MIN(N19:Y19) -> 
G20: 融雪 | H20: MJ/年 | I20: =融雪熱需要量算定!AS6 ->  | J20: 融雪熱需要量算定より | M20: 冷房 | N20: =N15/(N15+1)*N$7 ->  | O20: =O15/(O15+1)*O$7 -> 
M21: 暖房 | N21: =N16/(N16-1)*N$7 ->  | O21: =O16/(O16-1)*O$7 -> 
G22: ・マッチング | M22: 融雪 | N22: =N$7 ->  | O22: =O$7 -> 
G23: 項目 | H23: 単位 | I23: 値 | J23: 備考 | L23: 下水熱利用可能熱量 | M23: MJ/月 | N23: =IF(N9="給湯",N19,IF(N9="冷房",N20,IF(N9="暖房",N21,IF(N9="融雪",N22,1)))) -> 1 | O23: 1 | P23: 1 | Q23: 1 | R23: 1 | S23: 1 | T23: 1 | U23: 1 | V23: 1 | W23: 1 | X23: 1 | Y23: 1 | Z23: 12 | AA23: 1 | AB23: 1
G24: 熱利用用途 | I24: =入力シート!C8 -> 0 | M24: kWh/月 | N24: =N23/3.6 -> 0.2777777778 | O24: =O23/3.6 -> 0.2777777778 | P24: 0.2777777778 | Q24: 0.2777777778 | R24: 0.2777777778 | S24: 0.2777777778 | T24: 0.2777777778 | U24: 0.2777777778 | V24: 0.2777777778 | W24: 0.2777777778 | X24: 0.2777777778 | Y24: 0.2777777778 | Z24: 3.333333333 | AA24: 0.2777777778 | AB24: 0.2777777778
G25: 熱需要量 | H25: MJ/年 | I25: =IF(I24="給湯",I17,IF(I24="空調",I18+I19,IF(I24="融雪",I20,""))) -> 
G26: 下水熱ポテンシャル | H26: MJ/年 | I26: =IF(I24="融雪",I13*SUM(融雪熱需要量算定!AG5:AR5)/365,I13) ->  | J26: 融雪の場合は融雪期間のみに日数割している。
G27: マッチング | I27: =IF(I26<=I25,"需要過多","供給過多") ->  | J27: =IF(I26<=I25,"熱需要量≧下水熱ポテンシャル","熱需要量≦下水熱ポテンシャル") -> 

Sheet マッチング (hidden)
B1: ■マッチング
B3: ■熱需要量
B4: 項目 | C4: 項目 | D4: 単位 | E4: 4月 | F4: 5月 | G4: 6月 | H4: 7月 | I4: 8月 | J4: 9月 | K4: 10月 | L4: 11月 | M4: 12月 | N4: 1月 | O4: 2月 | P4: 3月 | Q4: 合計 | R4: 最大 | S4: 最小 | T4: 備考
B5: 熱需要量 | C5: 給湯 | D5: MJ/月 | E5: =熱需要量算定・原単位!D46 ->  | F5: =熱需要量算定・原単位!E46 ->  | G5: =熱需要量算定・原単位!F46 ->  | H5: =熱需要量算定・原単位!G46 ->  | I5: =熱需要量算定・原単位!H46 ->  | J5: =熱需要量算定・原単位!I46 ->  | K5: =熱需要量算定・原単位!J46 ->  | L5: =熱需要量算定・原単位!K46 ->  | M5: =熱需要量算定・原単位!L46 ->  | N5: =熱需要量算定・原単位!M46 ->  | O5: =熱需要量算定・原単位!N46 ->  | P5: =熱需要量算定・原単位!O46 ->  | Q5: =SUM(E5:P5) ->  | R5: =MAX(E5:P5) ->  | S5: =MIN(E5:P5) -> 
C6: 空調 | D6: MJ/月 | E6: =熱需要量算定・原単位!D40 ->  | F6: =熱需要量算定・原単位!E40 ->  | G6: =熱需要量算定・原単位!F40 ->  | H6: =熱需要量算定・原単位!G40 ->  | I6: =熱需要量算定・原単位!H40 ->  | J6: =熱需要量算定・原単位!I40 ->  | K6: =熱需要量算定・原単位!J40 ->  | L6: =熱需要量算定・原単位!K40 ->  | M6: =熱需要量算定・原単位!L40 ->  | N6: =熱需要量算定・原単位!M40 ->  | O6: =熱需要量算定・原単位!N40 ->  | P6: =熱需要量算定・原単位!O40 ->  | Q6: =SUM(E6:P6) ->  | R6: =MAX(E6:P6) ->  | S6: =MIN(E6:P6) -> 
C7: 冷房 | D7: MJ/月 | E7: =熱需要量算定・原単位!D30 ->  | F7: =熱需要量算定・原単位!E30 ->  | G7: =熱需要量算定・原単位!F30 ->  | H7: =熱需要量算定・原単位!G30 ->  | I7: =熱需要量算定・原単位!H30 ->  | J7: =熱需要量算定・原単位!I30 ->  | K7: =熱需要量算定・原単位!J30 ->  | L7: =熱需要量算定・原単位!K30 ->  | M7: =熱需要量算定・原単位!L30 ->  | N7: =熱需要量算定・原単位!M30 ->  | O7: =熱需要量算定・原単位!N30 ->  | P7: =熱需要量算定・原単位!O30 ->  | Q7: =SUM(E7:P7) ->  | R7: =MAX(E7:P7) ->  | S7: =MIN(E7:P7) -> 
C8: 暖房 | D8: MJ/月 | E8: =熱需要量算定・原単位!D33 ->  | F8: =熱需要量算定・原単位!E33 ->  | G8: =熱需要量算定・原単位!F33 ->  | H8: =熱需要量算定・原単位!G33 ->  | I8: =熱需要量算定・原単位!H33 ->  | J8: =熱需要量算定・原単位!I33 ->  | K8: =熱需要量算定・原単位!J33 ->  | L8: =熱需要量算定・原単位!K33 ->  | M8: =熱需要量算定・原単位!L33 ->  | N8: =熱需要量算定・原単位!M33 ->  | O8: =熱需要量算定・原単位!N33 ->  | P8: =熱需要量算定・原単位!O33 -> 
C9: 融雪 | D9: MJ/月 | E9: =融雪熱需要量算定!AG6 ->  | F9: =融雪熱需要量算定!AH6 ->  | G9: =融雪熱需要量算定!AI6 ->  | H9: =融雪熱需要量算定!AJ6 ->  | I9: =融雪熱需要量算定!AK6 ->  | J9: =融雪熱需要量算定!AL6 ->  | K9: =融雪熱需要量算定!AM6 ->  | L9: =融雪熱需要量算定!AN6 ->  | M9: =融雪熱需要量算定!AO6 ->  | N9: =融雪熱需要量算定!AP6 ->  | O9: =融雪熱需要量算定!AQ6 ->  | P9: =融雪熱需要量算定!AR6 -> 
B10: 選択した熱利用用途 | C10: 用途 | E10: =下水熱ポテンシャル!N9 ->  | F10: =下水熱ポテンシャル!O9 ->  | G10: =下水熱ポテンシャル!P9 ->  | H10: =下水熱ポテンシャル!Q9 ->  | I10: =下水熱ポテンシャル!R9 ->  | J10: =下水熱ポテンシャル!S9 ->  | K10: =下水熱ポテンシャル!T9 ->  | L10: =下水熱ポテンシャル!U9 ->  | M10: =下水熱ポテンシャル!V9 ->  | N10: =下水熱ポテンシャル!W9 ->  | O10: =下水熱ポテンシャル!X9 ->  | P10: =下水熱ポテンシャル!Y9 -> 
C11: =入力シート!C8 -> 0 | D11: MJ/月 | E11: =VLOOKUP($C$11,$C$5:$S$9,3,FALSE) ->  | F11: =VLOOKUP($C$11,$C$5:$S$9,4,FALSE) ->  | G11: =VLOOKUP($C$11,$C$5:$S$9,5,FALSE) ->  | H11: =VLOOKUP($C$11,$C$5:$S$9,6,FALSE) ->  | I11: =VLOOKUP($C$11,$C$5:$S$9,7,FALSE) ->  | J11: =VLOOKUP($C$11,$C$5:$S$9,8,FALSE) ->  | K11: =VLOOKUP($C$11,$C$5:$S$9,9,FALSE) ->  | L11: =VLOOKUP($C$11,$C$5:$S$9,10,FALSE) ->  | M11: =VLOOKUP($C$11,$C$5:$S$9,11,FALSE) ->  | N11: =VLOOKUP($C$11,$C$5:$S$9,12,FALSE) ->  | O11: =VLOOKUP($C$11,$C$5:$S$9,13,FALSE) ->  | P11: =VLOOKUP($C$11,$C$5:$S$9,14,FALSE) ->  | Q11: =SUM(E11:P11) ->  | R11: =MAX(E11:P11) ->  | S11: =MIN(E11:P11) -> 
B13: ■ポテンシャル量、熱利用可能熱量
B14: 項目 | C14: 項目 | D14: 単位 | E14: 4月 | F14: 5月 | G14: 6月 | H14: 7月 | I14: 8月 | J14: 9月 | K14: 10月 | L14: 11月 | M14: 12月 | N14: 1月 | O14: 2月 | P14: 3月 | Q14: 合計 | R14: 最大 | S14: 最小 | T14: 備考
B15: 下水熱 | C15: 下水熱ポテンシャル | D15: MJ/月 | E15: =下水熱ポテンシャル!N7 ->  | F15: =下水熱ポテンシャル!O7 ->  | G15: =下水熱ポテンシャル!P7 ->  | H15: =下水熱ポテンシャル!Q7 ->  | I15: =下水熱ポテンシャル!R7 ->  | J15: =下水熱ポテンシャル!S7 ->  | K15: =下水熱ポテンシャル!T7 ->  | L15: =下水熱ポテンシャル!U7 ->  | M15: =下水熱ポテンシャル!V7 ->  | N15: =下水熱ポテンシャル!W7 ->  | O15: =下水熱ポテンシャル!X7 ->  | P15: =下水熱ポテンシャル!Y7 ->  | Q15: =SUM(E15:P15) ->  | R15: =MAX(E15:P15) ->  | S15: =MIN(E15:P15) ->  | T15: 月割する。
B16: 下水熱利用可能熱量 | C16: 熱利用用途 | D16: - | E16: =下水熱ポテンシャル!N9 ->  | F16: =下水熱ポテンシャル!O9 ->  | G16: =下水熱ポテンシャル!P9 ->  | H16: =下水熱ポテンシャル!Q9 ->  | I16: =下水熱ポテンシャル!R9 ->  | J16: =下水熱ポテンシャル!S9 ->  | K16: =下水熱ポテンシャル!T9 ->  | L16: =下水熱ポテンシャル!U9 ->  | M16: =下水熱ポテンシャル!V9 ->  | N16: =下水熱ポテンシャル!W9 ->  | O16: =下水熱ポテンシャル!X9 ->  | P16: =下水熱ポテンシャル!Y9 -> 
C17: COP | D17: - | E17: =下水熱ポテンシャル!N18 -> 1 | F17: =下水熱ポテンシャル!O18 -> 1 | G17: =下水熱ポテンシャル!P18 -> 1 | H17: =下水熱ポテンシャル!Q18 -> 1 | I17: =下水熱ポテンシャル!R18 -> 1 | J17: =下水熱ポテンシャル!S18 -> 1 | K17: =下水熱ポテンシャル!T18 -> 1 | L17: =下水熱ポテンシャル!U18 -> 1 | M17: =下水熱ポテンシャル!V18 -> 1 | N17: =下水熱ポテンシャル!W18 -> 1 | O17: =下水熱ポテンシャル!X18 -> 1 | P17: =下水熱ポテンシャル!Y18 -> 1
C18: 下水熱利用可能量 | D18: MJ/月 | E18: =下水熱ポテンシャル!N23 -> 1 | F18: =下水熱ポテンシャル!O23 -> 1 | G18: =下水熱ポテンシャル!P23 -> 1 | H18: =下水熱ポテンシャル!Q23 -> 1 | I18: =下水熱ポテンシャル!R23 -> 1 | J18: =下水熱ポテンシャル!S23 -> 1 | K18: =下水熱ポテンシャル!T23 -> 1 | L18: =下水熱ポテンシャル!U23 -> 1 | M18: =下水熱ポテンシャル!V23 -> 1 | N18: =下水熱ポテンシャル!W23 -> 1 | O18: =下水熱ポテンシャル!X23 -> 1 | P18: =下水熱ポテンシャル!Y23 -> 1 | Q18: =SUM(E18:P18) -> 12 | R18: =MAX(E18:P18) -> 1 | S18: =MIN(E18:P18) -> 1
B19: 他の再エネ熱の利用可能な熱量 | C19: 空気熱 | D19: MJ/月 | E19: 1e+300 | F19: 1e+300 | G19: 1e+300 | H19: 1e+300 | I19: 1e+300 | J19: 1e+300 | K19: 1e+300 | L19: 1e+300 | M19: 1e+300 | N19: 1e+300 | O19: 1e+300 | P19: 1e+300 | Q19: =SUM(E19:P19) -> 1.2e+301 | R19: =MAX(E19:P19) -> 1e+300 | S19: =MIN(E19:P19) -> 1e+300 | T19: 各再エネの利用可能量計算部分より読み込み
C20: 太陽熱 | D20: MJ/月 | E20: =太陽熱_ポテンシャル・RC・IC!K30 ->  | F20: =太陽熱_ポテンシャル・RC・IC!L30 ->  | G20: =太陽熱_ポテンシャル・RC・IC!M30 ->  | H20: =太陽熱_ポテンシャル・RC・IC!N30 ->  | I20: =太陽熱_ポテンシャル・RC・IC!O30 ->  | J20: =太陽熱_ポテンシャル・RC・IC!P30 ->  | K20: =太陽熱_ポテンシャル・RC・IC!Q30 ->  | L20: =太陽熱_ポテンシャル・RC・IC!R30 ->  | M20: =太陽熱_ポテンシャル・RC・IC!S30 ->  | N20: =太陽熱_ポテンシャル・RC・IC!T30 ->  | O20: =太陽熱_ポテンシャル・RC・IC!U30 ->  | P20: =太陽熱_ポテンシャル・RC・IC!V30 ->  | Q20: =SUM(E20:P20) ->  | R20: =MAX(E20:P20) ->  | S20: =MIN(E20:P20) ->  | T20: 各再エネの利用可能量計算部分より読み込み
C21: 地中熱 | D21: MJ/月 | E21: 1e+300 | F21: 1e+300 | G21: 1e+300 | H21: 1e+300 | I21: 1e+300 | J21: 1e+300 | K21: 1e+300 | L21: 1e+300 | M21: 1e+300 | N21: 1e+300 | O21: 1e+300 | P21: 1e+300 | Q21: =SUM(E21:P21) -> 1.2e+301 | R21: =MAX(E21:P21) -> 1e+300 | S21: =MIN(E21:P21) -> 1e+300 | T21: 各再エネの利用可能量計算部分より読み込み
C22: バイオマス熱 | D22: MJ/月 | E22: =バイオマス熱ポテンシャル!I20 -> 1 | F22: =バイオマス熱ポテンシャル!J20 -> 1 | G22: =バイオマス熱ポテンシャル!K20 -> 1 | H22: =バイオマス熱ポテンシャル!L20 -> 1 | I22: =バイオマス熱ポテンシャル!M20 -> 1 | J22: =バイオマス熱ポテンシャル!N20 -> 1 | K22: =バイオマス熱ポテンシャル!O20 -> 1 | L22: =バイオマス熱ポテンシャル!P20 -> 1 | M22: =バイオマス熱ポテンシャル!Q20 -> 1 | N22: =バイオマス熱ポテンシャル!R20 -> 1 | O22: =バイオマス熱ポテンシャル!S20 -> 1 | P22: =バイオマス熱ポテンシャル!T20 -> 1 | Q22: 12 | R22: 1 | S22: 1 | T22: 各再エネの利用可能量計算部分より読み込み
C23: 利用しない | D23: MJ/月 | E23: 0 | F23: 0 | G23: 0 | H23: 0 | I23: 0 | J23: 0 | K23: 0 | L23: 0 | M23: 0 | N23: 0 | O23: 0 | P23: 0 | Q23: =SUM(E23:P23) -> 0 | R23: =MAX(E23:P23) -> 0 | S23: =MIN(E23:P23) -> 0
B24: 選択した他の再エネ熱利用可能熱量 | C24: =入力シート!C68 -> 利用しない | D24: MJ/月 | E24: =VLOOKUP($C$24,$C$19:$S$23,3,FALSE) -> 0 | F24: =VLOOKUP($C$24,$C$19:$S$23,4,FALSE) -> 0 | G24: =VLOOKUP($C$24,$C$19:$S$23,5,FALSE) -> 0 | H24: =VLOOKUP($C$24,$C$19:$S$23,6,FALSE) -> 0 | I24: =VLOOKUP($C$24,$C$19:$S$23,7,FALSE) -> 0 | J24: =VLOOKUP($C$24,$C$19:$S$23,8,FALSE) -> 0 | K24: =VLOOKUP($C$24,$C$19:$S$23,9,FALSE) -> 0 | L24: =VLOOKUP($C$24,$C$19:$S$23,10,FALSE) -> 0 | M24: =VLOOKUP($C$24,$C$19:$S$23,10,FALSE) -> 0 | N24: =VLOOKUP($C$24,$C$19:$S$23,11,FALSE) -> 0 | O24: =VLOOKUP($C$24,$C$19:$S$23,12,FALSE) -> 0 | P24: =VLOOKUP($C$24,$C$19:$S$23,13,FALSE) -> 0 | Q24: 0 | R24: 0 | S24: 0
B26: ■マッチング（熱需要量：下水熱）
B27: 項目 | C27: 項目 | D27: 単位 | E27: 4月 | F27: 5月 | G27: 6月 | H27: 7月 | I27: 8月 | J27: 9月 | K27: 10月 | L27: 11月 | M27: 12月 | N27: 1月 | O27: 2月 | P27: 3月 | Q27: 合計 | R27: 年間熱需要量に対する割合[%]
B28: 熱需要量：下水熱 | C28: 熱需要量 | D28: MJ/年 | E28: =E11 ->  | R28: =Q28/$Q$28 -> 
C29: 下水熱利用可能量 | D29: MJ/年 | E29: =E18 -> 1 | F29: =F18 -> 1 | G29: 1 | H29: 1 | I29: 1 | J29: 1 | K29: 1 | L29: 1 | M29: 1 | N29: 1 | O29: 1 | P29: =P18 -> 1 | Q29: =Q18 -> 12 | R29: =Q29/$Q$28 -> 
B30: マッチング | C30: 月別の下水熱マッチング | D30: - | E30: =IF(E28>=E29,"需要過多","供給過多") ->  | Q30: -
C31: 熱需要量に対して利用可能な下水熱量 | D31: MJ/年 | E31: =MIN(E28:E29) ->  | F31: =MIN(F28:F29) ->  | Q31: =SUM(E31:P31) ->  | R31: =Q31/$Q$28 -> 
C32: 年間の下水熱マッチング | Q32: =IF(Q28>Q31,"需要過多","供給過多") ->  | R32: =IF(Q28>Q31,"熱需要量≧下水熱利用可能量","熱需要量≦下水熱利用可能量") -> 
R34: ◆入力シートでの表示文
R35: ・供給過多（熱需要量≦下水熱利用可能量）の場合
R36: 下水熱で熱需要量をすべて賄うことができます。
R37: 下水熱以外のその他のシステム（他の再エネ熱または既存システム）を活用する場合、熱需要量のうち、下水熱で賄う割合を入力して下さい。
R38: 下水熱以外の再生可能エネルギーを活用する複合システムとする場合は、活用するエネルギー種別を選択して必要項目を入力して下さい。
R40: ・需要過多（熱需要量≧下水熱利用可能量）の場合
R41: 下水熱だけでは熱需要量をすべて賄うことができません。
R42: 下水熱以外のその他のシステム（他の再エネ熱または既存システム）を活用して、不足する熱量を賄います。
R43: 下水熱以外の再生可能エネルギーを活用する複合システムとする場合は、活用するエネルギー種別を選択して必要項目を入力して下さい。
R45: ・表示セル
R46: =IF(Q32="供給過多",R36,R41) -> 
R47: =IF(Q32="供給過多",R37,R42) -> 
R48: =IF(Q32="供給過多",R38,R43) -> 
B49: ■供給過多の場合 下水熱利用率の設定
B50: 項目 | C50: 項目 | D50: 単位 | E50: 値
B51: 下水熱利用率の設定 | C51: 下水熱利用で賄う熱需要量の割合 | D51: % | E51: =入力シート!C109 -> 100
C52: その他システムで賄う熱需要量の割合 | D52: % | E52: =100-E51 -> 0
B54: ■マッチング（残り需要量：他の再エネ熱）
B55: 項目 | C55: 項目 | D55: 単位 | E55: 4月 | F55: 5月 | G55: 6月 | H55: 7月 | I55: 8月 | J55: 9月 | K55: 10月 | L55: 11月 | M55: 12月 | N55: 1月 | O55: 2月 | P55: 3月 | Q55: 合計 | R55: 最大 | S55: 最小 | T55: 備考
B56: 残り需要量：他の再エネ熱 | C56: 下水熱システムで賄う熱需要量 | D56: MJ/月 | E56: =IF($Q$32="供給過多",E31*$E$51/100,E31) ->  | F56: =IF($Q$32="供給過多",F31*$E$51/100,F31) ->  | Q56: =SUM(E56:P56) ->  | R56: =MAX(E56:P56) ->  | S56: =MIN(E56:P56) -> 
C57: 下水熱以外で賄う残りの熱需要量 | D57: MJ/月 | E57: =E11-E56 ->  | Q57: =SUM(E57:P57) ->  | R57: =MAX(E57:P57) ->  | S57: =MIN(E57:P57) -> 
B58: 選択した他の再エネ熱利用可能熱量 | C58: =入力シート!C68 -> 利用しない | D58: MJ/月 | E58: =E24 -> 0 | F58: 0 | G58: 0 | H58: 0 | I58: 0 | J58: 0 | K58: 0 | L58: 0 | M58: 0 | N58: 0 | O58: 0 | P58: 0 | Q58: =SUM(E58:P58) -> 0 | R58: =MAX(E58:P58) -> 0 | S58: =MIN(E58:P58) -> 0
B59: マッチング | C59: 他の再エネ熱マッチング | D59: - | E59: =IF(E57>E58,"需要過多","供給過多") ->  | F59: =IF(F57>F58,"需要過多","供給過多") ->  | Q59: =IF(Q57>Q58,"需要過多","供給過多") ->  | T59: ※下水熱以外で賄う熱需要量と選択した他の再エネ熱利用可能熱量のマッチング
B60: 選択した他の再エネ熱で賄う熱量 | C60: =入力シート!C68 -> 利用しない | D60: MJ/月 | E60: =MIN(E57:E58) ->  | F60: =MIN(F57:F58) ->  | Q60: =SUM(E60:P60) -> 
B61: 既存システムで賄う熱量 | C61: =入力シート!C15 -> 0 | D61: MJ/月 | E61: =E57-E60 ->  | F61: =F57-F60 ->  | Q61: =SUM(E61:P61) -> 
B88: ■グラフ用整理
G89: グラフ用 | H89: 熱量 | J89: 割合
B90: 分類 | C90: 項目 | D90: 項目 | E90: 単位 | F90: 値 | G90: 項目 | H90: 需要量 | I90: 利用可能量 | J90: 需要量 | K90: 利用可能量
B91: 需要側 | C91: 熱需要量 | E91: MJ/年 | F91: =Q11 ->  | G91: =C91 -> 熱需要量 | H91: =F91 ->  | J91: =H91/$H$91 -> 
C92: 下水熱システムで賄う熱需要量 | E92: MJ/年 | F92: =Q56 ->  | G92: =C92 -> 下水熱システムで賄う熱需要量 | H92: =F92 -> 
C93: 下水熱以外で賄う残りの熱需要量 | E93: MJ/年 | F93: =Q57 ->  | G93: =C93 -> 下水熱以外で賄う残りの熱需要量 | H93: =F93 -> 
B94: 供給側 | C94: 下水熱 | D94: 下水熱 | E94: MJ/年 | F94: =Q56 ->  | G94: 下水熱 | I94: =F94 -> 
C95: 選択した他の再エネ熱で賄う熱量 | D95: =入力シート!C68 -> 利用しない | E95: MJ/年 | F95: =Q60 ->  | G95: =D95 -> 利用しない | I95: =F95 ->  | K95: =I95/$H$91 -> 
C96: 既存システムで賄う熱量 | D96: =入力シート!C15 -> 0 | E96: MJ/年 | F96: =Q61 ->  | G96: 既存 | I96: =F96 -> 
B98: 項目 | D98: 単位 | E98: 4月 | G98: 5月 | I98: 6月 | K98: 7月 | M98: 8月 | O98: 9月 | Q98: 10月 | S98: 11月 | U98: 12月 | W98: 1月 | Y98: 2月 | AA98: 3月
E99: 需要 | F99: 供給 | G99: 需要 | H99: 供給 | I99: 需要 | J99: 供給 | K99: 需要 | L99: 供給 | M99: 需要 | N99: 供給 | O99: 需要 | P99: 供給 | Q99: 需要 | R99: 供給 | S99: 需要 | T99: 供給 | U99: 需要 | V99: 供給 | W99: 需要 | X99: 供給 | Y99: 需要 | Z99: 供給 | AA99: 需要 | AB99: 供給
B100: 熱需要量 | C100: 熱量 | D100: MJ/月 | E100: =E28 ->  | G100: =F28 ->  | I100: =G28 ->  | K100: =H28 ->  | M100: =I28 ->  | O100: =J28 ->  | Q100: =K28 ->  | S100: =L28 ->  | U100: =M28 ->  | W100: =N28 ->  | Y100: =O28 ->  | AA100: =P28 -> 
B101: 下水熱 | C101: 熱量 | D101: MJ/月 | F101: =E56 ->  | H101: =F56 ->  | J101: =G56 ->  | L101: =H56 ->  | N101: =I56 ->  | P101: =J56 ->  | R101: =K56 ->  | T101: =L56 ->  | V101: =M56 ->  | X101: =N56 ->  | Z101: =O56 ->  | AB101: =P56 -> 
B102: =入力シート!C68 -> 利用しない | C102: 熱量 | D102: MJ/月 | F102: =E60 ->  | H102: =F60 ->  | J102: =G60 ->  | L102: =H60 ->  | N102: =I60 ->  | P102: =J60 ->  | R102: =K60 ->  | T102: =L60 ->  | V102: =M60 ->  | X102: =N60 ->  | Z102: =O60 ->  | AB102: =P60 -> 
B103: 既存 | C103: 熱量 | D103: MJ/月 | F103: =E61 ->  | H103: =F61 ->  | J103: =G61 ->  | L103: =H61 ->  | N103: =I61 ->  | P103: =J61 ->  | R103: =K61 ->  | T103: =L61 ->  | V103: =M61 ->  | X103: =N61 ->  | Z103: =O61 ->  | AB103: =P61 -> 
B105: 項目 | D105: 単位 | E105: 4月 | G105: 5月 | I105: 6月 | K105: 7月 | M105: 8月 | O105: 9月 | Q105: 10月 | S105: 11月 | U105: 12月 | W105: 1月 | Y105: 2月 | AA105: 3月
E106: 需要 | F106: 供給 | G106: 需要 | H106: 供給 | I106: 需要 | J106: 供給 | K106: 需要 | L106: 供給 | M106: 需要 | N106: 供給 | O106: 需要 | P106: 供給 | Q106: 需要 | R106: 供給 | S106: 需要 | T106: 供給 | U106: 需要 | V106: 供給 | W106: 需要 | X106: 供給 | Y106: 需要 | Z106: 供給 | AA106: 需要 | AB106: 供給
B107: 熱需要量 | C107: 割合 | D107: MJ/月 | E107: =E100/E$100 ->  | G107: =G100/G$100 ->  | I107: =I100/I$100 ->  | K107: =K100/K$100 ->  | M107: =M100/M$100 ->  | O107: =O100/O$100 ->  | Q107: =Q100/Q$100 ->  | S107: =S100/S$100 ->  | U107: =U100/U$100 ->  | W107: =W100/W$100 ->  | Y107: =Y100/Y$100 ->  | AA107: =AA100/AA$100 -> 
B108: 下水熱 | C108: 割合 | D108: MJ/月 | F108: =F101/E$100 ->  | H108: =H101/G$100 ->  | J108: =J101/I$100 ->  | L108: =L101/K$100 ->  | N108: =N101/M$100 ->  | P108: =P101/O$100 ->  | R108: =R101/Q$100 ->  | T108: =T101/S$100 ->  | V108: =V101/U$100 ->  | X108: =X101/W$100 ->  | Z108: =Z101/Y$100 ->  | AB108: =AB101/AA$100 -> 
B109: =入力シート!C68 -> 利用しない | C109: 割合 | D109: MJ/月 | F109: =F102/E$100 ->  | H109: =H102/G$100 ->  | J109: =J102/I$100 ->  | L109: =L102/K$100 ->  | N109: =N102/M$100 ->  | P109: =P102/O$100 ->  | R109: =R102/Q$100 ->  | T109: =T102/S$100 ->  | V109: =V102/U$100 ->  | X109: =X102/W$100 ->  | Z109: =Z102/Y$100 ->  | AB109: =AB102/AA$100 -> 
B110: 既存 | C110: 割合 | D110: MJ/月 | F110: =F103/E$100 ->  | H110: =H103/G$100 ->  | J110: =J103/I$100 ->  | L110: =L103/K$100 ->  | N110: =N103/M$100 ->  | P110: =P103/O$100 ->  | R110: =R103/Q$100 ->  | T110: =T103/S$100 ->  | V110: =V103/U$100 ->  | X110: =X103/W$100 ->  | Z110: =Z103/Y$100 ->  | AB110: =AB103/AA$100 -> 
B112: ■エネルギー計算に使う熱需要量
B113: 項目 | C113: 項目 | D113: 単位 | E113: 4月 | F113: 5月 | G113: 6月 | H113: 7月 | I113: 8月 | J113: 9月 | K113: 10月 | L113: 11月 | M113: 12月 | N113: 1月 | O113: 2月 | P113: 3月 | Q113: 合計 | R113: 最大 | S113: 最小 | T113: 備考
B114: エネルギー計算に使う熱需要量 | C114: 下水熱システムで賄う熱需要量 | D114: MJ/月 | E114: =E56 ->  | Q114: =SUM(E114:P114) ->  | R114: =MAX(E114:P114) ->  | S114: =MIN(E114:P114) -> 
C115: その他の再エネ熱で賄う熱需要量 | D115: MJ/月 | E115: =E60 -> 
C116: 既存システムで賄う熱需要量 | D116: MJ/月 | E116: =E61 -> 
B117: チェック | C117: 合計 | E117: =E114+E115+E116 ->  | F117: =F114+F115+F116 -> 
C118: 需要量 | E118: =E11 -> 
C119: 差分 | E119: =E117-E118 ->  | F119: =F117-F118 -> 

Sheet 下水熱_RC (hidden)
B1: ■入力情報 | I1: ■下水熱利用システムのエネルギー計算
B3: ■対象施設情報 | I3: ■下水熱利用システム検討 | N3: ■下水熱利用システム エネルギー計算・エネルギーコスト検討 | AH3: ■検索用
B4: 項目 | C4: 単位 | D4: 値 | E4: 備考 | I4: 項目 | J4: 単位 | K4: 値 | L4: 備考 | N4: 項目 | O4: 単位 | P4: 4月 | Q4: 5月 | R4: 6月 | S4: 7月 | T4: 8月 | U4: 9月 | V4: 10月 | W4: 11月 | X4: 12月 | Y4: 1月 | Z4: 2月 | AA4: 3月 | AB4: 合計 | AC4: 最大 | AD4: 最小 | AE4: 備考 | AH4: 項目 | AI4: 単位 | AJ4: 4月 | AK4: 5月 | AL4: 6月 | AM4: 7月 | AN4: 8月 | AO4: 9月 | AP4: 10月 | AQ4: 11月 | AR4: 12月 | AS4: 1月 | AT4: 2月 | AU4: 3月
B5: 地域選択 | C5: - | D5: =入力シート!C7 -> 0 | E5: 都道府県を選択してください。 | I5: HP運転時間 | J5: h/日 | K5: 22 | N5: 熱利用用途 | P5: =マッチング!E10 ->  | Q5: =マッチング!F10 ->  | R5: =マッチング!G10 ->  | S5: =マッチング!H10 ->  | T5: =マッチング!I10 ->  | U5: =マッチング!J10 ->  | V5: =マッチング!K10 ->  | W5: =マッチング!L10 ->  | X5: =マッチング!M10 ->  | Y5: =マッチング!N10 ->  | Z5: =マッチング!O10 ->  | AA5: =マッチング!P10 ->  | AH5: 日あたりの熱需要量 | AI5: kWh/日 | AJ5: =P11 ->  | AK5: =Q11 -> 
B6: 熱利用用途 | C6: - | D6: =入力シート!C8 -> 0 | E6: 給湯、空調、融雪から選択してください。 | I6: HP容量 | J6: kW | K6: =IF(D6="空調",下水熱_空調_熱源容量!P6,AC12) ->  | L6: 最大月 | N6: 熱需要量 | O6: MJ/月 | P6: =マッチング!E114 ->  | Q6: =マッチング!F114 ->  | R6: =マッチング!G114 ->  | S6: =マッチング!H114 ->  | T6: =マッチング!I114 ->  | U6: =マッチング!J114 ->  | V6: =マッチング!K114 ->  | W6: =マッチング!L114 ->  | X6: =マッチング!M114 ->  | Y6: =マッチング!N114 ->  | Z6: =マッチング!O114 ->  | AA6: =マッチング!P114 ->  | AB6: =SUM(P6:AA6) ->  | AC6: =MAX(P6:AA6) ->  | AD6: =MIN(P6:AA6) ->  | AH6: HP容量 | AI6: kW | AJ6: =P12 ->  | AK6: =Q12 -> 
B7: 建物用途 | C7: - | D7: =入力シート!C9 -> 0 | E7: 給湯、空調利用の場合は建物用途を選択してください。 | I7: COP | J7: - | K7: =IF(D6="空調",下水熱_空調_熱源容量!P8,HLOOKUP(K6,AJ6:AU8,2,FALSE)) ->  | L7: 最大負荷月 | O7: kWh/月 | P7: =P6*1000/3600 ->  | AB7: =SUM(P7:AA7) ->  | AC7: =MAX(P7:AA7) ->  | AD7: =MIN(P7:AA7) ->  | AH7: ヒートポンプCOP | AI7: - | AJ7: =P16 -> - | AK7: - | AL7: - | AM7: - | AN7: - | AO7: - | AP7: - | AQ7: - | AR7: - | AS7: - | AT7: - | AU7: -
B8: 延床面積 | C8: m2 | D8: =入力シート!C10 -> 0 | E8: 給湯、空調利用の場合は数値を入力してください。 | I8: 採熱量 | J8: kW | K8: =IF(D6="空調",下水熱_空調_熱源容量!P9,AC20) ->  | L8: 最大月 | N8: 日数 | O8: 日 | P8: =熱需要量算定・原単位!D24 -> 30 | Q8: =熱需要量算定・原単位!E24 -> 31 | R8: =熱需要量算定・原単位!F24 -> 30 | S8: =熱需要量算定・原単位!G24 -> 31 | T8: =熱需要量算定・原単位!H24 -> 31 | U8: =熱需要量算定・原単位!I24 -> 30 | V8: =熱需要量算定・原単位!J24 -> 31 | W8: =熱需要量算定・原単位!K24 -> 30 | X8: =熱需要量算定・原単位!L24 -> 31 | Y8: =熱需要量算定・原単位!M24 -> 31 | Z8: =熱需要量算定・原単位!N24 -> 28 | AA8: =熱需要量算定・原単位!O24 -> 31 | AB8: =SUM(P8:AA8) -> 365 | AH8: 熱利用用途 | AI8: - | AJ8: =P5 -> 
B9: 対象面積 | C9: m2 | D9: =入力シート!C11 -> 0 | E9: 融雪利用の場合は数値を入力して下さい。 | I9: 温度差 | J9: ℃ | K9: 5 | L9: 想定設定値 | N9: ヒートポンプ運転時間 | O9: h/日 | P9: =K5 -> 22 | Q9: =K5 -> 22 | R9: =K5 -> 22 | S9: =K5 -> 22 | T9: =K5 -> 22 | U9: =K5 -> 22 | V9: =K5 -> 22 | W9: =K5 -> 22 | X9: =K5 -> 22 | Y9: =K5 -> 22 | Z9: =K5 -> 22 | AA9: =K5 -> 22
B10: 燃料種別の選択 | C10: - | D10: =入力シート!C16 -> 0 | I10: 冷温水流量 | J10: L/min | K10: =K6/K9/$D$22/$D$23*1000*60 ->  | N10: 日あたりの熱需要量 | O10: MJ/日 | P10: =P6/P8 ->  | Q10: =Q6/Q8 ->  | AB10: =SUM(P10:AA10) ->  | AC10: =MAX(P10:AA10) ->  | AD10: =MIN(P10:AA10) -> 
I11: 冷温水揚程（想定） | J11: m | K11: 15 | L11: 想定設定値 | O11: kWh/日 | P11: =P10*1000/3600 ->  | AB11: =SUM(P11:AA11) ->  | AC11: =MAX(P11:AA11) ->  | AD11: =MIN(P11:AA11) -> 
I12: 冷温水ポンプ効率 | J12: % | K12: =IF(K10<80,ポンプ効率近似式!$D$14,-1.403*LN(K10/1000)^2+6.9719*LN(K10/1000)+53.781) ->  | L12: ポンプ効率近似式より | N12: HP容量 | O12: kW | P12: =IF(P5="融雪",0,P11/P9) ->  | Q12: =IF(Q5="融雪",0,Q11/Q9) ->  | AC12: =MAX(P12:AA12) ->  | AD12: =MIN(P12:AA12) -> 
I13: 冷温水ポンプ消費電力 | J13: kW | K13: =$D$23*$D$25*K10/1000/60*K11/10/K12 ->  | L13: ポンプ関数より | N13: 気温 | O13: ℃ | P13: =気温!F3 ->  | Q13: =気温!G3 ->  | R13: =気温!H3 ->  | S13: =気温!I3 ->  | T13: =気温!J3 ->  | U13: =気温!K3 ->  | V13: =気温!L3 ->  | W13: =気温!M3 ->  | X13: =気温!N3 ->  | Y13: =気温!C3 ->  | Z13: =気温!D3 ->  | AA13: =気温!E3 ->  | AE13: 気象庁データより
B14: ■下水熱システムの設定 | I14: 熱源水流量 | J14: L/min | K14: =K8/K9/$D$22/$D$23*1000*60 ->  | N14: 下水温度 | O14: ℃ | P14: =下水温度!F3 ->  | Q14: =下水温度!G3 ->  | R14: =下水温度!H3 ->  | S14: =下水温度!I3 ->  | T14: =下水温度!J3 ->  | U14: =下水温度!K3 ->  | V14: =下水温度!L3 ->  | W14: =下水温度!M3 ->  | X14: =下水温度!N3 ->  | Y14: =下水温度!C3 ->  | Z14: =下水温度!D3 ->  | AA14: =下水温度!E3 ->  | AE14: 気温より推定
B15: 項目 | C15: 単位 | D15: 値 | E15: 備考 | I15: 熱源水揚程（想定） | J15: m | K15: 15 | L15: 想定設定値 | N15: 熱源水入口温度想定 | O15: ℃ | P15: =IF(P5="冷房",P14+5,P14-5) ->  | Q15: =IF(Q5="冷房",Q14+5,Q14-5) ->  | AE15: アプローチ温度5℃とする。
B16: 下水流量 | C16: m3/年 | D16: =入力シート!C45 -> 0 | I16: 熱源水ポンプ効率 | J16: % | K16: =IF(K14<80,ポンプ効率近似式!$D$14,-1.403*LN(K14/1000)^2+6.9719*LN(K14/1000)+53.781) ->  | L16: ポンプ効率近似式より | N16: ヒートポンプCOP | O16: - | P16: =IF(P5="冷房",HP性能曲線!$E$9*P15+HP性能曲線!$F$9,IF(P5="暖房",HP性能曲線!$E$10*P15+HP性能曲線!$F$10,IF(P5="給湯",HP性能曲線!$E$11*P15+HP性能曲線!$F$11,IF(P5="融雪",1,"-")))) -> - | Q16: =IF(Q5="冷房",HP性能曲線!$E$9*Q15+HP性能曲線!$F$9,IF(Q5="暖房",HP性能曲線!$E$10*Q15+HP性能曲線!$F$10,IF(Q5="給湯",HP性能曲線!$E$11*Q15+HP性能曲線!$F$11,IF(Q5="融雪",1,"-")))) -> - | R16: =IF(R5="冷房",HP性能曲線!$E$9*R15+HP性能曲線!$F$9,IF(R5="暖房",HP性能曲線!$E$10*R15+HP性能曲線!$F$10,IF(R5="給湯",HP性能曲線!$E$11*R15+HP性能曲線!$F$11,IF(R5="融雪",1,"-")))) -> - | S16: =IF(S5="冷房",HP性能曲線!$E$9*S15+HP性能曲線!$F$9,IF(S5="暖房",HP性能曲線!$E$10*S15+HP性能曲線!$F$10,IF(S5="給湯",HP性能曲線!$E$11*S15+HP性能曲線!$F$11,IF(S5="融雪",1,"-")))) -> - | T16: =IF(T5="冷房",HP性能曲線!$E$9*T15+HP性能曲線!$F$9,IF(T5="暖房",HP性能曲線!$E$10*T15+HP性能曲線!$F$10,IF(T5="給湯",HP性能曲線!$E$11*T15+HP性能曲線!$F$11,IF(T5="融雪",1,"-")))) -> - | U16: =IF(U5="冷房",HP性能曲線!$E$9*U15+HP性能曲線!$F$9,IF(U5="暖房",HP性能曲線!$E$10*U15+HP性能曲線!$F$10,IF(U5="給湯",HP性能曲線!$E$11*U15+HP性能曲線!$F$11,IF(U5="融雪",1,"-")))) -> - | V16: =IF(V5="冷房",HP性能曲線!$E$9*V15+HP性能曲線!$F$9,IF(V5="暖房",HP性能曲線!$E$10*V15+HP性能曲線!$F$10,IF(V5="給湯",HP性能曲線!$E$11*V15+HP性能曲線!$F$11,IF(V5="融雪",1,"-")))) -> - | W16: =IF(W5="冷房",HP性能曲線!$E$9*W15+HP性能曲線!$F$9,IF(W5="暖房",HP性能曲線!$E$10*W15+HP性能曲線!$F$10,IF(W5="給湯",HP性能曲線!$E$11*W15+HP性能曲線!$F$11,IF(W5="融雪",1,"-")))) -> - | X16: =IF(X5="冷房",HP性能曲線!$E$9*X15+HP性能曲線!$F$9,IF(X5="暖房",HP性能曲線!$E$10*X15+HP性能曲線!$F$10,IF(X5="給湯",HP性能曲線!$E$11*X15+HP性能曲線!$F$11,IF(X5="融雪",1,"-")))) -> - | Y16: =IF(Y5="冷房",HP性能曲線!$E$9*Y15+HP性能曲線!$F$9,IF(Y5="暖房",HP性能曲線!$E$10*Y15+HP性能曲線!$F$10,IF(Y5="給湯",HP性能曲線!$E$11*Y15+HP性能曲線!$F$11,IF(Y5="融雪",1,"-")))) -> - | Z16: =IF(Z5="冷房",HP性能曲線!$E$9*Z15+HP性能曲線!$F$9,IF(Z5="暖房",HP性能曲線!$E$10*Z15+HP性能曲線!$F$10,IF(Z5="給湯",HP性能曲線!$E$11*Z15+HP性能曲線!$F$11,IF(Z5="融雪",1,"-")))) -> - | AA16: =IF(AA5="冷房",HP性能曲線!$E$9*AA15+HP性能曲線!$F$9,IF(AA5="暖房",HP性能曲線!$E$10*AA15+HP性能曲線!$F$10,IF(AA5="給湯",HP性能曲線!$E$11*AA15+HP性能曲線!$F$11,IF(AA5="融雪",1,"-")))) -> -
B17: 下水温度 | C17: ℃ | D17: =入力シート!C46 -> 0 | E17: （ﾕｰｻﾞ入力） | I17: 熱源水ポンプ消費電力 | J17: kW | K17: =$D$23*$D$25*K14/1000/60*K15/10/K16 ->  | L17: ポンプ関数より | N17: ヒートポンプ消費電力量 | O17: kWh/月 | P17: =IF(P5="融雪",0,P7/P16) ->  | Q17: =IF(Q5="融雪",0,Q7/Q16) ->  | AB17: =SUM(P17:AA17) ->  | AC17: =MAX(P17:AA17) ->  | AD17: =MIN(P17:AA17) -> 
B18: 下水熱利用システムの種類 | D18: =入力シート!C56 -> 0 | I18: 下水流量 | J18: L/min | K18: =K14 ->  | N18: ヒートポンプ消費電力 | O18: kW | P18: =IF(P5="融雪",0,P12/P16) ->  | AC18: =MAX(P18:AA18) ->  | AD18: =MIN(P18:AA18) -> 
I19: 下水揚程（想定） | J19: m | K19: 30 | L19: 想定設定値 | N19: 採熱量（下水熱交換量） | O19: kWh/月 | P19: =IF(P5="冷房",P7+P17,P7-P17) ->  | Q19: =IF(Q5="冷房",Q7+Q17,Q7-Q17) ->  | AB19: =SUM(P19:AA19) ->  | AC19: =MAX(P19:AA19) ->  | AD19: =MIN(P19:AA19) -> 
B20: ■係数 | I20: 下水ポンプ効率 | J20: % | K20: =IF(K18<80,ポンプ効率近似式!$D$35,-1.1599*LN(K18/1000)^2+5.5019*LN(K18/1000)+43.417) ->  | L20: ポンプ効率近似式より | N20: 採熱量（下水熱交換量） | O20: kW | P20: =P19/P9/P8 ->  | AC20: =MAX(P20:AA20) ->  | AD20: =MIN(P20:AA20) -> 
B21: 項目 | C21: 値 | D21: 単位 | E21: 備考 | I21: 下水ポンプ消費電力 | J21: kW | K21: =IF($D$18="管路内",0,$D$23*$D$25*K18/1000/60*K19/10/K20) ->  | L21: ポンプ関数より | N21: 冷温水ポンプ消費電力量 | O21: kWh/月 | P21: =IF(P6=0,0,$K$13*P9*P8) ->  | AB21: =SUM(P21:AA21) -> 
B22: 水の比熱 | C22: kJ/kgK | D22: =係数・物性!D4 -> 4.179 | E22: 係数・物性より | N22: 熱源水ポンプ消費電力量 | O22: kWh/月 | P22: =IF(P6=0,0,$K$17*P9*P8) -> 
B23: 水の密度 | C23: kg/m3 | D23: =係数・物性!D5 -> 996.62 | E23: 係数・物性より | N23: 下水取水ポンプ消費電力量 | O23: kWh/月 | P23: =IF(P6=0,0,$K$21*P9*P8) -> 
B24: 容積比熱 | C24: MJ/m3K | D24: =係数・物性!D6 -> 4.16487498 | E24: 係数・物性より | N24: 消費電力量合計 | O24: kWh/月 | P24: =P17+P21+P22+P23 ->  | Q24: =Q17+Q21+Q22+Q23 -> 
B25: 重力加速度 | C25: m/s2 | D25: =係数・物性!D7 -> 9.806 | E25: 係数・物性より | N25: 熱源機消費電力量 | O25: kWh/月 | P25: =P17 -> 
N26: 補機類消費電力量 | O26: kWh/月 | P26: =P21+P22+P23 -> 
I29: ■エネルギーコスト、CO2排出量、一次エネルギー消費量計算（エネルギー消費量を入力）
N30: □エネルギー消費量
J31: 設定セル | N31: 項目 | O31: 単位 | P31: 4月 | Q31: 5月 | R31: 6月 | S31: 7月 | T31: 8月 | U31: 9月 | V31: 10月 | W31: 11月 | X31: 12月 | Y31: 1月 | Z31: 2月 | AA31: 3月 | AB31: 合計 | AC31: 最大 | AD31: 最小 | AE31: 備考
J32: 変更設定していいセル（計算式が入力されている） | N32: 電気 | O32: kWh/月 | P32: =P24 ->  | AB32: =SUM(P32:AA32) ->  | AC32: =MAX(P32:AA32) ->  | AD32: =MIN(P32:AA32) -> 
J33: あまり変更しなくていい設定セル | N33: 都市ガス（13A） | O33: m3/月 | AB33: 0 | AC33: 0 | AD33: 0
J34: デフォ値・係数 | N34: 灯油 | O34: L/月 | AB34: 0 | AC34: 0 | AD34: 0
J35: 計算式・項目確認セル | N35: 重油 | O35: L/月 | AB35: 0 | AC35: 0 | AD35: 0
N36: 液化石油ガス（LPG） | O36: kg/月 | AB36: 0 | AC36: 0 | AD36: 0
N37: 他人から供給された熱 | O37: MJ/月 | AB37: 0 | AC37: 0 | AD37: 0
I40: □エネルギーコスト単価(フラットレート) | N40: □エネルギーコスト検討
I41: 項目 | J41: 単位 | K41: 値 | L41: 備考 | N41: 項目 | O41: 単位 | P41: 4月 | Q41: 5月 | R41: 6月 | S41: 7月 | T41: 8月 | U41: 9月 | V41: 10月 | W41: 11月 | X41: 12月 | Y41: 1月 | Z41: 2月 | AA41: 3月 | AB41: 合計 | AC41: 最大 | AD41: 最小 | AE41: 備考
I42: 電気 | J42: 円/kWh | K42: =E単価!H5 -> 14 | N42: 電気 | O42: 千円/月 | P42: =P32*$K42/1000 ->  | Q42: =Q32*$K42/1000 ->  | AB42: =SUM(P42:AA42) ->  | AC42: =MAX(P42:AA42) ->  | AD42: =MIN(P42:AA42) -> 
I43: 都市ガス（13A） | J43: 円/m3 | K43: =E単価!H6 -> 114.6428571 | N43: 都市ガス（13A） | O43: 千円/月 | P43: 0 | Q43: =Q33*$K43/1000 -> 0 | R43: 0 | S43: 0 | T43: 0 | U43: 0 | V43: 0 | W43: 0 | X43: 0 | Y43: 0 | Z43: 0 | AA43: 0 | AB43: 0 | AC43: 0 | AD43: 0
I44: 灯油 | J44: 円/L | K44: =E単価!H7 -> 107.8888889 | N44: 灯油 | O44: 千円/月 | P44: 0 | Q44: =Q34*$K44/1000 -> 0 | R44: 0 | S44: 0 | T44: 0 | U44: 0 | V44: 0 | W44: 0 | X44: 0 | Y44: 0 | Z44: 0 | AA44: 0 | AB44: 0 | AC44: 0 | AD44: 0
I45: 重油 | J45: 円/L | K45: =E単価!H8 -> 76.1 | N45: 重油 | O45: 千円/月 | P45: 0 | Q45: =Q35*$K45/1000 -> 0 | R45: 0 | S45: 0 | T45: 0 | U45: 0 | V45: 0 | W45: 0 | X45: 0 | Y45: 0 | Z45: 0 | AA45: 0 | AB45: 0 | AC45: 0 | AD45: 0
I46: 液化石油ガス（LPG） | J46: 円/kg | K46: =E単価!H9 -> 159.4047619 | N46: 液化石油ガス（LPG） | O46: 千円/月 | P46: 0 | Q46: =Q36*$K46/1000 -> 0 | R46: 0 | S46: 0 | T46: 0 | U46: 0 | V46: 0 | W46: 0 | X46: 0 | Y46: 0 | Z46: 0 | AA46: 0 | AB46: 0 | AC46: 0 | AD46: 0
I47: 他人から供給された熱 | J47: 円/GJ | K47: =E単価!H10 -> 6611.904762 | N47: 他人から供給された熱 | O47: 千円/月 | P47: 0 | Q47: =Q37*$K47/1000 -> 0 | R47: 0 | S47: 0 | T47: 0 | U47: 0 | V47: 0 | W47: 0 | X47: 0 | Y47: 0 | Z47: 0 | AA47: 0 | AB47: 0 | AC47: 0 | AD47: 0
N48: エネルギーコスト合計 | O48: 千円/月 | P48: =SUM(P42:P47) ->  | Q48: =SUM(Q42:Q47) ->  | AB48: =SUM(AB42:AB47) ->  | AC48: =SUM(AC42:AC47) ->  | AD48: =SUM(AD42:AD47) -> 
I50: □CO2換算係数 | N50: □CO2排出量
I51: 項目 | J51: 単位 | K51: 値 | L51: 備考 | N51: 項目 | O51: 単位 | P51: 4月 | Q51: 5月 | R51: 6月 | S51: 7月 | T51: 8月 | U51: 9月 | V51: 10月 | W51: 11月 | X51: 12月 | Y51: 1月 | Z51: 2月 | AA51: 3月 | AB51: 合計 | AC51: 最大 | AD51: 最小 | AE51: 備考
I52: 電気 | J52: tCO2/kWh | K52: =CO2換算係数!B3 -> 0.000488 | N52: 電気 | O52: t-CO2/月 | P52: =P32*$K52 ->  | AB52: =SUM(P52:AA52) ->  | AC52: =MAX(P52:AA52) ->  | AD52: =MIN(P52:AA52) -> 
I53: 都市ガス（13A） | J53: tCO2/km3 | K53: =CO2換算係数!B4 -> 2.23 | N53: 都市ガス（13A） | O53: t-CO2/月 | P53: =P33/1000*$K53 -> 0 | Q53: =Q33/1000*$K53 -> 0 | R53: 0 | S53: 0 | T53: 0 | U53: 0 | V53: 0 | W53: 0 | X53: 0 | Y53: 0 | Z53: 0 | AA53: 0 | AB53: 0 | AC53: 0 | AD53: 0
I54: 灯油 | J54: tCO2/kL | K54: =CO2換算係数!B5 -> 2.49 | N54: 灯油 | O54: t-CO2/月 | P54: =P34/1000*$K54 -> 0 | Q54: 0 | R54: 0 | S54: 0 | T54: 0 | U54: 0 | V54: 0 | W54: 0 | X54: 0 | Y54: 0 | Z54: 0 | AA54: 0 | AB54: 0 | AC54: 0 | AD54: 0
I55: 重油 | J55: tCO2/kL | K55: =CO2換算係数!B6 -> 2.71 | N55: 重油 | O55: t-CO2/月 | P55: =P35/1000*$K55 -> 0 | Q55: 0 | R55: 0 | S55: 0 | T55: 0 | U55: 0 | V55: 0 | W55: 0 | X55: 0 | Y55: 0 | Z55: 0 | AA55: 0 | AB55: 0 | AC55: 0 | AD55: 0
I56: 液化石油ガス（LPG） | J56: tCO2/t | K56: =CO2換算係数!B7 -> 3 | N56: 液化石油ガス（LPG） | O56: t-CO2/月 | P56: =P36/1000*$K56 -> 0 | Q56: 0 | R56: 0 | S56: 0 | T56: 0 | U56: 0 | V56: 0 | W56: 0 | X56: 0 | Y56: 0 | Z56: 0 | AA56: 0 | AB56: 0 | AC56: 0 | AD56: 0
I57: 他人から供給された熱 | J57: tCO2/GJ | K57: =CO2換算係数!B8 -> 0.057 | N57: 他人から供給された熱 | O57: t-CO2/月 | P57: =P37/1000*$K57 -> 0 | Q57: 0 | R57: 0 | S57: 0 | T57: 0 | U57: 0 | V57: 0 | W57: 0 | X57: 0 | Y57: 0 | Z57: 0 | AA57: 0 | AB57: 0 | AC57: 0 | AD57: 0
N58: CO2排出量合計 | O58: t-CO2/月 | P58: =SUM(P52:P57) ->  | Q58: =SUM(Q52:Q57) ->  | AB58: =SUM(AB52:AB57) -> 
I60: □一次エネルギー換算係数 | N60: □一次エネルギー消費量
I61: 項目 | J61: 単位 | K61: 値 | L61: 備考 | N61: 項目 | O61: 単位 | P61: 4月 | Q61: 5月 | R61: 6月 | S61: 7月 | T61: 8月 | U61: 9月 | V61: 10月 | W61: 11月 | X61: 12月 | Y61: 1月 | Z61: 2月 | AA61: 3月 | AB61: 合計 | AC61: 最大 | AD61: 最小 | AE61: 備考
I62: 電気 | J62: MJ/kWh | K62: =一次E換算!B3 -> 9.76 | N62: 電気 | O62: MJ/月 | P62: =P32*$K62 ->  | AB62: =SUM(P62:AA62) ->  | AC62: =MAX(P62:AA62) ->  | AD62: =MIN(P62:AA62) -> 
I63: 都市ガス（13A） | J63: MJ/m3 | K63: =一次E換算!B4 -> 45 | N63: 都市ガス（13A） | O63: MJ/月 | P63: =P33*$K63 -> 0 | Q63: 0 | R63: 0 | S63: 0 | T63: 0 | U63: 0 | V63: 0 | W63: 0 | X63: 0 | Y63: 0 | Z63: 0 | AA63: 0 | AB63: 0 | AC63: 0 | AD63: 0
